Workbook

Sheet Cover (hidden)

Sheet Introduction
A1: This worksheet contains a single column of text. It explains the content of the other worksheets in this document and how they relate to each other. On each worksheet, a cell in column A contains the phrase "End of content" to indicate that there are no more rows of content. A cell in row 1 contains the phrase "End of content" to indicate that there are no more columns of content. | B1: End of content.
A2: The Screenshots worksheet Each column contains screenshots of the components and pages that were tested. The columns are in the same order as the Success Criteria worksheet.
A3: The Statistics worksheet Rows 2 to 11 contain the meta information for the project, such as the project name, report version number, the tester's name, report date, details of the test environment and the scope of testing (WCAG level A, AA or AAA). This information is in columns A to S. Rows 13 and below contain details of what was tested and the number of WCAG non-conformances. Columns B, C and D contain a list of the names and URLs of the components, pages, documents and mobile app screens that were tested. Columns E to T contain the numbers of passes and non-conformances for each component, page, document and mobile app screen. Separate figures are shown for level A, AA, AAA and the total.
A4: The Conformance Statement worksheet If the document contains a Conformance Statement worksheet, it will contain a single column of text. It includes the scope of the statement, the level of conformance, any accessibility limitations and a list of the technologies that are relied on for conformance.
A5: The Success Criteria worksheet This contains the test results, which are highly granular, showing the results for each WCAG success criterion for each page. Columns A to D contain a list of all the WCAG success criteria that were tested. For each success criterion, column A contains a link to the corresponding page on the W3C website. Columns E to EX contain the test results for each component, page, document or mobile app screen. Rows 1 and 2 contain the page number and the date it was first tested. Row 3 contains the page names. Row 4 contains the URLs. Row 5 contains the number of non-conformances at WCAG level A, AA and AAA. Row 6 contains a link to the corresponding screenshot on the Screenshots worksheet. Not every column will contain this link. Rows 8 and below contain the test results. Each WCAG success criterion occupies two rows. The first row contains the status, such as Pass, Non-conformant or Not Applicable. The second row contains an explanation and recommendations. Two success criteria, for Colour Contrast and Non-text Contrast, have a third row to accommodate the tester's comments in addition to the automatically generated content on the two previous rows.
A6: The Colour Contrast Analysis worksheet This contains a record of every combination of text colour and background colour that is used on each page. Each combination is on a separate row from row 5 downwards. The results on this worksheet automatically populate the relevant cells in the Success Criteria worksheet. Column A contains a description of what the text is used for, such as headings, body text, links etc. Column B contains a small screenshot of an example of that combination of text colour and background colour. Column C contains the text colour in Hex format. Column D contains the background colour in Hex format. Column E specifies whether the text is large or small, as defined by WCAG. Columns F to U are intentionally hidden because they contain calculations. Column V contains the calculated colour contrast ratio. Column W contains the exemption status. Column X contains the Pass / Fail result. Column Y specifies whether the text is in an image or a video or if it is actual text. Columns Z to FS show which combinations of text and background colours occur on which pages. In columns Z to FS, row 1 contains the page name, row 2 contains the URL, row 3 contains the page number and row 4 contains the number of combinations that are non-conformant on that page.
A7: The Non-text Contrast worksheet This contains a record of the adjacent colours of every non-text item on each page. Each combination is on a separate row from row 5 downwards. The results on this worksheet automatically populate the relevant cells in the Success Criteria worksheet. Column A contains a description of the item, such as an icon, form control or focus indicator. Column B specifies which colours are being compared. Column C contains a small screenshot of an example of the non-text item. Column D contains a graphical representation of our recommendation if there is not sufficient colour contrast. Column E contains our written recommendation if there is not sufficient colour contrast. Columns F and G contain the two adjacent colours in Hex format. Columns H to W are intentionally hidden because they contain calculations. Column X contains the calculated colour contrast ratio. Column Y contains the exemption status. Column Z contains the Pass / Fail result. Columns Z to FS show which combinations of text and background colours occur on which pages. In columns AA to FT, row 1 contains the page name, row 2 contains the URL, row 3 contains the page number and row 4 contains the number of combinations that are non-conformant on that page.
A8: End of content.

Sheet Screenshots
A1: ="Page # " & COLUMN(A1) & ": " & 'Success Criteria'!E1 -> Page # 1: page 1 | B1: ="Page # " & COLUMN(B1) & ": " & 'Success Criteria'!F1 -> Page # 2: page 2 | C1: ="Page # " & COLUMN(C1) & ": " & 'Success Criteria'!G1 -> Page # 3: page 3 | D1: ="Page # " & COLUMN(D1) & ": " & 'Success Criteria'!H1 -> Page # 4: page 4 | E1: ="Page # " & COLUMN(E1) & ": " & 'Success Criteria'!I1 -> Page # 5: page 5 | F1: ="Page # " & COLUMN(F1) & ": " & 'Success Criteria'!J1 -> Page # 6: page 6 | G1: ="Page # " & COLUMN(G1) & ": " & 'Success Criteria'!K1 -> Page # 7: page 7 | H1: ="Page # " & COLUMN(H1) & ": " & 'Success Criteria'!L1 -> Page # 8: Header (Pre-login) (Admin) | I1: ="Page # " & COLUMN(I1) & ": " & 'Success Criteria'!M1 -> Page # 9: Footer (Pre-login) (Admin) | J1: ="Page # " & COLUMN(J1) & ": " & 'Success Criteria'!N1 -> Page # 10: Login (Admin) | K1: ="Page # " & COLUMN(K1) & ": " & 'Success Criteria'!O1 -> Page # 11: Header (Post-login) (Admin) | L1: ="Page # " & COLUMN(L1) & ": " & 'Success Criteria'!P1 -> Page # 12: Footer (Post-login) (Admin) | M1: ="Page # " & COLUMN(M1) & ": " & 'Success Criteria'!Q1 -> Page # 13: Menu (Admin) | N1: ="Page # " & COLUMN(N1) & ": " & 'Success Criteria'!R1 -> Page # 14: View record (Admin) | O1: ="Page # " & COLUMN(O1) & ": " & 'Success Criteria'!S1 -> Page # 15: Edit record (Admin) | P1: ="Page # " & COLUMN(P1) & ": " & 'Success Criteria'!T1 -> Page # 16: Step 1: Enforcement Action Type | Q1: ="Page # " & COLUMN(Q1) & ": " & 'Success Criteria'!U1 -> Page # 17: Step 1: Postal Address | R1: ="Page # " & COLUMN(R1) & ": " & 'Success Criteria'!V1 -> Page # 18: Step 3: Enforcement Action - Details | S1: ="Page # " & COLUMN(S1) & ": " & 'Success Criteria'!W1 -> Page # 19: My Records | T1: ="Page # " & COLUMN(T1) & ": " & 'Success Criteria'!X1 -> Page # 20: Users | U1: ="Page # " & COLUMN(U1) & ": " & 'Success Criteria'!Y1 -> Page # 21: Search | V1: ="Page # " & COLUMN(V1) & ": " & 'Success Criteria'!Z1 -> Page # 22: decision-1692365159.pdf | W1: ="Page # " & COLUMN(W1) & ": " & 'Success Criteria'!AA1 -> Page # 23: Edit user | X1: ="Page # " & COLUMN(X1) & ": " & 'Success Criteria'!AB1 -> Page # 24: Letter Template: Letters Decision Amend | Y1: ="Page # " & COLUMN(Y1) & ": " & 'Success Criteria'!AC1 -> Page # 25: Suspend Enforcement Actions (Public) (Checkbox only) | Z1: ="Page # " & COLUMN(Z1) & ": " & 'Success Criteria'!AD1 -> Page # 26: Suspend Enforcement Actions (Public) - are you sure? | AA1: ="Page # " & COLUMN(AA1) & ": " & 'Success Criteria'!AE1 -> Page # 27: Decision Letter Entities (Table only) | AB1: ="Page # " & COLUMN(AB1) & ": " & 'Success Criteria'!AF1 -> Page # 28: Page 28 | AC1: ="Page # " & COLUMN(AC1) & ": " & 'Success Criteria'!AG1 -> Page # 29: Page 29 | AD1: ="Page # " & COLUMN(AD1) & ": " & 'Success Criteria'!AH1 -> Page # 30: Page 30 | AE1: ="Page # " & COLUMN(AE1) & ": " & 'Success Criteria'!AI1 -> Page # 31: Page 31 | AF1: ="Page # " & COLUMN(AF1) & ": " & 'Success Criteria'!AJ1 -> Page # 32: Page 32 | AG1: ="Page # " & COLUMN(AG1) & ": " & 'Success Criteria'!AK1 -> Page # 33: Page 33 | AH1: ="Page # " & COLUMN(AH1) & ": " & 'Success Criteria'!AL1 -> Page # 34: Page 34 | AI1: ="Page # " & COLUMN(AI1) & ": " & 'Success Criteria'!AM1 -> Page # 35: Page 35 | AJ1: ="Page # " & COLUMN(AJ1) & ": " & 'Success Criteria'!AN1 -> Page # 36: Page 36 | AK1: ="Page # " & COLUMN(AK1) & ": " & 'Success Criteria'!AO1 -> Page # 37: Page 37 | AL1: ="Page # " & COLUMN(AL1) & ": " & 'Success Criteria'!AP1 -> Page # 38: Page 38 | AM1: ="Page # " & COLUMN(AM1) & ": " & 'Success Criteria'!AQ1 -> Page # 39: Page 39 | AN1: ="Page # " & COLUMN(AN1) & ": " & 'Success Criteria'!AR1 -> Page # 40: Page 40 | AO1: ="Page # " & COLUMN(AO1) & ": " & 'Success Criteria'!AS1 -> Page # 41: Page 41 | AP1: ="Page # " & COLUMN(AP1) & ": " & 'Success Criteria'!AT1 -> Page # 42: Page 42 | AQ1: ="Page # " & COLUMN(AQ1) & ": " & 'Success Criteria'!AU1 -> Page # 43: Page 43 | AR1: ="Page # " & COLUMN(AR1) & ": " & 'Success Criteria'!AV1 -> Page # 44: Page 44 | AS1: ="Page # " & COLUMN(AS1) & ": " & 'Success Criteria'!AW1 -> Page # 45: Page 45 | AT1: ="Page # " & COLUMN(AT1) & ": " & 'Success Criteria'!AX1 -> Page # 46: Page 46 | AU1: ="Page # " & COLUMN(AU1) & ": " & 'Success Criteria'!AY1 -> Page # 47: Page 47 | AV1: ="Page # " & COLUMN(AV1) & ": " & 'Success Criteria'!AZ1 -> Page # 48: Page 48 | AW1: ="Page # " & COLUMN(AW1) & ": " & 'Success Criteria'!BA1 -> Page # 49: Page 49 | AX1: ="Page # " & COLUMN(AX1) & ": " & 'Success Criteria'!BB1 -> Page # 50: Page 50 | AY1: ="Page # " & COLUMN(AY1) & ": " & 'Success Criteria'!BC1 -> Page # 51: Page 51 | AZ1: ="Page # " & COLUMN(AZ1) & ": " & 'Success Criteria'!BD1 -> Page # 52: Page 52 | BA1: ="Page # " & COLUMN(BA1) & ": " & 'Success Criteria'!BE1 -> Page # 53: Page 53 | BB1: ="Page # " & COLUMN(BB1) & ": " & 'Success Criteria'!BF1 -> Page # 54: Page 54 | BC1: ="Page # " & COLUMN(BC1) & ": " & 'Success Criteria'!BG1 -> Page # 55: Page 55 | BD1: ="Page # " & COLUMN(BD1) & ": " & 'Success Criteria'!BH1 -> Page # 56: Page 56 | BE1: ="Page # " & COLUMN(BE1) & ": " & 'Success Criteria'!BI1 -> Page # 57: Page 57 | BF1: ="Page # " & COLUMN(BF1) & ": " & 'Success Criteria'!BJ1 -> Page # 58: Page 58 | BG1: ="Page # " & COLUMN(BG1) & ": " & 'Success Criteria'!BK1 -> Page # 59: Page 59 | BH1: ="Page # " & COLUMN(BH1) & ": " & 'Success Criteria'!BL1 -> Page # 60: Page 60 | BI1: ="Page # " & COLUMN(BI1) & ": " & 'Success Criteria'!BM1 -> Page # 61: Page 61 | BJ1: ="Page # " & COLUMN(BJ1) & ": " & 'Success Criteria'!BN1 -> Page # 62: Page 62 | BK1: ="Page # " & COLUMN(BK1) & ": " & 'Success Criteria'!BO1 -> Page # 63: Page 63 | BL1: ="Page # " & COLUMN(BL1) & ": " & 'Success Criteria'!BP1 -> Page # 64: Page 64 | BM1: ="Page # " & COLUMN(BM1) & ": " & 'Success Criteria'!BQ1 -> Page # 65: Page 65 | BN1: ="Page # " & COLUMN(BN1) & ": " & 'Success Criteria'!BR1 -> Page # 66: Page 66 | BO1: ="Page # " & COLUMN(BO1) & ": " & 'Success Criteria'!BS1 -> Page # 67: Page 67 | BP1: ="Page # " & COLUMN(BP1) & ": " & 'Success Criteria'!BT1 -> Page # 68: Page 68 | BQ1: ="Page # " & COLUMN(BQ1) & ": " & 'Success Criteria'!BU1 -> Page # 69: Page 69 | BR1: ="Page # " & COLUMN(BR1) & ": " & 'Success Criteria'!BV1 -> Page # 70: Page 70 | BS1: ="Page # " & COLUMN(BS1) & ": " & 'Success Criteria'!BW1 -> Page # 71: Page 71 | BT1: ="Page # " & COLUMN(BT1) & ": " & 'Success Criteria'!BX1 -> Page # 72: Page 72 | BU1: ="Page # " & COLUMN(BU1) & ": " & 'Success Criteria'!BY1 -> Page # 73: Page 73 | BV1: ="Page # " & COLUMN(BV1) & ": " & 'Success Criteria'!BZ1 -> Page # 74: Page 74 | BW1: ="Page # " & COLUMN(BW1) & ": " & 'Success Criteria'!CA1 -> Page # 75: Page 75 | BX1: ="Page # " & COLUMN(BX1) & ": " & 'Success Criteria'!CB1 -> Page # 76: Page 76 | BY1: ="Page # " & COLUMN(BY1) & ": " & 'Success Criteria'!CC1 -> Page # 77: Page 77 | BZ1: ="Page # " & COLUMN(BZ1) & ": " & 'Success Criteria'!CD1 -> Page # 78: Page 78 | CA1: ="Page # " & COLUMN(CA1) & ": " & 'Success Criteria'!CE1 -> Page # 79: Page 79 | CB1: ="Page # " & COLUMN(CB1) & ": " & 'Success Criteria'!CF1 -> Page # 80: Page 80 | CC1: ="Page # " & COLUMN(CC1) & ": " & 'Success Criteria'!CG1 -> Page # 81: Page 81 | CD1: ="Page # " & COLUMN(CD1) & ": " & 'Success Criteria'!CH1 -> Page # 82: Page 82 | CE1: ="Page # " & COLUMN(CE1) & ": " & 'Success Criteria'!CI1 -> Page # 83: Page 83 | CF1: ="Page # " & COLUMN(CF1) & ": " & 'Success Criteria'!CJ1 -> Page # 84: Page 84 | CG1: ="Page # " & COLUMN(CG1) & ": " & 'Success Criteria'!CK1 -> Page # 85: Page 85 | CH1: ="Page # " & COLUMN(CH1) & ": " & 'Success Criteria'!CL1 -> Page # 86: Page 86 | CI1: ="Page # " & COLUMN(CI1) & ": " & 'Success Criteria'!CM1 -> Page # 87: Page 87 | CJ1: ="Page # " & COLUMN(CJ1) & ": " & 'Success Criteria'!CN1 -> Page # 88: Page 88 | CK1: ="Page # " & COLUMN(CK1) & ": " & 'Success Criteria'!CO1 -> Page # 89: Page 89 | CL1: ="Page # " & COLUMN(CL1) & ": " & 'Success Criteria'!CP1 -> Page # 90: Page 90 | CM1: ="Page # " & COLUMN(CM1) & ": " & 'Success Criteria'!CQ1 -> Page # 91: Page 91 | CN1: ="Page # " & COLUMN(CN1) & ": " & 'Success Criteria'!CR1 -> Page # 92: Page 92 | CO1: ="Page # " & COLUMN(CO1) & ": " & 'Success Criteria'!CS1 -> Page # 93: Page 93 | CP1: ="Page # " & COLUMN(CP1) & ": " & 'Success Criteria'!CT1 -> Page # 94: Page 94 | CQ1: ="Page # " & COLUMN(CQ1) & ": " & 'Success Criteria'!CU1 -> Page # 95: Page 95 | CR1: ="Page # " & COLUMN(CR1) & ": " & 'Success Criteria'!CV1 -> Page # 96: Page 96 | CS1: ="Page # " & COLUMN(CS1) & ": " & 'Success Criteria'!CW1 -> Page # 97: Page 97 | CT1: ="Page # " & COLUMN(CT1) & ": " & 'Success Criteria'!CX1 -> Page # 98: Page 98 | CU1: ="Page # " & COLUMN(CU1) & ": " & 'Success Criteria'!CY1 -> Page # 99: Page 99 | CV1: ="Page # " & COLUMN(CV1) & ": " & 'Success Criteria'!CZ1 -> Page # 100: Page 100 | CW1: ="Page # " & COLUMN(CW1) & ": " & 'Success Criteria'!DA1 -> Page # 101: Page 101 | CX1: ="Page # " & COLUMN(CX1) & ": " & 'Success Criteria'!DB1 -> Page # 102: Page 102 | CY1: ="Page # " & COLUMN(CY1) & ": " & 'Success Criteria'!DC1 -> Page # 103: Page 103 | CZ1: ="Page # " & COLUMN(CZ1) & ": " & 'Success Criteria'!DD1 -> Page # 104: Page 104 | DA1: ="Page # " & COLUMN(DA1) & ": " & 'Success Criteria'!DE1 -> Page # 105: Page 105 | DB1: ="Page # " & COLUMN(DB1) & ": " & 'Success Criteria'!DF1 -> Page # 106: Page 106 | DC1: ="Page # " & COLUMN(DC1) & ": " & 'Success Criteria'!DG1 -> Page # 107: Page 107 | DD1: ="Page # " & COLUMN(DD1) & ": " & 'Success Criteria'!DH1 -> Page # 108: Page 108 | DE1: ="Page # " & COLUMN(DE1) & ": " & 'Success Criteria'!DI1 -> Page # 109: Page 109 | DF1: ="Page # " & COLUMN(DF1) & ": " & 'Success Criteria'!DJ1 -> Page # 110: Page 110 | DG1: ="Page # " & COLUMN(DG1) & ": " & 'Success Criteria'!DK1 -> Page # 111: Page 111 | DH1: ="Page # " & COLUMN(DH1) & ": " & 'Success Criteria'!DL1 -> Page # 112: Page 112 | DI1: ="Page # " & COLUMN(DI1) & ": " & 'Success Criteria'!DM1 -> Page # 113: Page 113 | DJ1: ="Page # " & COLUMN(DJ1) & ": " & 'Success Criteria'!DN1 -> Page # 114: Page 114 | DK1: ="Page # " & COLUMN(DK1) & ": " & 'Success Criteria'!DO1 -> Page # 115: Page 115 | DL1: ="Page # " & COLUMN(DL1) & ": " & 'Success Criteria'!DP1 -> Page # 116: Page 116 | DM1: ="Page # " & COLUMN(DM1) & ": " & 'Success Criteria'!DQ1 -> Page # 117: Page 117 | DN1: ="Page # " & COLUMN(DN1) & ": " & 'Success Criteria'!DR1 -> Page # 118: Page 118 | DO1: ="Page # " & COLUMN(DO1) & ": " & 'Success Criteria'!DS1 -> Page # 119: Page 119 | DP1: ="Page # " & COLUMN(DP1) & ": " & 'Success Criteria'!DT1 -> Page # 120: Page 120 | DQ1: ="Page # " & COLUMN(DQ1) & ": " & 'Success Criteria'!DU1 -> Page # 121: Page 121 | DR1: ="Page # " & COLUMN(DR1) & ": " & 'Success Criteria'!DV1 -> Page # 122: Page 122 | DS1: ="Page # " & COLUMN(DS1) & ": " & 'Success Criteria'!DW1 -> Page # 123: Page 123 | DT1: ="Page # " & COLUMN(DT1) & ": " & 'Success Criteria'!DX1 -> Page # 124: Page 124 | DU1: ="Page # " & COLUMN(DU1) & ": " & 'Success Criteria'!DY1 -> Page # 125: Page 125 | DV1: ="Page # " & COLUMN(DV1) & ": " & 'Success Criteria'!DZ1 -> Page # 126: Page 126 | DW1: ="Page # " & COLUMN(DW1) & ": " & 'Success Criteria'!EA1 -> Page # 127: Page 127 | DX1: ="Page # " & COLUMN(DX1) & ": " & 'Success Criteria'!EB1 -> Page # 128: Page 128 | DY1: ="Page # " & COLUMN(DY1) & ": " & 'Success Criteria'!EC1 -> Page # 129: Page 129 | DZ1: ="Page # " & COLUMN(DZ1) & ": " & 'Success Criteria'!ED1 -> Page # 130: Page 130 | EA1: ="Page # " & COLUMN(EA1) & ": " & 'Success Criteria'!EE1 -> Page # 131: Page 131 | EB1: ="Page # " & COLUMN(EB1) & ": " & 'Success Criteria'!EF1 -> Page # 132: Page 132 | EC1: ="Page # " & COLUMN(EC1) & ": " & 'Success Criteria'!EG1 -> Page # 133: Page 133 | ED1: ="Page # " & COLUMN(ED1) & ": " & 'Success Criteria'!EH1 -> Page # 134: Page 134 | EE1: ="Page # " & COLUMN(EE1) & ": " & 'Success Criteria'!EI1 -> Page # 135: Page 135 | EF1: ="Page # " & COLUMN(EF1) & ": " & 'Success Criteria'!EJ1 -> Page # 136: Page 136 | EG1: ="Page # " & COLUMN(EG1) & ": " & 'Success Criteria'!EK1 -> Page # 137: Page 137 | EH1: ="Page # " & COLUMN(EH1) & ": " & 'Success Criteria'!EL1 -> Page # 138: Page 138 | EI1: ="Page # " & COLUMN(EI1) & ": " & 'Success Criteria'!EM1 -> Page # 139: Page 139 | EJ1: ="Page # " & COLUMN(EJ1) & ": " & 'Success Criteria'!EN1 -> Page # 140: Page 140 | EK1: ="Page # " & COLUMN(EK1) & ": " & 'Success Criteria'!EO1 -> Page # 141: Page 141 | EL1: ="Page # " & COLUMN(EL1) & ": " & 'Success Criteria'!EP1 -> Page # 142: Page 142 | EM1: ="Page # " & COLUMN(EM1) & ": " & 'Success Criteria'!EQ1 -> Page # 143: Page 143 | EN1: ="Page # " & COLUMN(EN1) & ": " & 'Success Criteria'!ER1 -> Page # 144: Page 144 | EO1: ="Page # " & COLUMN(EO1) & ": " & 'Success Criteria'!ES1 -> Page # 145: Page 145 | EP1: ="Page # " & COLUMN(EP1) & ": " & 'Success Criteria'!ET1 -> Page # 146: Page 146 | EQ1: ="Page # " & COLUMN(EQ1) & ": " & 'Success Criteria'!EU1 -> Page # 147: Page 147 | ER1: ="Page # " & COLUMN(ER1) & ": " & 'Success Criteria'!EV1 -> Page # 148: Page 148 | ES1: ="Page # " & COLUMN(ES1) & ": " & 'Success Criteria'!EW1 -> Page # 149: Page 149 | ET1: ="Page # " & COLUMN(ET1) & ": " & 'Success Criteria'!EX1 -> Page # 150: Page 150 | EU1: End of content
H2: Pre-login state | I2: Pre-login state
H6: Post-login state
I8: Post-login state

Sheet Statistics
A1: WCAG 2.1 website accessibility audit Statistics | U1: End of content | V1: Tidy Document | Y1: Template version 3.22
A2: Client | C2: Greater London Authority | I2: Test Environment | Q2: Scope | V2: Hide these columns before delivery to the client Many cells are protected and cannot be edited. Unprotect the worksheet to delete columns or rows. Do not add columns or rows. See Steve Green if amendments are necessary.
A3: Website or Mobile App Name | C3: Rogue Landlord and Agent Checker (RLAC) | I3: Primary Operating System | M3: Windows 10 | Q3: WCAG | S3: 2.1
A4: URL or Mobile App Version Number | I4: Primary Browser | M4: Chrome 116.0.5845.189 | Q4: Level A | S4: Yes
A5: Quotation Number | C5: 006078 | I5: Primary Screen Reader | M5: Jaws 2021 | Q5: Level AA | S5: Yes
A6: Report Version Number | C6: 9 | I6: Screen Size | M6: 32 inch | Q6: Level AAA | S6: No
A7: Testing Last Conducted By | C7: Wing Kuet | I7: Screen Resolution | M7: 1920x1080px Widescreen
A8: Testing Last Conducted On | C8: 2023-10-12 | I8: Secondary Browser 1 | M8: Firefox 117.0 (64-bit)
A9: Report Last Reviewed By | I9: Secondary Browser 2 | M9: Safari 14.0.1 (16610.2.11.1.3)
A10: Report Last Reviewed On | I10: Secondary Browser 3 | M10: Edge 116.0.1938.81
A11: Notes | I11: Primary PDF Reader | M11: N/A
E13: Level A | I13: Level AA | M13: Level AAA | Q13: Total | V13: Level A Checkpoints Done | W13: Level A Checkpoints Complete | X13: Level AA Checkpoints Done | Y13: Level AA Checkpoints Complete | Z13: Level AAA Checkpoints Done | AA13: Level AAA Checkpoints Complete
A14: ID | B14: Page Name | C14: Page URL | D14: Page or Component | E14: Pass | F14: Fail | G14: N/A | H14: Not tested | I14: Pass | J14: Fail | K14: N/A | L14: Not tested | M14: Pass | N14: Fail | O14: N/A | P14: Not tested | Q14: Pass | R14: Fail | S14: N/A | T14: Not tested
A15: =HYPERLINK("#'Success Criteria'!"&ADDRESS(1,ROW()-10,4),ROW()-14) -> 1 | B15: page 1 | E15: =SUM(COUNTIF(INDIRECT("'Success Criteria'!" & ADDRESS(10,A15+4)):INDIRECT("'Success Criteria'!" & ADDRESS(72,A15+4)),"PASS"),COUNTIF(INDIRECT("'Success Criteria'!" & ADDRESS(10,A15+4)):INDIRECT("'Success Criteria'!" & ADDRESS(72,A15+4)),"PASS with comments")) -> 0 | F15: =COUNTIF(INDIRECT("'Success Criteria'!" & ADDRESS(10,A15+4)):INDIRECT("'Success Criteria'!" & ADDRESS(72,A15+4)),"NON conformant") -> 0 | G15: =COUNTIF(INDIRECT("'Success Criteria'!" & ADDRESS(10,A15+4)):INDIRECT("'Success Criteria'!" & ADDRESS(72,A15+4)),"N/A") -> 0 | H15: =COUNTIF(INDIRECT("'Success Criteria'!" & ADDRESS(10,A15+4)):INDIRECT("'Success Criteria'!" & ADDRESS(72,A15+4)),"not tested") -> 30 | I15: =SUM(COUNTIF(INDIRECT("'Success Criteria'!" & ADDRESS(76,A15+4)):INDIRECT("'Success Criteria'!" & ADDRESS(119,A15+4)),"PASS"),COUNTIF(INDIRECT("'Success Criteria'!" & ADDRESS(76,A15+4)):INDIRECT("'Success Criteria'!" & ADDRESS(119,A15+4)),"PASS with comments")) -> 0 | J15: =COUNTIF(INDIRECT("'Success Criteria'!" & ADDRESS(76,A15+4)):INDIRECT("'Success Criteria'!" & ADDRESS(119,A15+4)),"NON conformant") -> 0 | K15: =COUNTIF(INDIRECT("'Success Criteria'!" & ADDRESS(76,A15+4)):INDIRECT("'Success Criteria'!" & ADDRESS(119,A15+4)),"N/A") -> 0 | L15: =COUNTIF(INDIRECT("'Success Criteria'!" & ADDRESS(76,A15+4)):INDIRECT("'Success Criteria'!" & ADDRESS(119,A15+4)),"not tested") -> 21 | M15: =SUM(COUNTIF(INDIRECT("'Success Criteria'!" & ADDRESS(124,A15+4)):INDIRECT("'Success Criteria'!" & ADDRESS(178,A15+4)),"PASS"),COUNTIF(INDIRECT("'Success Criteria'!" & ADDRESS(124,A15+4)):INDIRECT("'Success Criteria'!" & ADDRESS(178,A15+4)),"PASS with comments")) -> 0 | N15: =COUNTIF(INDIRECT("'Success Criteria'!" & ADDRESS(124,A15+4)):INDIRECT("'Success Criteria'!" & ADDRESS(178,A15+4)),"NON conformant") -> 0 | O15: =COUNTIF(INDIRECT("'Success Criteria'!" & ADDRESS(124,A15+4)):INDIRECT("'Success Criteria'!" & ADDRESS(178,A15+4)),"N/A") -> 0 | P15: =COUNTIF(INDIRECT("'Success Criteria'!" & ADDRESS(124,A15+4)):INDIRECT("'Success Criteria'!" & ADDRESS(178,A15+4)),"not tested") -> 28 | Q15: =SUM(E15+I15+M15) -> 0 | R15: =SUM(F15+J15+N15) -> 0 | S15: =SUM(G15+K15+O15) -> 0 | T15: =SUM(H15+L15+P15) -> 79 | V15: =SUM(E15:H15) -> 30 | W15: =IF(V15=30,1,"") -> 1 | X15: =SUM($I15:$L15) -> 21 | Y15: =IF(X15=20,1,"") ->  | Z15: =SUM($M15:$P15) -> 28 | AA15: =IF(Z15=28,1,"") -> 1
A16: =HYPERLINK("#'Success Criteria'!"&ADDRESS(1,ROW()-10,4),ROW()-14) -> 2 | B16: page 2 | E16: =SUM(COUNTIF(INDIRECT("'Success Criteria'!" & ADDRESS(10,A16+4)):INDIRECT("'Success Criteria'!" & ADDRESS(72,A16+4)),"PASS"),COUNTIF(INDIRECT("'Success Criteria'!" & ADDRESS(10,A16+4)):INDIRECT("'Success Criteria'!" & ADDRESS(72,A16+4)),"PASS with comments")) -> 0 | F16: =COUNTIF(INDIRECT("'Success Criteria'!" & ADDRESS(10,A16+4)):INDIRECT("'Success Criteria'!" & ADDRESS(72,A16+4)),"NON conformant") -> 0 | G16: =COUNTIF(INDIRECT("'Success Criteria'!" & ADDRESS(10,A16+4)):INDIRECT("'Success Criteria'!" & ADDRESS(72,A16+4)),"N/A") -> 0 | H16: =COUNTIF(INDIRECT("'Success Criteria'!" & ADDRESS(10,A16+4)):INDIRECT("'Success Criteria'!" & ADDRESS(72,A16+4)),"not tested") -> 30 | I16: =SUM(COUNTIF(INDIRECT("'Success Criteria'!" & ADDRESS(76,A16+4)):INDIRECT("'Success Criteria'!" & ADDRESS(119,A16+4)),"PASS"),COUNTIF(INDIRECT("'Success Criteria'!" & ADDRESS(76,A16+4)):INDIRECT("'Success Criteria'!" & ADDRESS(119,A16+4)),"PASS with comments")) -> 0 | J16: =COUNTIF(INDIRECT("'Success Criteria'!" & ADDRESS(76,A16+4)):INDIRECT("'Success Criteria'!" & ADDRESS(119,A16+4)),"NON conformant") -> 0 | K16: =COUNTIF(INDIRECT("'Success Criteria'!" & ADDRESS(76,A16+4)):INDIRECT("'Success Criteria'!" & ADDRESS(119,A16+4)),"N/A") -> 0 | L16: =COUNTIF(INDIRECT("'Success Criteria'!" & ADDRESS(76,A16+4)):INDIRECT("'Success Criteria'!" & ADDRESS(119,A16+4)),"not tested") -> 21 | M16: =SUM(COUNTIF(INDIRECT("'Success Criteria'!" & ADDRESS(124,A16+4)):INDIRECT("'Success Criteria'!" & ADDRESS(178,A16+4)),"PASS"),COUNTIF(INDIRECT("'Success Criteria'!" & ADDRESS(124,A16+4)):INDIRECT("'Success Criteria'!" & ADDRESS(178,A16+4)),"PASS with comments")) -> 0 | N16: =COUNTIF(INDIRECT("'Success Criteria'!" & ADDRESS(124,A16+4)):INDIRECT("'Success Criteria'!" & ADDRESS(178,A16+4)),"NON conformant") -> 0 | O16: =COUNTIF(INDIRECT("'Success Criteria'!" & ADDRESS(124,A16+4)):INDIRECT("'Success Criteria'!" & ADDRESS(178,A16+4)),"N/A") -> 0 | P16: =COUNTIF(INDIRECT("'Success Criteria'!" & ADDRESS(124,A16+4)):INDIRECT("'Success Criteria'!" & ADDRESS(178,A16+4)),"not tested") -> 28 | Q16: =SUM(E16+I16+M16) -> 0 | R16: =SUM(F16+J16+N16) -> 0 | S16: 0 | T16: 79 | V16: 30 | W16: 1 | X16: =SUM($I16:$L16) -> 21 | Z16: =SUM($M16:$P16) -> 28 | AA16: =IF(Z16=28,1,"") -> 1
A17: 3 | B17: page 3 | E17: =SUM(COUNTIF(INDIRECT("'Success Criteria'!" & ADDRESS(10,A17+4)):INDIRECT("'Success Criteria'!" & ADDRESS(72,A17+4)),"PASS"),COUNTIF(INDIRECT("'Success Criteria'!" & ADDRESS(10,A17+4)):INDIRECT("'Success Criteria'!" & ADDRESS(72,A17+4)),"PASS with comments")) -> 0 | F17: =COUNTIF(INDIRECT("'Success Criteria'!" & ADDRESS(10,A17+4)):INDIRECT("'Success Criteria'!" & ADDRESS(72,A17+4)),"NON conformant") -> 0 | G17: =COUNTIF(INDIRECT("'Success Criteria'!" & ADDRESS(10,A17+4)):INDIRECT("'Success Criteria'!" & ADDRESS(72,A17+4)),"N/A") -> 0 | H17: =COUNTIF(INDIRECT("'Success Criteria'!" & ADDRESS(10,A17+4)):INDIRECT("'Success Criteria'!" & ADDRESS(72,A17+4)),"not tested") -> 30 | I17: =SUM(COUNTIF(INDIRECT("'Success Criteria'!" & ADDRESS(76,A17+4)):INDIRECT("'Success Criteria'!" & ADDRESS(119,A17+4)),"PASS"),COUNTIF(INDIRECT("'Success Criteria'!" & ADDRESS(76,A17+4)):INDIRECT("'Success Criteria'!" & ADDRESS(119,A17+4)),"PASS with comments")) -> 0 | J17: =COUNTIF(INDIRECT("'Success Criteria'!" & ADDRESS(76,A17+4)):INDIRECT("'Success Criteria'!" & ADDRESS(119,A17+4)),"NON conformant") -> 0 | K17: =COUNTIF(INDIRECT("'Success Criteria'!" & ADDRESS(76,A17+4)):INDIRECT("'Success Criteria'!" & ADDRESS(119,A17+4)),"N/A") -> 0 | L17: =COUNTIF(INDIRECT("'Success Criteria'!" & ADDRESS(76,A17+4)):INDIRECT("'Success Criteria'!" & ADDRESS(119,A17+4)),"not tested") -> 21 | M17: =SUM(COUNTIF(INDIRECT("'Success Criteria'!" & ADDRESS(124,A17+4)):INDIRECT("'Success Criteria'!" & ADDRESS(178,A17+4)),"PASS"),COUNTIF(INDIRECT("'Success Criteria'!" & ADDRESS(124,A17+4)):INDIRECT("'Success Criteria'!" & ADDRESS(178,A17+4)),"PASS with comments")) -> 0 | N17: =COUNTIF(INDIRECT("'Success Criteria'!" & ADDRESS(124,A17+4)):INDIRECT("'Success Criteria'!" & ADDRESS(178,A17+4)),"NON conformant") -> 0 | O17: =COUNTIF(INDIRECT("'Success Criteria'!" & ADDRESS(124,A17+4)):INDIRECT("'Success Criteria'!" & ADDRESS(178,A17+4)),"N/A") -> 0 | P17: =COUNTIF(INDIRECT("'Success Criteria'!" & ADDRESS(124,A17+4)):INDIRECT("'Success Criteria'!" & ADDRESS(178,A17+4)),"not tested") -> 28 | Q17: 0 | R17: 0 | S17: 0 | T17: 79 | V17: 30 | W17: 1 | X17: 21 | Z17: 28 | AA17: 1
A18: 4 | B18: page 4 | E18: =SUM(COUNTIF(INDIRECT("'Success Criteria'!" & ADDRESS(10,A18+4)):INDIRECT("'Success Criteria'!" & ADDRESS(72,A18+4)),"PASS"),COUNTIF(INDIRECT("'Success Criteria'!" & ADDRESS(10,A18+4)):INDIRECT("'Success Criteria'!" & ADDRESS(72,A18+4)),"PASS with comments")) -> 0 | F18: =COUNTIF(INDIRECT("'Success Criteria'!" & ADDRESS(10,A18+4)):INDIRECT("'Success Criteria'!" & ADDRESS(72,A18+4)),"NON conformant") -> 0 | G18: =COUNTIF(INDIRECT("'Success Criteria'!" & ADDRESS(10,A18+4)):INDIRECT("'Success Criteria'!" & ADDRESS(72,A18+4)),"N/A") -> 0 | H18: =COUNTIF(INDIRECT("'Success Criteria'!" & ADDRESS(10,A18+4)):INDIRECT("'Success Criteria'!" & ADDRESS(72,A18+4)),"not tested") -> 30 | I18: =SUM(COUNTIF(INDIRECT("'Success Criteria'!" & ADDRESS(76,A18+4)):INDIRECT("'Success Criteria'!" & ADDRESS(119,A18+4)),"PASS"),COUNTIF(INDIRECT("'Success Criteria'!" & ADDRESS(76,A18+4)):INDIRECT("'Success Criteria'!" & ADDRESS(119,A18+4)),"PASS with comments")) -> 0 | J18: =COUNTIF(INDIRECT("'Success Criteria'!" & ADDRESS(76,A18+4)):INDIRECT("'Success Criteria'!" & ADDRESS(119,A18+4)),"NON conformant") -> 0 | K18: =COUNTIF(INDIRECT("'Success Criteria'!" & ADDRESS(76,A18+4)):INDIRECT("'Success Criteria'!" & ADDRESS(119,A18+4)),"N/A") -> 0 | L18: =COUNTIF(INDIRECT("'Success Criteria'!" & ADDRESS(76,A18+4)):INDIRECT("'Success Criteria'!" & ADDRESS(119,A18+4)),"not tested") -> 21 | M18: =SUM(COUNTIF(INDIRECT("'Success Criteria'!" & ADDRESS(124,A18+4)):INDIRECT("'Success Criteria'!" & ADDRESS(178,A18+4)),"PASS"),COUNTIF(INDIRECT("'Success Criteria'!" & ADDRESS(124,A18+4)):INDIRECT("'Success Criteria'!" & ADDRESS(178,A18+4)),"PASS with comments")) -> 0 | N18: =COUNTIF(INDIRECT("'Success Criteria'!" & ADDRESS(124,A18+4)):INDIRECT("'Success Criteria'!" & ADDRESS(178,A18+4)),"NON conformant") -> 0 | O18: =COUNTIF(INDIRECT("'Success Criteria'!" & ADDRESS(124,A18+4)):INDIRECT("'Success Criteria'!" & ADDRESS(178,A18+4)),"N/A") -> 0 | P18: =COUNTIF(INDIRECT("'Success Criteria'!" & ADDRESS(124,A18+4)):INDIRECT("'Success Criteria'!" & ADDRESS(178,A18+4)),"not tested") -> 28 | Q18: 0 | R18: 0 | S18: 0 | T18: 79 | V18: 30 | W18: 1 | X18: 21 | Z18: 28 | AA18: 1
A19: 5 | B19: page 5 | E19: =SUM(COUNTIF(INDIRECT("'Success Criteria'!" & ADDRESS(10,A19+4)):INDIRECT("'Success Criteria'!" & ADDRESS(72,A19+4)),"PASS"),COUNTIF(INDIRECT("'Success Criteria'!" & ADDRESS(10,A19+4)):INDIRECT("'Success Criteria'!" & ADDRESS(72,A19+4)),"PASS with comments")) -> 0 | F19: =COUNTIF(INDIRECT("'Success Criteria'!" & ADDRESS(10,A19+4)):INDIRECT("'Success Criteria'!" & ADDRESS(72,A19+4)),"NON conformant") -> 0 | G19: =COUNTIF(INDIRECT("'Success Criteria'!" & ADDRESS(10,A19+4)):INDIRECT("'Success Criteria'!" & ADDRESS(72,A19+4)),"N/A") -> 0 | H19: =COUNTIF(INDIRECT("'Success Criteria'!" & ADDRESS(10,A19+4)):INDIRECT("'Success Criteria'!" & ADDRESS(72,A19+4)),"not tested") -> 30 | I19: =SUM(COUNTIF(INDIRECT("'Success Criteria'!" & ADDRESS(76,A19+4)):INDIRECT("'Success Criteria'!" & ADDRESS(119,A19+4)),"PASS"),COUNTIF(INDIRECT("'Success Criteria'!" & ADDRESS(76,A19+4)):INDIRECT("'Success Criteria'!" & ADDRESS(119,A19+4)),"PASS with comments")) -> 0 | J19: =COUNTIF(INDIRECT("'Success Criteria'!" & ADDRESS(76,A19+4)):INDIRECT("'Success Criteria'!" & ADDRESS(119,A19+4)),"NON conformant") -> 0 | K19: =COUNTIF(INDIRECT("'Success Criteria'!" & ADDRESS(76,A19+4)):INDIRECT("'Success Criteria'!" & ADDRESS(119,A19+4)),"N/A") -> 0 | L19: =COUNTIF(INDIRECT("'Success Criteria'!" & ADDRESS(76,A19+4)):INDIRECT("'Success Criteria'!" & ADDRESS(119,A19+4)),"not tested") -> 21 | M19: =SUM(COUNTIF(INDIRECT("'Success Criteria'!" & ADDRESS(124,A19+4)):INDIRECT("'Success Criteria'!" & ADDRESS(178,A19+4)),"PASS"),COUNTIF(INDIRECT("'Success Criteria'!" & ADDRESS(124,A19+4)):INDIRECT("'Success Criteria'!" & ADDRESS(178,A19+4)),"PASS with comments")) -> 0 | N19: =COUNTIF(INDIRECT("'Success Criteria'!" & ADDRESS(124,A19+4)):INDIRECT("'Success Criteria'!" & ADDRESS(178,A19+4)),"NON conformant") -> 0 | O19: =COUNTIF(INDIRECT("'Success Criteria'!" & ADDRESS(124,A19+4)):INDIRECT("'Success Criteria'!" & ADDRESS(178,A19+4)),"N/A") -> 0 | P19: =COUNTIF(INDIRECT("'Success Criteria'!" & ADDRESS(124,A19+4)):INDIRECT("'Success Criteria'!" & ADDRESS(178,A19+4)),"not tested") -> 28 | Q19: 0 | R19: 0 | S19: 0 | T19: 79 | V19: 30 | W19: 1 | X19: 21 | Z19: 28 | AA19: 1
A20: 6 | B20: page 6 | E20: =SUM(COUNTIF(INDIRECT("'Success Criteria'!" & ADDRESS(10,A20+4)):INDIRECT("'Success Criteria'!" & ADDRESS(72,A20+4)),"PASS"),COUNTIF(INDIRECT("'Success Criteria'!" & ADDRESS(10,A20+4)):INDIRECT("'Success Criteria'!" & ADDRESS(72,A20+4)),"PASS with comments")) -> 0 | F20: =COUNTIF(INDIRECT("'Success Criteria'!" & ADDRESS(10,A20+4)):INDIRECT("'Success Criteria'!" & ADDRESS(72,A20+4)),"NON conformant") -> 0 | G20: =COUNTIF(INDIRECT("'Success Criteria'!" & ADDRESS(10,A20+4)):INDIRECT("'Success Criteria'!" & ADDRESS(72,A20+4)),"N/A") -> 0 | H20: =COUNTIF(INDIRECT("'Success Criteria'!" & ADDRESS(10,A20+4)):INDIRECT("'Success Criteria'!" & ADDRESS(72,A20+4)),"not tested") -> 30 | I20: =SUM(COUNTIF(INDIRECT("'Success Criteria'!" & ADDRESS(76,A20+4)):INDIRECT("'Success Criteria'!" & ADDRESS(119,A20+4)),"PASS"),COUNTIF(INDIRECT("'Success Criteria'!" & ADDRESS(76,A20+4)):INDIRECT("'Success Criteria'!" & ADDRESS(119,A20+4)),"PASS with comments")) -> 0 | J20: =COUNTIF(INDIRECT("'Success Criteria'!" & ADDRESS(76,A20+4)):INDIRECT("'Success Criteria'!" & ADDRESS(119,A20+4)),"NON conformant") -> 0 | K20: =COUNTIF(INDIRECT("'Success Criteria'!" & ADDRESS(76,A20+4)):INDIRECT("'Success Criteria'!" & ADDRESS(119,A20+4)),"N/A") -> 0 | L20: =COUNTIF(INDIRECT("'Success Criteria'!" & ADDRESS(76,A20+4)):INDIRECT("'Success Criteria'!" & ADDRESS(119,A20+4)),"not tested") -> 21 | M20: =SUM(COUNTIF(INDIRECT("'Success Criteria'!" & ADDRESS(124,A20+4)):INDIRECT("'Success Criteria'!" & ADDRESS(178,A20+4)),"PASS"),COUNTIF(INDIRECT("'Success Criteria'!" & ADDRESS(124,A20+4)):INDIRECT("'Success Criteria'!" & ADDRESS(178,A20+4)),"PASS with comments")) -> 0 | N20: =COUNTIF(INDIRECT("'Success Criteria'!" & ADDRESS(124,A20+4)):INDIRECT("'Success Criteria'!" & ADDRESS(178,A20+4)),"NON conformant") -> 0 | O20: =COUNTIF(INDIRECT("'Success Criteria'!" & ADDRESS(124,A20+4)):INDIRECT("'Success Criteria'!" & ADDRESS(178,A20+4)),"N/A") -> 0 | P20: =COUNTIF(INDIRECT("'Success Criteria'!" & ADDRESS(124,A20+4)):INDIRECT("'Success Criteria'!" & ADDRESS(178,A20+4)),"not tested") -> 28 | Q20: 0 | R20: 0 | S20: 0 | T20: 79 | V20: 30 | W20: 1 | X20: 21 | Z20: 28 | AA20: 1
A21: 7 | B21: page 7 | E21: =SUM(COUNTIF(INDIRECT("'Success Criteria'!" & ADDRESS(10,A21+4)):INDIRECT("'Success Criteria'!" & ADDRESS(72,A21+4)),"PASS"),COUNTIF(INDIRECT("'Success Criteria'!" & ADDRESS(10,A21+4)):INDIRECT("'Success Criteria'!" & ADDRESS(72,A21+4)),"PASS with comments")) -> 0 | F21: =COUNTIF(INDIRECT("'Success Criteria'!" & ADDRESS(10,A21+4)):INDIRECT("'Success Criteria'!" & ADDRESS(72,A21+4)),"NON conformant") -> 0 | G21: =COUNTIF(INDIRECT("'Success Criteria'!" & ADDRESS(10,A21+4)):INDIRECT("'Success Criteria'!" & ADDRESS(72,A21+4)),"N/A") -> 0 | H21: =COUNTIF(INDIRECT("'Success Criteria'!" & ADDRESS(10,A21+4)):INDIRECT("'Success Criteria'!" & ADDRESS(72,A21+4)),"not tested") -> 30 | I21: =SUM(COUNTIF(INDIRECT("'Success Criteria'!" & ADDRESS(76,A21+4)):INDIRECT("'Success Criteria'!" & ADDRESS(119,A21+4)),"PASS"),COUNTIF(INDIRECT("'Success Criteria'!" & ADDRESS(76,A21+4)):INDIRECT("'Success Criteria'!" & ADDRESS(119,A21+4)),"PASS with comments")) -> 0 | J21: =COUNTIF(INDIRECT("'Success Criteria'!" & ADDRESS(76,A21+4)):INDIRECT("'Success Criteria'!" & ADDRESS(119,A21+4)),"NON conformant") -> 0 | K21: =COUNTIF(INDIRECT("'Success Criteria'!" & ADDRESS(76,A21+4)):INDIRECT("'Success Criteria'!" & ADDRESS(119,A21+4)),"N/A") -> 0 | L21: =COUNTIF(INDIRECT("'Success Criteria'!" & ADDRESS(76,A21+4)):INDIRECT("'Success Criteria'!" & ADDRESS(119,A21+4)),"not tested") -> 21 | M21: =SUM(COUNTIF(INDIRECT("'Success Criteria'!" & ADDRESS(124,A21+4)):INDIRECT("'Success Criteria'!" & ADDRESS(178,A21+4)),"PASS"),COUNTIF(INDIRECT("'Success Criteria'!" & ADDRESS(124,A21+4)):INDIRECT("'Success Criteria'!" & ADDRESS(178,A21+4)),"PASS with comments")) -> 0 | N21: =COUNTIF(INDIRECT("'Success Criteria'!" & ADDRESS(124,A21+4)):INDIRECT("'Success Criteria'!" & ADDRESS(178,A21+4)),"NON conformant") -> 0 | O21: =COUNTIF(INDIRECT("'Success Criteria'!" & ADDRESS(124,A21+4)):INDIRECT("'Success Criteria'!" & ADDRESS(178,A21+4)),"N/A") -> 0 | P21: =COUNTIF(INDIRECT("'Success Criteria'!" & ADDRESS(124,A21+4)):INDIRECT("'Success Criteria'!" & ADDRESS(178,A21+4)),"not tested") -> 28 | Q21: 0 | R21: 0 | S21: 0 | T21: 79 | V21: 30 | W21: 1 | X21: 21 | Z21: 28 | AA21: 1
A22: 8 | B22: Header (Pre-login) (Admin) | C22: https://rlac-test.glatest.org.uk/login | D22: HTML Page (excluding components) | E22: =SUM(COUNTIF(INDIRECT("'Success Criteria'!" & ADDRESS(10,A22+4)):INDIRECT("'Success Criteria'!" & ADDRESS(72,A22+4)),"PASS"),COUNTIF(INDIRECT("'Success Criteria'!" & ADDRESS(10,A22+4)):INDIRECT("'Success Criteria'!" & ADDRESS(72,A22+4)),"PASS with comments")) -> 8 | F22: =COUNTIF(INDIRECT("'Success Criteria'!" & ADDRESS(10,A22+4)):INDIRECT("'Success Criteria'!" & ADDRESS(72,A22+4)),"NON conformant") -> 0 | G22: =COUNTIF(INDIRECT("'Success Criteria'!" & ADDRESS(10,A22+4)):INDIRECT("'Success Criteria'!" & ADDRESS(72,A22+4)),"N/A") -> 22 | H22: =COUNTIF(INDIRECT("'Success Criteria'!" & ADDRESS(10,A22+4)):INDIRECT("'Success Criteria'!" & ADDRESS(72,A22+4)),"not tested") -> 0 | I22: =SUM(COUNTIF(INDIRECT("'Success Criteria'!" & ADDRESS(76,A22+4)):INDIRECT("'Success Criteria'!" & ADDRESS(119,A22+4)),"PASS"),COUNTIF(INDIRECT("'Success Criteria'!" & ADDRESS(76,A22+4)):INDIRECT("'Success Criteria'!" & ADDRESS(119,A22+4)),"PASS with comments")) -> 7 | J22: =COUNTIF(INDIRECT("'Success Criteria'!" & ADDRESS(76,A22+4)):INDIRECT("'Success Criteria'!" & ADDRESS(119,A22+4)),"NON conformant") -> 0 | K22: =COUNTIF(INDIRECT("'Success Criteria'!" & ADDRESS(76,A22+4)):INDIRECT("'Success Criteria'!" & ADDRESS(119,A22+4)),"N/A") -> 13 | L22: =COUNTIF(INDIRECT("'Success Criteria'!" & ADDRESS(76,A22+4)):INDIRECT("'Success Criteria'!" & ADDRESS(119,A22+4)),"not tested") -> 0 | M22: =SUM(COUNTIF(INDIRECT("'Success Criteria'!" & ADDRESS(124,A22+4)):INDIRECT("'Success Criteria'!" & ADDRESS(178,A22+4)),"PASS"),COUNTIF(INDIRECT("'Success Criteria'!" & ADDRESS(124,A22+4)):INDIRECT("'Success Criteria'!" & ADDRESS(178,A22+4)),"PASS with comments")) -> 0 | N22: =COUNTIF(INDIRECT("'Success Criteria'!" & ADDRESS(124,A22+4)):INDIRECT("'Success Criteria'!" & ADDRESS(178,A22+4)),"NON conformant") -> 0 | O22: =COUNTIF(INDIRECT("'Success Criteria'!" & ADDRESS(124,A22+4)):INDIRECT("'Success Criteria'!" & ADDRESS(178,A22+4)),"N/A") -> 0 | P22: =COUNTIF(INDIRECT("'Success Criteria'!" & ADDRESS(124,A22+4)):INDIRECT("'Success Criteria'!" & ADDRESS(178,A22+4)),"not tested") -> 28 | Q22: 15 | R22: 0 | S22: 35 | T22: 28 | V22: 30 | W22: 1 | X22: 20 | Y22: 1 | Z22: 28 | AA22: 1
A23: 9 | B23: Footer (Pre-login) (Admin) | C23: https://rlac-test.glatest.org.uk/login | D23: HTML Page (excluding components) | E23: =SUM(COUNTIF(INDIRECT("'Success Criteria'!" & ADDRESS(10,A23+4)):INDIRECT("'Success Criteria'!" & ADDRESS(72,A23+4)),"PASS"),COUNTIF(INDIRECT("'Success Criteria'!" & ADDRESS(10,A23+4)):INDIRECT("'Success Criteria'!" & ADDRESS(72,A23+4)),"PASS with comments")) -> 8 | F23: =COUNTIF(INDIRECT("'Success Criteria'!" & ADDRESS(10,A23+4)):INDIRECT("'Success Criteria'!" & ADDRESS(72,A23+4)),"NON conformant") -> 0 | G23: =COUNTIF(INDIRECT("'Success Criteria'!" & ADDRESS(10,A23+4)):INDIRECT("'Success Criteria'!" & ADDRESS(72,A23+4)),"N/A") -> 22 | H23: =COUNTIF(INDIRECT("'Success Criteria'!" & ADDRESS(10,A23+4)):INDIRECT("'Success Criteria'!" & ADDRESS(72,A23+4)),"not tested") -> 0 | I23: =SUM(COUNTIF(INDIRECT("'Success Criteria'!" & ADDRESS(76,A23+4)):INDIRECT("'Success Criteria'!" & ADDRESS(119,A23+4)),"PASS"),COUNTIF(INDIRECT("'Success Criteria'!" & ADDRESS(76,A23+4)):INDIRECT("'Success Criteria'!" & ADDRESS(119,A23+4)),"PASS with comments")) -> 6 | J23: =COUNTIF(INDIRECT("'Success Criteria'!" & ADDRESS(76,A23+4)):INDIRECT("'Success Criteria'!" & ADDRESS(119,A23+4)),"NON conformant") -> 0 | K23: =COUNTIF(INDIRECT("'Success Criteria'!" & ADDRESS(76,A23+4)):INDIRECT("'Success Criteria'!" & ADDRESS(119,A23+4)),"N/A") -> 14 | L23: =COUNTIF(INDIRECT("'Success Criteria'!" & ADDRESS(76,A23+4)):INDIRECT("'Success Criteria'!" & ADDRESS(119,A23+4)),"not tested") -> 0 | M23: =SUM(COUNTIF(INDIRECT("'Success Criteria'!" & ADDRESS(124,A23+4)):INDIRECT("'Success Criteria'!" & ADDRESS(178,A23+4)),"PASS"),COUNTIF(INDIRECT("'Success Criteria'!" & ADDRESS(124,A23+4)):INDIRECT("'Success Criteria'!" & ADDRESS(178,A23+4)),"PASS with comments")) -> 0 | N23: =COUNTIF(INDIRECT("'Success Criteria'!" & ADDRESS(124,A23+4)):INDIRECT("'Success Criteria'!" & ADDRESS(178,A23+4)),"NON conformant") -> 0 | O23: =COUNTIF(INDIRECT("'Success Criteria'!" & ADDRESS(124,A23+4)):INDIRECT("'Success Criteria'!" & ADDRESS(178,A23+4)),"N/A") -> 0 | P23: =COUNTIF(INDIRECT("'Success Criteria'!" & ADDRESS(124,A23+4)):INDIRECT("'Success Criteria'!" & ADDRESS(178,A23+4)),"not tested") -> 28 | Q23: 14 | R23: 0 | S23: 36 | T23: 28 | V23: 30 | W23: 1 | X23: 20 | Y23: 1 | Z23: 28 | AA23: 1
A24: 10 | B24: Login (Admin) | C24: https://rlac-test.glatest.org.uk/login | D24: HTML Page (excluding components) | E24: =SUM(COUNTIF(INDIRECT("'Success Criteria'!" & ADDRESS(10,A24+4)):INDIRECT("'Success Criteria'!" & ADDRESS(72,A24+4)),"PASS"),COUNTIF(INDIRECT("'Success Criteria'!" & ADDRESS(10,A24+4)):INDIRECT("'Success Criteria'!" & ADDRESS(72,A24+4)),"PASS with comments")) -> 17 | F24: =COUNTIF(INDIRECT("'Success Criteria'!" & ADDRESS(10,A24+4)):INDIRECT("'Success Criteria'!" & ADDRESS(72,A24+4)),"NON conformant") -> 0 | G24: =COUNTIF(INDIRECT("'Success Criteria'!" & ADDRESS(10,A24+4)):INDIRECT("'Success Criteria'!" & ADDRESS(72,A24+4)),"N/A") -> 13 | H24: =COUNTIF(INDIRECT("'Success Criteria'!" & ADDRESS(10,A24+4)):INDIRECT("'Success Criteria'!" & ADDRESS(72,A24+4)),"not tested") -> 0 | I24: =SUM(COUNTIF(INDIRECT("'Success Criteria'!" & ADDRESS(76,A24+4)):INDIRECT("'Success Criteria'!" & ADDRESS(119,A24+4)),"PASS"),COUNTIF(INDIRECT("'Success Criteria'!" & ADDRESS(76,A24+4)):INDIRECT("'Success Criteria'!" & ADDRESS(119,A24+4)),"PASS with comments")) -> 11 | J24: =COUNTIF(INDIRECT("'Success Criteria'!" & ADDRESS(76,A24+4)):INDIRECT("'Success Criteria'!" & ADDRESS(119,A24+4)),"NON conformant") -> 1 | K24: =COUNTIF(INDIRECT("'Success Criteria'!" & ADDRESS(76,A24+4)):INDIRECT("'Success Criteria'!" & ADDRESS(119,A24+4)),"N/A") -> 8 | L24: =COUNTIF(INDIRECT("'Success Criteria'!" & ADDRESS(76,A24+4)):INDIRECT("'Success Criteria'!" & ADDRESS(119,A24+4)),"not tested") -> 0 | M24: =SUM(COUNTIF(INDIRECT("'Success Criteria'!" & ADDRESS(124,A24+4)):INDIRECT("'Success Criteria'!" & ADDRESS(178,A24+4)),"PASS"),COUNTIF(INDIRECT("'Success Criteria'!" & ADDRESS(124,A24+4)):INDIRECT("'Success Criteria'!" & ADDRESS(178,A24+4)),"PASS with comments")) -> 0 | N24: =COUNTIF(INDIRECT("'Success Criteria'!" & ADDRESS(124,A24+4)):INDIRECT("'Success Criteria'!" & ADDRESS(178,A24+4)),"NON conformant") -> 0 | O24: =COUNTIF(INDIRECT("'Success Criteria'!" & ADDRESS(124,A24+4)):INDIRECT("'Success Criteria'!" & ADDRESS(178,A24+4)),"N/A") -> 0 | P24: =COUNTIF(INDIRECT("'Success Criteria'!" & ADDRESS(124,A24+4)):INDIRECT("'Success Criteria'!" & ADDRESS(178,A24+4)),"not tested") -> 28 | Q24: 28 | R24: 1 | S24: 21 | T24: 28 | V24: 30 | W24: 1 | X24: 20 | Y24: 1 | Z24: 28 | AA24: 1
A25: 11 | B25: Header (Post-login) (Admin) | C25: https://rlac-test.glatest.org.uk/login | D25: HTML Page (excluding components) | E25: =SUM(COUNTIF(INDIRECT("'Success Criteria'!" & ADDRESS(10,A25+4)):INDIRECT("'Success Criteria'!" & ADDRESS(72,A25+4)),"PASS"),COUNTIF(INDIRECT("'Success Criteria'!" & ADDRESS(10,A25+4)):INDIRECT("'Success Criteria'!" & ADDRESS(72,A25+4)),"PASS with comments")) -> 14 | F25: =COUNTIF(INDIRECT("'Success Criteria'!" & ADDRESS(10,A25+4)):INDIRECT("'Success Criteria'!" & ADDRESS(72,A25+4)),"NON conformant") -> 1 | G25: =COUNTIF(INDIRECT("'Success Criteria'!" & ADDRESS(10,A25+4)):INDIRECT("'Success Criteria'!" & ADDRESS(72,A25+4)),"N/A") -> 15 | H25: =COUNTIF(INDIRECT("'Success Criteria'!" & ADDRESS(10,A25+4)):INDIRECT("'Success Criteria'!" & ADDRESS(72,A25+4)),"not tested") -> 0 | I25: =SUM(COUNTIF(INDIRECT("'Success Criteria'!" & ADDRESS(76,A25+4)):INDIRECT("'Success Criteria'!" & ADDRESS(119,A25+4)),"PASS"),COUNTIF(INDIRECT("'Success Criteria'!" & ADDRESS(76,A25+4)):INDIRECT("'Success Criteria'!" & ADDRESS(119,A25+4)),"PASS with comments")) -> 10 | J25: =COUNTIF(INDIRECT("'Success Criteria'!" & ADDRESS(76,A25+4)):INDIRECT("'Success Criteria'!" & ADDRESS(119,A25+4)),"NON conformant") -> 0 | K25: =COUNTIF(INDIRECT("'Success Criteria'!" & ADDRESS(76,A25+4)):INDIRECT("'Success Criteria'!" & ADDRESS(119,A25+4)),"N/A") -> 10 | L25: =COUNTIF(INDIRECT("'Success Criteria'!" & ADDRESS(76,A25+4)):INDIRECT("'Success Criteria'!" & ADDRESS(119,A25+4)),"not tested") -> 0 | M25: =SUM(COUNTIF(INDIRECT("'Success Criteria'!" & ADDRESS(124,A25+4)):INDIRECT("'Success Criteria'!" & ADDRESS(178,A25+4)),"PASS"),COUNTIF(INDIRECT("'Success Criteria'!" & ADDRESS(124,A25+4)):INDIRECT("'Success Criteria'!" & ADDRESS(178,A25+4)),"PASS with comments")) -> 0 | N25: =COUNTIF(INDIRECT("'Success Criteria'!" & ADDRESS(124,A25+4)):INDIRECT("'Success Criteria'!" & ADDRESS(178,A25+4)),"NON conformant") -> 0 | O25: =COUNTIF(INDIRECT("'Success Criteria'!" & ADDRESS(124,A25+4)):INDIRECT("'Success Criteria'!" & ADDRESS(178,A25+4)),"N/A") -> 0 | P25: =COUNTIF(INDIRECT("'Success Criteria'!" & ADDRESS(124,A25+4)):INDIRECT("'Success Criteria'!" & ADDRESS(178,A25+4)),"not tested") -> 28 | Q25: 24 | R25: 1 | S25: 25 | T25: 28 | V25: 30 | W25: 1 | X25: 20 | Y25: 1 | Z25: 28 | AA25: 1
A26: 12 | B26: Footer (Post-login) (Admin) | C26: https://rlac-test.glatest.org.uk/login | D26: HTML Page (excluding components) | E26: =SUM(COUNTIF(INDIRECT("'Success Criteria'!" & ADDRESS(10,A26+4)):INDIRECT("'Success Criteria'!" & ADDRESS(72,A26+4)),"PASS"),COUNTIF(INDIRECT("'Success Criteria'!" & ADDRESS(10,A26+4)):INDIRECT("'Success Criteria'!" & ADDRESS(72,A26+4)),"PASS with comments")) -> 14 | F26: =COUNTIF(INDIRECT("'Success Criteria'!" & ADDRESS(10,A26+4)):INDIRECT("'Success Criteria'!" & ADDRESS(72,A26+4)),"NON conformant") -> 0 | G26: =COUNTIF(INDIRECT("'Success Criteria'!" & ADDRESS(10,A26+4)):INDIRECT("'Success Criteria'!" & ADDRESS(72,A26+4)),"N/A") -> 16 | H26: =COUNTIF(INDIRECT("'Success Criteria'!" & ADDRESS(10,A26+4)):INDIRECT("'Success Criteria'!" & ADDRESS(72,A26+4)),"not tested") -> 0 | I26: =SUM(COUNTIF(INDIRECT("'Success Criteria'!" & ADDRESS(76,A26+4)):INDIRECT("'Success Criteria'!" & ADDRESS(119,A26+4)),"PASS"),COUNTIF(INDIRECT("'Success Criteria'!" & ADDRESS(76,A26+4)):INDIRECT("'Success Criteria'!" & ADDRESS(119,A26+4)),"PASS with comments")) -> 9 | J26: =COUNTIF(INDIRECT("'Success Criteria'!" & ADDRESS(76,A26+4)):INDIRECT("'Success Criteria'!" & ADDRESS(119,A26+4)),"NON conformant") -> 0 | K26: =COUNTIF(INDIRECT("'Success Criteria'!" & ADDRESS(76,A26+4)):INDIRECT("'Success Criteria'!" & ADDRESS(119,A26+4)),"N/A") -> 11 | L26: =COUNTIF(INDIRECT("'Success Criteria'!" & ADDRESS(76,A26+4)):INDIRECT("'Success Criteria'!" & ADDRESS(119,A26+4)),"not tested") -> 0 | M26: =SUM(COUNTIF(INDIRECT("'Success Criteria'!" & ADDRESS(124,A26+4)):INDIRECT("'Success Criteria'!" & ADDRESS(178,A26+4)),"PASS"),COUNTIF(INDIRECT("'Success Criteria'!" & ADDRESS(124,A26+4)):INDIRECT("'Success Criteria'!" & ADDRESS(178,A26+4)),"PASS with comments")) -> 0 | N26: =COUNTIF(INDIRECT("'Success Criteria'!" & ADDRESS(124,A26+4)):INDIRECT("'Success Criteria'!" & ADDRESS(178,A26+4)),"NON conformant") -> 0 | O26: =COUNTIF(INDIRECT("'Success Criteria'!" & ADDRESS(124,A26+4)):INDIRECT("'Success Criteria'!" & ADDRESS(178,A26+4)),"N/A") -> 0 | P26: =COUNTIF(INDIRECT("'Success Criteria'!" & ADDRESS(124,A26+4)):INDIRECT("'Success Criteria'!" & ADDRESS(178,A26+4)),"not tested") -> 28 | Q26: 23 | R26: 0 | S26: 27 | T26: 28 | V26: 30 | W26: 1 | X26: 20 | Y26: 1 | Z26: 28 | AA26: 1
A27: 13 | B27: Menu (Admin) | C27: https://rlac-test.glatest.org.uk/login | D27: HTML Page (excluding components) | E27: =SUM(COUNTIF(INDIRECT("'Success Criteria'!" & ADDRESS(10,A27+4)):INDIRECT("'Success Criteria'!" & ADDRESS(72,A27+4)),"PASS"),COUNTIF(INDIRECT("'Success Criteria'!" & ADDRESS(10,A27+4)):INDIRECT("'Success Criteria'!" & ADDRESS(72,A27+4)),"PASS with comments")) -> 11 | F27: =COUNTIF(INDIRECT("'Success Criteria'!" & ADDRESS(10,A27+4)):INDIRECT("'Success Criteria'!" & ADDRESS(72,A27+4)),"NON conformant") -> 1 | G27: =COUNTIF(INDIRECT("'Success Criteria'!" & ADDRESS(10,A27+4)):INDIRECT("'Success Criteria'!" & ADDRESS(72,A27+4)),"N/A") -> 18 | H27: =COUNTIF(INDIRECT("'Success Criteria'!" & ADDRESS(10,A27+4)):INDIRECT("'Success Criteria'!" & ADDRESS(72,A27+4)),"not tested") -> 0 | I27: =SUM(COUNTIF(INDIRECT("'Success Criteria'!" & ADDRESS(76,A27+4)):INDIRECT("'Success Criteria'!" & ADDRESS(119,A27+4)),"PASS"),COUNTIF(INDIRECT("'Success Criteria'!" & ADDRESS(76,A27+4)):INDIRECT("'Success Criteria'!" & ADDRESS(119,A27+4)),"PASS with comments")) -> 7 | J27: =COUNTIF(INDIRECT("'Success Criteria'!" & ADDRESS(76,A27+4)):INDIRECT("'Success Criteria'!" & ADDRESS(119,A27+4)),"NON conformant") -> 2 | K27: =COUNTIF(INDIRECT("'Success Criteria'!" & ADDRESS(76,A27+4)):INDIRECT("'Success Criteria'!" & ADDRESS(119,A27+4)),"N/A") -> 11 | L27: =COUNTIF(INDIRECT("'Success Criteria'!" & ADDRESS(76,A27+4)):INDIRECT("'Success Criteria'!" & ADDRESS(119,A27+4)),"not tested") -> 0 | M27: =SUM(COUNTIF(INDIRECT("'Success Criteria'!" & ADDRESS(124,A27+4)):INDIRECT("'Success Criteria'!" & ADDRESS(178,A27+4)),"PASS"),COUNTIF(INDIRECT("'Success Criteria'!" & ADDRESS(124,A27+4)):INDIRECT("'Success Criteria'!" & ADDRESS(178,A27+4)),"PASS with comments")) -> 0 | N27: =COUNTIF(INDIRECT("'Success Criteria'!" & ADDRESS(124,A27+4)):INDIRECT("'Success Criteria'!" & ADDRESS(178,A27+4)),"NON conformant") -> 0 | O27: =COUNTIF(INDIRECT("'Success Criteria'!" & ADDRESS(124,A27+4)):INDIRECT("'Success Criteria'!" & ADDRESS(178,A27+4)),"N/A") -> 0 | P27: =COUNTIF(INDIRECT("'Success Criteria'!" & ADDRESS(124,A27+4)):INDIRECT("'Success Criteria'!" & ADDRESS(178,A27+4)),"not tested") -> 28 | Q27: 18 | R27: 3 | S27: 29 | T27: 28 | V27: 30 | W27: 1 | X27: 20 | Y27: 1 | Z27: 28 | AA27: 1
A28: 14 | B28: View record (Admin) | C28: https://rlac-test.glatest.org.uk/app/records/entity?id=952 | D28: HTML Page (excluding components) | E28: =SUM(COUNTIF(INDIRECT("'Success Criteria'!" & ADDRESS(10,A28+4)):INDIRECT("'Success Criteria'!" & ADDRESS(72,A28+4)),"PASS"),COUNTIF(INDIRECT("'Success Criteria'!" & ADDRESS(10,A28+4)):INDIRECT("'Success Criteria'!" & ADDRESS(72,A28+4)),"PASS with comments")) -> 16 | F28: =COUNTIF(INDIRECT("'Success Criteria'!" & ADDRESS(10,A28+4)):INDIRECT("'Success Criteria'!" & ADDRESS(72,A28+4)),"NON conformant") -> 2 | G28: =COUNTIF(INDIRECT("'Success Criteria'!" & ADDRESS(10,A28+4)):INDIRECT("'Success Criteria'!" & ADDRESS(72,A28+4)),"N/A") -> 12 | H28: =COUNTIF(INDIRECT("'Success Criteria'!" & ADDRESS(10,A28+4)):INDIRECT("'Success Criteria'!" & ADDRESS(72,A28+4)),"not tested") -> 0 | I28: =SUM(COUNTIF(INDIRECT("'Success Criteria'!" & ADDRESS(76,A28+4)):INDIRECT("'Success Criteria'!" & ADDRESS(119,A28+4)),"PASS"),COUNTIF(INDIRECT("'Success Criteria'!" & ADDRESS(76,A28+4)):INDIRECT("'Success Criteria'!" & ADDRESS(119,A28+4)),"PASS with comments")) -> 9 | J28: =COUNTIF(INDIRECT("'Success Criteria'!" & ADDRESS(76,A28+4)):INDIRECT("'Success Criteria'!" & ADDRESS(119,A28+4)),"NON conformant") -> 1 | K28: =COUNTIF(INDIRECT("'Success Criteria'!" & ADDRESS(76,A28+4)):INDIRECT("'Success Criteria'!" & ADDRESS(119,A28+4)),"N/A") -> 10 | L28: =COUNTIF(INDIRECT("'Success Criteria'!" & ADDRESS(76,A28+4)):INDIRECT("'Success Criteria'!" & ADDRESS(119,A28+4)),"not tested") -> 0 | M28: =SUM(COUNTIF(INDIRECT("'Success Criteria'!" & ADDRESS(124,A28+4)):INDIRECT("'Success Criteria'!" & ADDRESS(178,A28+4)),"PASS"),COUNTIF(INDIRECT("'Success Criteria'!" & ADDRESS(124,A28+4)):INDIRECT("'Success Criteria'!" & ADDRESS(178,A28+4)),"PASS with comments")) -> 0 | N28: =COUNTIF(INDIRECT("'Success Criteria'!" & ADDRESS(124,A28+4)):INDIRECT("'Success Criteria'!" & ADDRESS(178,A28+4)),"NON conformant") -> 0 | O28: =COUNTIF(INDIRECT("'Success Criteria'!" & ADDRESS(124,A28+4)):INDIRECT("'Success Criteria'!" & ADDRESS(178,A28+4)),"N/A") -> 0 | P28: =COUNTIF(INDIRECT("'Success Criteria'!" & ADDRESS(124,A28+4)):INDIRECT("'Success Criteria'!" & ADDRESS(178,A28+4)),"not tested") -> 28 | Q28: 25 | R28: 3 | S28: 22 | T28: 28 | V28: 30 | W28: 1 | X28: 20 | Y28: 1 | Z28: 28 | AA28: 1
A29: 15 | B29: Edit record (Admin) | C29: https://rlac-test.glatest.org.uk/app/records/entity?id=952 | D29: HTML Page (excluding components) | E29: =SUM(COUNTIF(INDIRECT("'Success Criteria'!" & ADDRESS(10,A29+4)):INDIRECT("'Success Criteria'!" & ADDRESS(72,A29+4)),"PASS"),COUNTIF(INDIRECT("'Success Criteria'!" & ADDRESS(10,A29+4)):INDIRECT("'Success Criteria'!" & ADDRESS(72,A29+4)),"PASS with comments")) -> 16 | F29: =COUNTIF(INDIRECT("'Success Criteria'!" & ADDRESS(10,A29+4)):INDIRECT("'Success Criteria'!" & ADDRESS(72,A29+4)),"NON conformant") -> 3 | G29: =COUNTIF(INDIRECT("'Success Criteria'!" & ADDRESS(10,A29+4)):INDIRECT("'Success Criteria'!" & ADDRESS(72,A29+4)),"N/A") -> 11 | H29: =COUNTIF(INDIRECT("'Success Criteria'!" & ADDRESS(10,A29+4)):INDIRECT("'Success Criteria'!" & ADDRESS(72,A29+4)),"not tested") -> 0 | I29: =SUM(COUNTIF(INDIRECT("'Success Criteria'!" & ADDRESS(76,A29+4)):INDIRECT("'Success Criteria'!" & ADDRESS(119,A29+4)),"PASS"),COUNTIF(INDIRECT("'Success Criteria'!" & ADDRESS(76,A29+4)):INDIRECT("'Success Criteria'!" & ADDRESS(119,A29+4)),"PASS with comments")) -> 11 | J29: =COUNTIF(INDIRECT("'Success Criteria'!" & ADDRESS(76,A29+4)):INDIRECT("'Success Criteria'!" & ADDRESS(119,A29+4)),"NON conformant") -> 1 | K29: =COUNTIF(INDIRECT("'Success Criteria'!" & ADDRESS(76,A29+4)):INDIRECT("'Success Criteria'!" & ADDRESS(119,A29+4)),"N/A") -> 8 | L29: =COUNTIF(INDIRECT("'Success Criteria'!" & ADDRESS(76,A29+4)):INDIRECT("'Success Criteria'!" & ADDRESS(119,A29+4)),"not tested") -> 0 | M29: =SUM(COUNTIF(INDIRECT("'Success Criteria'!" & ADDRESS(124,A29+4)):INDIRECT("'Success Criteria'!" & ADDRESS(178,A29+4)),"PASS"),COUNTIF(INDIRECT("'Success Criteria'!" & ADDRESS(124,A29+4)):INDIRECT("'Success Criteria'!" & ADDRESS(178,A29+4)),"PASS with comments")) -> 0 | N29: =COUNTIF(INDIRECT("'Success Criteria'!" & ADDRESS(124,A29+4)):INDIRECT("'Success Criteria'!" & ADDRESS(178,A29+4)),"NON conformant") -> 0 | O29: =COUNTIF(INDIRECT("'Success Criteria'!" & ADDRESS(124,A29+4)):INDIRECT("'Success Criteria'!" & ADDRESS(178,A29+4)),"N/A") -> 0 | P29: =COUNTIF(INDIRECT("'Success Criteria'!" & ADDRESS(124,A29+4)):INDIRECT("'Success Criteria'!" & ADDRESS(178,A29+4)),"not tested") -> 28 | Q29: 27 | R29: 4 | S29: 19 | T29: 28 | V29: 30 | W29: 1 | X29: 20 | Y29: 1 | Z29: 28 | AA29: 1
A30: 16 | B30: Step 1: Enforcement Action Type | C30: https://rlac-test.glatest.org.uk/app/records/create | D30: HTML Page (excluding components) | E30: =SUM(COUNTIF(INDIRECT("'Success Criteria'!" & ADDRESS(10,A30+4)):INDIRECT("'Success Criteria'!" & ADDRESS(72,A30+4)),"PASS"),COUNTIF(INDIRECT("'Success Criteria'!" & ADDRESS(10,A30+4)):INDIRECT("'Success Criteria'!" & ADDRESS(72,A30+4)),"PASS with comments")) -> 15 | F30: =COUNTIF(INDIRECT("'Success Criteria'!" & ADDRESS(10,A30+4)):INDIRECT("'Success Criteria'!" & ADDRESS(72,A30+4)),"NON conformant") -> 3 | G30: =COUNTIF(INDIRECT("'Success Criteria'!" & ADDRESS(10,A30+4)):INDIRECT("'Success Criteria'!" & ADDRESS(72,A30+4)),"N/A") -> 12 | H30: =COUNTIF(INDIRECT("'Success Criteria'!" & ADDRESS(10,A30+4)):INDIRECT("'Success Criteria'!" & ADDRESS(72,A30+4)),"not tested") -> 0 | I30: =SUM(COUNTIF(INDIRECT("'Success Criteria'!" & ADDRESS(76,A30+4)):INDIRECT("'Success Criteria'!" & ADDRESS(119,A30+4)),"PASS"),COUNTIF(INDIRECT("'Success Criteria'!" & ADDRESS(76,A30+4)):INDIRECT("'Success Criteria'!" & ADDRESS(119,A30+4)),"PASS with comments")) -> 9 | J30: =COUNTIF(INDIRECT("'Success Criteria'!" & ADDRESS(76,A30+4)):INDIRECT("'Success Criteria'!" & ADDRESS(119,A30+4)),"NON conformant") -> 1 | K30: =COUNTIF(INDIRECT("'Success Criteria'!" & ADDRESS(76,A30+4)):INDIRECT("'Success Criteria'!" & ADDRESS(119,A30+4)),"N/A") -> 10 | L30: =COUNTIF(INDIRECT("'Success Criteria'!" & ADDRESS(76,A30+4)):INDIRECT("'Success Criteria'!" & ADDRESS(119,A30+4)),"not tested") -> 0 | M30: =SUM(COUNTIF(INDIRECT("'Success Criteria'!" & ADDRESS(124,A30+4)):INDIRECT("'Success Criteria'!" & ADDRESS(178,A30+4)),"PASS"),COUNTIF(INDIRECT("'Success Criteria'!" & ADDRESS(124,A30+4)):INDIRECT("'Success Criteria'!" & ADDRESS(178,A30+4)),"PASS with comments")) -> 0 | N30: =COUNTIF(INDIRECT("'Success Criteria'!" & ADDRESS(124,A30+4)):INDIRECT("'Success Criteria'!" & ADDRESS(178,A30+4)),"NON conformant") -> 0 | O30: =COUNTIF(INDIRECT("'Success Criteria'!" & ADDRESS(124,A30+4)):INDIRECT("'Success Criteria'!" & ADDRESS(178,A30+4)),"N/A") -> 0 | P30: =COUNTIF(INDIRECT("'Success Criteria'!" & ADDRESS(124,A30+4)):INDIRECT("'Success Criteria'!" & ADDRESS(178,A30+4)),"not tested") -> 28 | Q30: 24 | R30: 4 | S30: 22 | T30: 28 | V30: 30 | W30: 1 | X30: 20 | Y30: 1 | Z30: 28 | AA30: 1
A31: 17 | B31: Step 1: Postal Address | C31: https://rlac-test.glatest.org.uk/app/records/create | D31: HTML Page (excluding components) | E31: =SUM(COUNTIF(INDIRECT("'Success Criteria'!" & ADDRESS(10,A31+4)):INDIRECT("'Success Criteria'!" & ADDRESS(72,A31+4)),"PASS"),COUNTIF(INDIRECT("'Success Criteria'!" & ADDRESS(10,A31+4)):INDIRECT("'Success Criteria'!" & ADDRESS(72,A31+4)),"PASS with comments")) -> 15 | F31: =COUNTIF(INDIRECT("'Success Criteria'!" & ADDRESS(10,A31+4)):INDIRECT("'Success Criteria'!" & ADDRESS(72,A31+4)),"NON conformant") -> 3 | G31: =COUNTIF(INDIRECT("'Success Criteria'!" & ADDRESS(10,A31+4)):INDIRECT("'Success Criteria'!" & ADDRESS(72,A31+4)),"N/A") -> 12 | H31: =COUNTIF(INDIRECT("'Success Criteria'!" & ADDRESS(10,A31+4)):INDIRECT("'Success Criteria'!" & ADDRESS(72,A31+4)),"not tested") -> 0 | I31: =SUM(COUNTIF(INDIRECT("'Success Criteria'!" & ADDRESS(76,A31+4)):INDIRECT("'Success Criteria'!" & ADDRESS(119,A31+4)),"PASS"),COUNTIF(INDIRECT("'Success Criteria'!" & ADDRESS(76,A31+4)):INDIRECT("'Success Criteria'!" & ADDRESS(119,A31+4)),"PASS with comments")) -> 11 | J31: =COUNTIF(INDIRECT("'Success Criteria'!" & ADDRESS(76,A31+4)):INDIRECT("'Success Criteria'!" & ADDRESS(119,A31+4)),"NON conformant") -> 1 | K31: =COUNTIF(INDIRECT("'Success Criteria'!" & ADDRESS(76,A31+4)):INDIRECT("'Success Criteria'!" & ADDRESS(119,A31+4)),"N/A") -> 8 | L31: =COUNTIF(INDIRECT("'Success Criteria'!" & ADDRESS(76,A31+4)):INDIRECT("'Success Criteria'!" & ADDRESS(119,A31+4)),"not tested") -> 0 | M31: =SUM(COUNTIF(INDIRECT("'Success Criteria'!" & ADDRESS(124,A31+4)):INDIRECT("'Success Criteria'!" & ADDRESS(178,A31+4)),"PASS"),COUNTIF(INDIRECT("'Success Criteria'!" & ADDRESS(124,A31+4)):INDIRECT("'Success Criteria'!" & ADDRESS(178,A31+4)),"PASS with comments")) -> 0 | N31: =COUNTIF(INDIRECT("'Success Criteria'!" & ADDRESS(124,A31+4)):INDIRECT("'Success Criteria'!" & ADDRESS(178,A31+4)),"NON conformant") -> 0 | O31: =COUNTIF(INDIRECT("'Success Criteria'!" & ADDRESS(124,A31+4)):INDIRECT("'Success Criteria'!" & ADDRESS(178,A31+4)),"N/A") -> 0 | P31: =COUNTIF(INDIRECT("'Success Criteria'!" & ADDRESS(124,A31+4)):INDIRECT("'Success Criteria'!" & ADDRESS(178,A31+4)),"not tested") -> 28 | Q31: 26 | R31: 4 | S31: 20 | T31: 28 | V31: 30 | W31: 1 | X31: 20 | Y31: 1 | Z31: 28 | AA31: 1
A32: 18 | B32: Step 3: Enforcement Action - Details | C32: https://rlac-test.glatest.org.uk/app/records/create | D32: HTML Page (excluding components) | E32: =SUM(COUNTIF(INDIRECT("'Success Criteria'!" & ADDRESS(10,A32+4)):INDIRECT("'Success Criteria'!" & ADDRESS(72,A32+4)),"PASS"),COUNTIF(INDIRECT("'Success Criteria'!" & ADDRESS(10,A32+4)):INDIRECT("'Success Criteria'!" & ADDRESS(72,A32+4)),"PASS with comments")) -> 14 | F32: =COUNTIF(INDIRECT("'Success Criteria'!" & ADDRESS(10,A32+4)):INDIRECT("'Success Criteria'!" & ADDRESS(72,A32+4)),"NON conformant") -> 4 | G32: =COUNTIF(INDIRECT("'Success Criteria'!" & ADDRESS(10,A32+4)):INDIRECT("'Success Criteria'!" & ADDRESS(72,A32+4)),"N/A") -> 12 | H32: =COUNTIF(INDIRECT("'Success Criteria'!" & ADDRESS(10,A32+4)):INDIRECT("'Success Criteria'!" & ADDRESS(72,A32+4)),"not tested") -> 0 | I32: =SUM(COUNTIF(INDIRECT("'Success Criteria'!" & ADDRESS(76,A32+4)):INDIRECT("'Success Criteria'!" & ADDRESS(119,A32+4)),"PASS"),COUNTIF(INDIRECT("'Success Criteria'!" & ADDRESS(76,A32+4)):INDIRECT("'Success Criteria'!" & ADDRESS(119,A32+4)),"PASS with comments")) -> 11 | J32: =COUNTIF(INDIRECT("'Success Criteria'!" & ADDRESS(76,A32+4)):INDIRECT("'Success Criteria'!" & ADDRESS(119,A32+4)),"NON conformant") -> 1 | K32: =COUNTIF(INDIRECT("'Success Criteria'!" & ADDRESS(76,A32+4)):INDIRECT("'Success Criteria'!" & ADDRESS(119,A32+4)),"N/A") -> 8 | L32: =COUNTIF(INDIRECT("'Success Criteria'!" & ADDRESS(76,A32+4)):INDIRECT("'Success Criteria'!" & ADDRESS(119,A32+4)),"not tested") -> 0 | M32: =SUM(COUNTIF(INDIRECT("'Success Criteria'!" & ADDRESS(124,A32+4)):INDIRECT("'Success Criteria'!" & ADDRESS(178,A32+4)),"PASS"),COUNTIF(INDIRECT("'Success Criteria'!" & ADDRESS(124,A32+4)):INDIRECT("'Success Criteria'!" & ADDRESS(178,A32+4)),"PASS with comments")) -> 0 | N32: =COUNTIF(INDIRECT("'Success Criteria'!" & ADDRESS(124,A32+4)):INDIRECT("'Success Criteria'!" & ADDRESS(178,A32+4)),"NON conformant") -> 0 | O32: =COUNTIF(INDIRECT("'Success Criteria'!" & ADDRESS(124,A32+4)):INDIRECT("'Success Criteria'!" & ADDRESS(178,A32+4)),"N/A") -> 0 | P32: =COUNTIF(INDIRECT("'Success Criteria'!" & ADDRESS(124,A32+4)):INDIRECT("'Success Criteria'!" & ADDRESS(178,A32+4)),"not tested") -> 28 | Q32: 25 | R32: 5 | S32: 20 | T32: 28 | V32: 30 | W32: 1 | X32: 20 | Y32: 1 | Z32: 28 | AA32: 1
A33: 19 | B33: My Records | C33: URL 30 | D33: Please select | E33: =SUM(COUNTIF(INDIRECT("'Success Criteria'!" & ADDRESS(10,A33+4)):INDIRECT("'Success Criteria'!" & ADDRESS(72,A33+4)),"PASS"),COUNTIF(INDIRECT("'Success Criteria'!" & ADDRESS(10,A33+4)):INDIRECT("'Success Criteria'!" & ADDRESS(72,A33+4)),"PASS with comments")) -> 14 | F33: =COUNTIF(INDIRECT("'Success Criteria'!" & ADDRESS(10,A33+4)):INDIRECT("'Success Criteria'!" & ADDRESS(72,A33+4)),"NON conformant") -> 4 | G33: =COUNTIF(INDIRECT("'Success Criteria'!" & ADDRESS(10,A33+4)):INDIRECT("'Success Criteria'!" & ADDRESS(72,A33+4)),"N/A") -> 12 | H33: =COUNTIF(INDIRECT("'Success Criteria'!" & ADDRESS(10,A33+4)):INDIRECT("'Success Criteria'!" & ADDRESS(72,A33+4)),"not tested") -> 0 | I33: =SUM(COUNTIF(INDIRECT("'Success Criteria'!" & ADDRESS(76,A33+4)):INDIRECT("'Success Criteria'!" & ADDRESS(119,A33+4)),"PASS"),COUNTIF(INDIRECT("'Success Criteria'!" & ADDRESS(76,A33+4)):INDIRECT("'Success Criteria'!" & ADDRESS(119,A33+4)),"PASS with comments")) -> 9 | J33: =COUNTIF(INDIRECT("'Success Criteria'!" & ADDRESS(76,A33+4)):INDIRECT("'Success Criteria'!" & ADDRESS(119,A33+4)),"NON conformant") -> 1 | K33: =COUNTIF(INDIRECT("'Success Criteria'!" & ADDRESS(76,A33+4)):INDIRECT("'Success Criteria'!" & ADDRESS(119,A33+4)),"N/A") -> 10 | L33: =COUNTIF(INDIRECT("'Success Criteria'!" & ADDRESS(76,A33+4)):INDIRECT("'Success Criteria'!" & ADDRESS(119,A33+4)),"not tested") -> 0 | M33: =SUM(COUNTIF(INDIRECT("'Success Criteria'!" & ADDRESS(124,A33+4)):INDIRECT("'Success Criteria'!" & ADDRESS(178,A33+4)),"PASS"),COUNTIF(INDIRECT("'Success Criteria'!" & ADDRESS(124,A33+4)):INDIRECT("'Success Criteria'!" & ADDRESS(178,A33+4)),"PASS with comments")) -> 0 | N33: =COUNTIF(INDIRECT("'Success Criteria'!" & ADDRESS(124,A33+4)):INDIRECT("'Success Criteria'!" & ADDRESS(178,A33+4)),"NON conformant") -> 0 | O33: =COUNTIF(INDIRECT("'Success Criteria'!" & ADDRESS(124,A33+4)):INDIRECT("'Success Criteria'!" & ADDRESS(178,A33+4)),"N/A") -> 0 | P33: =COUNTIF(INDIRECT("'Success Criteria'!" & ADDRESS(124,A33+4)):INDIRECT("'Success Criteria'!" & ADDRESS(178,A33+4)),"not tested") -> 28 | Q33: 23 | R33: 5 | S33: 22 | T33: 28 | V33: 30 | W33: 1 | X33: 20 | Y33: 1 | Z33: 28 | AA33: 1
A34: 20 | B34: Users | C34: https://rlac-test.glatest.org.uk/app/users | D34: HTML Page (excluding components) | E34: =SUM(COUNTIF(INDIRECT("'Success Criteria'!" & ADDRESS(10,A34+4)):INDIRECT("'Success Criteria'!" & ADDRESS(72,A34+4)),"PASS"),COUNTIF(INDIRECT("'Success Criteria'!" & ADDRESS(10,A34+4)):INDIRECT("'Success Criteria'!" & ADDRESS(72,A34+4)),"PASS with comments")) -> 13 | F34: =COUNTIF(INDIRECT("'Success Criteria'!" & ADDRESS(10,A34+4)):INDIRECT("'Success Criteria'!" & ADDRESS(72,A34+4)),"NON conformant") -> 5 | G34: =COUNTIF(INDIRECT("'Success Criteria'!" & ADDRESS(10,A34+4)):INDIRECT("'Success Criteria'!" & ADDRESS(72,A34+4)),"N/A") -> 12 | H34: =COUNTIF(INDIRECT("'Success Criteria'!" & ADDRESS(10,A34+4)):INDIRECT("'Success Criteria'!" & ADDRESS(72,A34+4)),"not tested") -> 0 | I34: =SUM(COUNTIF(INDIRECT("'Success Criteria'!" & ADDRESS(76,A34+4)):INDIRECT("'Success Criteria'!" & ADDRESS(119,A34+4)),"PASS"),COUNTIF(INDIRECT("'Success Criteria'!" & ADDRESS(76,A34+4)):INDIRECT("'Success Criteria'!" & ADDRESS(119,A34+4)),"PASS with comments")) -> 9 | J34: =COUNTIF(INDIRECT("'Success Criteria'!" & ADDRESS(76,A34+4)):INDIRECT("'Success Criteria'!" & ADDRESS(119,A34+4)),"NON conformant") -> 1 | K34: =COUNTIF(INDIRECT("'Success Criteria'!" & ADDRESS(76,A34+4)):INDIRECT("'Success Criteria'!" & ADDRESS(119,A34+4)),"N/A") -> 10 | L34: =COUNTIF(INDIRECT("'Success Criteria'!" & ADDRESS(76,A34+4)):INDIRECT("'Success Criteria'!" & ADDRESS(119,A34+4)),"not tested") -> 0 | M34: =SUM(COUNTIF(INDIRECT("'Success Criteria'!" & ADDRESS(124,A34+4)):INDIRECT("'Success Criteria'!" & ADDRESS(178,A34+4)),"PASS"),COUNTIF(INDIRECT("'Success Criteria'!" & ADDRESS(124,A34+4)):INDIRECT("'Success Criteria'!" & ADDRESS(178,A34+4)),"PASS with comments")) -> 0 | N34: =COUNTIF(INDIRECT("'Success Criteria'!" & ADDRESS(124,A34+4)):INDIRECT("'Success Criteria'!" & ADDRESS(178,A34+4)),"NON conformant") -> 0 | O34: =COUNTIF(INDIRECT("'Success Criteria'!" & ADDRESS(124,A34+4)):INDIRECT("'Success Criteria'!" & ADDRESS(178,A34+4)),"N/A") -> 0 | P34: =COUNTIF(INDIRECT("'Success Criteria'!" & ADDRESS(124,A34+4)):INDIRECT("'Success Criteria'!" & ADDRESS(178,A34+4)),"not tested") -> 28 | Q34: 22 | R34: 6 | S34: 22 | T34: 28 | V34: 30 | W34: 1 | X34: 20 | Y34: 1 | Z34: 28 | AA34: 1
A35: 21 | B35: Search | C35: https://rlac-test.glatest.org.uk/app/records/search | D35: HTML Page (excluding components) | E35: =SUM(COUNTIF(INDIRECT("'Success Criteria'!" & ADDRESS(10,A35+4)):INDIRECT("'Success Criteria'!" & ADDRESS(72,A35+4)),"PASS"),COUNTIF(INDIRECT("'Success Criteria'!" & ADDRESS(10,A35+4)):INDIRECT("'Success Criteria'!" & ADDRESS(72,A35+4)),"PASS with comments")) -> 14 | F35: =COUNTIF(INDIRECT("'Success Criteria'!" & ADDRESS(10,A35+4)):INDIRECT("'Success Criteria'!" & ADDRESS(72,A35+4)),"NON conformant") -> 4 | G35: =COUNTIF(INDIRECT("'Success Criteria'!" & ADDRESS(10,A35+4)):INDIRECT("'Success Criteria'!" & ADDRESS(72,A35+4)),"N/A") -> 12 | H35: =COUNTIF(INDIRECT("'Success Criteria'!" & ADDRESS(10,A35+4)):INDIRECT("'Success Criteria'!" & ADDRESS(72,A35+4)),"not tested") -> 0 | I35: =SUM(COUNTIF(INDIRECT("'Success Criteria'!" & ADDRESS(76,A35+4)):INDIRECT("'Success Criteria'!" & ADDRESS(119,A35+4)),"PASS"),COUNTIF(INDIRECT("'Success Criteria'!" & ADDRESS(76,A35+4)):INDIRECT("'Success Criteria'!" & ADDRESS(119,A35+4)),"PASS with comments")) -> 9 | J35: =COUNTIF(INDIRECT("'Success Criteria'!" & ADDRESS(76,A35+4)):INDIRECT("'Success Criteria'!" & ADDRESS(119,A35+4)),"NON conformant") -> 1 | K35: =COUNTIF(INDIRECT("'Success Criteria'!" & ADDRESS(76,A35+4)):INDIRECT("'Success Criteria'!" & ADDRESS(119,A35+4)),"N/A") -> 10 | L35: =COUNTIF(INDIRECT("'Success Criteria'!" & ADDRESS(76,A35+4)):INDIRECT("'Success Criteria'!" & ADDRESS(119,A35+4)),"not tested") -> 0 | M35: =SUM(COUNTIF(INDIRECT("'Success Criteria'!" & ADDRESS(124,A35+4)):INDIRECT("'Success Criteria'!" & ADDRESS(178,A35+4)),"PASS"),COUNTIF(INDIRECT("'Success Criteria'!" & ADDRESS(124,A35+4)):INDIRECT("'Success Criteria'!" & ADDRESS(178,A35+4)),"PASS with comments")) -> 0 | N35: =COUNTIF(INDIRECT("'Success Criteria'!" & ADDRESS(124,A35+4)):INDIRECT("'Success Criteria'!" & ADDRESS(178,A35+4)),"NON conformant") -> 0 | O35: =COUNTIF(INDIRECT("'Success Criteria'!" & ADDRESS(124,A35+4)):INDIRECT("'Success Criteria'!" & ADDRESS(178,A35+4)),"N/A") -> 0 | P35: =COUNTIF(INDIRECT("'Success Criteria'!" & ADDRESS(124,A35+4)):INDIRECT("'Success Criteria'!" & ADDRESS(178,A35+4)),"not tested") -> 28 | Q35: 23 | R35: 5 | S35: 22 | T35: 28 | V35: 30 | W35: 1 | X35: 20 | Y35: 1 | Z35: 28 | AA35: 1
A36: 22 | B36: decision-1692365159.pdf | C36: N/A | D36: PDF | E36: =SUM(COUNTIF(INDIRECT("'Success Criteria'!" & ADDRESS(10,A36+4)):INDIRECT("'Success Criteria'!" & ADDRESS(72,A36+4)),"PASS"),COUNTIF(INDIRECT("'Success Criteria'!" & ADDRESS(10,A36+4)):INDIRECT("'Success Criteria'!" & ADDRESS(72,A36+4)),"PASS with comments")) -> 2 | F36: =COUNTIF(INDIRECT("'Success Criteria'!" & ADDRESS(10,A36+4)):INDIRECT("'Success Criteria'!" & ADDRESS(72,A36+4)),"NON conformant") -> 1 | G36: =COUNTIF(INDIRECT("'Success Criteria'!" & ADDRESS(10,A36+4)):INDIRECT("'Success Criteria'!" & ADDRESS(72,A36+4)),"N/A") -> 27 | H36: =COUNTIF(INDIRECT("'Success Criteria'!" & ADDRESS(10,A36+4)):INDIRECT("'Success Criteria'!" & ADDRESS(72,A36+4)),"not tested") -> 0 | I36: =SUM(COUNTIF(INDIRECT("'Success Criteria'!" & ADDRESS(76,A36+4)):INDIRECT("'Success Criteria'!" & ADDRESS(119,A36+4)),"PASS"),COUNTIF(INDIRECT("'Success Criteria'!" & ADDRESS(76,A36+4)):INDIRECT("'Success Criteria'!" & ADDRESS(119,A36+4)),"PASS with comments")) -> 10 | J36: =COUNTIF(INDIRECT("'Success Criteria'!" & ADDRESS(76,A36+4)):INDIRECT("'Success Criteria'!" & ADDRESS(119,A36+4)),"NON conformant") -> 0 | K36: =COUNTIF(INDIRECT("'Success Criteria'!" & ADDRESS(76,A36+4)):INDIRECT("'Success Criteria'!" & ADDRESS(119,A36+4)),"N/A") -> 10 | L36: =COUNTIF(INDIRECT("'Success Criteria'!" & ADDRESS(76,A36+4)):INDIRECT("'Success Criteria'!" & ADDRESS(119,A36+4)),"not tested") -> 0 | M36: =SUM(COUNTIF(INDIRECT("'Success Criteria'!" & ADDRESS(124,A36+4)):INDIRECT("'Success Criteria'!" & ADDRESS(178,A36+4)),"PASS"),COUNTIF(INDIRECT("'Success Criteria'!" & ADDRESS(124,A36+4)):INDIRECT("'Success Criteria'!" & ADDRESS(178,A36+4)),"PASS with comments")) -> 0 | N36: =COUNTIF(INDIRECT("'Success Criteria'!" & ADDRESS(124,A36+4)):INDIRECT("'Success Criteria'!" & ADDRESS(178,A36+4)),"NON conformant") -> 0 | O36: =COUNTIF(INDIRECT("'Success Criteria'!" & ADDRESS(124,A36+4)):INDIRECT("'Success Criteria'!" & ADDRESS(178,A36+4)),"N/A") -> 0 | P36: =COUNTIF(INDIRECT("'Success Criteria'!" & ADDRESS(124,A36+4)):INDIRECT("'Success Criteria'!" & ADDRESS(178,A36+4)),"not tested") -> 28 | Q36: 12 | R36: 1 | S36: 37 | T36: 28 | V36: 30 | W36: 1 | X36: 20 | Y36: 1 | Z36: 28 | AA36: 1
A37: 23 | B37: Edit user | C37: https://rlac-test.glatest.org.uk/app/users/entity?id=251 | D37: HTML Page (excluding components) | E37: =SUM(COUNTIF(INDIRECT("'Success Criteria'!" & ADDRESS(10,A37+4)):INDIRECT("'Success Criteria'!" & ADDRESS(72,A37+4)),"PASS"),COUNTIF(INDIRECT("'Success Criteria'!" & ADDRESS(10,A37+4)):INDIRECT("'Success Criteria'!" & ADDRESS(72,A37+4)),"PASS with comments")) -> 15 | F37: =COUNTIF(INDIRECT("'Success Criteria'!" & ADDRESS(10,A37+4)):INDIRECT("'Success Criteria'!" & ADDRESS(72,A37+4)),"NON conformant") -> 3 | G37: =COUNTIF(INDIRECT("'Success Criteria'!" & ADDRESS(10,A37+4)):INDIRECT("'Success Criteria'!" & ADDRESS(72,A37+4)),"N/A") -> 12 | H37: =COUNTIF(INDIRECT("'Success Criteria'!" & ADDRESS(10,A37+4)):INDIRECT("'Success Criteria'!" & ADDRESS(72,A37+4)),"not tested") -> 0 | I37: =SUM(COUNTIF(INDIRECT("'Success Criteria'!" & ADDRESS(76,A37+4)):INDIRECT("'Success Criteria'!" & ADDRESS(119,A37+4)),"PASS"),COUNTIF(INDIRECT("'Success Criteria'!" & ADDRESS(76,A37+4)):INDIRECT("'Success Criteria'!" & ADDRESS(119,A37+4)),"PASS with comments")) -> 10 | J37: =COUNTIF(INDIRECT("'Success Criteria'!" & ADDRESS(76,A37+4)):INDIRECT("'Success Criteria'!" & ADDRESS(119,A37+4)),"NON conformant") -> 0 | K37: =COUNTIF(INDIRECT("'Success Criteria'!" & ADDRESS(76,A37+4)):INDIRECT("'Success Criteria'!" & ADDRESS(119,A37+4)),"N/A") -> 10 | L37: =COUNTIF(INDIRECT("'Success Criteria'!" & ADDRESS(76,A37+4)):INDIRECT("'Success Criteria'!" & ADDRESS(119,A37+4)),"not tested") -> 0 | M37: =SUM(COUNTIF(INDIRECT("'Success Criteria'!" & ADDRESS(124,A37+4)):INDIRECT("'Success Criteria'!" & ADDRESS(178,A37+4)),"PASS"),COUNTIF(INDIRECT("'Success Criteria'!" & ADDRESS(124,A37+4)):INDIRECT("'Success Criteria'!" & ADDRESS(178,A37+4)),"PASS with comments")) -> 0 | N37: =COUNTIF(INDIRECT("'Success Criteria'!" & ADDRESS(124,A37+4)):INDIRECT("'Success Criteria'!" & ADDRESS(178,A37+4)),"NON conformant") -> 0 | O37: =COUNTIF(INDIRECT("'Success Criteria'!" & ADDRESS(124,A37+4)):INDIRECT("'Success Criteria'!" & ADDRESS(178,A37+4)),"N/A") -> 0 | P37: =COUNTIF(INDIRECT("'Success Criteria'!" & ADDRESS(124,A37+4)):INDIRECT("'Success Criteria'!" & ADDRESS(178,A37+4)),"not tested") -> 28 | Q37: 25 | R37: 3 | S37: 22 | T37: 28 | V37: 30 | W37: 1 | X37: 20 | Y37: 1 | Z37: 28 | AA37: 1
A38: 24 | B38: Letter Template: Letters Decision Amend | C38: https://rlac-test.glatest.org.uk/app/configure/letters-decision-amend | D38: HTML Page (excluding components) | E38: =SUM(COUNTIF(INDIRECT("'Success Criteria'!" & ADDRESS(10,A38+4)):INDIRECT("'Success Criteria'!" & ADDRESS(72,A38+4)),"PASS"),COUNTIF(INDIRECT("'Success Criteria'!" & ADDRESS(10,A38+4)):INDIRECT("'Success Criteria'!" & ADDRESS(72,A38+4)),"PASS with comments")) -> 15 | F38: =COUNTIF(INDIRECT("'Success Criteria'!" & ADDRESS(10,A38+4)):INDIRECT("'Success Criteria'!" & ADDRESS(72,A38+4)),"NON conformant") -> 3 | G38: =COUNTIF(INDIRECT("'Success Criteria'!" & ADDRESS(10,A38+4)):INDIRECT("'Success Criteria'!" & ADDRESS(72,A38+4)),"N/A") -> 12 | H38: =COUNTIF(INDIRECT("'Success Criteria'!" & ADDRESS(10,A38+4)):INDIRECT("'Success Criteria'!" & ADDRESS(72,A38+4)),"not tested") -> 0 | I38: =SUM(COUNTIF(INDIRECT("'Success Criteria'!" & ADDRESS(76,A38+4)):INDIRECT("'Success Criteria'!" & ADDRESS(119,A38+4)),"PASS"),COUNTIF(INDIRECT("'Success Criteria'!" & ADDRESS(76,A38+4)):INDIRECT("'Success Criteria'!" & ADDRESS(119,A38+4)),"PASS with comments")) -> 10 | J38: =COUNTIF(INDIRECT("'Success Criteria'!" & ADDRESS(76,A38+4)):INDIRECT("'Success Criteria'!" & ADDRESS(119,A38+4)),"NON conformant") -> 0 | K38: =COUNTIF(INDIRECT("'Success Criteria'!" & ADDRESS(76,A38+4)):INDIRECT("'Success Criteria'!" & ADDRESS(119,A38+4)),"N/A") -> 10 | L38: =COUNTIF(INDIRECT("'Success Criteria'!" & ADDRESS(76,A38+4)):INDIRECT("'Success Criteria'!" & ADDRESS(119,A38+4)),"not tested") -> 0 | M38: =SUM(COUNTIF(INDIRECT("'Success Criteria'!" & ADDRESS(124,A38+4)):INDIRECT("'Success Criteria'!" & ADDRESS(178,A38+4)),"PASS"),COUNTIF(INDIRECT("'Success Criteria'!" & ADDRESS(124,A38+4)):INDIRECT("'Success Criteria'!" & ADDRESS(178,A38+4)),"PASS with comments")) -> 0 | N38: =COUNTIF(INDIRECT("'Success Criteria'!" & ADDRESS(124,A38+4)):INDIRECT("'Success Criteria'!" & ADDRESS(178,A38+4)),"NON conformant") -> 0 | O38: =COUNTIF(INDIRECT("'Success Criteria'!" & ADDRESS(124,A38+4)):INDIRECT("'Success Criteria'!" & ADDRESS(178,A38+4)),"N/A") -> 0 | P38: =COUNTIF(INDIRECT("'Success Criteria'!" & ADDRESS(124,A38+4)):INDIRECT("'Success Criteria'!" & ADDRESS(178,A38+4)),"not tested") -> 28 | Q38: 25 | R38: 3 | S38: 22 | T38: 28 | V38: 30 | W38: 1 | X38: 20 | Y38: 1 | Z38: 28 | AA38: 1
A39: 25 | B39: Suspend Enforcement Actions (Public) (Checkbox only) | C39: https://rlac-test.glatest.org.uk/app/workflow/suspend-records/public | D39: HTML Component | E39: =SUM(COUNTIF(INDIRECT("'Success Criteria'!" & ADDRESS(10,A39+4)):INDIRECT("'Success Criteria'!" & ADDRESS(72,A39+4)),"PASS"),COUNTIF(INDIRECT("'Success Criteria'!" & ADDRESS(10,A39+4)):INDIRECT("'Success Criteria'!" & ADDRESS(72,A39+4)),"PASS with comments")) -> 1 | F39: =COUNTIF(INDIRECT("'Success Criteria'!" & ADDRESS(10,A39+4)):INDIRECT("'Success Criteria'!" & ADDRESS(72,A39+4)),"NON conformant") -> 1 | G39: =COUNTIF(INDIRECT("'Success Criteria'!" & ADDRESS(10,A39+4)):INDIRECT("'Success Criteria'!" & ADDRESS(72,A39+4)),"N/A") -> 28 | H39: =COUNTIF(INDIRECT("'Success Criteria'!" & ADDRESS(10,A39+4)):INDIRECT("'Success Criteria'!" & ADDRESS(72,A39+4)),"not tested") -> 0 | I39: =SUM(COUNTIF(INDIRECT("'Success Criteria'!" & ADDRESS(76,A39+4)):INDIRECT("'Success Criteria'!" & ADDRESS(119,A39+4)),"PASS"),COUNTIF(INDIRECT("'Success Criteria'!" & ADDRESS(76,A39+4)):INDIRECT("'Success Criteria'!" & ADDRESS(119,A39+4)),"PASS with comments")) -> 10 | J39: =COUNTIF(INDIRECT("'Success Criteria'!" & ADDRESS(76,A39+4)):INDIRECT("'Success Criteria'!" & ADDRESS(119,A39+4)),"NON conformant") -> 0 | K39: =COUNTIF(INDIRECT("'Success Criteria'!" & ADDRESS(76,A39+4)):INDIRECT("'Success Criteria'!" & ADDRESS(119,A39+4)),"N/A") -> 10 | L39: =COUNTIF(INDIRECT("'Success Criteria'!" & ADDRESS(76,A39+4)):INDIRECT("'Success Criteria'!" & ADDRESS(119,A39+4)),"not tested") -> 0 | M39: =SUM(COUNTIF(INDIRECT("'Success Criteria'!" & ADDRESS(124,A39+4)):INDIRECT("'Success Criteria'!" & ADDRESS(178,A39+4)),"PASS"),COUNTIF(INDIRECT("'Success Criteria'!" & ADDRESS(124,A39+4)):INDIRECT("'Success Criteria'!" & ADDRESS(178,A39+4)),"PASS with comments")) -> 0 | N39: =COUNTIF(INDIRECT("'Success Criteria'!" & ADDRESS(124,A39+4)):INDIRECT("'Success Criteria'!" & ADDRESS(178,A39+4)),"NON conformant") -> 0 | O39: =COUNTIF(INDIRECT("'Success Criteria'!" & ADDRESS(124,A39+4)):INDIRECT("'Success Criteria'!" & ADDRESS(178,A39+4)),"N/A") -> 0 | P39: =COUNTIF(INDIRECT("'Success Criteria'!" & ADDRESS(124,A39+4)):INDIRECT("'Success Criteria'!" & ADDRESS(178,A39+4)),"not tested") -> 28 | Q39: 11 | R39: 1 | S39: 38 | T39: 28 | V39: 30 | W39: 1 | X39: 20 | Y39: 1 | Z39: 28 | AA39: 1
A40: 26 | B40: Suspend Enforcement Actions (Public) - are you sure? | C40: https://rlac-test.glatest.org.uk/app/workflow/suspend-records/public | D40: HTML Page (excluding components) | E40: =SUM(COUNTIF(INDIRECT("'Success Criteria'!" & ADDRESS(10,A40+4)):INDIRECT("'Success Criteria'!" & ADDRESS(72,A40+4)),"PASS"),COUNTIF(INDIRECT("'Success Criteria'!" & ADDRESS(10,A40+4)):INDIRECT("'Success Criteria'!" & ADDRESS(72,A40+4)),"PASS with comments")) -> 17 | F40: =COUNTIF(INDIRECT("'Success Criteria'!" & ADDRESS(10,A40+4)):INDIRECT("'Success Criteria'!" & ADDRESS(72,A40+4)),"NON conformant") -> 1 | G40: =COUNTIF(INDIRECT("'Success Criteria'!" & ADDRESS(10,A40+4)):INDIRECT("'Success Criteria'!" & ADDRESS(72,A40+4)),"N/A") -> 12 | H40: =COUNTIF(INDIRECT("'Success Criteria'!" & ADDRESS(10,A40+4)):INDIRECT("'Success Criteria'!" & ADDRESS(72,A40+4)),"not tested") -> 0 | I40: =SUM(COUNTIF(INDIRECT("'Success Criteria'!" & ADDRESS(76,A40+4)):INDIRECT("'Success Criteria'!" & ADDRESS(119,A40+4)),"PASS"),COUNTIF(INDIRECT("'Success Criteria'!" & ADDRESS(76,A40+4)):INDIRECT("'Success Criteria'!" & ADDRESS(119,A40+4)),"PASS with comments")) -> 10 | J40: =COUNTIF(INDIRECT("'Success Criteria'!" & ADDRESS(76,A40+4)):INDIRECT("'Success Criteria'!" & ADDRESS(119,A40+4)),"NON conformant") -> 0 | K40: =COUNTIF(INDIRECT("'Success Criteria'!" & ADDRESS(76,A40+4)):INDIRECT("'Success Criteria'!" & ADDRESS(119,A40+4)),"N/A") -> 10 | L40: =COUNTIF(INDIRECT("'Success Criteria'!" & ADDRESS(76,A40+4)):INDIRECT("'Success Criteria'!" & ADDRESS(119,A40+4)),"not tested") -> 0 | M40: =SUM(COUNTIF(INDIRECT("'Success Criteria'!" & ADDRESS(124,A40+4)):INDIRECT("'Success Criteria'!" & ADDRESS(178,A40+4)),"PASS"),COUNTIF(INDIRECT("'Success Criteria'!" & ADDRESS(124,A40+4)):INDIRECT("'Success Criteria'!" & ADDRESS(178,A40+4)),"PASS with comments")) -> 0 | N40: =COUNTIF(INDIRECT("'Success Criteria'!" & ADDRESS(124,A40+4)):INDIRECT("'Success Criteria'!" & ADDRESS(178,A40+4)),"NON conformant") -> 0 | O40: =COUNTIF(INDIRECT("'Success Criteria'!" & ADDRESS(124,A40+4)):INDIRECT("'Success Criteria'!" & ADDRESS(178,A40+4)),"N/A") -> 0 | P40: =COUNTIF(INDIRECT("'Success Criteria'!" & ADDRESS(124,A40+4)):INDIRECT("'Success Criteria'!" & ADDRESS(178,A40+4)),"not tested") -> 28 | Q40: 27 | R40: 1 | S40: 22 | T40: 28 | V40: 30 | W40: 1 | X40: 20 | Y40: 1 | Z40: 28 | AA40: 1
A41: 27 | B41: Decision Letter Entities (Table only) | C41: https://rlac-test.glatest.org.uk/app/manage/decision-letters | D41: HTML Component | E41: =SUM(COUNTIF(INDIRECT("'Success Criteria'!" & ADDRESS(10,A41+4)):INDIRECT("'Success Criteria'!" & ADDRESS(72,A41+4)),"PASS"),COUNTIF(INDIRECT("'Success Criteria'!" & ADDRESS(10,A41+4)):INDIRECT("'Success Criteria'!" & ADDRESS(72,A41+4)),"PASS with comments")) -> 13 | F41: =COUNTIF(INDIRECT("'Success Criteria'!" & ADDRESS(10,A41+4)):INDIRECT("'Success Criteria'!" & ADDRESS(72,A41+4)),"NON conformant") -> 0 | G41: =COUNTIF(INDIRECT("'Success Criteria'!" & ADDRESS(10,A41+4)):INDIRECT("'Success Criteria'!" & ADDRESS(72,A41+4)),"N/A") -> 17 | H41: =COUNTIF(INDIRECT("'Success Criteria'!" & ADDRESS(10,A41+4)):INDIRECT("'Success Criteria'!" & ADDRESS(72,A41+4)),"not tested") -> 0 | I41: =SUM(COUNTIF(INDIRECT("'Success Criteria'!" & ADDRESS(76,A41+4)):INDIRECT("'Success Criteria'!" & ADDRESS(119,A41+4)),"PASS"),COUNTIF(INDIRECT("'Success Criteria'!" & ADDRESS(76,A41+4)):INDIRECT("'Success Criteria'!" & ADDRESS(119,A41+4)),"PASS with comments")) -> 10 | J41: =COUNTIF(INDIRECT("'Success Criteria'!" & ADDRESS(76,A41+4)):INDIRECT("'Success Criteria'!" & ADDRESS(119,A41+4)),"NON conformant") -> 0 | K41: =COUNTIF(INDIRECT("'Success Criteria'!" & ADDRESS(76,A41+4)):INDIRECT("'Success Criteria'!" & ADDRESS(119,A41+4)),"N/A") -> 10 | L41: =COUNTIF(INDIRECT("'Success Criteria'!" & ADDRESS(76,A41+4)):INDIRECT("'Success Criteria'!" & ADDRESS(119,A41+4)),"not tested") -> 0 | M41: =SUM(COUNTIF(INDIRECT("'Success Criteria'!" & ADDRESS(124,A41+4)):INDIRECT("'Success Criteria'!" & ADDRESS(178,A41+4)),"PASS"),COUNTIF(INDIRECT("'Success Criteria'!" & ADDRESS(124,A41+4)):INDIRECT("'Success Criteria'!" & ADDRESS(178,A41+4)),"PASS with comments")) -> 0 | N41: =COUNTIF(INDIRECT("'Success Criteria'!" & ADDRESS(124,A41+4)):INDIRECT("'Success Criteria'!" & ADDRESS(178,A41+4)),"NON conformant") -> 0 | O41: =COUNTIF(INDIRECT("'Success Criteria'!" & ADDRESS(124,A41+4)):INDIRECT("'Success Criteria'!" & ADDRESS(178,A41+4)),"N/A") -> 0 | P41: =COUNTIF(INDIRECT("'Success Criteria'!" & ADDRESS(124,A41+4)):INDIRECT("'Success Criteria'!" & ADDRESS(178,A41+4)),"not tested") -> 28 | Q41: 23 | R41: 0 | S41: 27 | T41: 28 | V41: 30 | W41: 1 | X41: 20 | Y41: 1 | Z41: 28 | AA41: 1
A42: 28 | B42: Page 28 | C42: URL 30 | D42: Please select | E42: =SUM(COUNTIF(INDIRECT("'Success Criteria'!" & ADDRESS(10,A42+4)):INDIRECT("'Success Criteria'!" & ADDRESS(72,A42+4)),"PASS"),COUNTIF(INDIRECT("'Success Criteria'!" & ADDRESS(10,A42+4)):INDIRECT("'Success Criteria'!" & ADDRESS(72,A42+4)),"PASS with comments")) -> 0 | F42: =COUNTIF(INDIRECT("'Success Criteria'!" & ADDRESS(10,A42+4)):INDIRECT("'Success Criteria'!" & ADDRESS(72,A42+4)),"NON conformant") -> 0 | G42: =COUNTIF(INDIRECT("'Success Criteria'!" & ADDRESS(10,A42+4)):INDIRECT("'Success Criteria'!" & ADDRESS(72,A42+4)),"N/A") -> 0 | H42: =COUNTIF(INDIRECT("'Success Criteria'!" & ADDRESS(10,A42+4)):INDIRECT("'Success Criteria'!" & ADDRESS(72,A42+4)),"not tested") -> 0 | I42: =SUM(COUNTIF(INDIRECT("'Success Criteria'!" & ADDRESS(76,A42+4)):INDIRECT("'Success Criteria'!" & ADDRESS(119,A42+4)),"PASS"),COUNTIF(INDIRECT("'Success Criteria'!" & ADDRESS(76,A42+4)):INDIRECT("'Success Criteria'!" & ADDRESS(119,A42+4)),"PASS with comments")) -> 2 | J42: =COUNTIF(INDIRECT("'Success Criteria'!" & ADDRESS(76,A42+4)):INDIRECT("'Success Criteria'!" & ADDRESS(119,A42+4)),"NON conformant") -> 0 | K42: =COUNTIF(INDIRECT("'Success Criteria'!" & ADDRESS(76,A42+4)):INDIRECT("'Success Criteria'!" & ADDRESS(119,A42+4)),"N/A") -> 0 | L42: =COUNTIF(INDIRECT("'Success Criteria'!" & ADDRESS(76,A42+4)):INDIRECT("'Success Criteria'!" & ADDRESS(119,A42+4)),"not tested") -> 0 | M42: =SUM(COUNTIF(INDIRECT("'Success Criteria'!" & ADDRESS(124,A42+4)):INDIRECT("'Success Criteria'!" & ADDRESS(178,A42+4)),"PASS"),COUNTIF(INDIRECT("'Success Criteria'!" & ADDRESS(124,A42+4)):INDIRECT("'Success Criteria'!" & ADDRESS(178,A42+4)),"PASS with comments")) -> 0 | N42: =COUNTIF(INDIRECT("'Success Criteria'!" & ADDRESS(124,A42+4)):INDIRECT("'Success Criteria'!" & ADDRESS(178,A42+4)),"NON conformant") -> 0 | O42: =COUNTIF(INDIRECT("'Success Criteria'!" & ADDRESS(124,A42+4)):INDIRECT("'Success Criteria'!" & ADDRESS(178,A42+4)),"N/A") -> 0 | P42: =COUNTIF(INDIRECT("'Success Criteria'!" & ADDRESS(124,A42+4)):INDIRECT("'Success Criteria'!" & ADDRESS(178,A42+4)),"not tested") -> 28 | Q42: 2 | R42: 0 | S42: 0 | T42: 28 | V42: 0 | X42: 2 | Z42: 28 | AA42: 1
A43: 29 | B43: Page 29 | C43: URL 30 | D43: Please select | E43: =SUM(COUNTIF(INDIRECT("'Success Criteria'!" & ADDRESS(10,A43+4)):INDIRECT("'Success Criteria'!" & ADDRESS(72,A43+4)),"PASS"),COUNTIF(INDIRECT("'Success Criteria'!" & ADDRESS(10,A43+4)):INDIRECT("'Success Criteria'!" & ADDRESS(72,A43+4)),"PASS with comments")) -> 0 | F43: =COUNTIF(INDIRECT("'Success Criteria'!" & ADDRESS(10,A43+4)):INDIRECT("'Success Criteria'!" & ADDRESS(72,A43+4)),"NON conformant") -> 0 | G43: =COUNTIF(INDIRECT("'Success Criteria'!" & ADDRESS(10,A43+4)):INDIRECT("'Success Criteria'!" & ADDRESS(72,A43+4)),"N/A") -> 0 | H43: =COUNTIF(INDIRECT("'Success Criteria'!" & ADDRESS(10,A43+4)):INDIRECT("'Success Criteria'!" & ADDRESS(72,A43+4)),"not tested") -> 0 | I43: =SUM(COUNTIF(INDIRECT("'Success Criteria'!" & ADDRESS(76,A43+4)):INDIRECT("'Success Criteria'!" & ADDRESS(119,A43+4)),"PASS"),COUNTIF(INDIRECT("'Success Criteria'!" & ADDRESS(76,A43+4)):INDIRECT("'Success Criteria'!" & ADDRESS(119,A43+4)),"PASS with comments")) -> 2 | J43: =COUNTIF(INDIRECT("'Success Criteria'!" & ADDRESS(76,A43+4)):INDIRECT("'Success Criteria'!" & ADDRESS(119,A43+4)),"NON conformant") -> 0 | K43: =COUNTIF(INDIRECT("'Success Criteria'!" & ADDRESS(76,A43+4)):INDIRECT("'Success Criteria'!" & ADDRESS(119,A43+4)),"N/A") -> 0 | L43: =COUNTIF(INDIRECT("'Success Criteria'!" & ADDRESS(76,A43+4)):INDIRECT("'Success Criteria'!" & ADDRESS(119,A43+4)),"not tested") -> 0 | M43: =SUM(COUNTIF(INDIRECT("'Success Criteria'!" & ADDRESS(124,A43+4)):INDIRECT("'Success Criteria'!" & ADDRESS(178,A43+4)),"PASS"),COUNTIF(INDIRECT("'Success Criteria'!" & ADDRESS(124,A43+4)):INDIRECT("'Success Criteria'!" & ADDRESS(178,A43+4)),"PASS with comments")) -> 0 | N43: =COUNTIF(INDIRECT("'Success Criteria'!" & ADDRESS(124,A43+4)):INDIRECT("'Success Criteria'!" & ADDRESS(178,A43+4)),"NON conformant") -> 0 | O43: =COUNTIF(INDIRECT("'Success Criteria'!" & ADDRESS(124,A43+4)):INDIRECT("'Success Criteria'!" & ADDRESS(178,A43+4)),"N/A") -> 0 | P43: =COUNTIF(INDIRECT("'Success Criteria'!" & ADDRESS(124,A43+4)):INDIRECT("'Success Criteria'!" & ADDRESS(178,A43+4)),"not tested") -> 28 | Q43: 2 | R43: 0 | S43: 0 | T43: 28 | V43: 0 | X43: 2 | Z43: 28 | AA43: 1
A44: 30 | B44: Page 30 | C44: URL 30 | D44: Please select | E44: =SUM(COUNTIF(INDIRECT("'Success Criteria'!" & ADDRESS(10,A44+4)):INDIRECT("'Success Criteria'!" & ADDRESS(72,A44+4)),"PASS"),COUNTIF(INDIRECT("'Success Criteria'!" & ADDRESS(10,A44+4)):INDIRECT("'Success Criteria'!" & ADDRESS(72,A44+4)),"PASS with comments")) -> 0 | F44: =COUNTIF(INDIRECT("'Success Criteria'!" & ADDRESS(10,A44+4)):INDIRECT("'Success Criteria'!" & ADDRESS(72,A44+4)),"NON conformant") -> 0 | G44: =COUNTIF(INDIRECT("'Success Criteria'!" & ADDRESS(10,A44+4)):INDIRECT("'Success Criteria'!" & ADDRESS(72,A44+4)),"N/A") -> 0 | H44: =COUNTIF(INDIRECT("'Success Criteria'!" & ADDRESS(10,A44+4)):INDIRECT("'Success Criteria'!" & ADDRESS(72,A44+4)),"not tested") -> 0 | I44: =SUM(COUNTIF(INDIRECT("'Success Criteria'!" & ADDRESS(76,A44+4)):INDIRECT("'Success Criteria'!" & ADDRESS(119,A44+4)),"PASS"),COUNTIF(INDIRECT("'Success Criteria'!" & ADDRESS(76,A44+4)):INDIRECT("'Success Criteria'!" & ADDRESS(119,A44+4)),"PASS with comments")) -> 2 | J44: =COUNTIF(INDIRECT("'Success Criteria'!" & ADDRESS(76,A44+4)):INDIRECT("'Success Criteria'!" & ADDRESS(119,A44+4)),"NON conformant") -> 0 | K44: =COUNTIF(INDIRECT("'Success Criteria'!" & ADDRESS(76,A44+4)):INDIRECT("'Success Criteria'!" & ADDRESS(119,A44+4)),"N/A") -> 0 | L44: =COUNTIF(INDIRECT("'Success Criteria'!" & ADDRESS(76,A44+4)):INDIRECT("'Success Criteria'!" & ADDRESS(119,A44+4)),"not tested") -> 0 | M44: =SUM(COUNTIF(INDIRECT("'Success Criteria'!" & ADDRESS(124,A44+4)):INDIRECT("'Success Criteria'!" & ADDRESS(178,A44+4)),"PASS"),COUNTIF(INDIRECT("'Success Criteria'!" & ADDRESS(124,A44+4)):INDIRECT("'Success Criteria'!" & ADDRESS(178,A44+4)),"PASS with comments")) -> 0 | N44: =COUNTIF(INDIRECT("'Success Criteria'!" & ADDRESS(124,A44+4)):INDIRECT("'Success Criteria'!" & ADDRESS(178,A44+4)),"NON conformant") -> 0 | O44: =COUNTIF(INDIRECT("'Success Criteria'!" & ADDRESS(124,A44+4)):INDIRECT("'Success Criteria'!" & ADDRESS(178,A44+4)),"N/A") -> 0 | P44: =COUNTIF(INDIRECT("'Success Criteria'!" & ADDRESS(124,A44+4)):INDIRECT("'Success Criteria'!" & ADDRESS(178,A44+4)),"not tested") -> 28 | Q44: 2 | R44: 0 | S44: 0 | T44: 28 | V44: 0 | X44: 2 | Z44: 28 | AA44: 1
A45: 31 | B45: Page 31 | C45: URL 31 | D45: Please select | E45: =SUM(COUNTIF(INDIRECT("'Success Criteria'!" & ADDRESS(10,A45+4)):INDIRECT("'Success Criteria'!" & ADDRESS(72,A45+4)),"PASS"),COUNTIF(INDIRECT("'Success Criteria'!" & ADDRESS(10,A45+4)):INDIRECT("'Success Criteria'!" & ADDRESS(72,A45+4)),"PASS with comments")) -> 0 | F45: =COUNTIF(INDIRECT("'Success Criteria'!" & ADDRESS(10,A45+4)):INDIRECT("'Success Criteria'!" & ADDRESS(72,A45+4)),"NON conformant") -> 0 | G45: =COUNTIF(INDIRECT("'Success Criteria'!" & ADDRESS(10,A45+4)):INDIRECT("'Success Criteria'!" & ADDRESS(72,A45+4)),"N/A") -> 0 | H45: =COUNTIF(INDIRECT("'Success Criteria'!" & ADDRESS(10,A45+4)):INDIRECT("'Success Criteria'!" & ADDRESS(72,A45+4)),"not tested") -> 0 | I45: =SUM(COUNTIF(INDIRECT("'Success Criteria'!" & ADDRESS(76,A45+4)):INDIRECT("'Success Criteria'!" & ADDRESS(119,A45+4)),"PASS"),COUNTIF(INDIRECT("'Success Criteria'!" & ADDRESS(76,A45+4)):INDIRECT("'Success Criteria'!" & ADDRESS(119,A45+4)),"PASS with comments")) -> 2 | J45: =COUNTIF(INDIRECT("'Success Criteria'!" & ADDRESS(76,A45+4)):INDIRECT("'Success Criteria'!" & ADDRESS(119,A45+4)),"NON conformant") -> 0 | K45: =COUNTIF(INDIRECT("'Success Criteria'!" & ADDRESS(76,A45+4)):INDIRECT("'Success Criteria'!" & ADDRESS(119,A45+4)),"N/A") -> 0 | L45: =COUNTIF(INDIRECT("'Success Criteria'!" & ADDRESS(76,A45+4)):INDIRECT("'Success Criteria'!" & ADDRESS(119,A45+4)),"not tested") -> 0 | M45: =SUM(COUNTIF(INDIRECT("'Success Criteria'!" & ADDRESS(124,A45+4)):INDIRECT("'Success Criteria'!" & ADDRESS(178,A45+4)),"PASS"),COUNTIF(INDIRECT("'Success Criteria'!" & ADDRESS(124,A45+4)):INDIRECT("'Success Criteria'!" & ADDRESS(178,A45+4)),"PASS with comments")) -> 0 | N45: =COUNTIF(INDIRECT("'Success Criteria'!" & ADDRESS(124,A45+4)):INDIRECT("'Success Criteria'!" & ADDRESS(178,A45+4)),"NON conformant") -> 0 | O45: =COUNTIF(INDIRECT("'Success Criteria'!" & ADDRESS(124,A45+4)):INDIRECT("'Success Criteria'!" & ADDRESS(178,A45+4)),"N/A") -> 0 | P45: =COUNTIF(INDIRECT("'Success Criteria'!" & ADDRESS(124,A45+4)):INDIRECT("'Success Criteria'!" & ADDRESS(178,A45+4)),"not tested") -> 28 | Q45: 2 | R45: 0 | S45: 0 | T45: 28 | V45: 0 | X45: 2 | Z45: 28 | AA45: 1
A46: 32 | B46: Page 32 | C46: URL 32 | D46: Please select | E46: =SUM(COUNTIF(INDIRECT("'Success Criteria'!" & ADDRESS(10,A46+4)):INDIRECT("'Success Criteria'!" & ADDRESS(72,A46+4)),"PASS"),COUNTIF(INDIRECT("'Success Criteria'!" & ADDRESS(10,A46+4)):INDIRECT("'Success Criteria'!" & ADDRESS(72,A46+4)),"PASS with comments")) -> 0 | F46: =COUNTIF(INDIRECT("'Success Criteria'!" & ADDRESS(10,A46+4)):INDIRECT("'Success Criteria'!" & ADDRESS(72,A46+4)),"NON conformant") -> 0 | G46: =COUNTIF(INDIRECT("'Success Criteria'!" & ADDRESS(10,A46+4)):INDIRECT("'Success Criteria'!" & ADDRESS(72,A46+4)),"N/A") -> 0 | H46: =COUNTIF(INDIRECT("'Success Criteria'!" & ADDRESS(10,A46+4)):INDIRECT("'Success Criteria'!" & ADDRESS(72,A46+4)),"not tested") -> 0 | I46: =SUM(COUNTIF(INDIRECT("'Success Criteria'!" & ADDRESS(76,A46+4)):INDIRECT("'Success Criteria'!" & ADDRESS(119,A46+4)),"PASS"),COUNTIF(INDIRECT("'Success Criteria'!" & ADDRESS(76,A46+4)):INDIRECT("'Success Criteria'!" & ADDRESS(119,A46+4)),"PASS with comments")) -> 2 | J46: =COUNTIF(INDIRECT("'Success Criteria'!" & ADDRESS(76,A46+4)):INDIRECT("'Success Criteria'!" & ADDRESS(119,A46+4)),"NON conformant") -> 0 | K46: =COUNTIF(INDIRECT("'Success Criteria'!" & ADDRESS(76,A46+4)):INDIRECT("'Success Criteria'!" & ADDRESS(119,A46+4)),"N/A") -> 0 | L46: =COUNTIF(INDIRECT("'Success Criteria'!" & ADDRESS(76,A46+4)):INDIRECT("'Success Criteria'!" & ADDRESS(119,A46+4)),"not tested") -> 0 | M46: =SUM(COUNTIF(INDIRECT("'Success Criteria'!" & ADDRESS(124,A46+4)):INDIRECT("'Success Criteria'!" & ADDRESS(178,A46+4)),"PASS"),COUNTIF(INDIRECT("'Success Criteria'!" & ADDRESS(124,A46+4)):INDIRECT("'Success Criteria'!" & ADDRESS(178,A46+4)),"PASS with comments")) -> 0 | N46: =COUNTIF(INDIRECT("'Success Criteria'!" & ADDRESS(124,A46+4)):INDIRECT("'Success Criteria'!" & ADDRESS(178,A46+4)),"NON conformant") -> 0 | O46: =COUNTIF(INDIRECT("'Success Criteria'!" & ADDRESS(124,A46+4)):INDIRECT("'Success Criteria'!" & ADDRESS(178,A46+4)),"N/A") -> 0 | P46: =COUNTIF(INDIRECT("'Success Criteria'!" & ADDRESS(124,A46+4)):INDIRECT("'Success Criteria'!" & ADDRESS(178,A46+4)),"not tested") -> 28 | Q46: 2 | R46: 0 | S46: 0 | T46: 28 | V46: 0 | X46: 2 | Z46: 28 | AA46: 1
A47: 33 | B47: Page 33 | C47: URL 33 | D47: Please select | E47: =SUM(COUNTIF(INDIRECT("'Success Criteria'!" & ADDRESS(10,A47+4)):INDIRECT("'Success Criteria'!" & ADDRESS(72,A47+4)),"PASS"),COUNTIF(INDIRECT("'Success Criteria'!" & ADDRESS(10,A47+4)):INDIRECT("'Success Criteria'!" & ADDRESS(72,A47+4)),"PASS with comments")) -> 0 | F47: =COUNTIF(INDIRECT("'Success Criteria'!" & ADDRESS(10,A47+4)):INDIRECT("'Success Criteria'!" & ADDRESS(72,A47+4)),"NON conformant") -> 0 | G47: =COUNTIF(INDIRECT("'Success Criteria'!" & ADDRESS(10,A47+4)):INDIRECT("'Success Criteria'!" & ADDRESS(72,A47+4)),"N/A") -> 0 | H47: =COUNTIF(INDIRECT("'Success Criteria'!" & ADDRESS(10,A47+4)):INDIRECT("'Success Criteria'!" & ADDRESS(72,A47+4)),"not tested") -> 0 | I47: =SUM(COUNTIF(INDIRECT("'Success Criteria'!" & ADDRESS(76,A47+4)):INDIRECT("'Success Criteria'!" & ADDRESS(119,A47+4)),"PASS"),COUNTIF(INDIRECT("'Success Criteria'!" & ADDRESS(76,A47+4)):INDIRECT("'Success Criteria'!" & ADDRESS(119,A47+4)),"PASS with comments")) -> 2 | J47: =COUNTIF(INDIRECT("'Success Criteria'!" & ADDRESS(76,A47+4)):INDIRECT("'Success Criteria'!" & ADDRESS(119,A47+4)),"NON conformant") -> 0 | K47: =COUNTIF(INDIRECT("'Success Criteria'!" & ADDRESS(76,A47+4)):INDIRECT("'Success Criteria'!" & ADDRESS(119,A47+4)),"N/A") -> 0 | L47: =COUNTIF(INDIRECT("'Success Criteria'!" & ADDRESS(76,A47+4)):INDIRECT("'Success Criteria'!" & ADDRESS(119,A47+4)),"not tested") -> 0 | M47: =SUM(COUNTIF(INDIRECT("'Success Criteria'!" & ADDRESS(124,A47+4)):INDIRECT("'Success Criteria'!" & ADDRESS(178,A47+4)),"PASS"),COUNTIF(INDIRECT("'Success Criteria'!" & ADDRESS(124,A47+4)):INDIRECT("'Success Criteria'!" & ADDRESS(178,A47+4)),"PASS with comments")) -> 0 | N47: =COUNTIF(INDIRECT("'Success Criteria'!" & ADDRESS(124,A47+4)):INDIRECT("'Success Criteria'!" & ADDRESS(178,A47+4)),"NON conformant") -> 0 | O47: =COUNTIF(INDIRECT("'Success Criteria'!" & ADDRESS(124,A47+4)):INDIRECT("'Success Criteria'!" & ADDRESS(178,A47+4)),"N/A") -> 0 | P47: =COUNTIF(INDIRECT("'Success Criteria'!" & ADDRESS(124,A47+4)):INDIRECT("'Success Criteria'!" & ADDRESS(178,A47+4)),"not tested") -> 28 | Q47: 2 | R47: 0 | S47: 0 | T47: 28 | V47: =SUM(E47:H47) -> 0 | W47: =IF(V47=30,1,"") ->  | X47: 2 | Z47: 28 | AA47: 1
A48: 34 | B48: Page 34 | C48: URL 34 | D48: Please select | E48: =SUM(COUNTIF(INDIRECT("'Success Criteria'!" & ADDRESS(10,A48+4)):INDIRECT("'Success Criteria'!" & ADDRESS(72,A48+4)),"PASS"),COUNTIF(INDIRECT("'Success Criteria'!" & ADDRESS(10,A48+4)):INDIRECT("'Success Criteria'!" & ADDRESS(72,A48+4)),"PASS with comments")) -> 0 | F48: =COUNTIF(INDIRECT("'Success Criteria'!" & ADDRESS(10,A48+4)):INDIRECT("'Success Criteria'!" & ADDRESS(72,A48+4)),"NON conformant") -> 0 | G48: =COUNTIF(INDIRECT("'Success Criteria'!" & ADDRESS(10,A48+4)):INDIRECT("'Success Criteria'!" & ADDRESS(72,A48+4)),"N/A") -> 0 | H48: =COUNTIF(INDIRECT("'Success Criteria'!" & ADDRESS(10,A48+4)):INDIRECT("'Success Criteria'!" & ADDRESS(72,A48+4)),"not tested") -> 0 | I48: =SUM(COUNTIF(INDIRECT("'Success Criteria'!" & ADDRESS(76,A48+4)):INDIRECT("'Success Criteria'!" & ADDRESS(119,A48+4)),"PASS"),COUNTIF(INDIRECT("'Success Criteria'!" & ADDRESS(76,A48+4)):INDIRECT("'Success Criteria'!" & ADDRESS(119,A48+4)),"PASS with comments")) -> 2 | J48: =COUNTIF(INDIRECT("'Success Criteria'!" & ADDRESS(76,A48+4)):INDIRECT("'Success Criteria'!" & ADDRESS(119,A48+4)),"NON conformant") -> 0 | K48: =COUNTIF(INDIRECT("'Success Criteria'!" & ADDRESS(76,A48+4)):INDIRECT("'Success Criteria'!" & ADDRESS(119,A48+4)),"N/A") -> 0 | L48: =COUNTIF(INDIRECT("'Success Criteria'!" & ADDRESS(76,A48+4)):INDIRECT("'Success Criteria'!" & ADDRESS(119,A48+4)),"not tested") -> 0 | M48: =SUM(COUNTIF(INDIRECT("'Success Criteria'!" & ADDRESS(124,A48+4)):INDIRECT("'Success Criteria'!" & ADDRESS(178,A48+4)),"PASS"),COUNTIF(INDIRECT("'Success Criteria'!" & ADDRESS(124,A48+4)):INDIRECT("'Success Criteria'!" & ADDRESS(178,A48+4)),"PASS with comments")) -> 0 | N48: =COUNTIF(INDIRECT("'Success Criteria'!" & ADDRESS(124,A48+4)):INDIRECT("'Success Criteria'!" & ADDRESS(178,A48+4)),"NON conformant") -> 0 | O48: =COUNTIF(INDIRECT("'Success Criteria'!" & ADDRESS(124,A48+4)):INDIRECT("'Success Criteria'!" & ADDRESS(178,A48+4)),"N/A") -> 0 | P48: =COUNTIF(INDIRECT("'Success Criteria'!" & ADDRESS(124,A48+4)):INDIRECT("'Success Criteria'!" & ADDRESS(178,A48+4)),"not tested") -> 28 | Q48: 2 | R48: 0 | S48: 0 | T48: 28 | V48: 0 | X48: 2 | Z48: 28 | AA48: 1
A49: 35 | B49: Page 35 | C49: URL 35 | D49: Please select | E49: =SUM(COUNTIF(INDIRECT("'Success Criteria'!" & ADDRESS(10,A49+4)):INDIRECT("'Success Criteria'!" & ADDRESS(72,A49+4)),"PASS"),COUNTIF(INDIRECT("'Success Criteria'!" & ADDRESS(10,A49+4)):INDIRECT("'Success Criteria'!" & ADDRESS(72,A49+4)),"PASS with comments")) -> 0 | F49: =COUNTIF(INDIRECT("'Success Criteria'!" & ADDRESS(10,A49+4)):INDIRECT("'Success Criteria'!" & ADDRESS(72,A49+4)),"NON conformant") -> 0 | G49: =COUNTIF(INDIRECT("'Success Criteria'!" & ADDRESS(10,A49+4)):INDIRECT("'Success Criteria'!" & ADDRESS(72,A49+4)),"N/A") -> 0 | H49: =COUNTIF(INDIRECT("'Success Criteria'!" & ADDRESS(10,A49+4)):INDIRECT("'Success Criteria'!" & ADDRESS(72,A49+4)),"not tested") -> 0 | I49: =SUM(COUNTIF(INDIRECT("'Success Criteria'!" & ADDRESS(76,A49+4)):INDIRECT("'Success Criteria'!" & ADDRESS(119,A49+4)),"PASS"),COUNTIF(INDIRECT("'Success Criteria'!" & ADDRESS(76,A49+4)):INDIRECT("'Success Criteria'!" & ADDRESS(119,A49+4)),"PASS with comments")) -> 2 | J49: =COUNTIF(INDIRECT("'Success Criteria'!" & ADDRESS(76,A49+4)):INDIRECT("'Success Criteria'!" & ADDRESS(119,A49+4)),"NON conformant") -> 0 | K49: =COUNTIF(INDIRECT("'Success Criteria'!" & ADDRESS(76,A49+4)):INDIRECT("'Success Criteria'!" & ADDRESS(119,A49+4)),"N/A") -> 0 | L49: =COUNTIF(INDIRECT("'Success Criteria'!" & ADDRESS(76,A49+4)):INDIRECT("'Success Criteria'!" & ADDRESS(119,A49+4)),"not tested") -> 0 | M49: =SUM(COUNTIF(INDIRECT("'Success Criteria'!" & ADDRESS(124,A49+4)):INDIRECT("'Success Criteria'!" & ADDRESS(178,A49+4)),"PASS"),COUNTIF(INDIRECT("'Success Criteria'!" & ADDRESS(124,A49+4)):INDIRECT("'Success Criteria'!" & ADDRESS(178,A49+4)),"PASS with comments")) -> 0 | N49: =COUNTIF(INDIRECT("'Success Criteria'!" & ADDRESS(124,A49+4)):INDIRECT("'Success Criteria'!" & ADDRESS(178,A49+4)),"NON conformant") -> 0 | O49: =COUNTIF(INDIRECT("'Success Criteria'!" & ADDRESS(124,A49+4)):INDIRECT("'Success Criteria'!" & ADDRESS(178,A49+4)),"N/A") -> 0 | P49: =COUNTIF(INDIRECT("'Success Criteria'!" & ADDRESS(124,A49+4)):INDIRECT("'Success Criteria'!" & ADDRESS(178,A49+4)),"not tested") -> 28 | Q49: 2 | R49: 0 | S49: 0 | T49: 28 | V49: 0 | X49: 2 | Z49: 28 | AA49: 1
A50: 36 | B50: Page 36 | C50: URL 36 | D50: Please select | E50: =SUM(COUNTIF(INDIRECT("'Success Criteria'!" & ADDRESS(10,A50+4)):INDIRECT("'Success Criteria'!" & ADDRESS(72,A50+4)),"PASS"),COUNTIF(INDIRECT("'Success Criteria'!" & ADDRESS(10,A50+4)):INDIRECT("'Success Criteria'!" & ADDRESS(72,A50+4)),"PASS with comments")) -> 0 | F50: =COUNTIF(INDIRECT("'Success Criteria'!" & ADDRESS(10,A50+4)):INDIRECT("'Success Criteria'!" & ADDRESS(72,A50+4)),"NON conformant") -> 0 | G50: =COUNTIF(INDIRECT("'Success Criteria'!" & ADDRESS(10,A50+4)):INDIRECT("'Success Criteria'!" & ADDRESS(72,A50+4)),"N/A") -> 0 | H50: =COUNTIF(INDIRECT("'Success Criteria'!" & ADDRESS(10,A50+4)):INDIRECT("'Success Criteria'!" & ADDRESS(72,A50+4)),"not tested") -> 0 | I50: =SUM(COUNTIF(INDIRECT("'Success Criteria'!" & ADDRESS(76,A50+4)):INDIRECT("'Success Criteria'!" & ADDRESS(119,A50+4)),"PASS"),COUNTIF(INDIRECT("'Success Criteria'!" & ADDRESS(76,A50+4)):INDIRECT("'Success Criteria'!" & ADDRESS(119,A50+4)),"PASS with comments")) -> 2 | J50: =COUNTIF(INDIRECT("'Success Criteria'!" & ADDRESS(76,A50+4)):INDIRECT("'Success Criteria'!" & ADDRESS(119,A50+4)),"NON conformant") -> 0 | K50: =COUNTIF(INDIRECT("'Success Criteria'!" & ADDRESS(76,A50+4)):INDIRECT("'Success Criteria'!" & ADDRESS(119,A50+4)),"N/A") -> 0 | L50: =COUNTIF(INDIRECT("'Success Criteria'!" & ADDRESS(76,A50+4)):INDIRECT("'Success Criteria'!" & ADDRESS(119,A50+4)),"not tested") -> 0 | M50: =SUM(COUNTIF(INDIRECT("'Success Criteria'!" & ADDRESS(124,A50+4)):INDIRECT("'Success Criteria'!" & ADDRESS(178,A50+4)),"PASS"),COUNTIF(INDIRECT("'Success Criteria'!" & ADDRESS(124,A50+4)):INDIRECT("'Success Criteria'!" & ADDRESS(178,A50+4)),"PASS with comments")) -> 0 | N50: =COUNTIF(INDIRECT("'Success Criteria'!" & ADDRESS(124,A50+4)):INDIRECT("'Success Criteria'!" & ADDRESS(178,A50+4)),"NON conformant") -> 0 | O50: =COUNTIF(INDIRECT("'Success Criteria'!" & ADDRESS(124,A50+4)):INDIRECT("'Success Criteria'!" & ADDRESS(178,A50+4)),"N/A") -> 0 | P50: =COUNTIF(INDIRECT("'Success Criteria'!" & ADDRESS(124,A50+4)):INDIRECT("'Success Criteria'!" & ADDRESS(178,A50+4)),"not tested") -> 28 | Q50: 2 | R50: 0 | S50: 0 | T50: 28 | V50: 0 | X50: 2 | Z50: 28 | AA50: 1
A51: 37 | B51: Page 37 | C51: URL 37 | D51: Please select | E51: =SUM(COUNTIF(INDIRECT("'Success Criteria'!" & ADDRESS(10,A51+4)):INDIRECT("'Success Criteria'!" & ADDRESS(72,A51+4)),"PASS"),COUNTIF(INDIRECT("'Success Criteria'!" & ADDRESS(10,A51+4)):INDIRECT("'Success Criteria'!" & ADDRESS(72,A51+4)),"PASS with comments")) -> 0 | F51: =COUNTIF(INDIRECT("'Success Criteria'!" & ADDRESS(10,A51+4)):INDIRECT("'Success Criteria'!" & ADDRESS(72,A51+4)),"NON conformant") -> 0 | G51: =COUNTIF(INDIRECT("'Success Criteria'!" & ADDRESS(10,A51+4)):INDIRECT("'Success Criteria'!" & ADDRESS(72,A51+4)),"N/A") -> 0 | H51: =COUNTIF(INDIRECT("'Success Criteria'!" & ADDRESS(10,A51+4)):INDIRECT("'Success Criteria'!" & ADDRESS(72,A51+4)),"not tested") -> 0 | I51: =SUM(COUNTIF(INDIRECT("'Success Criteria'!" & ADDRESS(76,A51+4)):INDIRECT("'Success Criteria'!" & ADDRESS(119,A51+4)),"PASS"),COUNTIF(INDIRECT("'Success Criteria'!" & ADDRESS(76,A51+4)):INDIRECT("'Success Criteria'!" & ADDRESS(119,A51+4)),"PASS with comments")) -> 2 | J51: =COUNTIF(INDIRECT("'Success Criteria'!" & ADDRESS(76,A51+4)):INDIRECT("'Success Criteria'!" & ADDRESS(119,A51+4)),"NON conformant") -> 0 | K51: =COUNTIF(INDIRECT("'Success Criteria'!" & ADDRESS(76,A51+4)):INDIRECT("'Success Criteria'!" & ADDRESS(119,A51+4)),"N/A") -> 0 | L51: =COUNTIF(INDIRECT("'Success Criteria'!" & ADDRESS(76,A51+4)):INDIRECT("'Success Criteria'!" & ADDRESS(119,A51+4)),"not tested") -> 0 | M51: =SUM(COUNTIF(INDIRECT("'Success Criteria'!" & ADDRESS(124,A51+4)):INDIRECT("'Success Criteria'!" & ADDRESS(178,A51+4)),"PASS"),COUNTIF(INDIRECT("'Success Criteria'!" & ADDRESS(124,A51+4)):INDIRECT("'Success Criteria'!" & ADDRESS(178,A51+4)),"PASS with comments")) -> 0 | N51: =COUNTIF(INDIRECT("'Success Criteria'!" & ADDRESS(124,A51+4)):INDIRECT("'Success Criteria'!" & ADDRESS(178,A51+4)),"NON conformant") -> 0 | O51: =COUNTIF(INDIRECT("'Success Criteria'!" & ADDRESS(124,A51+4)):INDIRECT("'Success Criteria'!" & ADDRESS(178,A51+4)),"N/A") -> 0 | P51: =COUNTIF(INDIRECT("'Success Criteria'!" & ADDRESS(124,A51+4)):INDIRECT("'Success Criteria'!" & ADDRESS(178,A51+4)),"not tested") -> 28 | Q51: 2 | R51: 0 | S51: 0 | T51: 28 | V51: 0 | X51: 2 | Z51: 28 | AA51: 1
A52: 38 | B52: Page 38 | C52: URL 38 | D52: Please select | E52: =SUM(COUNTIF(INDIRECT("'Success Criteria'!" & ADDRESS(10,A52+4)):INDIRECT("'Success Criteria'!" & ADDRESS(72,A52+4)),"PASS"),COUNTIF(INDIRECT("'Success Criteria'!" & ADDRESS(10,A52+4)):INDIRECT("'Success Criteria'!" & ADDRESS(72,A52+4)),"PASS with comments")) -> 0 | F52: =COUNTIF(INDIRECT("'Success Criteria'!" & ADDRESS(10,A52+4)):INDIRECT("'Success Criteria'!" & ADDRESS(72,A52+4)),"NON conformant") -> 0 | G52: =COUNTIF(INDIRECT("'Success Criteria'!" & ADDRESS(10,A52+4)):INDIRECT("'Success Criteria'!" & ADDRESS(72,A52+4)),"N/A") -> 0 | H52: =COUNTIF(INDIRECT("'Success Criteria'!" & ADDRESS(10,A52+4)):INDIRECT("'Success Criteria'!" & ADDRESS(72,A52+4)),"not tested") -> 0 | I52: =SUM(COUNTIF(INDIRECT("'Success Criteria'!" & ADDRESS(76,A52+4)):INDIRECT("'Success Criteria'!" & ADDRESS(119,A52+4)),"PASS"),COUNTIF(INDIRECT("'Success Criteria'!" & ADDRESS(76,A52+4)):INDIRECT("'Success Criteria'!" & ADDRESS(119,A52+4)),"PASS with comments")) -> 2 | J52: =COUNTIF(INDIRECT("'Success Criteria'!" & ADDRESS(76,A52+4)):INDIRECT("'Success Criteria'!" & ADDRESS(119,A52+4)),"NON conformant") -> 0 | K52: =COUNTIF(INDIRECT("'Success Criteria'!" & ADDRESS(76,A52+4)):INDIRECT("'Success Criteria'!" & ADDRESS(119,A52+4)),"N/A") -> 0 | L52: =COUNTIF(INDIRECT("'Success Criteria'!" & ADDRESS(76,A52+4)):INDIRECT("'Success Criteria'!" & ADDRESS(119,A52+4)),"not tested") -> 0 | M52: =SUM(COUNTIF(INDIRECT("'Success Criteria'!" & ADDRESS(124,A52+4)):INDIRECT("'Success Criteria'!" & ADDRESS(178,A52+4)),"PASS"),COUNTIF(INDIRECT("'Success Criteria'!" & ADDRESS(124,A52+4)):INDIRECT("'Success Criteria'!" & ADDRESS(178,A52+4)),"PASS with comments")) -> 0 | N52: =COUNTIF(INDIRECT("'Success Criteria'!" & ADDRESS(124,A52+4)):INDIRECT("'Success Criteria'!" & ADDRESS(178,A52+4)),"NON conformant") -> 0 | O52: =COUNTIF(INDIRECT("'Success Criteria'!" & ADDRESS(124,A52+4)):INDIRECT("'Success Criteria'!" & ADDRESS(178,A52+4)),"N/A") -> 0 | P52: =COUNTIF(INDIRECT("'Success Criteria'!" & ADDRESS(124,A52+4)):INDIRECT("'Success Criteria'!" & ADDRESS(178,A52+4)),"not tested") -> 28 | Q52: 2 | R52: 0 | S52: 0 | T52: 28 | V52: 0 | X52: 2 | Z52: 28 | AA52: 1
A53: 39 | B53: Page 39 | C53: URL 39 | D53: Please select | E53: =SUM(COUNTIF(INDIRECT("'Success Criteria'!" & ADDRESS(10,A53+4)):INDIRECT("'Success Criteria'!" & ADDRESS(72,A53+4)),"PASS"),COUNTIF(INDIRECT("'Success Criteria'!" & ADDRESS(10,A53+4)):INDIRECT("'Success Criteria'!" & ADDRESS(72,A53+4)),"PASS with comments")) -> 0 | F53: =COUNTIF(INDIRECT("'Success Criteria'!" & ADDRESS(10,A53+4)):INDIRECT("'Success Criteria'!" & ADDRESS(72,A53+4)),"NON conformant") -> 0 | G53: =COUNTIF(INDIRECT("'Success Criteria'!" & ADDRESS(10,A53+4)):INDIRECT("'Success Criteria'!" & ADDRESS(72,A53+4)),"N/A") -> 0 | H53: =COUNTIF(INDIRECT("'Success Criteria'!" & ADDRESS(10,A53+4)):INDIRECT("'Success Criteria'!" & ADDRESS(72,A53+4)),"not tested") -> 0 | I53: =SUM(COUNTIF(INDIRECT("'Success Criteria'!" & ADDRESS(76,A53+4)):INDIRECT("'Success Criteria'!" & ADDRESS(119,A53+4)),"PASS"),COUNTIF(INDIRECT("'Success Criteria'!" & ADDRESS(76,A53+4)):INDIRECT("'Success Criteria'!" & ADDRESS(119,A53+4)),"PASS with comments")) -> 2 | J53: =COUNTIF(INDIRECT("'Success Criteria'!" & ADDRESS(76,A53+4)):INDIRECT("'Success Criteria'!" & ADDRESS(119,A53+4)),"NON conformant") -> 0 | K53: =COUNTIF(INDIRECT("'Success Criteria'!" & ADDRESS(76,A53+4)):INDIRECT("'Success Criteria'!" & ADDRESS(119,A53+4)),"N/A") -> 0 | L53: =COUNTIF(INDIRECT("'Success Criteria'!" & ADDRESS(76,A53+4)):INDIRECT("'Success Criteria'!" & ADDRESS(119,A53+4)),"not tested") -> 0 | M53: =SUM(COUNTIF(INDIRECT("'Success Criteria'!" & ADDRESS(124,A53+4)):INDIRECT("'Success Criteria'!" & ADDRESS(178,A53+4)),"PASS"),COUNTIF(INDIRECT("'Success Criteria'!" & ADDRESS(124,A53+4)):INDIRECT("'Success Criteria'!" & ADDRESS(178,A53+4)),"PASS with comments")) -> 0 | N53: =COUNTIF(INDIRECT("'Success Criteria'!" & ADDRESS(124,A53+4)):INDIRECT("'Success Criteria'!" & ADDRESS(178,A53+4)),"NON conformant") -> 0 | O53: =COUNTIF(INDIRECT("'Success Criteria'!" & ADDRESS(124,A53+4)):INDIRECT("'Success Criteria'!" & ADDRESS(178,A53+4)),"N/A") -> 0 | P53: =COUNTIF(INDIRECT("'Success Criteria'!" & ADDRESS(124,A53+4)):INDIRECT("'Success Criteria'!" & ADDRESS(178,A53+4)),"not tested") -> 28 | Q53: 2 | R53: 0 | S53: 0 | T53: 28 | V53: 0 | X53: 2 | Z53: 28 | AA53: 1
A54: 40 | B54: Page 40 | C54: URL 40 | D54: Please select | E54: =SUM(COUNTIF(INDIRECT("'Success Criteria'!" & ADDRESS(10,A54+4)):INDIRECT("'Success Criteria'!" & ADDRESS(72,A54+4)),"PASS"),COUNTIF(INDIRECT("'Success Criteria'!" & ADDRESS(10,A54+4)):INDIRECT("'Success Criteria'!" & ADDRESS(72,A54+4)),"PASS with comments")) -> 0 | F54: =COUNTIF(INDIRECT("'Success Criteria'!" & ADDRESS(10,A54+4)):INDIRECT("'Success Criteria'!" & ADDRESS(72,A54+4)),"NON conformant") -> 0 | G54: =COUNTIF(INDIRECT("'Success Criteria'!" & ADDRESS(10,A54+4)):INDIRECT("'Success Criteria'!" & ADDRESS(72,A54+4)),"N/A") -> 0 | H54: =COUNTIF(INDIRECT("'Success Criteria'!" & ADDRESS(10,A54+4)):INDIRECT("'Success Criteria'!" & ADDRESS(72,A54+4)),"not tested") -> 0 | I54: =SUM(COUNTIF(INDIRECT("'Success Criteria'!" & ADDRESS(76,A54+4)):INDIRECT("'Success Criteria'!" & ADDRESS(119,A54+4)),"PASS"),COUNTIF(INDIRECT("'Success Criteria'!" & ADDRESS(76,A54+4)):INDIRECT("'Success Criteria'!" & ADDRESS(119,A54+4)),"PASS with comments")) -> 2 | J54: =COUNTIF(INDIRECT("'Success Criteria'!" & ADDRESS(76,A54+4)):INDIRECT("'Success Criteria'!" & ADDRESS(119,A54+4)),"NON conformant") -> 0 | K54: =COUNTIF(INDIRECT("'Success Criteria'!" & ADDRESS(76,A54+4)):INDIRECT("'Success Criteria'!" & ADDRESS(119,A54+4)),"N/A") -> 0 | L54: =COUNTIF(INDIRECT("'Success Criteria'!" & ADDRESS(76,A54+4)):INDIRECT("'Success Criteria'!" & ADDRESS(119,A54+4)),"not tested") -> 0 | M54: =SUM(COUNTIF(INDIRECT("'Success Criteria'!" & ADDRESS(124,A54+4)):INDIRECT("'Success Criteria'!" & ADDRESS(178,A54+4)),"PASS"),COUNTIF(INDIRECT("'Success Criteria'!" & ADDRESS(124,A54+4)):INDIRECT("'Success Criteria'!" & ADDRESS(178,A54+4)),"PASS with comments")) -> 0 | N54: =COUNTIF(INDIRECT("'Success Criteria'!" & ADDRESS(124,A54+4)):INDIRECT("'Success Criteria'!" & ADDRESS(178,A54+4)),"NON conformant") -> 0 | O54: =COUNTIF(INDIRECT("'Success Criteria'!" & ADDRESS(124,A54+4)):INDIRECT("'Success Criteria'!" & ADDRESS(178,A54+4)),"N/A") -> 0 | P54: =COUNTIF(INDIRECT("'Success Criteria'!" & ADDRESS(124,A54+4)):INDIRECT("'Success Criteria'!" & ADDRESS(178,A54+4)),"not tested") -> 28 | Q54: 2 | R54: 0 | S54: 0 | T54: 28 | V54: 0 | X54: 2 | Z54: 28 | AA54: 1
A55: 41 | B55: Page 41 | C55: URL 41 | D55: Please select | E55: =SUM(COUNTIF(INDIRECT("'Success Criteria'!" & ADDRESS(10,A55+4)):INDIRECT("'Success Criteria'!" & ADDRESS(72,A55+4)),"PASS"),COUNTIF(INDIRECT("'Success Criteria'!" & ADDRESS(10,A55+4)):INDIRECT("'Success Criteria'!" & ADDRESS(72,A55+4)),"PASS with comments")) -> 0 | F55: =COUNTIF(INDIRECT("'Success Criteria'!" & ADDRESS(10,A55+4)):INDIRECT("'Success Criteria'!" & ADDRESS(72,A55+4)),"NON conformant") -> 0 | G55: =COUNTIF(INDIRECT("'Success Criteria'!" & ADDRESS(10,A55+4)):INDIRECT("'Success Criteria'!" & ADDRESS(72,A55+4)),"N/A") -> 0 | H55: =COUNTIF(INDIRECT("'Success Criteria'!" & ADDRESS(10,A55+4)):INDIRECT("'Success Criteria'!" & ADDRESS(72,A55+4)),"not tested") -> 0 | I55: =SUM(COUNTIF(INDIRECT("'Success Criteria'!" & ADDRESS(76,A55+4)):INDIRECT("'Success Criteria'!" & ADDRESS(119,A55+4)),"PASS"),COUNTIF(INDIRECT("'Success Criteria'!" & ADDRESS(76,A55+4)):INDIRECT("'Success Criteria'!" & ADDRESS(119,A55+4)),"PASS with comments")) -> 2 | J55: =COUNTIF(INDIRECT("'Success Criteria'!" & ADDRESS(76,A55+4)):INDIRECT("'Success Criteria'!" & ADDRESS(119,A55+4)),"NON conformant") -> 0 | K55: =COUNTIF(INDIRECT("'Success Criteria'!" & ADDRESS(76,A55+4)):INDIRECT("'Success Criteria'!" & ADDRESS(119,A55+4)),"N/A") -> 0 | L55: =COUNTIF(INDIRECT("'Success Criteria'!" & ADDRESS(76,A55+4)):INDIRECT("'Success Criteria'!" & ADDRESS(119,A55+4)),"not tested") -> 0 | M55: =SUM(COUNTIF(INDIRECT("'Success Criteria'!" & ADDRESS(124,A55+4)):INDIRECT("'Success Criteria'!" & ADDRESS(178,A55+4)),"PASS"),COUNTIF(INDIRECT("'Success Criteria'!" & ADDRESS(124,A55+4)):INDIRECT("'Success Criteria'!" & ADDRESS(178,A55+4)),"PASS with comments")) -> 0 | N55: =COUNTIF(INDIRECT("'Success Criteria'!" & ADDRESS(124,A55+4)):INDIRECT("'Success Criteria'!" & ADDRESS(178,A55+4)),"NON conformant") -> 0 | O55: =COUNTIF(INDIRECT("'Success Criteria'!" & ADDRESS(124,A55+4)):INDIRECT("'Success Criteria'!" & ADDRESS(178,A55+4)),"N/A") -> 0 | P55: =COUNTIF(INDIRECT("'Success Criteria'!" & ADDRESS(124,A55+4)):INDIRECT("'Success Criteria'!" & ADDRESS(178,A55+4)),"not tested") -> 28 | Q55: 2 | R55: 0 | S55: 0 | T55: 28 | V55: 0 | X55: 2 | Z55: 28 | AA55: 1
A56: 42 | B56: Page 42 | C56: URL 42 | D56: Please select | E56: =SUM(COUNTIF(INDIRECT("'Success Criteria'!" & ADDRESS(10,A56+4)):INDIRECT("'Success Criteria'!" & ADDRESS(72,A56+4)),"PASS"),COUNTIF(INDIRECT("'Success Criteria'!" & ADDRESS(10,A56+4)):INDIRECT("'Success Criteria'!" & ADDRESS(72,A56+4)),"PASS with comments")) -> 0 | F56: =COUNTIF(INDIRECT("'Success Criteria'!" & ADDRESS(10,A56+4)):INDIRECT("'Success Criteria'!" & ADDRESS(72,A56+4)),"NON conformant") -> 0 | G56: =COUNTIF(INDIRECT("'Success Criteria'!" & ADDRESS(10,A56+4)):INDIRECT("'Success Criteria'!" & ADDRESS(72,A56+4)),"N/A") -> 0 | H56: =COUNTIF(INDIRECT("'Success Criteria'!" & ADDRESS(10,A56+4)):INDIRECT("'Success Criteria'!" & ADDRESS(72,A56+4)),"not tested") -> 0 | I56: =SUM(COUNTIF(INDIRECT("'Success Criteria'!" & ADDRESS(76,A56+4)):INDIRECT("'Success Criteria'!" & ADDRESS(119,A56+4)),"PASS"),COUNTIF(INDIRECT("'Success Criteria'!" & ADDRESS(76,A56+4)):INDIRECT("'Success Criteria'!" & ADDRESS(119,A56+4)),"PASS with comments")) -> 2 | J56: =COUNTIF(INDIRECT("'Success Criteria'!" & ADDRESS(76,A56+4)):INDIRECT("'Success Criteria'!" & ADDRESS(119,A56+4)),"NON conformant") -> 0 | K56: =COUNTIF(INDIRECT("'Success Criteria'!" & ADDRESS(76,A56+4)):INDIRECT("'Success Criteria'!" & ADDRESS(119,A56+4)),"N/A") -> 0 | L56: =COUNTIF(INDIRECT("'Success Criteria'!" & ADDRESS(76,A56+4)):INDIRECT("'Success Criteria'!" & ADDRESS(119,A56+4)),"not tested") -> 0 | M56: =SUM(COUNTIF(INDIRECT("'Success Criteria'!" & ADDRESS(124,A56+4)):INDIRECT("'Success Criteria'!" & ADDRESS(178,A56+4)),"PASS"),COUNTIF(INDIRECT("'Success Criteria'!" & ADDRESS(124,A56+4)):INDIRECT("'Success Criteria'!" & ADDRESS(178,A56+4)),"PASS with comments")) -> 0 | N56: =COUNTIF(INDIRECT("'Success Criteria'!" & ADDRESS(124,A56+4)):INDIRECT("'Success Criteria'!" & ADDRESS(178,A56+4)),"NON conformant") -> 0 | O56: =COUNTIF(INDIRECT("'Success Criteria'!" & ADDRESS(124,A56+4)):INDIRECT("'Success Criteria'!" & ADDRESS(178,A56+4)),"N/A") -> 0 | P56: =COUNTIF(INDIRECT("'Success Criteria'!" & ADDRESS(124,A56+4)):INDIRECT("'Success Criteria'!" & ADDRESS(178,A56+4)),"not tested") -> 28 | Q56: 2 | R56: 0 | S56: 0 | T56: 28 | V56: 0 | X56: 2 | Z56: 28 | AA56: 1
A57: 43 | B57: Page 43 | C57: URL 43 | D57: Please select | E57: =SUM(COUNTIF(INDIRECT("'Success Criteria'!" & ADDRESS(10,A57+4)):INDIRECT("'Success Criteria'!" & ADDRESS(72,A57+4)),"PASS"),COUNTIF(INDIRECT("'Success Criteria'!" & ADDRESS(10,A57+4)):INDIRECT("'Success Criteria'!" & ADDRESS(72,A57+4)),"PASS with comments")) -> 0 | F57: =COUNTIF(INDIRECT("'Success Criteria'!" & ADDRESS(10,A57+4)):INDIRECT("'Success Criteria'!" & ADDRESS(72,A57+4)),"NON conformant") -> 0 | G57: =COUNTIF(INDIRECT("'Success Criteria'!" & ADDRESS(10,A57+4)):INDIRECT("'Success Criteria'!" & ADDRESS(72,A57+4)),"N/A") -> 0 | H57: =COUNTIF(INDIRECT("'Success Criteria'!" & ADDRESS(10,A57+4)):INDIRECT("'Success Criteria'!" & ADDRESS(72,A57+4)),"not tested") -> 0 | I57: =SUM(COUNTIF(INDIRECT("'Success Criteria'!" & ADDRESS(76,A57+4)):INDIRECT("'Success Criteria'!" & ADDRESS(119,A57+4)),"PASS"),COUNTIF(INDIRECT("'Success Criteria'!" & ADDRESS(76,A57+4)):INDIRECT("'Success Criteria'!" & ADDRESS(119,A57+4)),"PASS with comments")) -> 2 | J57: =COUNTIF(INDIRECT("'Success Criteria'!" & ADDRESS(76,A57+4)):INDIRECT("'Success Criteria'!" & ADDRESS(119,A57+4)),"NON conformant") -> 0 | K57: =COUNTIF(INDIRECT("'Success Criteria'!" & ADDRESS(76,A57+4)):INDIRECT("'Success Criteria'!" & ADDRESS(119,A57+4)),"N/A") -> 0 | L57: =COUNTIF(INDIRECT("'Success Criteria'!" & ADDRESS(76,A57+4)):INDIRECT("'Success Criteria'!" & ADDRESS(119,A57+4)),"not tested") -> 0 | M57: =SUM(COUNTIF(INDIRECT("'Success Criteria'!" & ADDRESS(124,A57+4)):INDIRECT("'Success Criteria'!" & ADDRESS(178,A57+4)),"PASS"),COUNTIF(INDIRECT("'Success Criteria'!" & ADDRESS(124,A57+4)):INDIRECT("'Success Criteria'!" & ADDRESS(178,A57+4)),"PASS with comments")) -> 0 | N57: =COUNTIF(INDIRECT("'Success Criteria'!" & ADDRESS(124,A57+4)):INDIRECT("'Success Criteria'!" & ADDRESS(178,A57+4)),"NON conformant") -> 0 | O57: =COUNTIF(INDIRECT("'Success Criteria'!" & ADDRESS(124,A57+4)):INDIRECT("'Success Criteria'!" & ADDRESS(178,A57+4)),"N/A") -> 0 | P57: =COUNTIF(INDIRECT("'Success Criteria'!" & ADDRESS(124,A57+4)):INDIRECT("'Success Criteria'!" & ADDRESS(178,A57+4)),"not tested") -> 28 | Q57: 2 | R57: 0 | S57: 0 | T57: 28 | V57: 0 | X57: 2 | Z57: 28 | AA57: 1
A58: 44 | B58: Page 44 | C58: URL 44 | D58: Please select | E58: =SUM(COUNTIF(INDIRECT("'Success Criteria'!" & ADDRESS(10,A58+4)):INDIRECT("'Success Criteria'!" & ADDRESS(72,A58+4)),"PASS"),COUNTIF(INDIRECT("'Success Criteria'!" & ADDRESS(10,A58+4)):INDIRECT("'Success Criteria'!" & ADDRESS(72,A58+4)),"PASS with comments")) -> 0 | F58: =COUNTIF(INDIRECT("'Success Criteria'!" & ADDRESS(10,A58+4)):INDIRECT("'Success Criteria'!" & ADDRESS(72,A58+4)),"NON conformant") -> 0 | G58: =COUNTIF(INDIRECT("'Success Criteria'!" & ADDRESS(10,A58+4)):INDIRECT("'Success Criteria'!" & ADDRESS(72,A58+4)),"N/A") -> 0 | H58: =COUNTIF(INDIRECT("'Success Criteria'!" & ADDRESS(10,A58+4)):INDIRECT("'Success Criteria'!" & ADDRESS(72,A58+4)),"not tested") -> 0 | I58: =SUM(COUNTIF(INDIRECT("'Success Criteria'!" & ADDRESS(76,A58+4)):INDIRECT("'Success Criteria'!" & ADDRESS(119,A58+4)),"PASS"),COUNTIF(INDIRECT("'Success Criteria'!" & ADDRESS(76,A58+4)):INDIRECT("'Success Criteria'!" & ADDRESS(119,A58+4)),"PASS with comments")) -> 2 | J58: =COUNTIF(INDIRECT("'Success Criteria'!" & ADDRESS(76,A58+4)):INDIRECT("'Success Criteria'!" & ADDRESS(119,A58+4)),"NON conformant") -> 0 | K58: =COUNTIF(INDIRECT("'Success Criteria'!" & ADDRESS(76,A58+4)):INDIRECT("'Success Criteria'!" & ADDRESS(119,A58+4)),"N/A") -> 0 | L58: =COUNTIF(INDIRECT("'Success Criteria'!" & ADDRESS(76,A58+4)):INDIRECT("'Success Criteria'!" & ADDRESS(119,A58+4)),"not tested") -> 0 | M58: =SUM(COUNTIF(INDIRECT("'Success Criteria'!" & ADDRESS(124,A58+4)):INDIRECT("'Success Criteria'!" & ADDRESS(178,A58+4)),"PASS"),COUNTIF(INDIRECT("'Success Criteria'!" & ADDRESS(124,A58+4)):INDIRECT("'Success Criteria'!" & ADDRESS(178,A58+4)),"PASS with comments")) -> 0 | N58: =COUNTIF(INDIRECT("'Success Criteria'!" & ADDRESS(124,A58+4)):INDIRECT("'Success Criteria'!" & ADDRESS(178,A58+4)),"NON conformant") -> 0 | O58: =COUNTIF(INDIRECT("'Success Criteria'!" & ADDRESS(124,A58+4)):INDIRECT("'Success Criteria'!" & ADDRESS(178,A58+4)),"N/A") -> 0 | P58: =COUNTIF(INDIRECT("'Success Criteria'!" & ADDRESS(124,A58+4)):INDIRECT("'Success Criteria'!" & ADDRESS(178,A58+4)),"not tested") -> 28 | Q58: 2 | R58: 0 | S58: 0 | T58: 28 | V58: 0 | X58: 2 | Z58: 28 | AA58: 1
A59: 45 | B59: Page 45 | C59: URL 45 | D59: Please select | E59: =SUM(COUNTIF(INDIRECT("'Success Criteria'!" & ADDRESS(10,A59+4)):INDIRECT("'Success Criteria'!" & ADDRESS(72,A59+4)),"PASS"),COUNTIF(INDIRECT("'Success Criteria'!" & ADDRESS(10,A59+4)):INDIRECT("'Success Criteria'!" & ADDRESS(72,A59+4)),"PASS with comments")) -> 0 | F59: =COUNTIF(INDIRECT("'Success Criteria'!" & ADDRESS(10,A59+4)):INDIRECT("'Success Criteria'!" & ADDRESS(72,A59+4)),"NON conformant") -> 0 | G59: =COUNTIF(INDIRECT("'Success Criteria'!" & ADDRESS(10,A59+4)):INDIRECT("'Success Criteria'!" & ADDRESS(72,A59+4)),"N/A") -> 0 | H59: =COUNTIF(INDIRECT("'Success Criteria'!" & ADDRESS(10,A59+4)):INDIRECT("'Success Criteria'!" & ADDRESS(72,A59+4)),"not tested") -> 0 | I59: =SUM(COUNTIF(INDIRECT("'Success Criteria'!" & ADDRESS(76,A59+4)):INDIRECT("'Success Criteria'!" & ADDRESS(119,A59+4)),"PASS"),COUNTIF(INDIRECT("'Success Criteria'!" & ADDRESS(76,A59+4)):INDIRECT("'Success Criteria'!" & ADDRESS(119,A59+4)),"PASS with comments")) -> 2 | J59: =COUNTIF(INDIRECT("'Success Criteria'!" & ADDRESS(76,A59+4)):INDIRECT("'Success Criteria'!" & ADDRESS(119,A59+4)),"NON conformant") -> 0 | K59: =COUNTIF(INDIRECT("'Success Criteria'!" & ADDRESS(76,A59+4)):INDIRECT("'Success Criteria'!" & ADDRESS(119,A59+4)),"N/A") -> 0 | L59: =COUNTIF(INDIRECT("'Success Criteria'!" & ADDRESS(76,A59+4)):INDIRECT("'Success Criteria'!" & ADDRESS(119,A59+4)),"not tested") -> 0 | M59: =SUM(COUNTIF(INDIRECT("'Success Criteria'!" & ADDRESS(124,A59+4)):INDIRECT("'Success Criteria'!" & ADDRESS(178,A59+4)),"PASS"),COUNTIF(INDIRECT("'Success Criteria'!" & ADDRESS(124,A59+4)):INDIRECT("'Success Criteria'!" & ADDRESS(178,A59+4)),"PASS with comments")) -> 0 | N59: =COUNTIF(INDIRECT("'Success Criteria'!" & ADDRESS(124,A59+4)):INDIRECT("'Success Criteria'!" & ADDRESS(178,A59+4)),"NON conformant") -> 0 | O59: =COUNTIF(INDIRECT("'Success Criteria'!" & ADDRESS(124,A59+4)):INDIRECT("'Success Criteria'!" & ADDRESS(178,A59+4)),"N/A") -> 0 | P59: =COUNTIF(INDIRECT("'Success Criteria'!" & ADDRESS(124,A59+4)):INDIRECT("'Success Criteria'!" & ADDRESS(178,A59+4)),"not tested") -> 28 | Q59: 2 | R59: 0 | S59: 0 | T59: 28 | V59: 0 | X59: 2 | Z59: 28 | AA59: 1
A60: 46 | B60: Page 46 | C60: URL 46 | D60: Please select | E60: =SUM(COUNTIF(INDIRECT("'Success Criteria'!" & ADDRESS(10,A60+4)):INDIRECT("'Success Criteria'!" & ADDRESS(72,A60+4)),"PASS"),COUNTIF(INDIRECT("'Success Criteria'!" & ADDRESS(10,A60+4)):INDIRECT("'Success Criteria'!" & ADDRESS(72,A60+4)),"PASS with comments")) -> 0 | F60: =COUNTIF(INDIRECT("'Success Criteria'!" & ADDRESS(10,A60+4)):INDIRECT("'Success Criteria'!" & ADDRESS(72,A60+4)),"NON conformant") -> 0 | G60: =COUNTIF(INDIRECT("'Success Criteria'!" & ADDRESS(10,A60+4)):INDIRECT("'Success Criteria'!" & ADDRESS(72,A60+4)),"N/A") -> 0 | H60: =COUNTIF(INDIRECT("'Success Criteria'!" & ADDRESS(10,A60+4)):INDIRECT("'Success Criteria'!" & ADDRESS(72,A60+4)),"not tested") -> 0 | I60: =SUM(COUNTIF(INDIRECT("'Success Criteria'!" & ADDRESS(76,A60+4)):INDIRECT("'Success Criteria'!" & ADDRESS(119,A60+4)),"PASS"),COUNTIF(INDIRECT("'Success Criteria'!" & ADDRESS(76,A60+4)):INDIRECT("'Success Criteria'!" & ADDRESS(119,A60+4)),"PASS with comments")) -> 2 | J60: =COUNTIF(INDIRECT("'Success Criteria'!" & ADDRESS(76,A60+4)):INDIRECT("'Success Criteria'!" & ADDRESS(119,A60+4)),"NON conformant") -> 0 | K60: =COUNTIF(INDIRECT("'Success Criteria'!" & ADDRESS(76,A60+4)):INDIRECT("'Success Criteria'!" & ADDRESS(119,A60+4)),"N/A") -> 0 | L60: =COUNTIF(INDIRECT("'Success Criteria'!" & ADDRESS(76,A60+4)):INDIRECT("'Success Criteria'!" & ADDRESS(119,A60+4)),"not tested") -> 0 | M60: =SUM(COUNTIF(INDIRECT("'Success Criteria'!" & ADDRESS(124,A60+4)):INDIRECT("'Success Criteria'!" & ADDRESS(178,A60+4)),"PASS"),COUNTIF(INDIRECT("'Success Criteria'!" & ADDRESS(124,A60+4)):INDIRECT("'Success Criteria'!" & ADDRESS(178,A60+4)),"PASS with comments")) -> 0 | N60: =COUNTIF(INDIRECT("'Success Criteria'!" & ADDRESS(124,A60+4)):INDIRECT("'Success Criteria'!" & ADDRESS(178,A60+4)),"NON conformant") -> 0 | O60: =COUNTIF(INDIRECT("'Success Criteria'!" & ADDRESS(124,A60+4)):INDIRECT("'Success Criteria'!" & ADDRESS(178,A60+4)),"N/A") -> 0 | P60: =COUNTIF(INDIRECT("'Success Criteria'!" & ADDRESS(124,A60+4)):INDIRECT("'Success Criteria'!" & ADDRESS(178,A60+4)),"not tested") -> 28 | Q60: 2 | R60: 0 | S60: 0 | T60: 28 | V60: 0 | X60: 2 | Z60: 28 | AA60: 1
A61: 47 | B61: Page 47 | C61: URL 47 | D61: Please select | E61: =SUM(COUNTIF(INDIRECT("'Success Criteria'!" & ADDRESS(10,A61+4)):INDIRECT("'Success Criteria'!" & ADDRESS(72,A61+4)),"PASS"),COUNTIF(INDIRECT("'Success Criteria'!" & ADDRESS(10,A61+4)):INDIRECT("'Success Criteria'!" & ADDRESS(72,A61+4)),"PASS with comments")) -> 0 | F61: =COUNTIF(INDIRECT("'Success Criteria'!" & ADDRESS(10,A61+4)):INDIRECT("'Success Criteria'!" & ADDRESS(72,A61+4)),"NON conformant") -> 0 | G61: =COUNTIF(INDIRECT("'Success Criteria'!" & ADDRESS(10,A61+4)):INDIRECT("'Success Criteria'!" & ADDRESS(72,A61+4)),"N/A") -> 0 | H61: =COUNTIF(INDIRECT("'Success Criteria'!" & ADDRESS(10,A61+4)):INDIRECT("'Success Criteria'!" & ADDRESS(72,A61+4)),"not tested") -> 0 | I61: =SUM(COUNTIF(INDIRECT("'Success Criteria'!" & ADDRESS(76,A61+4)):INDIRECT("'Success Criteria'!" & ADDRESS(119,A61+4)),"PASS"),COUNTIF(INDIRECT("'Success Criteria'!" & ADDRESS(76,A61+4)):INDIRECT("'Success Criteria'!" & ADDRESS(119,A61+4)),"PASS with comments")) -> 2 | J61: =COUNTIF(INDIRECT("'Success Criteria'!" & ADDRESS(76,A61+4)):INDIRECT("'Success Criteria'!" & ADDRESS(119,A61+4)),"NON conformant") -> 0 | K61: =COUNTIF(INDIRECT("'Success Criteria'!" & ADDRESS(76,A61+4)):INDIRECT("'Success Criteria'!" & ADDRESS(119,A61+4)),"N/A") -> 0 | L61: =COUNTIF(INDIRECT("'Success Criteria'!" & ADDRESS(76,A61+4)):INDIRECT("'Success Criteria'!" & ADDRESS(119,A61+4)),"not tested") -> 0 | M61: =SUM(COUNTIF(INDIRECT("'Success Criteria'!" & ADDRESS(124,A61+4)):INDIRECT("'Success Criteria'!" & ADDRESS(178,A61+4)),"PASS"),COUNTIF(INDIRECT("'Success Criteria'!" & ADDRESS(124,A61+4)):INDIRECT("'Success Criteria'!" & ADDRESS(178,A61+4)),"PASS with comments")) -> 0 | N61: =COUNTIF(INDIRECT("'Success Criteria'!" & ADDRESS(124,A61+4)):INDIRECT("'Success Criteria'!" & ADDRESS(178,A61+4)),"NON conformant") -> 0 | O61: =COUNTIF(INDIRECT("'Success Criteria'!" & ADDRESS(124,A61+4)):INDIRECT("'Success Criteria'!" & ADDRESS(178,A61+4)),"N/A") -> 0 | P61: =COUNTIF(INDIRECT("'Success Criteria'!" & ADDRESS(124,A61+4)):INDIRECT("'Success Criteria'!" & ADDRESS(178,A61+4)),"not tested") -> 28 | Q61: 2 | R61: 0 | S61: 0 | T61: 28 | V61: 0 | X61: 2 | Z61: 28 | AA61: 1
A62: 48 | B62: Page 48 | C62: URL 48 | D62: Please select | E62: =SUM(COUNTIF(INDIRECT("'Success Criteria'!" & ADDRESS(10,A62+4)):INDIRECT("'Success Criteria'!" & ADDRESS(72,A62+4)),"PASS"),COUNTIF(INDIRECT("'Success Criteria'!" & ADDRESS(10,A62+4)):INDIRECT("'Success Criteria'!" & ADDRESS(72,A62+4)),"PASS with comments")) -> 0 | F62: =COUNTIF(INDIRECT("'Success Criteria'!" & ADDRESS(10,A62+4)):INDIRECT("'Success Criteria'!" & ADDRESS(72,A62+4)),"NON conformant") -> 0 | G62: =COUNTIF(INDIRECT("'Success Criteria'!" & ADDRESS(10,A62+4)):INDIRECT("'Success Criteria'!" & ADDRESS(72,A62+4)),"N/A") -> 0 | H62: =COUNTIF(INDIRECT("'Success Criteria'!" & ADDRESS(10,A62+4)):INDIRECT("'Success Criteria'!" & ADDRESS(72,A62+4)),"not tested") -> 0 | I62: =SUM(COUNTIF(INDIRECT("'Success Criteria'!" & ADDRESS(76,A62+4)):INDIRECT("'Success Criteria'!" & ADDRESS(119,A62+4)),"PASS"),COUNTIF(INDIRECT("'Success Criteria'!" & ADDRESS(76,A62+4)):INDIRECT("'Success Criteria'!" & ADDRESS(119,A62+4)),"PASS with comments")) -> 2 | J62: =COUNTIF(INDIRECT("'Success Criteria'!" & ADDRESS(76,A62+4)):INDIRECT("'Success Criteria'!" & ADDRESS(119,A62+4)),"NON conformant") -> 0 | K62: =COUNTIF(INDIRECT("'Success Criteria'!" & ADDRESS(76,A62+4)):INDIRECT("'Success Criteria'!" & ADDRESS(119,A62+4)),"N/A") -> 0 | L62: =COUNTIF(INDIRECT("'Success Criteria'!" & ADDRESS(76,A62+4)):INDIRECT("'Success Criteria'!" & ADDRESS(119,A62+4)),"not tested") -> 0 | M62: =SUM(COUNTIF(INDIRECT("'Success Criteria'!" & ADDRESS(124,A62+4)):INDIRECT("'Success Criteria'!" & ADDRESS(178,A62+4)),"PASS"),COUNTIF(INDIRECT("'Success Criteria'!" & ADDRESS(124,A62+4)):INDIRECT("'Success Criteria'!" & ADDRESS(178,A62+4)),"PASS with comments")) -> 0 | N62: =COUNTIF(INDIRECT("'Success Criteria'!" & ADDRESS(124,A62+4)):INDIRECT("'Success Criteria'!" & ADDRESS(178,A62+4)),"NON conformant") -> 0 | O62: =COUNTIF(INDIRECT("'Success Criteria'!" & ADDRESS(124,A62+4)):INDIRECT("'Success Criteria'!" & ADDRESS(178,A62+4)),"N/A") -> 0 | P62: =COUNTIF(INDIRECT("'Success Criteria'!" & ADDRESS(124,A62+4)):INDIRECT("'Success Criteria'!" & ADDRESS(178,A62+4)),"not tested") -> 28 | Q62: 2 | R62: 0 | S62: 0 | T62: 28 | V62: 0 | X62: 2 | Z62: 28 | AA62: 1
A63: 49 | B63: Page 49 | C63: URL 49 | D63: Please select | E63: =SUM(COUNTIF(INDIRECT("'Success Criteria'!" & ADDRESS(10,A63+4)):INDIRECT("'Success Criteria'!" & ADDRESS(72,A63+4)),"PASS"),COUNTIF(INDIRECT("'Success Criteria'!" & ADDRESS(10,A63+4)):INDIRECT("'Success Criteria'!" & ADDRESS(72,A63+4)),"PASS with comments")) -> 0 | F63: =COUNTIF(INDIRECT("'Success Criteria'!" & ADDRESS(10,A63+4)):INDIRECT("'Success Criteria'!" & ADDRESS(72,A63+4)),"NON conformant") -> 0 | G63: =COUNTIF(INDIRECT("'Success Criteria'!" & ADDRESS(10,A63+4)):INDIRECT("'Success Criteria'!" & ADDRESS(72,A63+4)),"N/A") -> 0 | H63: =COUNTIF(INDIRECT("'Success Criteria'!" & ADDRESS(10,A63+4)):INDIRECT("'Success Criteria'!" & ADDRESS(72,A63+4)),"not tested") -> 0 | I63: =SUM(COUNTIF(INDIRECT("'Success Criteria'!" & ADDRESS(76,A63+4)):INDIRECT("'Success Criteria'!" & ADDRESS(119,A63+4)),"PASS"),COUNTIF(INDIRECT("'Success Criteria'!" & ADDRESS(76,A63+4)):INDIRECT("'Success Criteria'!" & ADDRESS(119,A63+4)),"PASS with comments")) -> 2 | J63: =COUNTIF(INDIRECT("'Success Criteria'!" & ADDRESS(76,A63+4)):INDIRECT("'Success Criteria'!" & ADDRESS(119,A63+4)),"NON conformant") -> 0 | K63: =COUNTIF(INDIRECT("'Success Criteria'!" & ADDRESS(76,A63+4)):INDIRECT("'Success Criteria'!" & ADDRESS(119,A63+4)),"N/A") -> 0 | L63: =COUNTIF(INDIRECT("'Success Criteria'!" & ADDRESS(76,A63+4)):INDIRECT("'Success Criteria'!" & ADDRESS(119,A63+4)),"not tested") -> 0 | M63: =SUM(COUNTIF(INDIRECT("'Success Criteria'!" & ADDRESS(124,A63+4)):INDIRECT("'Success Criteria'!" & ADDRESS(178,A63+4)),"PASS"),COUNTIF(INDIRECT("'Success Criteria'!" & ADDRESS(124,A63+4)):INDIRECT("'Success Criteria'!" & ADDRESS(178,A63+4)),"PASS with comments")) -> 0 | N63: =COUNTIF(INDIRECT("'Success Criteria'!" & ADDRESS(124,A63+4)):INDIRECT("'Success Criteria'!" & ADDRESS(178,A63+4)),"NON conformant") -> 0 | O63: =COUNTIF(INDIRECT("'Success Criteria'!" & ADDRESS(124,A63+4)):INDIRECT("'Success Criteria'!" & ADDRESS(178,A63+4)),"N/A") -> 0 | P63: =COUNTIF(INDIRECT("'Success Criteria'!" & ADDRESS(124,A63+4)):INDIRECT("'Success Criteria'!" & ADDRESS(178,A63+4)),"not tested") -> 28 | Q63: 2 | R63: 0 | S63: 0 | T63: 28 | V63: 0 | X63: 2 | Z63: 28 | AA63: 1
A64: 50 | B64: Page 50 | C64: URL 50 | D64: Please select | E64: =SUM(COUNTIF(INDIRECT("'Success Criteria'!" & ADDRESS(10,A64+4)):INDIRECT("'Success Criteria'!" & ADDRESS(72,A64+4)),"PASS"),COUNTIF(INDIRECT("'Success Criteria'!" & ADDRESS(10,A64+4)):INDIRECT("'Success Criteria'!" & ADDRESS(72,A64+4)),"PASS with comments")) -> 0 | F64: =COUNTIF(INDIRECT("'Success Criteria'!" & ADDRESS(10,A64+4)):INDIRECT("'Success Criteria'!" & ADDRESS(72,A64+4)),"NON conformant") -> 0 | G64: =COUNTIF(INDIRECT("'Success Criteria'!" & ADDRESS(10,A64+4)):INDIRECT("'Success Criteria'!" & ADDRESS(72,A64+4)),"N/A") -> 0 | H64: =COUNTIF(INDIRECT("'Success Criteria'!" & ADDRESS(10,A64+4)):INDIRECT("'Success Criteria'!" & ADDRESS(72,A64+4)),"not tested") -> 0 | I64: =SUM(COUNTIF(INDIRECT("'Success Criteria'!" & ADDRESS(76,A64+4)):INDIRECT("'Success Criteria'!" & ADDRESS(119,A64+4)),"PASS"),COUNTIF(INDIRECT("'Success Criteria'!" & ADDRESS(76,A64+4)):INDIRECT("'Success Criteria'!" & ADDRESS(119,A64+4)),"PASS with comments")) -> 2 | J64: =COUNTIF(INDIRECT("'Success Criteria'!" & ADDRESS(76,A64+4)):INDIRECT("'Success Criteria'!" & ADDRESS(119,A64+4)),"NON conformant") -> 0 | K64: =COUNTIF(INDIRECT("'Success Criteria'!" & ADDRESS(76,A64+4)):INDIRECT("'Success Criteria'!" & ADDRESS(119,A64+4)),"N/A") -> 0 | L64: =COUNTIF(INDIRECT("'Success Criteria'!" & ADDRESS(76,A64+4)):INDIRECT("'Success Criteria'!" & ADDRESS(119,A64+4)),"not tested") -> 0 | M64: =SUM(COUNTIF(INDIRECT("'Success Criteria'!" & ADDRESS(124,A64+4)):INDIRECT("'Success Criteria'!" & ADDRESS(178,A64+4)),"PASS"),COUNTIF(INDIRECT("'Success Criteria'!" & ADDRESS(124,A64+4)):INDIRECT("'Success Criteria'!" & ADDRESS(178,A64+4)),"PASS with comments")) -> 0 | N64: =COUNTIF(INDIRECT("'Success Criteria'!" & ADDRESS(124,A64+4)):INDIRECT("'Success Criteria'!" & ADDRESS(178,A64+4)),"NON conformant") -> 0 | O64: =COUNTIF(INDIRECT("'Success Criteria'!" & ADDRESS(124,A64+4)):INDIRECT("'Success Criteria'!" & ADDRESS(178,A64+4)),"N/A") -> 0 | P64: =COUNTIF(INDIRECT("'Success Criteria'!" & ADDRESS(124,A64+4)):INDIRECT("'Success Criteria'!" & ADDRESS(178,A64+4)),"not tested") -> 28 | Q64: 2 | R64: 0 | S64: 0 | T64: 28 | V64: 0 | X64: 2 | Z64: 28 | AA64: 1
A65: 51 | B65: Page 51 | C65: URL 51 | D65: Please select | E65: =SUM(COUNTIF(INDIRECT("'Success Criteria'!" & ADDRESS(10,A65+4)):INDIRECT("'Success Criteria'!" & ADDRESS(72,A65+4)),"PASS"),COUNTIF(INDIRECT("'Success Criteria'!" & ADDRESS(10,A65+4)):INDIRECT("'Success Criteria'!" & ADDRESS(72,A65+4)),"PASS with comments")) -> 0 | F65: =COUNTIF(INDIRECT("'Success Criteria'!" & ADDRESS(10,A65+4)):INDIRECT("'Success Criteria'!" & ADDRESS(72,A65+4)),"NON conformant") -> 0 | G65: =COUNTIF(INDIRECT("'Success Criteria'!" & ADDRESS(10,A65+4)):INDIRECT("'Success Criteria'!" & ADDRESS(72,A65+4)),"N/A") -> 0 | H65: =COUNTIF(INDIRECT("'Success Criteria'!" & ADDRESS(10,A65+4)):INDIRECT("'Success Criteria'!" & ADDRESS(72,A65+4)),"not tested") -> 0 | I65: =SUM(COUNTIF(INDIRECT("'Success Criteria'!" & ADDRESS(76,A65+4)):INDIRECT("'Success Criteria'!" & ADDRESS(119,A65+4)),"PASS"),COUNTIF(INDIRECT("'Success Criteria'!" & ADDRESS(76,A65+4)):INDIRECT("'Success Criteria'!" & ADDRESS(119,A65+4)),"PASS with comments")) -> 2 | J65: =COUNTIF(INDIRECT("'Success Criteria'!" & ADDRESS(76,A65+4)):INDIRECT("'Success Criteria'!" & ADDRESS(119,A65+4)),"NON conformant") -> 0 | K65: =COUNTIF(INDIRECT("'Success Criteria'!" & ADDRESS(76,A65+4)):INDIRECT("'Success Criteria'!" & ADDRESS(119,A65+4)),"N/A") -> 0 | L65: =COUNTIF(INDIRECT("'Success Criteria'!" & ADDRESS(76,A65+4)):INDIRECT("'Success Criteria'!" & ADDRESS(119,A65+4)),"not tested") -> 0 | M65: =SUM(COUNTIF(INDIRECT("'Success Criteria'!" & ADDRESS(124,A65+4)):INDIRECT("'Success Criteria'!" & ADDRESS(178,A65+4)),"PASS"),COUNTIF(INDIRECT("'Success Criteria'!" & ADDRESS(124,A65+4)):INDIRECT("'Success Criteria'!" & ADDRESS(178,A65+4)),"PASS with comments")) -> 0 | N65: =COUNTIF(INDIRECT("'Success Criteria'!" & ADDRESS(124,A65+4)):INDIRECT("'Success Criteria'!" & ADDRESS(178,A65+4)),"NON conformant") -> 0 | O65: =COUNTIF(INDIRECT("'Success Criteria'!" & ADDRESS(124,A65+4)):INDIRECT("'Success Criteria'!" & ADDRESS(178,A65+4)),"N/A") -> 0 | P65: =COUNTIF(INDIRECT("'Success Criteria'!" & ADDRESS(124,A65+4)):INDIRECT("'Success Criteria'!" & ADDRESS(178,A65+4)),"not tested") -> 28 | Q65: 2 | R65: =SUM(F65+J65+N65) -> 0 | S65: 0 | T65: 28 | V65: =SUM(E65:H65) -> 0 | W65: =IF(V65=30,1,"") ->  | X65: 2 | Y65: =IF(X65=20,1,"") ->  | Z65: 28 | AA65: =IF(Z65=28,1,"") -> 1
A66: 52 | B66: Page 52 | C66: URL 52 | D66: Please select | E66: =SUM(COUNTIF(INDIRECT("'Success Criteria'!" & ADDRESS(10,A66+4)):INDIRECT("'Success Criteria'!" & ADDRESS(72,A66+4)),"PASS"),COUNTIF(INDIRECT("'Success Criteria'!" & ADDRESS(10,A66+4)):INDIRECT("'Success Criteria'!" & ADDRESS(72,A66+4)),"PASS with comments")) -> 0 | F66: =COUNTIF(INDIRECT("'Success Criteria'!" & ADDRESS(10,A66+4)):INDIRECT("'Success Criteria'!" & ADDRESS(72,A66+4)),"NON conformant") -> 0 | G66: =COUNTIF(INDIRECT("'Success Criteria'!" & ADDRESS(10,A66+4)):INDIRECT("'Success Criteria'!" & ADDRESS(72,A66+4)),"N/A") -> 0 | H66: =COUNTIF(INDIRECT("'Success Criteria'!" & ADDRESS(10,A66+4)):INDIRECT("'Success Criteria'!" & ADDRESS(72,A66+4)),"not tested") -> 0 | I66: =SUM(COUNTIF(INDIRECT("'Success Criteria'!" & ADDRESS(76,A66+4)):INDIRECT("'Success Criteria'!" & ADDRESS(119,A66+4)),"PASS"),COUNTIF(INDIRECT("'Success Criteria'!" & ADDRESS(76,A66+4)):INDIRECT("'Success Criteria'!" & ADDRESS(119,A66+4)),"PASS with comments")) -> 2 | J66: =COUNTIF(INDIRECT("'Success Criteria'!" & ADDRESS(76,A66+4)):INDIRECT("'Success Criteria'!" & ADDRESS(119,A66+4)),"NON conformant") -> 0 | K66: =COUNTIF(INDIRECT("'Success Criteria'!" & ADDRESS(76,A66+4)):INDIRECT("'Success Criteria'!" & ADDRESS(119,A66+4)),"N/A") -> 0 | L66: =COUNTIF(INDIRECT("'Success Criteria'!" & ADDRESS(76,A66+4)):INDIRECT("'Success Criteria'!" & ADDRESS(119,A66+4)),"not tested") -> 0 | M66: =SUM(COUNTIF(INDIRECT("'Success Criteria'!" & ADDRESS(124,A66+4)):INDIRECT("'Success Criteria'!" & ADDRESS(178,A66+4)),"PASS"),COUNTIF(INDIRECT("'Success Criteria'!" & ADDRESS(124,A66+4)):INDIRECT("'Success Criteria'!" & ADDRESS(178,A66+4)),"PASS with comments")) -> 0 | N66: =COUNTIF(INDIRECT("'Success Criteria'!" & ADDRESS(124,A66+4)):INDIRECT("'Success Criteria'!" & ADDRESS(178,A66+4)),"NON conformant") -> 0 | O66: =COUNTIF(INDIRECT("'Success Criteria'!" & ADDRESS(124,A66+4)):INDIRECT("'Success Criteria'!" & ADDRESS(178,A66+4)),"N/A") -> 0 | P66: =COUNTIF(INDIRECT("'Success Criteria'!" & ADDRESS(124,A66+4)):INDIRECT("'Success Criteria'!" & ADDRESS(178,A66+4)),"not tested") -> 28 | Q66: 2 | R66: 0 | S66: 0 | T66: 28 | V66: 0 | X66: 2 | Z66: 28 | AA66: 1
A67: 53 | B67: Page 53 | C67: URL 53 | D67: Please select | E67: =SUM(COUNTIF(INDIRECT("'Success Criteria'!" & ADDRESS(10,A67+4)):INDIRECT("'Success Criteria'!" & ADDRESS(72,A67+4)),"PASS"),COUNTIF(INDIRECT("'Success Criteria'!" & ADDRESS(10,A67+4)):INDIRECT("'Success Criteria'!" & ADDRESS(72,A67+4)),"PASS with comments")) -> 0 | F67: =COUNTIF(INDIRECT("'Success Criteria'!" & ADDRESS(10,A67+4)):INDIRECT("'Success Criteria'!" & ADDRESS(72,A67+4)),"NON conformant") -> 0 | G67: =COUNTIF(INDIRECT("'Success Criteria'!" & ADDRESS(10,A67+4)):INDIRECT("'Success Criteria'!" & ADDRESS(72,A67+4)),"N/A") -> 0 | H67: =COUNTIF(INDIRECT("'Success Criteria'!" & ADDRESS(10,A67+4)):INDIRECT("'Success Criteria'!" & ADDRESS(72,A67+4)),"not tested") -> 0 | I67: =SUM(COUNTIF(INDIRECT("'Success Criteria'!" & ADDRESS(76,A67+4)):INDIRECT("'Success Criteria'!" & ADDRESS(119,A67+4)),"PASS"),COUNTIF(INDIRECT("'Success Criteria'!" & ADDRESS(76,A67+4)):INDIRECT("'Success Criteria'!" & ADDRESS(119,A67+4)),"PASS with comments")) -> 2 | J67: =COUNTIF(INDIRECT("'Success Criteria'!" & ADDRESS(76,A67+4)):INDIRECT("'Success Criteria'!" & ADDRESS(119,A67+4)),"NON conformant") -> 0 | K67: =COUNTIF(INDIRECT("'Success Criteria'!" & ADDRESS(76,A67+4)):INDIRECT("'Success Criteria'!" & ADDRESS(119,A67+4)),"N/A") -> 0 | L67: =COUNTIF(INDIRECT("'Success Criteria'!" & ADDRESS(76,A67+4)):INDIRECT("'Success Criteria'!" & ADDRESS(119,A67+4)),"not tested") -> 0 | M67: =SUM(COUNTIF(INDIRECT("'Success Criteria'!" & ADDRESS(124,A67+4)):INDIRECT("'Success Criteria'!" & ADDRESS(178,A67+4)),"PASS"),COUNTIF(INDIRECT("'Success Criteria'!" & ADDRESS(124,A67+4)):INDIRECT("'Success Criteria'!" & ADDRESS(178,A67+4)),"PASS with comments")) -> 0 | N67: =COUNTIF(INDIRECT("'Success Criteria'!" & ADDRESS(124,A67+4)):INDIRECT("'Success Criteria'!" & ADDRESS(178,A67+4)),"NON conformant") -> 0 | O67: =COUNTIF(INDIRECT("'Success Criteria'!" & ADDRESS(124,A67+4)):INDIRECT("'Success Criteria'!" & ADDRESS(178,A67+4)),"N/A") -> 0 | P67: =COUNTIF(INDIRECT("'Success Criteria'!" & ADDRESS(124,A67+4)):INDIRECT("'Success Criteria'!" & ADDRESS(178,A67+4)),"not tested") -> 28 | Q67: 2 | R67: 0 | S67: 0 | T67: 28 | V67: 0 | X67: 2 | Z67: 28 | AA67: 1
A68: 54 | B68: Page 54 | C68: URL 54 | D68: Please select | E68: =SUM(COUNTIF(INDIRECT("'Success Criteria'!" & ADDRESS(10,A68+4)):INDIRECT("'Success Criteria'!" & ADDRESS(72,A68+4)),"PASS"),COUNTIF(INDIRECT("'Success Criteria'!" & ADDRESS(10,A68+4)):INDIRECT("'Success Criteria'!" & ADDRESS(72,A68+4)),"PASS with comments")) -> 0 | F68: =COUNTIF(INDIRECT("'Success Criteria'!" & ADDRESS(10,A68+4)):INDIRECT("'Success Criteria'!" & ADDRESS(72,A68+4)),"NON conformant") -> 0 | G68: =COUNTIF(INDIRECT("'Success Criteria'!" & ADDRESS(10,A68+4)):INDIRECT("'Success Criteria'!" & ADDRESS(72,A68+4)),"N/A") -> 0 | H68: =COUNTIF(INDIRECT("'Success Criteria'!" & ADDRESS(10,A68+4)):INDIRECT("'Success Criteria'!" & ADDRESS(72,A68+4)),"not tested") -> 0 | I68: =SUM(COUNTIF(INDIRECT("'Success Criteria'!" & ADDRESS(76,A68+4)):INDIRECT("'Success Criteria'!" & ADDRESS(119,A68+4)),"PASS"),COUNTIF(INDIRECT("'Success Criteria'!" & ADDRESS(76,A68+4)):INDIRECT("'Success Criteria'!" & ADDRESS(119,A68+4)),"PASS with comments")) -> 2 | J68: =COUNTIF(INDIRECT("'Success Criteria'!" & ADDRESS(76,A68+4)):INDIRECT("'Success Criteria'!" & ADDRESS(119,A68+4)),"NON conformant") -> 0 | K68: =COUNTIF(INDIRECT("'Success Criteria'!" & ADDRESS(76,A68+4)):INDIRECT("'Success Criteria'!" & ADDRESS(119,A68+4)),"N/A") -> 0 | L68: =COUNTIF(INDIRECT("'Success Criteria'!" & ADDRESS(76,A68+4)):INDIRECT("'Success Criteria'!" & ADDRESS(119,A68+4)),"not tested") -> 0 | M68: =SUM(COUNTIF(INDIRECT("'Success Criteria'!" & ADDRESS(124,A68+4)):INDIRECT("'Success Criteria'!" & ADDRESS(178,A68+4)),"PASS"),COUNTIF(INDIRECT("'Success Criteria'!" & ADDRESS(124,A68+4)):INDIRECT("'Success Criteria'!" & ADDRESS(178,A68+4)),"PASS with comments")) -> 0 | N68: =COUNTIF(INDIRECT("'Success Criteria'!" & ADDRESS(124,A68+4)):INDIRECT("'Success Criteria'!" & ADDRESS(178,A68+4)),"NON conformant") -> 0 | O68: =COUNTIF(INDIRECT("'Success Criteria'!" & ADDRESS(124,A68+4)):INDIRECT("'Success Criteria'!" & ADDRESS(178,A68+4)),"N/A") -> 0 | P68: =COUNTIF(INDIRECT("'Success Criteria'!" & ADDRESS(124,A68+4)):INDIRECT("'Success Criteria'!" & ADDRESS(178,A68+4)),"not tested") -> 28 | Q68: 2 | R68: 0 | S68: 0 | T68: 28 | V68: 0 | X68: 2 | Z68: 28 | AA68: 1
A69: 55 | B69: Page 55 | C69: URL 55 | D69: Please select | E69: =SUM(COUNTIF(INDIRECT("'Success Criteria'!" & ADDRESS(10,A69+4)):INDIRECT("'Success Criteria'!" & ADDRESS(72,A69+4)),"PASS"),COUNTIF(INDIRECT("'Success Criteria'!" & ADDRESS(10,A69+4)):INDIRECT("'Success Criteria'!" & ADDRESS(72,A69+4)),"PASS with comments")) -> 0 | F69: =COUNTIF(INDIRECT("'Success Criteria'!" & ADDRESS(10,A69+4)):INDIRECT("'Success Criteria'!" & ADDRESS(72,A69+4)),"NON conformant") -> 0 | G69: =COUNTIF(INDIRECT("'Success Criteria'!" & ADDRESS(10,A69+4)):INDIRECT("'Success Criteria'!" & ADDRESS(72,A69+4)),"N/A") -> 0 | H69: =COUNTIF(INDIRECT("'Success Criteria'!" & ADDRESS(10,A69+4)):INDIRECT("'Success Criteria'!" & ADDRESS(72,A69+4)),"not tested") -> 0 | I69: =SUM(COUNTIF(INDIRECT("'Success Criteria'!" & ADDRESS(76,A69+4)):INDIRECT("'Success Criteria'!" & ADDRESS(119,A69+4)),"PASS"),COUNTIF(INDIRECT("'Success Criteria'!" & ADDRESS(76,A69+4)):INDIRECT("'Success Criteria'!" & ADDRESS(119,A69+4)),"PASS with comments")) -> 2 | J69: =COUNTIF(INDIRECT("'Success Criteria'!" & ADDRESS(76,A69+4)):INDIRECT("'Success Criteria'!" & ADDRESS(119,A69+4)),"NON conformant") -> 0 | K69: =COUNTIF(INDIRECT("'Success Criteria'!" & ADDRESS(76,A69+4)):INDIRECT("'Success Criteria'!" & ADDRESS(119,A69+4)),"N/A") -> 0 | L69: =COUNTIF(INDIRECT("'Success Criteria'!" & ADDRESS(76,A69+4)):INDIRECT("'Success Criteria'!" & ADDRESS(119,A69+4)),"not tested") -> 0 | M69: =SUM(COUNTIF(INDIRECT("'Success Criteria'!" & ADDRESS(124,A69+4)):INDIRECT("'Success Criteria'!" & ADDRESS(178,A69+4)),"PASS"),COUNTIF(INDIRECT("'Success Criteria'!" & ADDRESS(124,A69+4)):INDIRECT("'Success Criteria'!" & ADDRESS(178,A69+4)),"PASS with comments")) -> 0 | N69: =COUNTIF(INDIRECT("'Success Criteria'!" & ADDRESS(124,A69+4)):INDIRECT("'Success Criteria'!" & ADDRESS(178,A69+4)),"NON conformant") -> 0 | O69: =COUNTIF(INDIRECT("'Success Criteria'!" & ADDRESS(124,A69+4)):INDIRECT("'Success Criteria'!" & ADDRESS(178,A69+4)),"N/A") -> 0 | P69: =COUNTIF(INDIRECT("'Success Criteria'!" & ADDRESS(124,A69+4)):INDIRECT("'Success Criteria'!" & ADDRESS(178,A69+4)),"not tested") -> 28 | Q69: 2 | R69: 0 | S69: 0 | T69: 28 | V69: 0 | X69: 2 | Z69: 28 | AA69: 1
A70: 56 | B70: Page 56 | C70: URL 56 | D70: Please select | E70: =SUM(COUNTIF(INDIRECT("'Success Criteria'!" & ADDRESS(10,A70+4)):INDIRECT("'Success Criteria'!" & ADDRESS(72,A70+4)),"PASS"),COUNTIF(INDIRECT("'Success Criteria'!" & ADDRESS(10,A70+4)):INDIRECT("'Success Criteria'!" & ADDRESS(72,A70+4)),"PASS with comments")) -> 0 | F70: =COUNTIF(INDIRECT("'Success Criteria'!" & ADDRESS(10,A70+4)):INDIRECT("'Success Criteria'!" & ADDRESS(72,A70+4)),"NON conformant") -> 0 | G70: =COUNTIF(INDIRECT("'Success Criteria'!" & ADDRESS(10,A70+4)):INDIRECT("'Success Criteria'!" & ADDRESS(72,A70+4)),"N/A") -> 0 | H70: =COUNTIF(INDIRECT("'Success Criteria'!" & ADDRESS(10,A70+4)):INDIRECT("'Success Criteria'!" & ADDRESS(72,A70+4)),"not tested") -> 0 | I70: =SUM(COUNTIF(INDIRECT("'Success Criteria'!" & ADDRESS(76,A70+4)):INDIRECT("'Success Criteria'!" & ADDRESS(119,A70+4)),"PASS"),COUNTIF(INDIRECT("'Success Criteria'!" & ADDRESS(76,A70+4)):INDIRECT("'Success Criteria'!" & ADDRESS(119,A70+4)),"PASS with comments")) -> 2 | J70: =COUNTIF(INDIRECT("'Success Criteria'!" & ADDRESS(76,A70+4)):INDIRECT("'Success Criteria'!" & ADDRESS(119,A70+4)),"NON conformant") -> 0 | K70: =COUNTIF(INDIRECT("'Success Criteria'!" & ADDRESS(76,A70+4)):INDIRECT("'Success Criteria'!" & ADDRESS(119,A70+4)),"N/A") -> 0 | L70: =COUNTIF(INDIRECT("'Success Criteria'!" & ADDRESS(76,A70+4)):INDIRECT("'Success Criteria'!" & ADDRESS(119,A70+4)),"not tested") -> 0 | M70: =SUM(COUNTIF(INDIRECT("'Success Criteria'!" & ADDRESS(124,A70+4)):INDIRECT("'Success Criteria'!" & ADDRESS(178,A70+4)),"PASS"),COUNTIF(INDIRECT("'Success Criteria'!" & ADDRESS(124,A70+4)):INDIRECT("'Success Criteria'!" & ADDRESS(178,A70+4)),"PASS with comments")) -> 0 | N70: =COUNTIF(INDIRECT("'Success Criteria'!" & ADDRESS(124,A70+4)):INDIRECT("'Success Criteria'!" & ADDRESS(178,A70+4)),"NON conformant") -> 0 | O70: =COUNTIF(INDIRECT("'Success Criteria'!" & ADDRESS(124,A70+4)):INDIRECT("'Success Criteria'!" & ADDRESS(178,A70+4)),"N/A") -> 0 | P70: =COUNTIF(INDIRECT("'Success Criteria'!" & ADDRESS(124,A70+4)):INDIRECT("'Success Criteria'!" & ADDRESS(178,A70+4)),"not tested") -> 28 | Q70: 2 | R70: 0 | S70: 0 | T70: 28 | V70: 0 | X70: 2 | Z70: 28 | AA70: 1
A71: 57 | B71: Page 57 | C71: URL 57 | D71: Please select | E71: =SUM(COUNTIF(INDIRECT("'Success Criteria'!" & ADDRESS(10,A71+4)):INDIRECT("'Success Criteria'!" & ADDRESS(72,A71+4)),"PASS"),COUNTIF(INDIRECT("'Success Criteria'!" & ADDRESS(10,A71+4)):INDIRECT("'Success Criteria'!" & ADDRESS(72,A71+4)),"PASS with comments")) -> 0 | F71: =COUNTIF(INDIRECT("'Success Criteria'!" & ADDRESS(10,A71+4)):INDIRECT("'Success Criteria'!" & ADDRESS(72,A71+4)),"NON conformant") -> 0 | G71: =COUNTIF(INDIRECT("'Success Criteria'!" & ADDRESS(10,A71+4)):INDIRECT("'Success Criteria'!" & ADDRESS(72,A71+4)),"N/A") -> 0 | H71: =COUNTIF(INDIRECT("'Success Criteria'!" & ADDRESS(10,A71+4)):INDIRECT("'Success Criteria'!" & ADDRESS(72,A71+4)),"not tested") -> 0 | I71: =SUM(COUNTIF(INDIRECT("'Success Criteria'!" & ADDRESS(76,A71+4)):INDIRECT("'Success Criteria'!" & ADDRESS(119,A71+4)),"PASS"),COUNTIF(INDIRECT("'Success Criteria'!" & ADDRESS(76,A71+4)):INDIRECT("'Success Criteria'!" & ADDRESS(119,A71+4)),"PASS with comments")) -> 2 | J71: =COUNTIF(INDIRECT("'Success Criteria'!" & ADDRESS(76,A71+4)):INDIRECT("'Success Criteria'!" & ADDRESS(119,A71+4)),"NON conformant") -> 0 | K71: =COUNTIF(INDIRECT("'Success Criteria'!" & ADDRESS(76,A71+4)):INDIRECT("'Success Criteria'!" & ADDRESS(119,A71+4)),"N/A") -> 0 | L71: =COUNTIF(INDIRECT("'Success Criteria'!" & ADDRESS(76,A71+4)):INDIRECT("'Success Criteria'!" & ADDRESS(119,A71+4)),"not tested") -> 0 | M71: =SUM(COUNTIF(INDIRECT("'Success Criteria'!" & ADDRESS(124,A71+4)):INDIRECT("'Success Criteria'!" & ADDRESS(178,A71+4)),"PASS"),COUNTIF(INDIRECT("'Success Criteria'!" & ADDRESS(124,A71+4)):INDIRECT("'Success Criteria'!" & ADDRESS(178,A71+4)),"PASS with comments")) -> 0 | N71: =COUNTIF(INDIRECT("'Success Criteria'!" & ADDRESS(124,A71+4)):INDIRECT("'Success Criteria'!" & ADDRESS(178,A71+4)),"NON conformant") -> 0 | O71: =COUNTIF(INDIRECT("'Success Criteria'!" & ADDRESS(124,A71+4)):INDIRECT("'Success Criteria'!" & ADDRESS(178,A71+4)),"N/A") -> 0 | P71: =COUNTIF(INDIRECT("'Success Criteria'!" & ADDRESS(124,A71+4)):INDIRECT("'Success Criteria'!" & ADDRESS(178,A71+4)),"not tested") -> 28 | Q71: 2 | R71: 0 | S71: 0 | T71: 28 | V71: 0 | X71: 2 | Z71: 28 | AA71: 1
A72: 58 | B72: Page 58 | C72: URL 58 | D72: Please select | E72: =SUM(COUNTIF(INDIRECT("'Success Criteria'!" & ADDRESS(10,A72+4)):INDIRECT("'Success Criteria'!" & ADDRESS(72,A72+4)),"PASS"),COUNTIF(INDIRECT("'Success Criteria'!" & ADDRESS(10,A72+4)):INDIRECT("'Success Criteria'!" & ADDRESS(72,A72+4)),"PASS with comments")) -> 0 | F72: =COUNTIF(INDIRECT("'Success Criteria'!" & ADDRESS(10,A72+4)):INDIRECT("'Success Criteria'!" & ADDRESS(72,A72+4)),"NON conformant") -> 0 | G72: =COUNTIF(INDIRECT("'Success Criteria'!" & ADDRESS(10,A72+4)):INDIRECT("'Success Criteria'!" & ADDRESS(72,A72+4)),"N/A") -> 0 | H72: =COUNTIF(INDIRECT("'Success Criteria'!" & ADDRESS(10,A72+4)):INDIRECT("'Success Criteria'!" & ADDRESS(72,A72+4)),"not tested") -> 0 | I72: =SUM(COUNTIF(INDIRECT("'Success Criteria'!" & ADDRESS(76,A72+4)):INDIRECT("'Success Criteria'!" & ADDRESS(119,A72+4)),"PASS"),COUNTIF(INDIRECT("'Success Criteria'!" & ADDRESS(76,A72+4)):INDIRECT("'Success Criteria'!" & ADDRESS(119,A72+4)),"PASS with comments")) -> 2 | J72: =COUNTIF(INDIRECT("'Success Criteria'!" & ADDRESS(76,A72+4)):INDIRECT("'Success Criteria'!" & ADDRESS(119,A72+4)),"NON conformant") -> 0 | K72: =COUNTIF(INDIRECT("'Success Criteria'!" & ADDRESS(76,A72+4)):INDIRECT("'Success Criteria'!" & ADDRESS(119,A72+4)),"N/A") -> 0 | L72: =COUNTIF(INDIRECT("'Success Criteria'!" & ADDRESS(76,A72+4)):INDIRECT("'Success Criteria'!" & ADDRESS(119,A72+4)),"not tested") -> 0 | M72: =SUM(COUNTIF(INDIRECT("'Success Criteria'!" & ADDRESS(124,A72+4)):INDIRECT("'Success Criteria'!" & ADDRESS(178,A72+4)),"PASS"),COUNTIF(INDIRECT("'Success Criteria'!" & ADDRESS(124,A72+4)):INDIRECT("'Success Criteria'!" & ADDRESS(178,A72+4)),"PASS with comments")) -> 0 | N72: =COUNTIF(INDIRECT("'Success Criteria'!" & ADDRESS(124,A72+4)):INDIRECT("'Success Criteria'!" & ADDRESS(178,A72+4)),"NON conformant") -> 0 | O72: =COUNTIF(INDIRECT("'Success Criteria'!" & ADDRESS(124,A72+4)):INDIRECT("'Success Criteria'!" & ADDRESS(178,A72+4)),"N/A") -> 0 | P72: =COUNTIF(INDIRECT("'Success Criteria'!" & ADDRESS(124,A72+4)):INDIRECT("'Success Criteria'!" & ADDRESS(178,A72+4)),"not tested") -> 28 | Q72: 2 | R72: 0 | S72: 0 | T72: 28 | V72: 0 | X72: 2 | Z72: 28 | AA72: 1
A73: 59 | B73: Page 59 | C73: URL 59 | D73: Please select | E73: =SUM(COUNTIF(INDIRECT("'Success Criteria'!" & ADDRESS(10,A73+4)):INDIRECT("'Success Criteria'!" & ADDRESS(72,A73+4)),"PASS"),COUNTIF(INDIRECT("'Success Criteria'!" & ADDRESS(10,A73+4)):INDIRECT("'Success Criteria'!" & ADDRESS(72,A73+4)),"PASS with comments")) -> 0 | F73: =COUNTIF(INDIRECT("'Success Criteria'!" & ADDRESS(10,A73+4)):INDIRECT("'Success Criteria'!" & ADDRESS(72,A73+4)),"NON conformant") -> 0 | G73: =COUNTIF(INDIRECT("'Success Criteria'!" & ADDRESS(10,A73+4)):INDIRECT("'Success Criteria'!" & ADDRESS(72,A73+4)),"N/A") -> 0 | H73: =COUNTIF(INDIRECT("'Success Criteria'!" & ADDRESS(10,A73+4)):INDIRECT("'Success Criteria'!" & ADDRESS(72,A73+4)),"not tested") -> 0 | I73: =SUM(COUNTIF(INDIRECT("'Success Criteria'!" & ADDRESS(76,A73+4)):INDIRECT("'Success Criteria'!" & ADDRESS(119,A73+4)),"PASS"),COUNTIF(INDIRECT("'Success Criteria'!" & ADDRESS(76,A73+4)):INDIRECT("'Success Criteria'!" & ADDRESS(119,A73+4)),"PASS with comments")) -> 2 | J73: =COUNTIF(INDIRECT("'Success Criteria'!" & ADDRESS(76,A73+4)):INDIRECT("'Success Criteria'!" & ADDRESS(119,A73+4)),"NON conformant") -> 0 | K73: =COUNTIF(INDIRECT("'Success Criteria'!" & ADDRESS(76,A73+4)):INDIRECT("'Success Criteria'!" & ADDRESS(119,A73+4)),"N/A") -> 0 | L73: =COUNTIF(INDIRECT("'Success Criteria'!" & ADDRESS(76,A73+4)):INDIRECT("'Success Criteria'!" & ADDRESS(119,A73+4)),"not tested") -> 0 | M73: =SUM(COUNTIF(INDIRECT("'Success Criteria'!" & ADDRESS(124,A73+4)):INDIRECT("'Success Criteria'!" & ADDRESS(178,A73+4)),"PASS"),COUNTIF(INDIRECT("'Success Criteria'!" & ADDRESS(124,A73+4)):INDIRECT("'Success Criteria'!" & ADDRESS(178,A73+4)),"PASS with comments")) -> 0 | N73: =COUNTIF(INDIRECT("'Success Criteria'!" & ADDRESS(124,A73+4)):INDIRECT("'Success Criteria'!" & ADDRESS(178,A73+4)),"NON conformant") -> 0 | O73: =COUNTIF(INDIRECT("'Success Criteria'!" & ADDRESS(124,A73+4)):INDIRECT("'Success Criteria'!" & ADDRESS(178,A73+4)),"N/A") -> 0 | P73: =COUNTIF(INDIRECT("'Success Criteria'!" & ADDRESS(124,A73+4)):INDIRECT("'Success Criteria'!" & ADDRESS(178,A73+4)),"not tested") -> 28 | Q73: 2 | R73: 0 | S73: 0 | T73: 28 | V73: 0 | X73: 2 | Z73: 28 | AA73: 1
A74: 60 | B74: Page 60 | C74: URL 60 | D74: Please select | E74: =SUM(COUNTIF(INDIRECT("'Success Criteria'!" & ADDRESS(10,A74+4)):INDIRECT("'Success Criteria'!" & ADDRESS(72,A74+4)),"PASS"),COUNTIF(INDIRECT("'Success Criteria'!" & ADDRESS(10,A74+4)):INDIRECT("'Success Criteria'!" & ADDRESS(72,A74+4)),"PASS with comments")) -> 0 | F74: =COUNTIF(INDIRECT("'Success Criteria'!" & ADDRESS(10,A74+4)):INDIRECT("'Success Criteria'!" & ADDRESS(72,A74+4)),"NON conformant") -> 0 | G74: =COUNTIF(INDIRECT("'Success Criteria'!" & ADDRESS(10,A74+4)):INDIRECT("'Success Criteria'!" & ADDRESS(72,A74+4)),"N/A") -> 0 | H74: =COUNTIF(INDIRECT("'Success Criteria'!" & ADDRESS(10,A74+4)):INDIRECT("'Success Criteria'!" & ADDRESS(72,A74+4)),"not tested") -> 0 | I74: =SUM(COUNTIF(INDIRECT("'Success Criteria'!" & ADDRESS(76,A74+4)):INDIRECT("'Success Criteria'!" & ADDRESS(119,A74+4)),"PASS"),COUNTIF(INDIRECT("'Success Criteria'!" & ADDRESS(76,A74+4)):INDIRECT("'Success Criteria'!" & ADDRESS(119,A74+4)),"PASS with comments")) -> 2 | J74: =COUNTIF(INDIRECT("'Success Criteria'!" & ADDRESS(76,A74+4)):INDIRECT("'Success Criteria'!" & ADDRESS(119,A74+4)),"NON conformant") -> 0 | K74: =COUNTIF(INDIRECT("'Success Criteria'!" & ADDRESS(76,A74+4)):INDIRECT("'Success Criteria'!" & ADDRESS(119,A74+4)),"N/A") -> 0 | L74: =COUNTIF(INDIRECT("'Success Criteria'!" & ADDRESS(76,A74+4)):INDIRECT("'Success Criteria'!" & ADDRESS(119,A74+4)),"not tested") -> 0 | M74: =SUM(COUNTIF(INDIRECT("'Success Criteria'!" & ADDRESS(124,A74+4)):INDIRECT("'Success Criteria'!" & ADDRESS(178,A74+4)),"PASS"),COUNTIF(INDIRECT("'Success Criteria'!" & ADDRESS(124,A74+4)):INDIRECT("'Success Criteria'!" & ADDRESS(178,A74+4)),"PASS with comments")) -> 0 | N74: =COUNTIF(INDIRECT("'Success Criteria'!" & ADDRESS(124,A74+4)):INDIRECT("'Success Criteria'!" & ADDRESS(178,A74+4)),"NON conformant") -> 0 | O74: =COUNTIF(INDIRECT("'Success Criteria'!" & ADDRESS(124,A74+4)):INDIRECT("'Success Criteria'!" & ADDRESS(178,A74+4)),"N/A") -> 0 | P74: =COUNTIF(INDIRECT("'Success Criteria'!" & ADDRESS(124,A74+4)):INDIRECT("'Success Criteria'!" & ADDRESS(178,A74+4)),"not tested") -> 28 | Q74: 2 | R74: 0 | S74: 0 | T74: 28 | V74: 0 | X74: 2 | Z74: 28 | AA74: 1
A75: 61 | B75: Page 61 | C75: URL 61 | D75: Please select | E75: =SUM(COUNTIF(INDIRECT("'Success Criteria'!" & ADDRESS(10,A75+4)):INDIRECT("'Success Criteria'!" & ADDRESS(72,A75+4)),"PASS"),COUNTIF(INDIRECT("'Success Criteria'!" & ADDRESS(10,A75+4)):INDIRECT("'Success Criteria'!" & ADDRESS(72,A75+4)),"PASS with comments")) -> 0 | F75: =COUNTIF(INDIRECT("'Success Criteria'!" & ADDRESS(10,A75+4)):INDIRECT("'Success Criteria'!" & ADDRESS(72,A75+4)),"NON conformant") -> 0 | G75: =COUNTIF(INDIRECT("'Success Criteria'!" & ADDRESS(10,A75+4)):INDIRECT("'Success Criteria'!" & ADDRESS(72,A75+4)),"N/A") -> 0 | H75: =COUNTIF(INDIRECT("'Success Criteria'!" & ADDRESS(10,A75+4)):INDIRECT("'Success Criteria'!" & ADDRESS(72,A75+4)),"not tested") -> 0 | I75: =SUM(COUNTIF(INDIRECT("'Success Criteria'!" & ADDRESS(76,A75+4)):INDIRECT("'Success Criteria'!" & ADDRESS(119,A75+4)),"PASS"),COUNTIF(INDIRECT("'Success Criteria'!" & ADDRESS(76,A75+4)):INDIRECT("'Success Criteria'!" & ADDRESS(119,A75+4)),"PASS with comments")) -> 2 | J75: =COUNTIF(INDIRECT("'Success Criteria'!" & ADDRESS(76,A75+4)):INDIRECT("'Success Criteria'!" & ADDRESS(119,A75+4)),"NON conformant") -> 0 | K75: =COUNTIF(INDIRECT("'Success Criteria'!" & ADDRESS(76,A75+4)):INDIRECT("'Success Criteria'!" & ADDRESS(119,A75+4)),"N/A") -> 0 | L75: =COUNTIF(INDIRECT("'Success Criteria'!" & ADDRESS(76,A75+4)):INDIRECT("'Success Criteria'!" & ADDRESS(119,A75+4)),"not tested") -> 0 | M75: =SUM(COUNTIF(INDIRECT("'Success Criteria'!" & ADDRESS(124,A75+4)):INDIRECT("'Success Criteria'!" & ADDRESS(178,A75+4)),"PASS"),COUNTIF(INDIRECT("'Success Criteria'!" & ADDRESS(124,A75+4)):INDIRECT("'Success Criteria'!" & ADDRESS(178,A75+4)),"PASS with comments")) -> 0 | N75: =COUNTIF(INDIRECT("'Success Criteria'!" & ADDRESS(124,A75+4)):INDIRECT("'Success Criteria'!" & ADDRESS(178,A75+4)),"NON conformant") -> 0 | O75: =COUNTIF(INDIRECT("'Success Criteria'!" & ADDRESS(124,A75+4)):INDIRECT("'Success Criteria'!" & ADDRESS(178,A75+4)),"N/A") -> 0 | P75: =COUNTIF(INDIRECT("'Success Criteria'!" & ADDRESS(124,A75+4)):INDIRECT("'Success Criteria'!" & ADDRESS(178,A75+4)),"not tested") -> 28 | Q75: 2 | R75: 0 | S75: 0 | T75: 28 | V75: 0 | X75: 2 | Z75: 28 | AA75: 1
A76: 62 | B76: Page 62 | C76: URL 62 | D76: Please select | E76: =SUM(COUNTIF(INDIRECT("'Success Criteria'!" & ADDRESS(10,A76+4)):INDIRECT("'Success Criteria'!" & ADDRESS(72,A76+4)),"PASS"),COUNTIF(INDIRECT("'Success Criteria'!" & ADDRESS(10,A76+4)):INDIRECT("'Success Criteria'!" & ADDRESS(72,A76+4)),"PASS with comments")) -> 0 | F76: =COUNTIF(INDIRECT("'Success Criteria'!" & ADDRESS(10,A76+4)):INDIRECT("'Success Criteria'!" & ADDRESS(72,A76+4)),"NON conformant") -> 0 | G76: =COUNTIF(INDIRECT("'Success Criteria'!" & ADDRESS(10,A76+4)):INDIRECT("'Success Criteria'!" & ADDRESS(72,A76+4)),"N/A") -> 0 | H76: =COUNTIF(INDIRECT("'Success Criteria'!" & ADDRESS(10,A76+4)):INDIRECT("'Success Criteria'!" & ADDRESS(72,A76+4)),"not tested") -> 0 | I76: =SUM(COUNTIF(INDIRECT("'Success Criteria'!" & ADDRESS(76,A76+4)):INDIRECT("'Success Criteria'!" & ADDRESS(119,A76+4)),"PASS"),COUNTIF(INDIRECT("'Success Criteria'!" & ADDRESS(76,A76+4)):INDIRECT("'Success Criteria'!" & ADDRESS(119,A76+4)),"PASS with comments")) -> 2 | J76: =COUNTIF(INDIRECT("'Success Criteria'!" & ADDRESS(76,A76+4)):INDIRECT("'Success Criteria'!" & ADDRESS(119,A76+4)),"NON conformant") -> 0 | K76: =COUNTIF(INDIRECT("'Success Criteria'!" & ADDRESS(76,A76+4)):INDIRECT("'Success Criteria'!" & ADDRESS(119,A76+4)),"N/A") -> 0 | L76: =COUNTIF(INDIRECT("'Success Criteria'!" & ADDRESS(76,A76+4)):INDIRECT("'Success Criteria'!" & ADDRESS(119,A76+4)),"not tested") -> 0 | M76: =SUM(COUNTIF(INDIRECT("'Success Criteria'!" & ADDRESS(124,A76+4)):INDIRECT("'Success Criteria'!" & ADDRESS(178,A76+4)),"PASS"),COUNTIF(INDIRECT("'Success Criteria'!" & ADDRESS(124,A76+4)):INDIRECT("'Success Criteria'!" & ADDRESS(178,A76+4)),"PASS with comments")) -> 0 | N76: =COUNTIF(INDIRECT("'Success Criteria'!" & ADDRESS(124,A76+4)):INDIRECT("'Success Criteria'!" & ADDRESS(178,A76+4)),"NON conformant") -> 0 | O76: =COUNTIF(INDIRECT("'Success Criteria'!" & ADDRESS(124,A76+4)):INDIRECT("'Success Criteria'!" & ADDRESS(178,A76+4)),"N/A") -> 0 | P76: =COUNTIF(INDIRECT("'Success Criteria'!" & ADDRESS(124,A76+4)):INDIRECT("'Success Criteria'!" & ADDRESS(178,A76+4)),"not tested") -> 28 | Q76: 2 | R76: 0 | S76: 0 | T76: 28 | V76: 0 | X76: 2 | Z76: 28 | AA76: 1
A77: 63 | B77: Page 63 | C77: URL 63 | D77: Please select | E77: =SUM(COUNTIF(INDIRECT("'Success Criteria'!" & ADDRESS(10,A77+4)):INDIRECT("'Success Criteria'!" & ADDRESS(72,A77+4)),"PASS"),COUNTIF(INDIRECT("'Success Criteria'!" & ADDRESS(10,A77+4)):INDIRECT("'Success Criteria'!" & ADDRESS(72,A77+4)),"PASS with comments")) -> 0 | F77: =COUNTIF(INDIRECT("'Success Criteria'!" & ADDRESS(10,A77+4)):INDIRECT("'Success Criteria'!" & ADDRESS(72,A77+4)),"NON conformant") -> 0 | G77: =COUNTIF(INDIRECT("'Success Criteria'!" & ADDRESS(10,A77+4)):INDIRECT("'Success Criteria'!" & ADDRESS(72,A77+4)),"N/A") -> 0 | H77: =COUNTIF(INDIRECT("'Success Criteria'!" & ADDRESS(10,A77+4)):INDIRECT("'Success Criteria'!" & ADDRESS(72,A77+4)),"not tested") -> 0 | I77: =SUM(COUNTIF(INDIRECT("'Success Criteria'!" & ADDRESS(76,A77+4)):INDIRECT("'Success Criteria'!" & ADDRESS(119,A77+4)),"PASS"),COUNTIF(INDIRECT("'Success Criteria'!" & ADDRESS(76,A77+4)):INDIRECT("'Success Criteria'!" & ADDRESS(119,A77+4)),"PASS with comments")) -> 2 | J77: =COUNTIF(INDIRECT("'Success Criteria'!" & ADDRESS(76,A77+4)):INDIRECT("'Success Criteria'!" & ADDRESS(119,A77+4)),"NON conformant") -> 0 | K77: =COUNTIF(INDIRECT("'Success Criteria'!" & ADDRESS(76,A77+4)):INDIRECT("'Success Criteria'!" & ADDRESS(119,A77+4)),"N/A") -> 0 | L77: =COUNTIF(INDIRECT("'Success Criteria'!" & ADDRESS(76,A77+4)):INDIRECT("'Success Criteria'!" & ADDRESS(119,A77+4)),"not tested") -> 0 | M77: =SUM(COUNTIF(INDIRECT("'Success Criteria'!" & ADDRESS(124,A77+4)):INDIRECT("'Success Criteria'!" & ADDRESS(178,A77+4)),"PASS"),COUNTIF(INDIRECT("'Success Criteria'!" & ADDRESS(124,A77+4)):INDIRECT("'Success Criteria'!" & ADDRESS(178,A77+4)),"PASS with comments")) -> 0 | N77: =COUNTIF(INDIRECT("'Success Criteria'!" & ADDRESS(124,A77+4)):INDIRECT("'Success Criteria'!" & ADDRESS(178,A77+4)),"NON conformant") -> 0 | O77: =COUNTIF(INDIRECT("'Success Criteria'!" & ADDRESS(124,A77+4)):INDIRECT("'Success Criteria'!" & ADDRESS(178,A77+4)),"N/A") -> 0 | P77: =COUNTIF(INDIRECT("'Success Criteria'!" & ADDRESS(124,A77+4)):INDIRECT("'Success Criteria'!" & ADDRESS(178,A77+4)),"not tested") -> 28 | Q77: 2 | R77: 0 | S77: 0 | T77: 28 | V77: 0 | X77: 2 | Z77: 28 | AA77: 1
A78: 64 | B78: Page 64 | C78: URL 64 | D78: Please select | E78: =SUM(COUNTIF(INDIRECT("'Success Criteria'!" & ADDRESS(10,A78+4)):INDIRECT("'Success Criteria'!" & ADDRESS(72,A78+4)),"PASS"),COUNTIF(INDIRECT("'Success Criteria'!" & ADDRESS(10,A78+4)):INDIRECT("'Success Criteria'!" & ADDRESS(72,A78+4)),"PASS with comments")) -> 0 | F78: =COUNTIF(INDIRECT("'Success Criteria'!" & ADDRESS(10,A78+4)):INDIRECT("'Success Criteria'!" & ADDRESS(72,A78+4)),"NON conformant") -> 0 | G78: =COUNTIF(INDIRECT("'Success Criteria'!" & ADDRESS(10,A78+4)):INDIRECT("'Success Criteria'!" & ADDRESS(72,A78+4)),"N/A") -> 0 | H78: =COUNTIF(INDIRECT("'Success Criteria'!" & ADDRESS(10,A78+4)):INDIRECT("'Success Criteria'!" & ADDRESS(72,A78+4)),"not tested") -> 0 | I78: =SUM(COUNTIF(INDIRECT("'Success Criteria'!" & ADDRESS(76,A78+4)):INDIRECT("'Success Criteria'!" & ADDRESS(119,A78+4)),"PASS"),COUNTIF(INDIRECT("'Success Criteria'!" & ADDRESS(76,A78+4)):INDIRECT("'Success Criteria'!" & ADDRESS(119,A78+4)),"PASS with comments")) -> 2 | J78: =COUNTIF(INDIRECT("'Success Criteria'!" & ADDRESS(76,A78+4)):INDIRECT("'Success Criteria'!" & ADDRESS(119,A78+4)),"NON conformant") -> 0 | K78: =COUNTIF(INDIRECT("'Success Criteria'!" & ADDRESS(76,A78+4)):INDIRECT("'Success Criteria'!" & ADDRESS(119,A78+4)),"N/A") -> 0 | L78: =COUNTIF(INDIRECT("'Success Criteria'!" & ADDRESS(76,A78+4)):INDIRECT("'Success Criteria'!" & ADDRESS(119,A78+4)),"not tested") -> 0 | M78: =SUM(COUNTIF(INDIRECT("'Success Criteria'!" & ADDRESS(124,A78+4)):INDIRECT("'Success Criteria'!" & ADDRESS(178,A78+4)),"PASS"),COUNTIF(INDIRECT("'Success Criteria'!" & ADDRESS(124,A78+4)):INDIRECT("'Success Criteria'!" & ADDRESS(178,A78+4)),"PASS with comments")) -> 0 | N78: =COUNTIF(INDIRECT("'Success Criteria'!" & ADDRESS(124,A78+4)):INDIRECT("'Success Criteria'!" & ADDRESS(178,A78+4)),"NON conformant") -> 0 | O78: =COUNTIF(INDIRECT("'Success Criteria'!" & ADDRESS(124,A78+4)):INDIRECT("'Success Criteria'!" & ADDRESS(178,A78+4)),"N/A") -> 0 | P78: =COUNTIF(INDIRECT("'Success Criteria'!" & ADDRESS(124,A78+4)):INDIRECT("'Success Criteria'!" & ADDRESS(178,A78+4)),"not tested") -> 28 | Q78: 2 | R78: 0 | S78: 0 | T78: 28 | V78: 0 | X78: 2 | Z78: 28 | AA78: 1
A79: 65 | B79: Page 65 | C79: URL 65 | D79: Please select | E79: =SUM(COUNTIF(INDIRECT("'Success Criteria'!" & ADDRESS(10,A79+4)):INDIRECT("'Success Criteria'!" & ADDRESS(72,A79+4)),"PASS"),COUNTIF(INDIRECT("'Success Criteria'!" & ADDRESS(10,A79+4)):INDIRECT("'Success Criteria'!" & ADDRESS(72,A79+4)),"PASS with comments")) -> 0 | F79: =COUNTIF(INDIRECT("'Success Criteria'!" & ADDRESS(10,A79+4)):INDIRECT("'Success Criteria'!" & ADDRESS(72,A79+4)),"NON conformant") -> 0 | G79: =COUNTIF(INDIRECT("'Success Criteria'!" & ADDRESS(10,A79+4)):INDIRECT("'Success Criteria'!" & ADDRESS(72,A79+4)),"N/A") -> 0 | H79: =COUNTIF(INDIRECT("'Success Criteria'!" & ADDRESS(10,A79+4)):INDIRECT("'Success Criteria'!" & ADDRESS(72,A79+4)),"not tested") -> 0 | I79: =SUM(COUNTIF(INDIRECT("'Success Criteria'!" & ADDRESS(76,A79+4)):INDIRECT("'Success Criteria'!" & ADDRESS(119,A79+4)),"PASS"),COUNTIF(INDIRECT("'Success Criteria'!" & ADDRESS(76,A79+4)):INDIRECT("'Success Criteria'!" & ADDRESS(119,A79+4)),"PASS with comments")) -> 2 | J79: =COUNTIF(INDIRECT("'Success Criteria'!" & ADDRESS(76,A79+4)):INDIRECT("'Success Criteria'!" & ADDRESS(119,A79+4)),"NON conformant") -> 0 | K79: =COUNTIF(INDIRECT("'Success Criteria'!" & ADDRESS(76,A79+4)):INDIRECT("'Success Criteria'!" & ADDRESS(119,A79+4)),"N/A") -> 0 | L79: =COUNTIF(INDIRECT("'Success Criteria'!" & ADDRESS(76,A79+4)):INDIRECT("'Success Criteria'!" & ADDRESS(119,A79+4)),"not tested") -> 0 | M79: =SUM(COUNTIF(INDIRECT("'Success Criteria'!" & ADDRESS(124,A79+4)):INDIRECT("'Success Criteria'!" & ADDRESS(178,A79+4)),"PASS"),COUNTIF(INDIRECT("'Success Criteria'!" & ADDRESS(124,A79+4)):INDIRECT("'Success Criteria'!" & ADDRESS(178,A79+4)),"PASS with comments")) -> 0 | N79: =COUNTIF(INDIRECT("'Success Criteria'!" & ADDRESS(124,A79+4)):INDIRECT("'Success Criteria'!" & ADDRESS(178,A79+4)),"NON conformant") -> 0 | O79: =COUNTIF(INDIRECT("'Success Criteria'!" & ADDRESS(124,A79+4)):INDIRECT("'Success Criteria'!" & ADDRESS(178,A79+4)),"N/A") -> 0 | P79: =COUNTIF(INDIRECT("'Success Criteria'!" & ADDRESS(124,A79+4)):INDIRECT("'Success Criteria'!" & ADDRESS(178,A79+4)),"not tested") -> 28 | Q79: 2 | R79: 0 | S79: 0 | T79: 28 | V79: 0 | X79: 2 | Z79: 28 | AA79: 1
A80: =HYPERLINK("#'Success Criteria'!"&ADDRESS(1,ROW()-10,4),ROW()-14) -> 66 | B80: Page 66 | C80: URL 66 | D80: Please select | E80: =SUM(COUNTIF(INDIRECT("'Success Criteria'!" & ADDRESS(10,A80+4)):INDIRECT("'Success Criteria'!" & ADDRESS(72,A80+4)),"PASS"),COUNTIF(INDIRECT("'Success Criteria'!" & ADDRESS(10,A80+4)):INDIRECT("'Success Criteria'!" & ADDRESS(72,A80+4)),"PASS with comments")) -> 0 | F80: =COUNTIF(INDIRECT("'Success Criteria'!" & ADDRESS(10,A80+4)):INDIRECT("'Success Criteria'!" & ADDRESS(72,A80+4)),"NON conformant") -> 0 | G80: =COUNTIF(INDIRECT("'Success Criteria'!" & ADDRESS(10,A80+4)):INDIRECT("'Success Criteria'!" & ADDRESS(72,A80+4)),"N/A") -> 0 | H80: =COUNTIF(INDIRECT("'Success Criteria'!" & ADDRESS(10,A80+4)):INDIRECT("'Success Criteria'!" & ADDRESS(72,A80+4)),"not tested") -> 0 | I80: =SUM(COUNTIF(INDIRECT("'Success Criteria'!" & ADDRESS(76,A80+4)):INDIRECT("'Success Criteria'!" & ADDRESS(119,A80+4)),"PASS"),COUNTIF(INDIRECT("'Success Criteria'!" & ADDRESS(76,A80+4)):INDIRECT("'Success Criteria'!" & ADDRESS(119,A80+4)),"PASS with comments")) -> 2 | J80: =COUNTIF(INDIRECT("'Success Criteria'!" & ADDRESS(76,A80+4)):INDIRECT("'Success Criteria'!" & ADDRESS(119,A80+4)),"NON conformant") -> 0 | K80: =COUNTIF(INDIRECT("'Success Criteria'!" & ADDRESS(76,A80+4)):INDIRECT("'Success Criteria'!" & ADDRESS(119,A80+4)),"N/A") -> 0 | L80: =COUNTIF(INDIRECT("'Success Criteria'!" & ADDRESS(76,A80+4)):INDIRECT("'Success Criteria'!" & ADDRESS(119,A80+4)),"not tested") -> 0 | M80: =SUM(COUNTIF(INDIRECT("'Success Criteria'!" & ADDRESS(124,A80+4)):INDIRECT("'Success Criteria'!" & ADDRESS(178,A80+4)),"PASS"),COUNTIF(INDIRECT("'Success Criteria'!" & ADDRESS(124,A80+4)):INDIRECT("'Success Criteria'!" & ADDRESS(178,A80+4)),"PASS with comments")) -> 0 | N80: =COUNTIF(INDIRECT("'Success Criteria'!" & ADDRESS(124,A80+4)):INDIRECT("'Success Criteria'!" & ADDRESS(178,A80+4)),"NON conformant") -> 0 | O80: =COUNTIF(INDIRECT("'Success Criteria'!" & ADDRESS(124,A80+4)):INDIRECT("'Success Criteria'!" & ADDRESS(178,A80+4)),"N/A") -> 0 | P80: =COUNTIF(INDIRECT("'Success Criteria'!" & ADDRESS(124,A80+4)):INDIRECT("'Success Criteria'!" & ADDRESS(178,A80+4)),"not tested") -> 28 | Q80: =SUM(E80+I80+M80) -> 2 | R80: 0 | S80: 0 | T80: 28 | V80: 0 | X80: =SUM($I80:$L80) -> 2 | Z80: =SUM($M80:$P80) -> 28 | AA80: 1
A81: 67 | B81: Page 67 | C81: URL 67 | D81: Please select | E81: =SUM(COUNTIF(INDIRECT("'Success Criteria'!" & ADDRESS(10,A81+4)):INDIRECT("'Success Criteria'!" & ADDRESS(72,A81+4)),"PASS"),COUNTIF(INDIRECT("'Success Criteria'!" & ADDRESS(10,A81+4)):INDIRECT("'Success Criteria'!" & ADDRESS(72,A81+4)),"PASS with comments")) -> 0 | F81: =COUNTIF(INDIRECT("'Success Criteria'!" & ADDRESS(10,A81+4)):INDIRECT("'Success Criteria'!" & ADDRESS(72,A81+4)),"NON conformant") -> 0 | G81: =COUNTIF(INDIRECT("'Success Criteria'!" & ADDRESS(10,A81+4)):INDIRECT("'Success Criteria'!" & ADDRESS(72,A81+4)),"N/A") -> 0 | H81: =COUNTIF(INDIRECT("'Success Criteria'!" & ADDRESS(10,A81+4)):INDIRECT("'Success Criteria'!" & ADDRESS(72,A81+4)),"not tested") -> 0 | I81: =SUM(COUNTIF(INDIRECT("'Success Criteria'!" & ADDRESS(76,A81+4)):INDIRECT("'Success Criteria'!" & ADDRESS(119,A81+4)),"PASS"),COUNTIF(INDIRECT("'Success Criteria'!" & ADDRESS(76,A81+4)):INDIRECT("'Success Criteria'!" & ADDRESS(119,A81+4)),"PASS with comments")) -> 2 | J81: =COUNTIF(INDIRECT("'Success Criteria'!" & ADDRESS(76,A81+4)):INDIRECT("'Success Criteria'!" & ADDRESS(119,A81+4)),"NON conformant") -> 0 | K81: =COUNTIF(INDIRECT("'Success Criteria'!" & ADDRESS(76,A81+4)):INDIRECT("'Success Criteria'!" & ADDRESS(119,A81+4)),"N/A") -> 0 | L81: =COUNTIF(INDIRECT("'Success Criteria'!" & ADDRESS(76,A81+4)):INDIRECT("'Success Criteria'!" & ADDRESS(119,A81+4)),"not tested") -> 0 | M81: =SUM(COUNTIF(INDIRECT("'Success Criteria'!" & ADDRESS(124,A81+4)):INDIRECT("'Success Criteria'!" & ADDRESS(178,A81+4)),"PASS"),COUNTIF(INDIRECT("'Success Criteria'!" & ADDRESS(124,A81+4)):INDIRECT("'Success Criteria'!" & ADDRESS(178,A81+4)),"PASS with comments")) -> 0 | N81: =COUNTIF(INDIRECT("'Success Criteria'!" & ADDRESS(124,A81+4)):INDIRECT("'Success Criteria'!" & ADDRESS(178,A81+4)),"NON conformant") -> 0 | O81: =COUNTIF(INDIRECT("'Success Criteria'!" & ADDRESS(124,A81+4)):INDIRECT("'Success Criteria'!" & ADDRESS(178,A81+4)),"N/A") -> 0 | P81: =COUNTIF(INDIRECT("'Success Criteria'!" & ADDRESS(124,A81+4)):INDIRECT("'Success Criteria'!" & ADDRESS(178,A81+4)),"not tested") -> 28 | Q81: 2 | R81: =SUM(F81+J81+N81) -> 0 | S81: 0 | T81: 28 | V81: 0 | X81: 2 | Z81: 28 | AA81: 1
A82: 68 | B82: Page 68 | C82: URL 68 | D82: Please select | E82: =SUM(COUNTIF(INDIRECT("'Success Criteria'!" & ADDRESS(10,A82+4)):INDIRECT("'Success Criteria'!" & ADDRESS(72,A82+4)),"PASS"),COUNTIF(INDIRECT("'Success Criteria'!" & ADDRESS(10,A82+4)):INDIRECT("'Success Criteria'!" & ADDRESS(72,A82+4)),"PASS with comments")) -> 0 | F82: =COUNTIF(INDIRECT("'Success Criteria'!" & ADDRESS(10,A82+4)):INDIRECT("'Success Criteria'!" & ADDRESS(72,A82+4)),"NON conformant") -> 0 | G82: =COUNTIF(INDIRECT("'Success Criteria'!" & ADDRESS(10,A82+4)):INDIRECT("'Success Criteria'!" & ADDRESS(72,A82+4)),"N/A") -> 0 | H82: =COUNTIF(INDIRECT("'Success Criteria'!" & ADDRESS(10,A82+4)):INDIRECT("'Success Criteria'!" & ADDRESS(72,A82+4)),"not tested") -> 0 | I82: =SUM(COUNTIF(INDIRECT("'Success Criteria'!" & ADDRESS(76,A82+4)):INDIRECT("'Success Criteria'!" & ADDRESS(119,A82+4)),"PASS"),COUNTIF(INDIRECT("'Success Criteria'!" & ADDRESS(76,A82+4)):INDIRECT("'Success Criteria'!" & ADDRESS(119,A82+4)),"PASS with comments")) -> 2 | J82: =COUNTIF(INDIRECT("'Success Criteria'!" & ADDRESS(76,A82+4)):INDIRECT("'Success Criteria'!" & ADDRESS(119,A82+4)),"NON conformant") -> 0 | K82: =COUNTIF(INDIRECT("'Success Criteria'!" & ADDRESS(76,A82+4)):INDIRECT("'Success Criteria'!" & ADDRESS(119,A82+4)),"N/A") -> 0 | L82: =COUNTIF(INDIRECT("'Success Criteria'!" & ADDRESS(76,A82+4)):INDIRECT("'Success Criteria'!" & ADDRESS(119,A82+4)),"not tested") -> 0 | M82: =SUM(COUNTIF(INDIRECT("'Success Criteria'!" & ADDRESS(124,A82+4)):INDIRECT("'Success Criteria'!" & ADDRESS(178,A82+4)),"PASS"),COUNTIF(INDIRECT("'Success Criteria'!" & ADDRESS(124,A82+4)):INDIRECT("'Success Criteria'!" & ADDRESS(178,A82+4)),"PASS with comments")) -> 0 | N82: =COUNTIF(INDIRECT("'Success Criteria'!" & ADDRESS(124,A82+4)):INDIRECT("'Success Criteria'!" & ADDRESS(178,A82+4)),"NON conformant") -> 0 | O82: =COUNTIF(INDIRECT("'Success Criteria'!" & ADDRESS(124,A82+4)):INDIRECT("'Success Criteria'!" & ADDRESS(178,A82+4)),"N/A") -> 0 | P82: =COUNTIF(INDIRECT("'Success Criteria'!" & ADDRESS(124,A82+4)):INDIRECT("'Success Criteria'!" & ADDRESS(178,A82+4)),"not tested") -> 28 | Q82: 2 | R82: 0 | S82: 0 | T82: 28 | V82: 0 | X82: 2 | Z82: 28 | AA82: 1
A83: 69 | B83: Page 69 | C83: URL 69 | D83: Please select | E83: =SUM(COUNTIF(INDIRECT("'Success Criteria'!" & ADDRESS(10,A83+4)):INDIRECT("'Success Criteria'!" & ADDRESS(72,A83+4)),"PASS"),COUNTIF(INDIRECT("'Success Criteria'!" & ADDRESS(10,A83+4)):INDIRECT("'Success Criteria'!" & ADDRESS(72,A83+4)),"PASS with comments")) -> 0 | F83: =COUNTIF(INDIRECT("'Success Criteria'!" & ADDRESS(10,A83+4)):INDIRECT("'Success Criteria'!" & ADDRESS(72,A83+4)),"NON conformant") -> 0 | G83: =COUNTIF(INDIRECT("'Success Criteria'!" & ADDRESS(10,A83+4)):INDIRECT("'Success Criteria'!" & ADDRESS(72,A83+4)),"N/A") -> 0 | H83: =COUNTIF(INDIRECT("'Success Criteria'!" & ADDRESS(10,A83+4)):INDIRECT("'Success Criteria'!" & ADDRESS(72,A83+4)),"not tested") -> 0 | I83: =SUM(COUNTIF(INDIRECT("'Success Criteria'!" & ADDRESS(76,A83+4)):INDIRECT("'Success Criteria'!" & ADDRESS(119,A83+4)),"PASS"),COUNTIF(INDIRECT("'Success Criteria'!" & ADDRESS(76,A83+4)):INDIRECT("'Success Criteria'!" & ADDRESS(119,A83+4)),"PASS with comments")) -> 2 | J83: =COUNTIF(INDIRECT("'Success Criteria'!" & ADDRESS(76,A83+4)):INDIRECT("'Success Criteria'!" & ADDRESS(119,A83+4)),"NON conformant") -> 0 | K83: =COUNTIF(INDIRECT("'Success Criteria'!" & ADDRESS(76,A83+4)):INDIRECT("'Success Criteria'!" & ADDRESS(119,A83+4)),"N/A") -> 0 | L83: =COUNTIF(INDIRECT("'Success Criteria'!" & ADDRESS(76,A83+4)):INDIRECT("'Success Criteria'!" & ADDRESS(119,A83+4)),"not tested") -> 0 | M83: =SUM(COUNTIF(INDIRECT("'Success Criteria'!" & ADDRESS(124,A83+4)):INDIRECT("'Success Criteria'!" & ADDRESS(178,A83+4)),"PASS"),COUNTIF(INDIRECT("'Success Criteria'!" & ADDRESS(124,A83+4)):INDIRECT("'Success Criteria'!" & ADDRESS(178,A83+4)),"PASS with comments")) -> 0 | N83: =COUNTIF(INDIRECT("'Success Criteria'!" & ADDRESS(124,A83+4)):INDIRECT("'Success Criteria'!" & ADDRESS(178,A83+4)),"NON conformant") -> 0 | O83: =COUNTIF(INDIRECT("'Success Criteria'!" & ADDRESS(124,A83+4)):INDIRECT("'Success Criteria'!" & ADDRESS(178,A83+4)),"N/A") -> 0 | P83: =COUNTIF(INDIRECT("'Success Criteria'!" & ADDRESS(124,A83+4)):INDIRECT("'Success Criteria'!" & ADDRESS(178,A83+4)),"not tested") -> 28 | Q83: 2 | R83: 0 | S83: 0 | T83: 28 | V83: 0 | X83: 2 | Z83: 28 | AA83: 1
A84: 70 | B84: Page 70 | C84: URL 70 | D84: Please select | E84: =SUM(COUNTIF(INDIRECT("'Success Criteria'!" & ADDRESS(10,A84+4)):INDIRECT("'Success Criteria'!" & ADDRESS(72,A84+4)),"PASS"),COUNTIF(INDIRECT("'Success Criteria'!" & ADDRESS(10,A84+4)):INDIRECT("'Success Criteria'!" & ADDRESS(72,A84+4)),"PASS with comments")) -> 0 | F84: =COUNTIF(INDIRECT("'Success Criteria'!" & ADDRESS(10,A84+4)):INDIRECT("'Success Criteria'!" & ADDRESS(72,A84+4)),"NON conformant") -> 0 | G84: =COUNTIF(INDIRECT("'Success Criteria'!" & ADDRESS(10,A84+4)):INDIRECT("'Success Criteria'!" & ADDRESS(72,A84+4)),"N/A") -> 0 | H84: =COUNTIF(INDIRECT("'Success Criteria'!" & ADDRESS(10,A84+4)):INDIRECT("'Success Criteria'!" & ADDRESS(72,A84+4)),"not tested") -> 0 | I84: =SUM(COUNTIF(INDIRECT("'Success Criteria'!" & ADDRESS(76,A84+4)):INDIRECT("'Success Criteria'!" & ADDRESS(119,A84+4)),"PASS"),COUNTIF(INDIRECT("'Success Criteria'!" & ADDRESS(76,A84+4)):INDIRECT("'Success Criteria'!" & ADDRESS(119,A84+4)),"PASS with comments")) -> 2 | J84: =COUNTIF(INDIRECT("'Success Criteria'!" & ADDRESS(76,A84+4)):INDIRECT("'Success Criteria'!" & ADDRESS(119,A84+4)),"NON conformant") -> 0 | K84: =COUNTIF(INDIRECT("'Success Criteria'!" & ADDRESS(76,A84+4)):INDIRECT("'Success Criteria'!" & ADDRESS(119,A84+4)),"N/A") -> 0 | L84: =COUNTIF(INDIRECT("'Success Criteria'!" & ADDRESS(76,A84+4)):INDIRECT("'Success Criteria'!" & ADDRESS(119,A84+4)),"not tested") -> 0 | M84: =SUM(COUNTIF(INDIRECT("'Success Criteria'!" & ADDRESS(124,A84+4)):INDIRECT("'Success Criteria'!" & ADDRESS(178,A84+4)),"PASS"),COUNTIF(INDIRECT("'Success Criteria'!" & ADDRESS(124,A84+4)):INDIRECT("'Success Criteria'!" & ADDRESS(178,A84+4)),"PASS with comments")) -> 0 | N84: =COUNTIF(INDIRECT("'Success Criteria'!" & ADDRESS(124,A84+4)):INDIRECT("'Success Criteria'!" & ADDRESS(178,A84+4)),"NON conformant") -> 0 | O84: =COUNTIF(INDIRECT("'Success Criteria'!" & ADDRESS(124,A84+4)):INDIRECT("'Success Criteria'!" & ADDRESS(178,A84+4)),"N/A") -> 0 | P84: =COUNTIF(INDIRECT("'Success Criteria'!" & ADDRESS(124,A84+4)):INDIRECT("'Success Criteria'!" & ADDRESS(178,A84+4)),"not tested") -> 28 | Q84: 2 | R84: 0 | S84: 0 | T84: 28 | V84: 0 | X84: 2 | Z84: 28 | AA84: 1
A85: 71 | B85: Page 71 | C85: URL 71 | D85: Please select | E85: =SUM(COUNTIF(INDIRECT("'Success Criteria'!" & ADDRESS(10,A85+4)):INDIRECT("'Success Criteria'!" & ADDRESS(72,A85+4)),"PASS"),COUNTIF(INDIRECT("'Success Criteria'!" & ADDRESS(10,A85+4)):INDIRECT("'Success Criteria'!" & ADDRESS(72,A85+4)),"PASS with comments")) -> 0 | F85: =COUNTIF(INDIRECT("'Success Criteria'!" & ADDRESS(10,A85+4)):INDIRECT("'Success Criteria'!" & ADDRESS(72,A85+4)),"NON conformant") -> 0 | G85: =COUNTIF(INDIRECT("'Success Criteria'!" & ADDRESS(10,A85+4)):INDIRECT("'Success Criteria'!" & ADDRESS(72,A85+4)),"N/A") -> 0 | H85: =COUNTIF(INDIRECT("'Success Criteria'!" & ADDRESS(10,A85+4)):INDIRECT("'Success Criteria'!" & ADDRESS(72,A85+4)),"not tested") -> 0 | I85: =SUM(COUNTIF(INDIRECT("'Success Criteria'!" & ADDRESS(76,A85+4)):INDIRECT("'Success Criteria'!" & ADDRESS(119,A85+4)),"PASS"),COUNTIF(INDIRECT("'Success Criteria'!" & ADDRESS(76,A85+4)):INDIRECT("'Success Criteria'!" & ADDRESS(119,A85+4)),"PASS with comments")) -> 2 | J85: =COUNTIF(INDIRECT("'Success Criteria'!" & ADDRESS(76,A85+4)):INDIRECT("'Success Criteria'!" & ADDRESS(119,A85+4)),"NON conformant") -> 0 | K85: =COUNTIF(INDIRECT("'Success Criteria'!" & ADDRESS(76,A85+4)):INDIRECT("'Success Criteria'!" & ADDRESS(119,A85+4)),"N/A") -> 0 | L85: =COUNTIF(INDIRECT("'Success Criteria'!" & ADDRESS(76,A85+4)):INDIRECT("'Success Criteria'!" & ADDRESS(119,A85+4)),"not tested") -> 0 | M85: =SUM(COUNTIF(INDIRECT("'Success Criteria'!" & ADDRESS(124,A85+4)):INDIRECT("'Success Criteria'!" & ADDRESS(178,A85+4)),"PASS"),COUNTIF(INDIRECT("'Success Criteria'!" & ADDRESS(124,A85+4)):INDIRECT("'Success Criteria'!" & ADDRESS(178,A85+4)),"PASS with comments")) -> 0 | N85: =COUNTIF(INDIRECT("'Success Criteria'!" & ADDRESS(124,A85+4)):INDIRECT("'Success Criteria'!" & ADDRESS(178,A85+4)),"NON conformant") -> 0 | O85: =COUNTIF(INDIRECT("'Success Criteria'!" & ADDRESS(124,A85+4)):INDIRECT("'Success Criteria'!" & ADDRESS(178,A85+4)),"N/A") -> 0 | P85: =COUNTIF(INDIRECT("'Success Criteria'!" & ADDRESS(124,A85+4)):INDIRECT("'Success Criteria'!" & ADDRESS(178,A85+4)),"not tested") -> 28 | Q85: 2 | R85: 0 | S85: 0 | T85: 28 | V85: 0 | X85: 2 | Z85: 28 | AA85: 1
A86: 72 | B86: Page 72 | C86: URL 72 | D86: Please select | E86: =SUM(COUNTIF(INDIRECT("'Success Criteria'!" & ADDRESS(10,A86+4)):INDIRECT("'Success Criteria'!" & ADDRESS(72,A86+4)),"PASS"),COUNTIF(INDIRECT("'Success Criteria'!" & ADDRESS(10,A86+4)):INDIRECT("'Success Criteria'!" & ADDRESS(72,A86+4)),"PASS with comments")) -> 0 | F86: =COUNTIF(INDIRECT("'Success Criteria'!" & ADDRESS(10,A86+4)):INDIRECT("'Success Criteria'!" & ADDRESS(72,A86+4)),"NON conformant") -> 0 | G86: =COUNTIF(INDIRECT("'Success Criteria'!" & ADDRESS(10,A86+4)):INDIRECT("'Success Criteria'!" & ADDRESS(72,A86+4)),"N/A") -> 0 | H86: =COUNTIF(INDIRECT("'Success Criteria'!" & ADDRESS(10,A86+4)):INDIRECT("'Success Criteria'!" & ADDRESS(72,A86+4)),"not tested") -> 0 | I86: =SUM(COUNTIF(INDIRECT("'Success Criteria'!" & ADDRESS(76,A86+4)):INDIRECT("'Success Criteria'!" & ADDRESS(119,A86+4)),"PASS"),COUNTIF(INDIRECT("'Success Criteria'!" & ADDRESS(76,A86+4)):INDIRECT("'Success Criteria'!" & ADDRESS(119,A86+4)),"PASS with comments")) -> 2 | J86: =COUNTIF(INDIRECT("'Success Criteria'!" & ADDRESS(76,A86+4)):INDIRECT("'Success Criteria'!" & ADDRESS(119,A86+4)),"NON conformant") -> 0 | K86: =COUNTIF(INDIRECT("'Success Criteria'!" & ADDRESS(76,A86+4)):INDIRECT("'Success Criteria'!" & ADDRESS(119,A86+4)),"N/A") -> 0 | L86: =COUNTIF(INDIRECT("'Success Criteria'!" & ADDRESS(76,A86+4)):INDIRECT("'Success Criteria'!" & ADDRESS(119,A86+4)),"not tested") -> 0 | M86: =SUM(COUNTIF(INDIRECT("'Success Criteria'!" & ADDRESS(124,A86+4)):INDIRECT("'Success Criteria'!" & ADDRESS(178,A86+4)),"PASS"),COUNTIF(INDIRECT("'Success Criteria'!" & ADDRESS(124,A86+4)):INDIRECT("'Success Criteria'!" & ADDRESS(178,A86+4)),"PASS with comments")) -> 0 | N86: =COUNTIF(INDIRECT("'Success Criteria'!" & ADDRESS(124,A86+4)):INDIRECT("'Success Criteria'!" & ADDRESS(178,A86+4)),"NON conformant") -> 0 | O86: =COUNTIF(INDIRECT("'Success Criteria'!" & ADDRESS(124,A86+4)):INDIRECT("'Success Criteria'!" & ADDRESS(178,A86+4)),"N/A") -> 0 | P86: =COUNTIF(INDIRECT("'Success Criteria'!" & ADDRESS(124,A86+4)):INDIRECT("'Success Criteria'!" & ADDRESS(178,A86+4)),"not tested") -> 28 | Q86: 2 | R86: 0 | S86: 0 | T86: 28 | V86: 0 | X86: 2 | Z86: 28 | AA86: 1
A87: 73 | B87: Page 73 | C87: URL 73 | D87: Please select | E87: =SUM(COUNTIF(INDIRECT("'Success Criteria'!" & ADDRESS(10,A87+4)):INDIRECT("'Success Criteria'!" & ADDRESS(72,A87+4)),"PASS"),COUNTIF(INDIRECT("'Success Criteria'!" & ADDRESS(10,A87+4)):INDIRECT("'Success Criteria'!" & ADDRESS(72,A87+4)),"PASS with comments")) -> 0 | F87: =COUNTIF(INDIRECT("'Success Criteria'!" & ADDRESS(10,A87+4)):INDIRECT("'Success Criteria'!" & ADDRESS(72,A87+4)),"NON conformant") -> 0 | G87: =COUNTIF(INDIRECT("'Success Criteria'!" & ADDRESS(10,A87+4)):INDIRECT("'Success Criteria'!" & ADDRESS(72,A87+4)),"N/A") -> 0 | H87: =COUNTIF(INDIRECT("'Success Criteria'!" & ADDRESS(10,A87+4)):INDIRECT("'Success Criteria'!" & ADDRESS(72,A87+4)),"not tested") -> 0 | I87: =SUM(COUNTIF(INDIRECT("'Success Criteria'!" & ADDRESS(76,A87+4)):INDIRECT("'Success Criteria'!" & ADDRESS(119,A87+4)),"PASS"),COUNTIF(INDIRECT("'Success Criteria'!" & ADDRESS(76,A87+4)):INDIRECT("'Success Criteria'!" & ADDRESS(119,A87+4)),"PASS with comments")) -> 2 | J87: =COUNTIF(INDIRECT("'Success Criteria'!" & ADDRESS(76,A87+4)):INDIRECT("'Success Criteria'!" & ADDRESS(119,A87+4)),"NON conformant") -> 0 | K87: =COUNTIF(INDIRECT("'Success Criteria'!" & ADDRESS(76,A87+4)):INDIRECT("'Success Criteria'!" & ADDRESS(119,A87+4)),"N/A") -> 0 | L87: =COUNTIF(INDIRECT("'Success Criteria'!" & ADDRESS(76,A87+4)):INDIRECT("'Success Criteria'!" & ADDRESS(119,A87+4)),"not tested") -> 0 | M87: =SUM(COUNTIF(INDIRECT("'Success Criteria'!" & ADDRESS(124,A87+4)):INDIRECT("'Success Criteria'!" & ADDRESS(178,A87+4)),"PASS"),COUNTIF(INDIRECT("'Success Criteria'!" & ADDRESS(124,A87+4)):INDIRECT("'Success Criteria'!" & ADDRESS(178,A87+4)),"PASS with comments")) -> 0 | N87: =COUNTIF(INDIRECT("'Success Criteria'!" & ADDRESS(124,A87+4)):INDIRECT("'Success Criteria'!" & ADDRESS(178,A87+4)),"NON conformant") -> 0 | O87: =COUNTIF(INDIRECT("'Success Criteria'!" & ADDRESS(124,A87+4)):INDIRECT("'Success Criteria'!" & ADDRESS(178,A87+4)),"N/A") -> 0 | P87: =COUNTIF(INDIRECT("'Success Criteria'!" & ADDRESS(124,A87+4)):INDIRECT("'Success Criteria'!" & ADDRESS(178,A87+4)),"not tested") -> 28 | Q87: 2 | R87: 0 | S87: 0 | T87: 28 | V87: 0 | X87: 2 | Z87: 28 | AA87: 1
A88: 74 | B88: Page 74 | C88: URL 74 | D88: Please select | E88: =SUM(COUNTIF(INDIRECT("'Success Criteria'!" & ADDRESS(10,A88+4)):INDIRECT("'Success Criteria'!" & ADDRESS(72,A88+4)),"PASS"),COUNTIF(INDIRECT("'Success Criteria'!" & ADDRESS(10,A88+4)):INDIRECT("'Success Criteria'!" & ADDRESS(72,A88+4)),"PASS with comments")) -> 0 | F88: =COUNTIF(INDIRECT("'Success Criteria'!" & ADDRESS(10,A88+4)):INDIRECT("'Success Criteria'!" & ADDRESS(72,A88+4)),"NON conformant") -> 0 | G88: =COUNTIF(INDIRECT("'Success Criteria'!" & ADDRESS(10,A88+4)):INDIRECT("'Success Criteria'!" & ADDRESS(72,A88+4)),"N/A") -> 0 | H88: =COUNTIF(INDIRECT("'Success Criteria'!" & ADDRESS(10,A88+4)):INDIRECT("'Success Criteria'!" & ADDRESS(72,A88+4)),"not tested") -> 0 | I88: =SUM(COUNTIF(INDIRECT("'Success Criteria'!" & ADDRESS(76,A88+4)):INDIRECT("'Success Criteria'!" & ADDRESS(119,A88+4)),"PASS"),COUNTIF(INDIRECT("'Success Criteria'!" & ADDRESS(76,A88+4)):INDIRECT("'Success Criteria'!" & ADDRESS(119,A88+4)),"PASS with comments")) -> 2 | J88: =COUNTIF(INDIRECT("'Success Criteria'!" & ADDRESS(76,A88+4)):INDIRECT("'Success Criteria'!" & ADDRESS(119,A88+4)),"NON conformant") -> 0 | K88: =COUNTIF(INDIRECT("'Success Criteria'!" & ADDRESS(76,A88+4)):INDIRECT("'Success Criteria'!" & ADDRESS(119,A88+4)),"N/A") -> 0 | L88: =COUNTIF(INDIRECT("'Success Criteria'!" & ADDRESS(76,A88+4)):INDIRECT("'Success Criteria'!" & ADDRESS(119,A88+4)),"not tested") -> 0 | M88: =SUM(COUNTIF(INDIRECT("'Success Criteria'!" & ADDRESS(124,A88+4)):INDIRECT("'Success Criteria'!" & ADDRESS(178,A88+4)),"PASS"),COUNTIF(INDIRECT("'Success Criteria'!" & ADDRESS(124,A88+4)):INDIRECT("'Success Criteria'!" & ADDRESS(178,A88+4)),"PASS with comments")) -> 0 | N88: =COUNTIF(INDIRECT("'Success Criteria'!" & ADDRESS(124,A88+4)):INDIRECT("'Success Criteria'!" & ADDRESS(178,A88+4)),"NON conformant") -> 0 | O88: =COUNTIF(INDIRECT("'Success Criteria'!" & ADDRESS(124,A88+4)):INDIRECT("'Success Criteria'!" & ADDRESS(178,A88+4)),"N/A") -> 0 | P88: =COUNTIF(INDIRECT("'Success Criteria'!" & ADDRESS(124,A88+4)):INDIRECT("'Success Criteria'!" & ADDRESS(178,A88+4)),"not tested") -> 28 | Q88: 2 | R88: 0 | S88: 0 | T88: 28 | V88: 0 | X88: 2 | Z88: 28 | AA88: 1
A89: 75 | B89: Page 75 | C89: URL 75 | D89: Please select | E89: =SUM(COUNTIF(INDIRECT("'Success Criteria'!" & ADDRESS(10,A89+4)):INDIRECT("'Success Criteria'!" & ADDRESS(72,A89+4)),"PASS"),COUNTIF(INDIRECT("'Success Criteria'!" & ADDRESS(10,A89+4)):INDIRECT("'Success Criteria'!" & ADDRESS(72,A89+4)),"PASS with comments")) -> 0 | F89: =COUNTIF(INDIRECT("'Success Criteria'!" & ADDRESS(10,A89+4)):INDIRECT("'Success Criteria'!" & ADDRESS(72,A89+4)),"NON conformant") -> 0 | G89: =COUNTIF(INDIRECT("'Success Criteria'!" & ADDRESS(10,A89+4)):INDIRECT("'Success Criteria'!" & ADDRESS(72,A89+4)),"N/A") -> 0 | H89: =COUNTIF(INDIRECT("'Success Criteria'!" & ADDRESS(10,A89+4)):INDIRECT("'Success Criteria'!" & ADDRESS(72,A89+4)),"not tested") -> 0 | I89: =SUM(COUNTIF(INDIRECT("'Success Criteria'!" & ADDRESS(76,A89+4)):INDIRECT("'Success Criteria'!" & ADDRESS(119,A89+4)),"PASS"),COUNTIF(INDIRECT("'Success Criteria'!" & ADDRESS(76,A89+4)):INDIRECT("'Success Criteria'!" & ADDRESS(119,A89+4)),"PASS with comments")) -> 2 | J89: =COUNTIF(INDIRECT("'Success Criteria'!" & ADDRESS(76,A89+4)):INDIRECT("'Success Criteria'!" & ADDRESS(119,A89+4)),"NON conformant") -> 0 | K89: =COUNTIF(INDIRECT("'Success Criteria'!" & ADDRESS(76,A89+4)):INDIRECT("'Success Criteria'!" & ADDRESS(119,A89+4)),"N/A") -> 0 | L89: =COUNTIF(INDIRECT("'Success Criteria'!" & ADDRESS(76,A89+4)):INDIRECT("'Success Criteria'!" & ADDRESS(119,A89+4)),"not tested") -> 0 | M89: =SUM(COUNTIF(INDIRECT("'Success Criteria'!" & ADDRESS(124,A89+4)):INDIRECT("'Success Criteria'!" & ADDRESS(178,A89+4)),"PASS"),COUNTIF(INDIRECT("'Success Criteria'!" & ADDRESS(124,A89+4)):INDIRECT("'Success Criteria'!" & ADDRESS(178,A89+4)),"PASS with comments")) -> 0 | N89: =COUNTIF(INDIRECT("'Success Criteria'!" & ADDRESS(124,A89+4)):INDIRECT("'Success Criteria'!" & ADDRESS(178,A89+4)),"NON conformant") -> 0 | O89: =COUNTIF(INDIRECT("'Success Criteria'!" & ADDRESS(124,A89+4)):INDIRECT("'Success Criteria'!" & ADDRESS(178,A89+4)),"N/A") -> 0 | P89: =COUNTIF(INDIRECT("'Success Criteria'!" & ADDRESS(124,A89+4)):INDIRECT("'Success Criteria'!" & ADDRESS(178,A89+4)),"not tested") -> 28 | Q89: 2 | R89: 0 | S89: 0 | T89: 28 | V89: 0 | X89: 2 | Z89: 28 | AA89: 1
A90: 76 | B90: Page 76 | C90: URL 76 | D90: Please select | E90: =SUM(COUNTIF(INDIRECT("'Success Criteria'!" & ADDRESS(10,A90+4)):INDIRECT("'Success Criteria'!" & ADDRESS(72,A90+4)),"PASS"),COUNTIF(INDIRECT("'Success Criteria'!" & ADDRESS(10,A90+4)):INDIRECT("'Success Criteria'!" & ADDRESS(72,A90+4)),"PASS with comments")) -> 0 | F90: =COUNTIF(INDIRECT("'Success Criteria'!" & ADDRESS(10,A90+4)):INDIRECT("'Success Criteria'!" & ADDRESS(72,A90+4)),"NON conformant") -> 0 | G90: =COUNTIF(INDIRECT("'Success Criteria'!" & ADDRESS(10,A90+4)):INDIRECT("'Success Criteria'!" & ADDRESS(72,A90+4)),"N/A") -> 0 | H90: =COUNTIF(INDIRECT("'Success Criteria'!" & ADDRESS(10,A90+4)):INDIRECT("'Success Criteria'!" & ADDRESS(72,A90+4)),"not tested") -> 0 | I90: =SUM(COUNTIF(INDIRECT("'Success Criteria'!" & ADDRESS(76,A90+4)):INDIRECT("'Success Criteria'!" & ADDRESS(119,A90+4)),"PASS"),COUNTIF(INDIRECT("'Success Criteria'!" & ADDRESS(76,A90+4)):INDIRECT("'Success Criteria'!" & ADDRESS(119,A90+4)),"PASS with comments")) -> 2 | J90: =COUNTIF(INDIRECT("'Success Criteria'!" & ADDRESS(76,A90+4)):INDIRECT("'Success Criteria'!" & ADDRESS(119,A90+4)),"NON conformant") -> 0 | K90: =COUNTIF(INDIRECT("'Success Criteria'!" & ADDRESS(76,A90+4)):INDIRECT("'Success Criteria'!" & ADDRESS(119,A90+4)),"N/A") -> 0 | L90: =COUNTIF(INDIRECT("'Success Criteria'!" & ADDRESS(76,A90+4)):INDIRECT("'Success Criteria'!" & ADDRESS(119,A90+4)),"not tested") -> 0 | M90: =SUM(COUNTIF(INDIRECT("'Success Criteria'!" & ADDRESS(124,A90+4)):INDIRECT("'Success Criteria'!" & ADDRESS(178,A90+4)),"PASS"),COUNTIF(INDIRECT("'Success Criteria'!" & ADDRESS(124,A90+4)):INDIRECT("'Success Criteria'!" & ADDRESS(178,A90+4)),"PASS with comments")) -> 0 | N90: =COUNTIF(INDIRECT("'Success Criteria'!" & ADDRESS(124,A90+4)):INDIRECT("'Success Criteria'!" & ADDRESS(178,A90+4)),"NON conformant") -> 0 | O90: =COUNTIF(INDIRECT("'Success Criteria'!" & ADDRESS(124,A90+4)):INDIRECT("'Success Criteria'!" & ADDRESS(178,A90+4)),"N/A") -> 0 | P90: =COUNTIF(INDIRECT("'Success Criteria'!" & ADDRESS(124,A90+4)):INDIRECT("'Success Criteria'!" & ADDRESS(178,A90+4)),"not tested") -> 28 | Q90: 2 | R90: 0 | S90: 0 | T90: 28 | V90: 0 | X90: 2 | Z90: 28 | AA90: 1
A91: 77 | B91: Page 77 | C91: URL 77 | D91: Please select | E91: =SUM(COUNTIF(INDIRECT("'Success Criteria'!" & ADDRESS(10,A91+4)):INDIRECT("'Success Criteria'!" & ADDRESS(72,A91+4)),"PASS"),COUNTIF(INDIRECT("'Success Criteria'!" & ADDRESS(10,A91+4)):INDIRECT("'Success Criteria'!" & ADDRESS(72,A91+4)),"PASS with comments")) -> 0 | F91: =COUNTIF(INDIRECT("'Success Criteria'!" & ADDRESS(10,A91+4)):INDIRECT("'Success Criteria'!" & ADDRESS(72,A91+4)),"NON conformant") -> 0 | G91: =COUNTIF(INDIRECT("'Success Criteria'!" & ADDRESS(10,A91+4)):INDIRECT("'Success Criteria'!" & ADDRESS(72,A91+4)),"N/A") -> 0 | H91: =COUNTIF(INDIRECT("'Success Criteria'!" & ADDRESS(10,A91+4)):INDIRECT("'Success Criteria'!" & ADDRESS(72,A91+4)),"not tested") -> 0 | I91: =SUM(COUNTIF(INDIRECT("'Success Criteria'!" & ADDRESS(76,A91+4)):INDIRECT("'Success Criteria'!" & ADDRESS(119,A91+4)),"PASS"),COUNTIF(INDIRECT("'Success Criteria'!" & ADDRESS(76,A91+4)):INDIRECT("'Success Criteria'!" & ADDRESS(119,A91+4)),"PASS with comments")) -> 2 | J91: =COUNTIF(INDIRECT("'Success Criteria'!" & ADDRESS(76,A91+4)):INDIRECT("'Success Criteria'!" & ADDRESS(119,A91+4)),"NON conformant") -> 0 | K91: =COUNTIF(INDIRECT("'Success Criteria'!" & ADDRESS(76,A91+4)):INDIRECT("'Success Criteria'!" & ADDRESS(119,A91+4)),"N/A") -> 0 | L91: =COUNTIF(INDIRECT("'Success Criteria'!" & ADDRESS(76,A91+4)):INDIRECT("'Success Criteria'!" & ADDRESS(119,A91+4)),"not tested") -> 0 | M91: =SUM(COUNTIF(INDIRECT("'Success Criteria'!" & ADDRESS(124,A91+4)):INDIRECT("'Success Criteria'!" & ADDRESS(178,A91+4)),"PASS"),COUNTIF(INDIRECT("'Success Criteria'!" & ADDRESS(124,A91+4)):INDIRECT("'Success Criteria'!" & ADDRESS(178,A91+4)),"PASS with comments")) -> 0 | N91: =COUNTIF(INDIRECT("'Success Criteria'!" & ADDRESS(124,A91+4)):INDIRECT("'Success Criteria'!" & ADDRESS(178,A91+4)),"NON conformant") -> 0 | O91: =COUNTIF(INDIRECT("'Success Criteria'!" & ADDRESS(124,A91+4)):INDIRECT("'Success Criteria'!" & ADDRESS(178,A91+4)),"N/A") -> 0 | P91: =COUNTIF(INDIRECT("'Success Criteria'!" & ADDRESS(124,A91+4)):INDIRECT("'Success Criteria'!" & ADDRESS(178,A91+4)),"not tested") -> 28 | Q91: 2 | R91: 0 | S91: 0 | T91: 28 | V91: 0 | X91: 2 | Z91: 28 | AA91: 1
A92: 78 | B92: Page 78 | C92: URL 78 | D92: Please select | E92: =SUM(COUNTIF(INDIRECT("'Success Criteria'!" & ADDRESS(10,A92+4)):INDIRECT("'Success Criteria'!" & ADDRESS(72,A92+4)),"PASS"),COUNTIF(INDIRECT("'Success Criteria'!" & ADDRESS(10,A92+4)):INDIRECT("'Success Criteria'!" & ADDRESS(72,A92+4)),"PASS with comments")) -> 0 | F92: =COUNTIF(INDIRECT("'Success Criteria'!" & ADDRESS(10,A92+4)):INDIRECT("'Success Criteria'!" & ADDRESS(72,A92+4)),"NON conformant") -> 0 | G92: =COUNTIF(INDIRECT("'Success Criteria'!" & ADDRESS(10,A92+4)):INDIRECT("'Success Criteria'!" & ADDRESS(72,A92+4)),"N/A") -> 0 | H92: =COUNTIF(INDIRECT("'Success Criteria'!" & ADDRESS(10,A92+4)):INDIRECT("'Success Criteria'!" & ADDRESS(72,A92+4)),"not tested") -> 0 | I92: =SUM(COUNTIF(INDIRECT("'Success Criteria'!" & ADDRESS(76,A92+4)):INDIRECT("'Success Criteria'!" & ADDRESS(119,A92+4)),"PASS"),COUNTIF(INDIRECT("'Success Criteria'!" & ADDRESS(76,A92+4)):INDIRECT("'Success Criteria'!" & ADDRESS(119,A92+4)),"PASS with comments")) -> 2 | J92: =COUNTIF(INDIRECT("'Success Criteria'!" & ADDRESS(76,A92+4)):INDIRECT("'Success Criteria'!" & ADDRESS(119,A92+4)),"NON conformant") -> 0 | K92: =COUNTIF(INDIRECT("'Success Criteria'!" & ADDRESS(76,A92+4)):INDIRECT("'Success Criteria'!" & ADDRESS(119,A92+4)),"N/A") -> 0 | L92: =COUNTIF(INDIRECT("'Success Criteria'!" & ADDRESS(76,A92+4)):INDIRECT("'Success Criteria'!" & ADDRESS(119,A92+4)),"not tested") -> 0 | M92: =SUM(COUNTIF(INDIRECT("'Success Criteria'!" & ADDRESS(124,A92+4)):INDIRECT("'Success Criteria'!" & ADDRESS(178,A92+4)),"PASS"),COUNTIF(INDIRECT("'Success Criteria'!" & ADDRESS(124,A92+4)):INDIRECT("'Success Criteria'!" & ADDRESS(178,A92+4)),"PASS with comments")) -> 0 | N92: =COUNTIF(INDIRECT("'Success Criteria'!" & ADDRESS(124,A92+4)):INDIRECT("'Success Criteria'!" & ADDRESS(178,A92+4)),"NON conformant") -> 0 | O92: =COUNTIF(INDIRECT("'Success Criteria'!" & ADDRESS(124,A92+4)):INDIRECT("'Success Criteria'!" & ADDRESS(178,A92+4)),"N/A") -> 0 | P92: =COUNTIF(INDIRECT("'Success Criteria'!" & ADDRESS(124,A92+4)):INDIRECT("'Success Criteria'!" & ADDRESS(178,A92+4)),"not tested") -> 28 | Q92: 2 | R92: 0 | S92: 0 | T92: 28 | V92: 0 | X92: 2 | Z92: 28 | AA92: 1
A93: 79 | B93: Page 79 | C93: URL 79 | D93: Please select | E93: =SUM(COUNTIF(INDIRECT("'Success Criteria'!" & ADDRESS(10,A93+4)):INDIRECT("'Success Criteria'!" & ADDRESS(72,A93+4)),"PASS"),COUNTIF(INDIRECT("'Success Criteria'!" & ADDRESS(10,A93+4)):INDIRECT("'Success Criteria'!" & ADDRESS(72,A93+4)),"PASS with comments")) -> 0 | F93: =COUNTIF(INDIRECT("'Success Criteria'!" & ADDRESS(10,A93+4)):INDIRECT("'Success Criteria'!" & ADDRESS(72,A93+4)),"NON conformant") -> 0 | G93: =COUNTIF(INDIRECT("'Success Criteria'!" & ADDRESS(10,A93+4)):INDIRECT("'Success Criteria'!" & ADDRESS(72,A93+4)),"N/A") -> 0 | H93: =COUNTIF(INDIRECT("'Success Criteria'!" & ADDRESS(10,A93+4)):INDIRECT("'Success Criteria'!" & ADDRESS(72,A93+4)),"not tested") -> 0 | I93: =SUM(COUNTIF(INDIRECT("'Success Criteria'!" & ADDRESS(76,A93+4)):INDIRECT("'Success Criteria'!" & ADDRESS(119,A93+4)),"PASS"),COUNTIF(INDIRECT("'Success Criteria'!" & ADDRESS(76,A93+4)):INDIRECT("'Success Criteria'!" & ADDRESS(119,A93+4)),"PASS with comments")) -> 2 | J93: =COUNTIF(INDIRECT("'Success Criteria'!" & ADDRESS(76,A93+4)):INDIRECT("'Success Criteria'!" & ADDRESS(119,A93+4)),"NON conformant") -> 0 | K93: =COUNTIF(INDIRECT("'Success Criteria'!" & ADDRESS(76,A93+4)):INDIRECT("'Success Criteria'!" & ADDRESS(119,A93+4)),"N/A") -> 0 | L93: =COUNTIF(INDIRECT("'Success Criteria'!" & ADDRESS(76,A93+4)):INDIRECT("'Success Criteria'!" & ADDRESS(119,A93+4)),"not tested") -> 0 | M93: =SUM(COUNTIF(INDIRECT("'Success Criteria'!" & ADDRESS(124,A93+4)):INDIRECT("'Success Criteria'!" & ADDRESS(178,A93+4)),"PASS"),COUNTIF(INDIRECT("'Success Criteria'!" & ADDRESS(124,A93+4)):INDIRECT("'Success Criteria'!" & ADDRESS(178,A93+4)),"PASS with comments")) -> 0 | N93: =COUNTIF(INDIRECT("'Success Criteria'!" & ADDRESS(124,A93+4)):INDIRECT("'Success Criteria'!" & ADDRESS(178,A93+4)),"NON conformant") -> 0 | O93: =COUNTIF(INDIRECT("'Success Criteria'!" & ADDRESS(124,A93+4)):INDIRECT("'Success Criteria'!" & ADDRESS(178,A93+4)),"N/A") -> 0 | P93: =COUNTIF(INDIRECT("'Success Criteria'!" & ADDRESS(124,A93+4)):INDIRECT("'Success Criteria'!" & ADDRESS(178,A93+4)),"not tested") -> 28 | Q93: 2 | R93: 0 | S93: 0 | T93: 28 | V93: 0 | X93: 2 | Z93: 28 | AA93: 1
A94: 80 | B94: Page 80 | C94: URL 80 | D94: Please select | E94: =SUM(COUNTIF(INDIRECT("'Success Criteria'!" & ADDRESS(10,A94+4)):INDIRECT("'Success Criteria'!" & ADDRESS(72,A94+4)),"PASS"),COUNTIF(INDIRECT("'Success Criteria'!" & ADDRESS(10,A94+4)):INDIRECT("'Success Criteria'!" & ADDRESS(72,A94+4)),"PASS with comments")) -> 0 | F94: =COUNTIF(INDIRECT("'Success Criteria'!" & ADDRESS(10,A94+4)):INDIRECT("'Success Criteria'!" & ADDRESS(72,A94+4)),"NON conformant") -> 0 | G94: =COUNTIF(INDIRECT("'Success Criteria'!" & ADDRESS(10,A94+4)):INDIRECT("'Success Criteria'!" & ADDRESS(72,A94+4)),"N/A") -> 0 | H94: =COUNTIF(INDIRECT("'Success Criteria'!" & ADDRESS(10,A94+4)):INDIRECT("'Success Criteria'!" & ADDRESS(72,A94+4)),"not tested") -> 0 | I94: =SUM(COUNTIF(INDIRECT("'Success Criteria'!" & ADDRESS(76,A94+4)):INDIRECT("'Success Criteria'!" & ADDRESS(119,A94+4)),"PASS"),COUNTIF(INDIRECT("'Success Criteria'!" & ADDRESS(76,A94+4)):INDIRECT("'Success Criteria'!" & ADDRESS(119,A94+4)),"PASS with comments")) -> 2 | J94: =COUNTIF(INDIRECT("'Success Criteria'!" & ADDRESS(76,A94+4)):INDIRECT("'Success Criteria'!" & ADDRESS(119,A94+4)),"NON conformant") -> 0 | K94: =COUNTIF(INDIRECT("'Success Criteria'!" & ADDRESS(76,A94+4)):INDIRECT("'Success Criteria'!" & ADDRESS(119,A94+4)),"N/A") -> 0 | L94: =COUNTIF(INDIRECT("'Success Criteria'!" & ADDRESS(76,A94+4)):INDIRECT("'Success Criteria'!" & ADDRESS(119,A94+4)),"not tested") -> 0 | M94: =SUM(COUNTIF(INDIRECT("'Success Criteria'!" & ADDRESS(124,A94+4)):INDIRECT("'Success Criteria'!" & ADDRESS(178,A94+4)),"PASS"),COUNTIF(INDIRECT("'Success Criteria'!" & ADDRESS(124,A94+4)):INDIRECT("'Success Criteria'!" & ADDRESS(178,A94+4)),"PASS with comments")) -> 0 | N94: =COUNTIF(INDIRECT("'Success Criteria'!" & ADDRESS(124,A94+4)):INDIRECT("'Success Criteria'!" & ADDRESS(178,A94+4)),"NON conformant") -> 0 | O94: =COUNTIF(INDIRECT("'Success Criteria'!" & ADDRESS(124,A94+4)):INDIRECT("'Success Criteria'!" & ADDRESS(178,A94+4)),"N/A") -> 0 | P94: =COUNTIF(INDIRECT("'Success Criteria'!" & ADDRESS(124,A94+4)):INDIRECT("'Success Criteria'!" & ADDRESS(178,A94+4)),"not tested") -> 28 | Q94: 2 | R94: 0 | S94: 0 | T94: 28 | V94: 0 | X94: 2 | Z94: 28 | AA94: 1
A95: 81 | B95: Page 81 | C95: URL 81 | D95: Please select | E95: =SUM(COUNTIF(INDIRECT("'Success Criteria'!" & ADDRESS(10,A95+4)):INDIRECT("'Success Criteria'!" & ADDRESS(72,A95+4)),"PASS"),COUNTIF(INDIRECT("'Success Criteria'!" & ADDRESS(10,A95+4)):INDIRECT("'Success Criteria'!" & ADDRESS(72,A95+4)),"PASS with comments")) -> 0 | F95: =COUNTIF(INDIRECT("'Success Criteria'!" & ADDRESS(10,A95+4)):INDIRECT("'Success Criteria'!" & ADDRESS(72,A95+4)),"NON conformant") -> 0 | G95: =COUNTIF(INDIRECT("'Success Criteria'!" & ADDRESS(10,A95+4)):INDIRECT("'Success Criteria'!" & ADDRESS(72,A95+4)),"N/A") -> 0 | H95: =COUNTIF(INDIRECT("'Success Criteria'!" & ADDRESS(10,A95+4)):INDIRECT("'Success Criteria'!" & ADDRESS(72,A95+4)),"not tested") -> 0 | I95: =SUM(COUNTIF(INDIRECT("'Success Criteria'!" & ADDRESS(76,A95+4)):INDIRECT("'Success Criteria'!" & ADDRESS(119,A95+4)),"PASS"),COUNTIF(INDIRECT("'Success Criteria'!" & ADDRESS(76,A95+4)):INDIRECT("'Success Criteria'!" & ADDRESS(119,A95+4)),"PASS with comments")) -> 2 | J95: =COUNTIF(INDIRECT("'Success Criteria'!" & ADDRESS(76,A95+4)):INDIRECT("'Success Criteria'!" & ADDRESS(119,A95+4)),"NON conformant") -> 0 | K95: =COUNTIF(INDIRECT("'Success Criteria'!" & ADDRESS(76,A95+4)):INDIRECT("'Success Criteria'!" & ADDRESS(119,A95+4)),"N/A") -> 0 | L95: =COUNTIF(INDIRECT("'Success Criteria'!" & ADDRESS(76,A95+4)):INDIRECT("'Success Criteria'!" & ADDRESS(119,A95+4)),"not tested") -> 0 | M95: =SUM(COUNTIF(INDIRECT("'Success Criteria'!" & ADDRESS(124,A95+4)):INDIRECT("'Success Criteria'!" & ADDRESS(178,A95+4)),"PASS"),COUNTIF(INDIRECT("'Success Criteria'!" & ADDRESS(124,A95+4)):INDIRECT("'Success Criteria'!" & ADDRESS(178,A95+4)),"PASS with comments")) -> 0 | N95: =COUNTIF(INDIRECT("'Success Criteria'!" & ADDRESS(124,A95+4)):INDIRECT("'Success Criteria'!" & ADDRESS(178,A95+4)),"NON conformant") -> 0 | O95: =COUNTIF(INDIRECT("'Success Criteria'!" & ADDRESS(124,A95+4)):INDIRECT("'Success Criteria'!" & ADDRESS(178,A95+4)),"N/A") -> 0 | P95: =COUNTIF(INDIRECT("'Success Criteria'!" & ADDRESS(124,A95+4)):INDIRECT("'Success Criteria'!" & ADDRESS(178,A95+4)),"not tested") -> 28 | Q95: 2 | R95: 0 | S95: 0 | T95: 28 | V95: 0 | X95: 2 | Z95: 28 | AA95: 1
A96: 82 | B96: Page 82 | C96: URL 82 | D96: Please select | E96: =SUM(COUNTIF(INDIRECT("'Success Criteria'!" & ADDRESS(10,A96+4)):INDIRECT("'Success Criteria'!" & ADDRESS(72,A96+4)),"PASS"),COUNTIF(INDIRECT("'Success Criteria'!" & ADDRESS(10,A96+4)):INDIRECT("'Success Criteria'!" & ADDRESS(72,A96+4)),"PASS with comments")) -> 0 | F96: =COUNTIF(INDIRECT("'Success Criteria'!" & ADDRESS(10,A96+4)):INDIRECT("'Success Criteria'!" & ADDRESS(72,A96+4)),"NON conformant") -> 0 | G96: =COUNTIF(INDIRECT("'Success Criteria'!" & ADDRESS(10,A96+4)):INDIRECT("'Success Criteria'!" & ADDRESS(72,A96+4)),"N/A") -> 0 | H96: =COUNTIF(INDIRECT("'Success Criteria'!" & ADDRESS(10,A96+4)):INDIRECT("'Success Criteria'!" & ADDRESS(72,A96+4)),"not tested") -> 0 | I96: =SUM(COUNTIF(INDIRECT("'Success Criteria'!" & ADDRESS(76,A96+4)):INDIRECT("'Success Criteria'!" & ADDRESS(119,A96+4)),"PASS"),COUNTIF(INDIRECT("'Success Criteria'!" & ADDRESS(76,A96+4)):INDIRECT("'Success Criteria'!" & ADDRESS(119,A96+4)),"PASS with comments")) -> 2 | J96: =COUNTIF(INDIRECT("'Success Criteria'!" & ADDRESS(76,A96+4)):INDIRECT("'Success Criteria'!" & ADDRESS(119,A96+4)),"NON conformant") -> 0 | K96: =COUNTIF(INDIRECT("'Success Criteria'!" & ADDRESS(76,A96+4)):INDIRECT("'Success Criteria'!" & ADDRESS(119,A96+4)),"N/A") -> 0 | L96: =COUNTIF(INDIRECT("'Success Criteria'!" & ADDRESS(76,A96+4)):INDIRECT("'Success Criteria'!" & ADDRESS(119,A96+4)),"not tested") -> 0 | M96: =SUM(COUNTIF(INDIRECT("'Success Criteria'!" & ADDRESS(124,A96+4)):INDIRECT("'Success Criteria'!" & ADDRESS(178,A96+4)),"PASS"),COUNTIF(INDIRECT("'Success Criteria'!" & ADDRESS(124,A96+4)):INDIRECT("'Success Criteria'!" & ADDRESS(178,A96+4)),"PASS with comments")) -> 0 | N96: =COUNTIF(INDIRECT("'Success Criteria'!" & ADDRESS(124,A96+4)):INDIRECT("'Success Criteria'!" & ADDRESS(178,A96+4)),"NON conformant") -> 0 | O96: =COUNTIF(INDIRECT("'Success Criteria'!" & ADDRESS(124,A96+4)):INDIRECT("'Success Criteria'!" & ADDRESS(178,A96+4)),"N/A") -> 0 | P96: =COUNTIF(INDIRECT("'Success Criteria'!" & ADDRESS(124,A96+4)):INDIRECT("'Success Criteria'!" & ADDRESS(178,A96+4)),"not tested") -> 28 | Q96: 2 | R96: 0 | S96: 0 | T96: 28 | V96: 0 | X96: 2 | Z96: 28 | AA96: 1
A97: 83 | B97: Page 83 | C97: URL 83 | D97: Please select | E97: =SUM(COUNTIF(INDIRECT("'Success Criteria'!" & ADDRESS(10,A97+4)):INDIRECT("'Success Criteria'!" & ADDRESS(72,A97+4)),"PASS"),COUNTIF(INDIRECT("'Success Criteria'!" & ADDRESS(10,A97+4)):INDIRECT("'Success Criteria'!" & ADDRESS(72,A97+4)),"PASS with comments")) -> 0 | F97: =COUNTIF(INDIRECT("'Success Criteria'!" & ADDRESS(10,A97+4)):INDIRECT("'Success Criteria'!" & ADDRESS(72,A97+4)),"NON conformant") -> 0 | G97: =COUNTIF(INDIRECT("'Success Criteria'!" & ADDRESS(10,A97+4)):INDIRECT("'Success Criteria'!" & ADDRESS(72,A97+4)),"N/A") -> 0 | H97: =COUNTIF(INDIRECT("'Success Criteria'!" & ADDRESS(10,A97+4)):INDIRECT("'Success Criteria'!" & ADDRESS(72,A97+4)),"not tested") -> 0 | I97: =SUM(COUNTIF(INDIRECT("'Success Criteria'!" & ADDRESS(76,A97+4)):INDIRECT("'Success Criteria'!" & ADDRESS(119,A97+4)),"PASS"),COUNTIF(INDIRECT("'Success Criteria'!" & ADDRESS(76,A97+4)):INDIRECT("'Success Criteria'!" & ADDRESS(119,A97+4)),"PASS with comments")) -> 2 | J97: =COUNTIF(INDIRECT("'Success Criteria'!" & ADDRESS(76,A97+4)):INDIRECT("'Success Criteria'!" & ADDRESS(119,A97+4)),"NON conformant") -> 0 | K97: =COUNTIF(INDIRECT("'Success Criteria'!" & ADDRESS(76,A97+4)):INDIRECT("'Success Criteria'!" & ADDRESS(119,A97+4)),"N/A") -> 0 | L97: =COUNTIF(INDIRECT("'Success Criteria'!" & ADDRESS(76,A97+4)):INDIRECT("'Success Criteria'!" & ADDRESS(119,A97+4)),"not tested") -> 0 | M97: =SUM(COUNTIF(INDIRECT("'Success Criteria'!" & ADDRESS(124,A97+4)):INDIRECT("'Success Criteria'!" & ADDRESS(178,A97+4)),"PASS"),COUNTIF(INDIRECT("'Success Criteria'!" & ADDRESS(124,A97+4)):INDIRECT("'Success Criteria'!" & ADDRESS(178,A97+4)),"PASS with comments")) -> 0 | N97: =COUNTIF(INDIRECT("'Success Criteria'!" & ADDRESS(124,A97+4)):INDIRECT("'Success Criteria'!" & ADDRESS(178,A97+4)),"NON conformant") -> 0 | O97: =COUNTIF(INDIRECT("'Success Criteria'!" & ADDRESS(124,A97+4)):INDIRECT("'Success Criteria'!" & ADDRESS(178,A97+4)),"N/A") -> 0 | P97: =COUNTIF(INDIRECT("'Success Criteria'!" & ADDRESS(124,A97+4)):INDIRECT("'Success Criteria'!" & ADDRESS(178,A97+4)),"not tested") -> 28 | Q97: 2 | R97: 0 | S97: 0 | T97: 28 | V97: 0 | X97: 2 | Z97: 28 | AA97: 1
A98: 84 | B98: Page 84 | C98: URL 84 | D98: Please select | E98: =SUM(COUNTIF(INDIRECT("'Success Criteria'!" & ADDRESS(10,A98+4)):INDIRECT("'Success Criteria'!" & ADDRESS(72,A98+4)),"PASS"),COUNTIF(INDIRECT("'Success Criteria'!" & ADDRESS(10,A98+4)):INDIRECT("'Success Criteria'!" & ADDRESS(72,A98+4)),"PASS with comments")) -> 0 | F98: =COUNTIF(INDIRECT("'Success Criteria'!" & ADDRESS(10,A98+4)):INDIRECT("'Success Criteria'!" & ADDRESS(72,A98+4)),"NON conformant") -> 0 | G98: =COUNTIF(INDIRECT("'Success Criteria'!" & ADDRESS(10,A98+4)):INDIRECT("'Success Criteria'!" & ADDRESS(72,A98+4)),"N/A") -> 0 | H98: =COUNTIF(INDIRECT("'Success Criteria'!" & ADDRESS(10,A98+4)):INDIRECT("'Success Criteria'!" & ADDRESS(72,A98+4)),"not tested") -> 0 | I98: =SUM(COUNTIF(INDIRECT("'Success Criteria'!" & ADDRESS(76,A98+4)):INDIRECT("'Success Criteria'!" & ADDRESS(119,A98+4)),"PASS"),COUNTIF(INDIRECT("'Success Criteria'!" & ADDRESS(76,A98+4)):INDIRECT("'Success Criteria'!" & ADDRESS(119,A98+4)),"PASS with comments")) -> 2 | J98: =COUNTIF(INDIRECT("'Success Criteria'!" & ADDRESS(76,A98+4)):INDIRECT("'Success Criteria'!" & ADDRESS(119,A98+4)),"NON conformant") -> 0 | K98: =COUNTIF(INDIRECT("'Success Criteria'!" & ADDRESS(76,A98+4)):INDIRECT("'Success Criteria'!" & ADDRESS(119,A98+4)),"N/A") -> 0 | L98: =COUNTIF(INDIRECT("'Success Criteria'!" & ADDRESS(76,A98+4)):INDIRECT("'Success Criteria'!" & ADDRESS(119,A98+4)),"not tested") -> 0 | M98: =SUM(COUNTIF(INDIRECT("'Success Criteria'!" & ADDRESS(124,A98+4)):INDIRECT("'Success Criteria'!" & ADDRESS(178,A98+4)),"PASS"),COUNTIF(INDIRECT("'Success Criteria'!" & ADDRESS(124,A98+4)):INDIRECT("'Success Criteria'!" & ADDRESS(178,A98+4)),"PASS with comments")) -> 0 | N98: =COUNTIF(INDIRECT("'Success Criteria'!" & ADDRESS(124,A98+4)):INDIRECT("'Success Criteria'!" & ADDRESS(178,A98+4)),"NON conformant") -> 0 | O98: =COUNTIF(INDIRECT("'Success Criteria'!" & ADDRESS(124,A98+4)):INDIRECT("'Success Criteria'!" & ADDRESS(178,A98+4)),"N/A") -> 0 | P98: =COUNTIF(INDIRECT("'Success Criteria'!" & ADDRESS(124,A98+4)):INDIRECT("'Success Criteria'!" & ADDRESS(178,A98+4)),"not tested") -> 28 | Q98: 2 | R98: 0 | S98: 0 | T98: 28 | V98: 0 | X98: 2 | Z98: 28 | AA98: 1
A99: 85 | B99: Page 85 | C99: URL 85 | D99: Please select | E99: =SUM(COUNTIF(INDIRECT("'Success Criteria'!" & ADDRESS(10,A99+4)):INDIRECT("'Success Criteria'!" & ADDRESS(72,A99+4)),"PASS"),COUNTIF(INDIRECT("'Success Criteria'!" & ADDRESS(10,A99+4)):INDIRECT("'Success Criteria'!" & ADDRESS(72,A99+4)),"PASS with comments")) -> 0 | F99: =COUNTIF(INDIRECT("'Success Criteria'!" & ADDRESS(10,A99+4)):INDIRECT("'Success Criteria'!" & ADDRESS(72,A99+4)),"NON conformant") -> 0 | G99: =COUNTIF(INDIRECT("'Success Criteria'!" & ADDRESS(10,A99+4)):INDIRECT("'Success Criteria'!" & ADDRESS(72,A99+4)),"N/A") -> 0 | H99: =COUNTIF(INDIRECT("'Success Criteria'!" & ADDRESS(10,A99+4)):INDIRECT("'Success Criteria'!" & ADDRESS(72,A99+4)),"not tested") -> 0 | I99: =SUM(COUNTIF(INDIRECT("'Success Criteria'!" & ADDRESS(76,A99+4)):INDIRECT("'Success Criteria'!" & ADDRESS(119,A99+4)),"PASS"),COUNTIF(INDIRECT("'Success Criteria'!" & ADDRESS(76,A99+4)):INDIRECT("'Success Criteria'!" & ADDRESS(119,A99+4)),"PASS with comments")) -> 2 | J99: =COUNTIF(INDIRECT("'Success Criteria'!" & ADDRESS(76,A99+4)):INDIRECT("'Success Criteria'!" & ADDRESS(119,A99+4)),"NON conformant") -> 0 | K99: =COUNTIF(INDIRECT("'Success Criteria'!" & ADDRESS(76,A99+4)):INDIRECT("'Success Criteria'!" & ADDRESS(119,A99+4)),"N/A") -> 0 | L99: =COUNTIF(INDIRECT("'Success Criteria'!" & ADDRESS(76,A99+4)):INDIRECT("'Success Criteria'!" & ADDRESS(119,A99+4)),"not tested") -> 0 | M99: =SUM(COUNTIF(INDIRECT("'Success Criteria'!" & ADDRESS(124,A99+4)):INDIRECT("'Success Criteria'!" & ADDRESS(178,A99+4)),"PASS"),COUNTIF(INDIRECT("'Success Criteria'!" & ADDRESS(124,A99+4)):INDIRECT("'Success Criteria'!" & ADDRESS(178,A99+4)),"PASS with comments")) -> 0 | N99: =COUNTIF(INDIRECT("'Success Criteria'!" & ADDRESS(124,A99+4)):INDIRECT("'Success Criteria'!" & ADDRESS(178,A99+4)),"NON conformant") -> 0 | O99: =COUNTIF(INDIRECT("'Success Criteria'!" & ADDRESS(124,A99+4)):INDIRECT("'Success Criteria'!" & ADDRESS(178,A99+4)),"N/A") -> 0 | P99: =COUNTIF(INDIRECT("'Success Criteria'!" & ADDRESS(124,A99+4)):INDIRECT("'Success Criteria'!" & ADDRESS(178,A99+4)),"not tested") -> 28 | Q99: 2 | R99: 0 | S99: 0 | T99: 28 | V99: 0 | X99: 2 | Z99: 28 | AA99: 1
A100: 86 | B100: Page 86 | C100: URL 86 | D100: Please select | E100: =SUM(COUNTIF(INDIRECT("'Success Criteria'!" & ADDRESS(10,A100+4)):INDIRECT("'Success Criteria'!" & ADDRESS(72,A100+4)),"PASS"),COUNTIF(INDIRECT("'Success Criteria'!" & ADDRESS(10,A100+4)):INDIRECT("'Success Criteria'!" & ADDRESS(72,A100+4)),"PASS with comments")) -> 0 | F100: =COUNTIF(INDIRECT("'Success Criteria'!" & ADDRESS(10,A100+4)):INDIRECT("'Success Criteria'!" & ADDRESS(72,A100+4)),"NON conformant") -> 0 | G100: =COUNTIF(INDIRECT("'Success Criteria'!" & ADDRESS(10,A100+4)):INDIRECT("'Success Criteria'!" & ADDRESS(72,A100+4)),"N/A") -> 0 | H100: =COUNTIF(INDIRECT("'Success Criteria'!" & ADDRESS(10,A100+4)):INDIRECT("'Success Criteria'!" & ADDRESS(72,A100+4)),"not tested") -> 0 | I100: =SUM(COUNTIF(INDIRECT("'Success Criteria'!" & ADDRESS(76,A100+4)):INDIRECT("'Success Criteria'!" & ADDRESS(119,A100+4)),"PASS"),COUNTIF(INDIRECT("'Success Criteria'!" & ADDRESS(76,A100+4)):INDIRECT("'Success Criteria'!" & ADDRESS(119,A100+4)),"PASS with comments")) -> 2 | J100: =COUNTIF(INDIRECT("'Success Criteria'!" & ADDRESS(76,A100+4)):INDIRECT("'Success Criteria'!" & ADDRESS(119,A100+4)),"NON conformant") -> 0 | K100: =COUNTIF(INDIRECT("'Success Criteria'!" & ADDRESS(76,A100+4)):INDIRECT("'Success Criteria'!" & ADDRESS(119,A100+4)),"N/A") -> 0 | L100: =COUNTIF(INDIRECT("'Success Criteria'!" & ADDRESS(76,A100+4)):INDIRECT("'Success Criteria'!" & ADDRESS(119,A100+4)),"not tested") -> 0 | M100: =SUM(COUNTIF(INDIRECT("'Success Criteria'!" & ADDRESS(124,A100+4)):INDIRECT("'Success Criteria'!" & ADDRESS(178,A100+4)),"PASS"),COUNTIF(INDIRECT("'Success Criteria'!" & ADDRESS(124,A100+4)):INDIRECT("'Success Criteria'!" & ADDRESS(178,A100+4)),"PASS with comments")) -> 0 | N100: =COUNTIF(INDIRECT("'Success Criteria'!" & ADDRESS(124,A100+4)):INDIRECT("'Success Criteria'!" & ADDRESS(178,A100+4)),"NON conformant") -> 0 | O100: =COUNTIF(INDIRECT("'Success Criteria'!" & ADDRESS(124,A100+4)):INDIRECT("'Success Criteria'!" & ADDRESS(178,A100+4)),"N/A") -> 0 | P100: =COUNTIF(INDIRECT("'Success Criteria'!" & ADDRESS(124,A100+4)):INDIRECT("'Success Criteria'!" & ADDRESS(178,A100+4)),"not tested") -> 28 | Q100: 2 | R100: 0 | S100: 0 | T100: 28 | V100: 0 | X100: 2 | Z100: 28 | AA100: 1
A101: 87 | B101: Page 87 | C101: URL 87 | D101: Please select | E101: =SUM(COUNTIF(INDIRECT("'Success Criteria'!" & ADDRESS(10,A101+4)):INDIRECT("'Success Criteria'!" & ADDRESS(72,A101+4)),"PASS"),COUNTIF(INDIRECT("'Success Criteria'!" & ADDRESS(10,A101+4)):INDIRECT("'Success Criteria'!" & ADDRESS(72,A101+4)),"PASS with comments")) -> 0 | F101: =COUNTIF(INDIRECT("'Success Criteria'!" & ADDRESS(10,A101+4)):INDIRECT("'Success Criteria'!" & ADDRESS(72,A101+4)),"NON conformant") -> 0 | G101: =COUNTIF(INDIRECT("'Success Criteria'!" & ADDRESS(10,A101+4)):INDIRECT("'Success Criteria'!" & ADDRESS(72,A101+4)),"N/A") -> 0 | H101: =COUNTIF(INDIRECT("'Success Criteria'!" & ADDRESS(10,A101+4)):INDIRECT("'Success Criteria'!" & ADDRESS(72,A101+4)),"not tested") -> 0 | I101: =SUM(COUNTIF(INDIRECT("'Success Criteria'!" & ADDRESS(76,A101+4)):INDIRECT("'Success Criteria'!" & ADDRESS(119,A101+4)),"PASS"),COUNTIF(INDIRECT("'Success Criteria'!" & ADDRESS(76,A101+4)):INDIRECT("'Success Criteria'!" & ADDRESS(119,A101+4)),"PASS with comments")) -> 2 | J101: =COUNTIF(INDIRECT("'Success Criteria'!" & ADDRESS(76,A101+4)):INDIRECT("'Success Criteria'!" & ADDRESS(119,A101+4)),"NON conformant") -> 0 | K101: =COUNTIF(INDIRECT("'Success Criteria'!" & ADDRESS(76,A101+4)):INDIRECT("'Success Criteria'!" & ADDRESS(119,A101+4)),"N/A") -> 0 | L101: =COUNTIF(INDIRECT("'Success Criteria'!" & ADDRESS(76,A101+4)):INDIRECT("'Success Criteria'!" & ADDRESS(119,A101+4)),"not tested") -> 0 | M101: =SUM(COUNTIF(INDIRECT("'Success Criteria'!" & ADDRESS(124,A101+4)):INDIRECT("'Success Criteria'!" & ADDRESS(178,A101+4)),"PASS"),COUNTIF(INDIRECT("'Success Criteria'!" & ADDRESS(124,A101+4)):INDIRECT("'Success Criteria'!" & ADDRESS(178,A101+4)),"PASS with comments")) -> 0 | N101: =COUNTIF(INDIRECT("'Success Criteria'!" & ADDRESS(124,A101+4)):INDIRECT("'Success Criteria'!" & ADDRESS(178,A101+4)),"NON conformant") -> 0 | O101: =COUNTIF(INDIRECT("'Success Criteria'!" & ADDRESS(124,A101+4)):INDIRECT("'Success Criteria'!" & ADDRESS(178,A101+4)),"N/A") -> 0 | P101: =COUNTIF(INDIRECT("'Success Criteria'!" & ADDRESS(124,A101+4)):INDIRECT("'Success Criteria'!" & ADDRESS(178,A101+4)),"not tested") -> 28 | Q101: 2 | R101: 0 | S101: 0 | T101: 28 | V101: 0 | X101: 2 | Z101: 28 | AA101: 1
A102: 88 | B102: Page 88 | C102: URL 88 | D102: Please select | E102: =SUM(COUNTIF(INDIRECT("'Success Criteria'!" & ADDRESS(10,A102+4)):INDIRECT("'Success Criteria'!" & ADDRESS(72,A102+4)),"PASS"),COUNTIF(INDIRECT("'Success Criteria'!" & ADDRESS(10,A102+4)):INDIRECT("'Success Criteria'!" & ADDRESS(72,A102+4)),"PASS with comments")) -> 0 | F102: =COUNTIF(INDIRECT("'Success Criteria'!" & ADDRESS(10,A102+4)):INDIRECT("'Success Criteria'!" & ADDRESS(72,A102+4)),"NON conformant") -> 0 | G102: =COUNTIF(INDIRECT("'Success Criteria'!" & ADDRESS(10,A102+4)):INDIRECT("'Success Criteria'!" & ADDRESS(72,A102+4)),"N/A") -> 0 | H102: =COUNTIF(INDIRECT("'Success Criteria'!" & ADDRESS(10,A102+4)):INDIRECT("'Success Criteria'!" & ADDRESS(72,A102+4)),"not tested") -> 0 | I102: =SUM(COUNTIF(INDIRECT("'Success Criteria'!" & ADDRESS(76,A102+4)):INDIRECT("'Success Criteria'!" & ADDRESS(119,A102+4)),"PASS"),COUNTIF(INDIRECT("'Success Criteria'!" & ADDRESS(76,A102+4)):INDIRECT("'Success Criteria'!" & ADDRESS(119,A102+4)),"PASS with comments")) -> 2 | J102: =COUNTIF(INDIRECT("'Success Criteria'!" & ADDRESS(76,A102+4)):INDIRECT("'Success Criteria'!" & ADDRESS(119,A102+4)),"NON conformant") -> 0 | K102: =COUNTIF(INDIRECT("'Success Criteria'!" & ADDRESS(76,A102+4)):INDIRECT("'Success Criteria'!" & ADDRESS(119,A102+4)),"N/A") -> 0 | L102: =COUNTIF(INDIRECT("'Success Criteria'!" & ADDRESS(76,A102+4)):INDIRECT("'Success Criteria'!" & ADDRESS(119,A102+4)),"not tested") -> 0 | M102: =SUM(COUNTIF(INDIRECT("'Success Criteria'!" & ADDRESS(124,A102+4)):INDIRECT("'Success Criteria'!" & ADDRESS(178,A102+4)),"PASS"),COUNTIF(INDIRECT("'Success Criteria'!" & ADDRESS(124,A102+4)):INDIRECT("'Success Criteria'!" & ADDRESS(178,A102+4)),"PASS with comments")) -> 0 | N102: =COUNTIF(INDIRECT("'Success Criteria'!" & ADDRESS(124,A102+4)):INDIRECT("'Success Criteria'!" & ADDRESS(178,A102+4)),"NON conformant") -> 0 | O102: =COUNTIF(INDIRECT("'Success Criteria'!" & ADDRESS(124,A102+4)):INDIRECT("'Success Criteria'!" & ADDRESS(178,A102+4)),"N/A") -> 0 | P102: =COUNTIF(INDIRECT("'Success Criteria'!" & ADDRESS(124,A102+4)):INDIRECT("'Success Criteria'!" & ADDRESS(178,A102+4)),"not tested") -> 28 | Q102: 2 | R102: 0 | S102: 0 | T102: 28 | V102: 0 | X102: 2 | Z102: 28 | AA102: 1
A103: 89 | B103: Page 89 | C103: URL 89 | D103: Please select | E103: =SUM(COUNTIF(INDIRECT("'Success Criteria'!" & ADDRESS(10,A103+4)):INDIRECT("'Success Criteria'!" & ADDRESS(72,A103+4)),"PASS"),COUNTIF(INDIRECT("'Success Criteria'!" & ADDRESS(10,A103+4)):INDIRECT("'Success Criteria'!" & ADDRESS(72,A103+4)),"PASS with comments")) -> 0 | F103: =COUNTIF(INDIRECT("'Success Criteria'!" & ADDRESS(10,A103+4)):INDIRECT("'Success Criteria'!" & ADDRESS(72,A103+4)),"NON conformant") -> 0 | G103: =COUNTIF(INDIRECT("'Success Criteria'!" & ADDRESS(10,A103+4)):INDIRECT("'Success Criteria'!" & ADDRESS(72,A103+4)),"N/A") -> 0 | H103: =COUNTIF(INDIRECT("'Success Criteria'!" & ADDRESS(10,A103+4)):INDIRECT("'Success Criteria'!" & ADDRESS(72,A103+4)),"not tested") -> 0 | I103: =SUM(COUNTIF(INDIRECT("'Success Criteria'!" & ADDRESS(76,A103+4)):INDIRECT("'Success Criteria'!" & ADDRESS(119,A103+4)),"PASS"),COUNTIF(INDIRECT("'Success Criteria'!" & ADDRESS(76,A103+4)):INDIRECT("'Success Criteria'!" & ADDRESS(119,A103+4)),"PASS with comments")) -> 2 | J103: =COUNTIF(INDIRECT("'Success Criteria'!" & ADDRESS(76,A103+4)):INDIRECT("'Success Criteria'!" & ADDRESS(119,A103+4)),"NON conformant") -> 0 | K103: =COUNTIF(INDIRECT("'Success Criteria'!" & ADDRESS(76,A103+4)):INDIRECT("'Success Criteria'!" & ADDRESS(119,A103+4)),"N/A") -> 0 | L103: =COUNTIF(INDIRECT("'Success Criteria'!" & ADDRESS(76,A103+4)):INDIRECT("'Success Criteria'!" & ADDRESS(119,A103+4)),"not tested") -> 0 | M103: =SUM(COUNTIF(INDIRECT("'Success Criteria'!" & ADDRESS(124,A103+4)):INDIRECT("'Success Criteria'!" & ADDRESS(178,A103+4)),"PASS"),COUNTIF(INDIRECT("'Success Criteria'!" & ADDRESS(124,A103+4)):INDIRECT("'Success Criteria'!" & ADDRESS(178,A103+4)),"PASS with comments")) -> 0 | N103: =COUNTIF(INDIRECT("'Success Criteria'!" & ADDRESS(124,A103+4)):INDIRECT("'Success Criteria'!" & ADDRESS(178,A103+4)),"NON conformant") -> 0 | O103: =COUNTIF(INDIRECT("'Success Criteria'!" & ADDRESS(124,A103+4)):INDIRECT("'Success Criteria'!" & ADDRESS(178,A103+4)),"N/A") -> 0 | P103: =COUNTIF(INDIRECT("'Success Criteria'!" & ADDRESS(124,A103+4)):INDIRECT("'Success Criteria'!" & ADDRESS(178,A103+4)),"not tested") -> 28 | Q103: 2 | R103: 0 | S103: 0 | T103: 28 | V103: 0 | X103: 2 | Z103: 28 | AA103: 1
A104: 90 | B104: Page 90 | C104: URL 90 | D104: Please select | E104: =SUM(COUNTIF(INDIRECT("'Success Criteria'!" & ADDRESS(10,A104+4)):INDIRECT("'Success Criteria'!" & ADDRESS(72,A104+4)),"PASS"),COUNTIF(INDIRECT("'Success Criteria'!" & ADDRESS(10,A104+4)):INDIRECT("'Success Criteria'!" & ADDRESS(72,A104+4)),"PASS with comments")) -> 0 | F104: =COUNTIF(INDIRECT("'Success Criteria'!" & ADDRESS(10,A104+4)):INDIRECT("'Success Criteria'!" & ADDRESS(72,A104+4)),"NON conformant") -> 0 | G104: =COUNTIF(INDIRECT("'Success Criteria'!" & ADDRESS(10,A104+4)):INDIRECT("'Success Criteria'!" & ADDRESS(72,A104+4)),"N/A") -> 0 | H104: =COUNTIF(INDIRECT("'Success Criteria'!" & ADDRESS(10,A104+4)):INDIRECT("'Success Criteria'!" & ADDRESS(72,A104+4)),"not tested") -> 0 | I104: =SUM(COUNTIF(INDIRECT("'Success Criteria'!" & ADDRESS(76,A104+4)):INDIRECT("'Success Criteria'!" & ADDRESS(119,A104+4)),"PASS"),COUNTIF(INDIRECT("'Success Criteria'!" & ADDRESS(76,A104+4)):INDIRECT("'Success Criteria'!" & ADDRESS(119,A104+4)),"PASS with comments")) -> 2 | J104: =COUNTIF(INDIRECT("'Success Criteria'!" & ADDRESS(76,A104+4)):INDIRECT("'Success Criteria'!" & ADDRESS(119,A104+4)),"NON conformant") -> 0 | K104: =COUNTIF(INDIRECT("'Success Criteria'!" & ADDRESS(76,A104+4)):INDIRECT("'Success Criteria'!" & ADDRESS(119,A104+4)),"N/A") -> 0 | L104: =COUNTIF(INDIRECT("'Success Criteria'!" & ADDRESS(76,A104+4)):INDIRECT("'Success Criteria'!" & ADDRESS(119,A104+4)),"not tested") -> 0 | M104: =SUM(COUNTIF(INDIRECT("'Success Criteria'!" & ADDRESS(124,A104+4)):INDIRECT("'Success Criteria'!" & ADDRESS(178,A104+4)),"PASS"),COUNTIF(INDIRECT("'Success Criteria'!" & ADDRESS(124,A104+4)):INDIRECT("'Success Criteria'!" & ADDRESS(178,A104+4)),"PASS with comments")) -> 0 | N104: =COUNTIF(INDIRECT("'Success Criteria'!" & ADDRESS(124,A104+4)):INDIRECT("'Success Criteria'!" & ADDRESS(178,A104+4)),"NON conformant") -> 0 | O104: =COUNTIF(INDIRECT("'Success Criteria'!" & ADDRESS(124,A104+4)):INDIRECT("'Success Criteria'!" & ADDRESS(178,A104+4)),"N/A") -> 0 | P104: =COUNTIF(INDIRECT("'Success Criteria'!" & ADDRESS(124,A104+4)):INDIRECT("'Success Criteria'!" & ADDRESS(178,A104+4)),"not tested") -> 28 | Q104: 2 | R104: 0 | S104: 0 | T104: 28 | V104: 0 | X104: 2 | Z104: 28 | AA104: 1
A105: 91 | B105: Page 91 | C105: URL 91 | D105: Please select | E105: =SUM(COUNTIF(INDIRECT("'Success Criteria'!" & ADDRESS(10,A105+4)):INDIRECT("'Success Criteria'!" & ADDRESS(72,A105+4)),"PASS"),COUNTIF(INDIRECT("'Success Criteria'!" & ADDRESS(10,A105+4)):INDIRECT("'Success Criteria'!" & ADDRESS(72,A105+4)),"PASS with comments")) -> 0 | F105: =COUNTIF(INDIRECT("'Success Criteria'!" & ADDRESS(10,A105+4)):INDIRECT("'Success Criteria'!" & ADDRESS(72,A105+4)),"NON conformant") -> 0 | G105: =COUNTIF(INDIRECT("'Success Criteria'!" & ADDRESS(10,A105+4)):INDIRECT("'Success Criteria'!" & ADDRESS(72,A105+4)),"N/A") -> 0 | H105: =COUNTIF(INDIRECT("'Success Criteria'!" & ADDRESS(10,A105+4)):INDIRECT("'Success Criteria'!" & ADDRESS(72,A105+4)),"not tested") -> 0 | I105: =SUM(COUNTIF(INDIRECT("'Success Criteria'!" & ADDRESS(76,A105+4)):INDIRECT("'Success Criteria'!" & ADDRESS(119,A105+4)),"PASS"),COUNTIF(INDIRECT("'Success Criteria'!" & ADDRESS(76,A105+4)):INDIRECT("'Success Criteria'!" & ADDRESS(119,A105+4)),"PASS with comments")) -> 2 | J105: =COUNTIF(INDIRECT("'Success Criteria'!" & ADDRESS(76,A105+4)):INDIRECT("'Success Criteria'!" & ADDRESS(119,A105+4)),"NON conformant") -> 0 | K105: =COUNTIF(INDIRECT("'Success Criteria'!" & ADDRESS(76,A105+4)):INDIRECT("'Success Criteria'!" & ADDRESS(119,A105+4)),"N/A") -> 0 | L105: =COUNTIF(INDIRECT("'Success Criteria'!" & ADDRESS(76,A105+4)):INDIRECT("'Success Criteria'!" & ADDRESS(119,A105+4)),"not tested") -> 0 | M105: =SUM(COUNTIF(INDIRECT("'Success Criteria'!" & ADDRESS(124,A105+4)):INDIRECT("'Success Criteria'!" & ADDRESS(178,A105+4)),"PASS"),COUNTIF(INDIRECT("'Success Criteria'!" & ADDRESS(124,A105+4)):INDIRECT("'Success Criteria'!" & ADDRESS(178,A105+4)),"PASS with comments")) -> 0 | N105: =COUNTIF(INDIRECT("'Success Criteria'!" & ADDRESS(124,A105+4)):INDIRECT("'Success Criteria'!" & ADDRESS(178,A105+4)),"NON conformant") -> 0 | O105: =COUNTIF(INDIRECT("'Success Criteria'!" & ADDRESS(124,A105+4)):INDIRECT("'Success Criteria'!" & ADDRESS(178,A105+4)),"N/A") -> 0 | P105: =COUNTIF(INDIRECT("'Success Criteria'!" & ADDRESS(124,A105+4)):INDIRECT("'Success Criteria'!" & ADDRESS(178,A105+4)),"not tested") -> 28 | Q105: 2 | R105: 0 | S105: 0 | T105: 28 | V105: 0 | X105: 2 | Z105: 28 | AA105: 1
A106: 92 | B106: Page 92 | C106: URL 92 | D106: Please select | E106: =SUM(COUNTIF(INDIRECT("'Success Criteria'!" & ADDRESS(10,A106+4)):INDIRECT("'Success Criteria'!" & ADDRESS(72,A106+4)),"PASS"),COUNTIF(INDIRECT("'Success Criteria'!" & ADDRESS(10,A106+4)):INDIRECT("'Success Criteria'!" & ADDRESS(72,A106+4)),"PASS with comments")) -> 0 | F106: =COUNTIF(INDIRECT("'Success Criteria'!" & ADDRESS(10,A106+4)):INDIRECT("'Success Criteria'!" & ADDRESS(72,A106+4)),"NON conformant") -> 0 | G106: =COUNTIF(INDIRECT("'Success Criteria'!" & ADDRESS(10,A106+4)):INDIRECT("'Success Criteria'!" & ADDRESS(72,A106+4)),"N/A") -> 0 | H106: =COUNTIF(INDIRECT("'Success Criteria'!" & ADDRESS(10,A106+4)):INDIRECT("'Success Criteria'!" & ADDRESS(72,A106+4)),"not tested") -> 0 | I106: =SUM(COUNTIF(INDIRECT("'Success Criteria'!" & ADDRESS(76,A106+4)):INDIRECT("'Success Criteria'!" & ADDRESS(119,A106+4)),"PASS"),COUNTIF(INDIRECT("'Success Criteria'!" & ADDRESS(76,A106+4)):INDIRECT("'Success Criteria'!" & ADDRESS(119,A106+4)),"PASS with comments")) -> 2 | J106: =COUNTIF(INDIRECT("'Success Criteria'!" & ADDRESS(76,A106+4)):INDIRECT("'Success Criteria'!" & ADDRESS(119,A106+4)),"NON conformant") -> 0 | K106: =COUNTIF(INDIRECT("'Success Criteria'!" & ADDRESS(76,A106+4)):INDIRECT("'Success Criteria'!" & ADDRESS(119,A106+4)),"N/A") -> 0 | L106: =COUNTIF(INDIRECT("'Success Criteria'!" & ADDRESS(76,A106+4)):INDIRECT("'Success Criteria'!" & ADDRESS(119,A106+4)),"not tested") -> 0 | M106: =SUM(COUNTIF(INDIRECT("'Success Criteria'!" & ADDRESS(124,A106+4)):INDIRECT("'Success Criteria'!" & ADDRESS(178,A106+4)),"PASS"),COUNTIF(INDIRECT("'Success Criteria'!" & ADDRESS(124,A106+4)):INDIRECT("'Success Criteria'!" & ADDRESS(178,A106+4)),"PASS with comments")) -> 0 | N106: =COUNTIF(INDIRECT("'Success Criteria'!" & ADDRESS(124,A106+4)):INDIRECT("'Success Criteria'!" & ADDRESS(178,A106+4)),"NON conformant") -> 0 | O106: =COUNTIF(INDIRECT("'Success Criteria'!" & ADDRESS(124,A106+4)):INDIRECT("'Success Criteria'!" & ADDRESS(178,A106+4)),"N/A") -> 0 | P106: =COUNTIF(INDIRECT("'Success Criteria'!" & ADDRESS(124,A106+4)):INDIRECT("'Success Criteria'!" & ADDRESS(178,A106+4)),"not tested") -> 28 | Q106: 2 | R106: 0 | S106: 0 | T106: 28 | V106: 0 | X106: 2 | Z106: 28 | AA106: 1
A107: 93 | B107: Page 93 | C107: URL 93 | D107: Please select | E107: =SUM(COUNTIF(INDIRECT("'Success Criteria'!" & ADDRESS(10,A107+4)):INDIRECT("'Success Criteria'!" & ADDRESS(72,A107+4)),"PASS"),COUNTIF(INDIRECT("'Success Criteria'!" & ADDRESS(10,A107+4)):INDIRECT("'Success Criteria'!" & ADDRESS(72,A107+4)),"PASS with comments")) -> 0 | F107: =COUNTIF(INDIRECT("'Success Criteria'!" & ADDRESS(10,A107+4)):INDIRECT("'Success Criteria'!" & ADDRESS(72,A107+4)),"NON conformant") -> 0 | G107: =COUNTIF(INDIRECT("'Success Criteria'!" & ADDRESS(10,A107+4)):INDIRECT("'Success Criteria'!" & ADDRESS(72,A107+4)),"N/A") -> 0 | H107: =COUNTIF(INDIRECT("'Success Criteria'!" & ADDRESS(10,A107+4)):INDIRECT("'Success Criteria'!" & ADDRESS(72,A107+4)),"not tested") -> 0 | I107: =SUM(COUNTIF(INDIRECT("'Success Criteria'!" & ADDRESS(76,A107+4)):INDIRECT("'Success Criteria'!" & ADDRESS(119,A107+4)),"PASS"),COUNTIF(INDIRECT("'Success Criteria'!" & ADDRESS(76,A107+4)):INDIRECT("'Success Criteria'!" & ADDRESS(119,A107+4)),"PASS with comments")) -> 2 | J107: =COUNTIF(INDIRECT("'Success Criteria'!" & ADDRESS(76,A107+4)):INDIRECT("'Success Criteria'!" & ADDRESS(119,A107+4)),"NON conformant") -> 0 | K107: =COUNTIF(INDIRECT("'Success Criteria'!" & ADDRESS(76,A107+4)):INDIRECT("'Success Criteria'!" & ADDRESS(119,A107+4)),"N/A") -> 0 | L107: =COUNTIF(INDIRECT("'Success Criteria'!" & ADDRESS(76,A107+4)):INDIRECT("'Success Criteria'!" & ADDRESS(119,A107+4)),"not tested") -> 0 | M107: =SUM(COUNTIF(INDIRECT("'Success Criteria'!" & ADDRESS(124,A107+4)):INDIRECT("'Success Criteria'!" & ADDRESS(178,A107+4)),"PASS"),COUNTIF(INDIRECT("'Success Criteria'!" & ADDRESS(124,A107+4)):INDIRECT("'Success Criteria'!" & ADDRESS(178,A107+4)),"PASS with comments")) -> 0 | N107: =COUNTIF(INDIRECT("'Success Criteria'!" & ADDRESS(124,A107+4)):INDIRECT("'Success Criteria'!" & ADDRESS(178,A107+4)),"NON conformant") -> 0 | O107: =COUNTIF(INDIRECT("'Success Criteria'!" & ADDRESS(124,A107+4)):INDIRECT("'Success Criteria'!" & ADDRESS(178,A107+4)),"N/A") -> 0 | P107: =COUNTIF(INDIRECT("'Success Criteria'!" & ADDRESS(124,A107+4)):INDIRECT("'Success Criteria'!" & ADDRESS(178,A107+4)),"not tested") -> 28 | Q107: 2 | R107: 0 | S107: 0 | T107: 28 | V107: 0 | X107: 2 | Z107: 28 | AA107: 1
A108: 94 | B108: Page 94 | C108: URL 94 | D108: Please select | E108: =SUM(COUNTIF(INDIRECT("'Success Criteria'!" & ADDRESS(10,A108+4)):INDIRECT("'Success Criteria'!" & ADDRESS(72,A108+4)),"PASS"),COUNTIF(INDIRECT("'Success Criteria'!" & ADDRESS(10,A108+4)):INDIRECT("'Success Criteria'!" & ADDRESS(72,A108+4)),"PASS with comments")) -> 0 | F108: =COUNTIF(INDIRECT("'Success Criteria'!" & ADDRESS(10,A108+4)):INDIRECT("'Success Criteria'!" & ADDRESS(72,A108+4)),"NON conformant") -> 0 | G108: =COUNTIF(INDIRECT("'Success Criteria'!" & ADDRESS(10,A108+4)):INDIRECT("'Success Criteria'!" & ADDRESS(72,A108+4)),"N/A") -> 0 | H108: =COUNTIF(INDIRECT("'Success Criteria'!" & ADDRESS(10,A108+4)):INDIRECT("'Success Criteria'!" & ADDRESS(72,A108+4)),"not tested") -> 0 | I108: =SUM(COUNTIF(INDIRECT("'Success Criteria'!" & ADDRESS(76,A108+4)):INDIRECT("'Success Criteria'!" & ADDRESS(119,A108+4)),"PASS"),COUNTIF(INDIRECT("'Success Criteria'!" & ADDRESS(76,A108+4)):INDIRECT("'Success Criteria'!" & ADDRESS(119,A108+4)),"PASS with comments")) -> 2 | J108: =COUNTIF(INDIRECT("'Success Criteria'!" & ADDRESS(76,A108+4)):INDIRECT("'Success Criteria'!" & ADDRESS(119,A108+4)),"NON conformant") -> 0 | K108: =COUNTIF(INDIRECT("'Success Criteria'!" & ADDRESS(76,A108+4)):INDIRECT("'Success Criteria'!" & ADDRESS(119,A108+4)),"N/A") -> 0 | L108: =COUNTIF(INDIRECT("'Success Criteria'!" & ADDRESS(76,A108+4)):INDIRECT("'Success Criteria'!" & ADDRESS(119,A108+4)),"not tested") -> 0 | M108: =SUM(COUNTIF(INDIRECT("'Success Criteria'!" & ADDRESS(124,A108+4)):INDIRECT("'Success Criteria'!" & ADDRESS(178,A108+4)),"PASS"),COUNTIF(INDIRECT("'Success Criteria'!" & ADDRESS(124,A108+4)):INDIRECT("'Success Criteria'!" & ADDRESS(178,A108+4)),"PASS with comments")) -> 0 | N108: =COUNTIF(INDIRECT("'Success Criteria'!" & ADDRESS(124,A108+4)):INDIRECT("'Success Criteria'!" & ADDRESS(178,A108+4)),"NON conformant") -> 0 | O108: =COUNTIF(INDIRECT("'Success Criteria'!" & ADDRESS(124,A108+4)):INDIRECT("'Success Criteria'!" & ADDRESS(178,A108+4)),"N/A") -> 0 | P108: =COUNTIF(INDIRECT("'Success Criteria'!" & ADDRESS(124,A108+4)):INDIRECT("'Success Criteria'!" & ADDRESS(178,A108+4)),"not tested") -> 28 | Q108: 2 | R108: 0 | S108: 0 | T108: 28 | V108: 0 | X108: 2 | Z108: 28 | AA108: 1
A109: 95 | B109: Page 95 | C109: URL 95 | D109: Please select | E109: =SUM(COUNTIF(INDIRECT("'Success Criteria'!" & ADDRESS(10,A109+4)):INDIRECT("'Success Criteria'!" & ADDRESS(72,A109+4)),"PASS"),COUNTIF(INDIRECT("'Success Criteria'!" & ADDRESS(10,A109+4)):INDIRECT("'Success Criteria'!" & ADDRESS(72,A109+4)),"PASS with comments")) -> 0 | F109: =COUNTIF(INDIRECT("'Success Criteria'!" & ADDRESS(10,A109+4)):INDIRECT("'Success Criteria'!" & ADDRESS(72,A109+4)),"NON conformant") -> 0 | G109: =COUNTIF(INDIRECT("'Success Criteria'!" & ADDRESS(10,A109+4)):INDIRECT("'Success Criteria'!" & ADDRESS(72,A109+4)),"N/A") -> 0 | H109: =COUNTIF(INDIRECT("'Success Criteria'!" & ADDRESS(10,A109+4)):INDIRECT("'Success Criteria'!" & ADDRESS(72,A109+4)),"not tested") -> 0 | I109: =SUM(COUNTIF(INDIRECT("'Success Criteria'!" & ADDRESS(76,A109+4)):INDIRECT("'Success Criteria'!" & ADDRESS(119,A109+4)),"PASS"),COUNTIF(INDIRECT("'Success Criteria'!" & ADDRESS(76,A109+4)):INDIRECT("'Success Criteria'!" & ADDRESS(119,A109+4)),"PASS with comments")) -> 2 | J109: =COUNTIF(INDIRECT("'Success Criteria'!" & ADDRESS(76,A109+4)):INDIRECT("'Success Criteria'!" & ADDRESS(119,A109+4)),"NON conformant") -> 0 | K109: =COUNTIF(INDIRECT("'Success Criteria'!" & ADDRESS(76,A109+4)):INDIRECT("'Success Criteria'!" & ADDRESS(119,A109+4)),"N/A") -> 0 | L109: =COUNTIF(INDIRECT("'Success Criteria'!" & ADDRESS(76,A109+4)):INDIRECT("'Success Criteria'!" & ADDRESS(119,A109+4)),"not tested") -> 0 | M109: =SUM(COUNTIF(INDIRECT("'Success Criteria'!" & ADDRESS(124,A109+4)):INDIRECT("'Success Criteria'!" & ADDRESS(178,A109+4)),"PASS"),COUNTIF(INDIRECT("'Success Criteria'!" & ADDRESS(124,A109+4)):INDIRECT("'Success Criteria'!" & ADDRESS(178,A109+4)),"PASS with comments")) -> 0 | N109: =COUNTIF(INDIRECT("'Success Criteria'!" & ADDRESS(124,A109+4)):INDIRECT("'Success Criteria'!" & ADDRESS(178,A109+4)),"NON conformant") -> 0 | O109: =COUNTIF(INDIRECT("'Success Criteria'!" & ADDRESS(124,A109+4)):INDIRECT("'Success Criteria'!" & ADDRESS(178,A109+4)),"N/A") -> 0 | P109: =COUNTIF(INDIRECT("'Success Criteria'!" & ADDRESS(124,A109+4)):INDIRECT("'Success Criteria'!" & ADDRESS(178,A109+4)),"not tested") -> 28 | Q109: 2 | R109: 0 | S109: 0 | T109: 28 | V109: 0 | X109: 2 | Z109: 28 | AA109: 1
A110: 96 | B110: Page 96 | C110: URL 96 | D110: Please select | E110: =SUM(COUNTIF(INDIRECT("'Success Criteria'!" & ADDRESS(10,A110+4)):INDIRECT("'Success Criteria'!" & ADDRESS(72,A110+4)),"PASS"),COUNTIF(INDIRECT("'Success Criteria'!" & ADDRESS(10,A110+4)):INDIRECT("'Success Criteria'!" & ADDRESS(72,A110+4)),"PASS with comments")) -> 0 | F110: =COUNTIF(INDIRECT("'Success Criteria'!" & ADDRESS(10,A110+4)):INDIRECT("'Success Criteria'!" & ADDRESS(72,A110+4)),"NON conformant") -> 0 | G110: =COUNTIF(INDIRECT("'Success Criteria'!" & ADDRESS(10,A110+4)):INDIRECT("'Success Criteria'!" & ADDRESS(72,A110+4)),"N/A") -> 0 | H110: =COUNTIF(INDIRECT("'Success Criteria'!" & ADDRESS(10,A110+4)):INDIRECT("'Success Criteria'!" & ADDRESS(72,A110+4)),"not tested") -> 0 | I110: =SUM(COUNTIF(INDIRECT("'Success Criteria'!" & ADDRESS(76,A110+4)):INDIRECT("'Success Criteria'!" & ADDRESS(119,A110+4)),"PASS"),COUNTIF(INDIRECT("'Success Criteria'!" & ADDRESS(76,A110+4)):INDIRECT("'Success Criteria'!" & ADDRESS(119,A110+4)),"PASS with comments")) -> 2 | J110: =COUNTIF(INDIRECT("'Success Criteria'!" & ADDRESS(76,A110+4)):INDIRECT("'Success Criteria'!" & ADDRESS(119,A110+4)),"NON conformant") -> 0 | K110: =COUNTIF(INDIRECT("'Success Criteria'!" & ADDRESS(76,A110+4)):INDIRECT("'Success Criteria'!" & ADDRESS(119,A110+4)),"N/A") -> 0 | L110: =COUNTIF(INDIRECT("'Success Criteria'!" & ADDRESS(76,A110+4)):INDIRECT("'Success Criteria'!" & ADDRESS(119,A110+4)),"not tested") -> 0 | M110: =SUM(COUNTIF(INDIRECT("'Success Criteria'!" & ADDRESS(124,A110+4)):INDIRECT("'Success Criteria'!" & ADDRESS(178,A110+4)),"PASS"),COUNTIF(INDIRECT("'Success Criteria'!" & ADDRESS(124,A110+4)):INDIRECT("'Success Criteria'!" & ADDRESS(178,A110+4)),"PASS with comments")) -> 0 | N110: =COUNTIF(INDIRECT("'Success Criteria'!" & ADDRESS(124,A110+4)):INDIRECT("'Success Criteria'!" & ADDRESS(178,A110+4)),"NON conformant") -> 0 | O110: =COUNTIF(INDIRECT("'Success Criteria'!" & ADDRESS(124,A110+4)):INDIRECT("'Success Criteria'!" & ADDRESS(178,A110+4)),"N/A") -> 0 | P110: =COUNTIF(INDIRECT("'Success Criteria'!" & ADDRESS(124,A110+4)):INDIRECT("'Success Criteria'!" & ADDRESS(178,A110+4)),"not tested") -> 28 | Q110: 2 | R110: 0 | S110: 0 | T110: 28 | V110: 0 | X110: 2 | Z110: 28 | AA110: 1
A111: 97 | B111: Page 97 | C111: URL 97 | D111: Please select | E111: =SUM(COUNTIF(INDIRECT("'Success Criteria'!" & ADDRESS(10,A111+4)):INDIRECT("'Success Criteria'!" & ADDRESS(72,A111+4)),"PASS"),COUNTIF(INDIRECT("'Success Criteria'!" & ADDRESS(10,A111+4)):INDIRECT("'Success Criteria'!" & ADDRESS(72,A111+4)),"PASS with comments")) -> 0 | F111: =COUNTIF(INDIRECT("'Success Criteria'!" & ADDRESS(10,A111+4)):INDIRECT("'Success Criteria'!" & ADDRESS(72,A111+4)),"NON conformant") -> 0 | G111: =COUNTIF(INDIRECT("'Success Criteria'!" & ADDRESS(10,A111+4)):INDIRECT("'Success Criteria'!" & ADDRESS(72,A111+4)),"N/A") -> 0 | H111: =COUNTIF(INDIRECT("'Success Criteria'!" & ADDRESS(10,A111+4)):INDIRECT("'Success Criteria'!" & ADDRESS(72,A111+4)),"not tested") -> 0 | I111: =SUM(COUNTIF(INDIRECT("'Success Criteria'!" & ADDRESS(76,A111+4)):INDIRECT("'Success Criteria'!" & ADDRESS(119,A111+4)),"PASS"),COUNTIF(INDIRECT("'Success Criteria'!" & ADDRESS(76,A111+4)):INDIRECT("'Success Criteria'!" & ADDRESS(119,A111+4)),"PASS with comments")) -> 2 | J111: =COUNTIF(INDIRECT("'Success Criteria'!" & ADDRESS(76,A111+4)):INDIRECT("'Success Criteria'!" & ADDRESS(119,A111+4)),"NON conformant") -> 0 | K111: =COUNTIF(INDIRECT("'Success Criteria'!" & ADDRESS(76,A111+4)):INDIRECT("'Success Criteria'!" & ADDRESS(119,A111+4)),"N/A") -> 0 | L111: =COUNTIF(INDIRECT("'Success Criteria'!" & ADDRESS(76,A111+4)):INDIRECT("'Success Criteria'!" & ADDRESS(119,A111+4)),"not tested") -> 0 | M111: =SUM(COUNTIF(INDIRECT("'Success Criteria'!" & ADDRESS(124,A111+4)):INDIRECT("'Success Criteria'!" & ADDRESS(178,A111+4)),"PASS"),COUNTIF(INDIRECT("'Success Criteria'!" & ADDRESS(124,A111+4)):INDIRECT("'Success Criteria'!" & ADDRESS(178,A111+4)),"PASS with comments")) -> 0 | N111: =COUNTIF(INDIRECT("'Success Criteria'!" & ADDRESS(124,A111+4)):INDIRECT("'Success Criteria'!" & ADDRESS(178,A111+4)),"NON conformant") -> 0 | O111: =COUNTIF(INDIRECT("'Success Criteria'!" & ADDRESS(124,A111+4)):INDIRECT("'Success Criteria'!" & ADDRESS(178,A111+4)),"N/A") -> 0 | P111: =COUNTIF(INDIRECT("'Success Criteria'!" & ADDRESS(124,A111+4)):INDIRECT("'Success Criteria'!" & ADDRESS(178,A111+4)),"not tested") -> 28 | Q111: 2 | R111: 0 | S111: 0 | T111: 28 | V111: 0 | X111: 2 | Z111: 28 | AA111: 1
A112: 98 | B112: Page 98 | C112: URL 98 | D112: Please select | E112: =SUM(COUNTIF(INDIRECT("'Success Criteria'!" & ADDRESS(10,A112+4)):INDIRECT("'Success Criteria'!" & ADDRESS(72,A112+4)),"PASS"),COUNTIF(INDIRECT("'Success Criteria'!" & ADDRESS(10,A112+4)):INDIRECT("'Success Criteria'!" & ADDRESS(72,A112+4)),"PASS with comments")) -> 0 | F112: =COUNTIF(INDIRECT("'Success Criteria'!" & ADDRESS(10,A112+4)):INDIRECT("'Success Criteria'!" & ADDRESS(72,A112+4)),"NON conformant") -> 0 | G112: =COUNTIF(INDIRECT("'Success Criteria'!" & ADDRESS(10,A112+4)):INDIRECT("'Success Criteria'!" & ADDRESS(72,A112+4)),"N/A") -> 0 | H112: =COUNTIF(INDIRECT("'Success Criteria'!" & ADDRESS(10,A112+4)):INDIRECT("'Success Criteria'!" & ADDRESS(72,A112+4)),"not tested") -> 0 | I112: =SUM(COUNTIF(INDIRECT("'Success Criteria'!" & ADDRESS(76,A112+4)):INDIRECT("'Success Criteria'!" & ADDRESS(119,A112+4)),"PASS"),COUNTIF(INDIRECT("'Success Criteria'!" & ADDRESS(76,A112+4)):INDIRECT("'Success Criteria'!" & ADDRESS(119,A112+4)),"PASS with comments")) -> 2 | J112: =COUNTIF(INDIRECT("'Success Criteria'!" & ADDRESS(76,A112+4)):INDIRECT("'Success Criteria'!" & ADDRESS(119,A112+4)),"NON conformant") -> 0 | K112: =COUNTIF(INDIRECT("'Success Criteria'!" & ADDRESS(76,A112+4)):INDIRECT("'Success Criteria'!" & ADDRESS(119,A112+4)),"N/A") -> 0 | L112: =COUNTIF(INDIRECT("'Success Criteria'!" & ADDRESS(76,A112+4)):INDIRECT("'Success Criteria'!" & ADDRESS(119,A112+4)),"not tested") -> 0 | M112: =SUM(COUNTIF(INDIRECT("'Success Criteria'!" & ADDRESS(124,A112+4)):INDIRECT("'Success Criteria'!" & ADDRESS(178,A112+4)),"PASS"),COUNTIF(INDIRECT("'Success Criteria'!" & ADDRESS(124,A112+4)):INDIRECT("'Success Criteria'!" & ADDRESS(178,A112+4)),"PASS with comments")) -> 0 | N112: =COUNTIF(INDIRECT("'Success Criteria'!" & ADDRESS(124,A112+4)):INDIRECT("'Success Criteria'!" & ADDRESS(178,A112+4)),"NON conformant") -> 0 | O112: =COUNTIF(INDIRECT("'Success Criteria'!" & ADDRESS(124,A112+4)):INDIRECT("'Success Criteria'!" & ADDRESS(178,A112+4)),"N/A") -> 0 | P112: =COUNTIF(INDIRECT("'Success Criteria'!" & ADDRESS(124,A112+4)):INDIRECT("'Success Criteria'!" & ADDRESS(178,A112+4)),"not tested") -> 28 | Q112: 2 | R112: 0 | S112: 0 | T112: 28 | V112: 0 | X112: 2 | Z112: 28 | AA112: 1
A113: 99 | B113: Page 99 | C113: URL 99 | D113: Please select | E113: =SUM(COUNTIF(INDIRECT("'Success Criteria'!" & ADDRESS(10,A113+4)):INDIRECT("'Success Criteria'!" & ADDRESS(72,A113+4)),"PASS"),COUNTIF(INDIRECT("'Success Criteria'!" & ADDRESS(10,A113+4)):INDIRECT("'Success Criteria'!" & ADDRESS(72,A113+4)),"PASS with comments")) -> 0 | F113: =COUNTIF(INDIRECT("'Success Criteria'!" & ADDRESS(10,A113+4)):INDIRECT("'Success Criteria'!" & ADDRESS(72,A113+4)),"NON conformant") -> 0 | G113: =COUNTIF(INDIRECT("'Success Criteria'!" & ADDRESS(10,A113+4)):INDIRECT("'Success Criteria'!" & ADDRESS(72,A113+4)),"N/A") -> 0 | H113: =COUNTIF(INDIRECT("'Success Criteria'!" & ADDRESS(10,A113+4)):INDIRECT("'Success Criteria'!" & ADDRESS(72,A113+4)),"not tested") -> 0 | I113: =SUM(COUNTIF(INDIRECT("'Success Criteria'!" & ADDRESS(76,A113+4)):INDIRECT("'Success Criteria'!" & ADDRESS(119,A113+4)),"PASS"),COUNTIF(INDIRECT("'Success Criteria'!" & ADDRESS(76,A113+4)):INDIRECT("'Success Criteria'!" & ADDRESS(119,A113+4)),"PASS with comments")) -> 2 | J113: =COUNTIF(INDIRECT("'Success Criteria'!" & ADDRESS(76,A113+4)):INDIRECT("'Success Criteria'!" & ADDRESS(119,A113+4)),"NON conformant") -> 0 | K113: =COUNTIF(INDIRECT("'Success Criteria'!" & ADDRESS(76,A113+4)):INDIRECT("'Success Criteria'!" & ADDRESS(119,A113+4)),"N/A") -> 0 | L113: =COUNTIF(INDIRECT("'Success Criteria'!" & ADDRESS(76,A113+4)):INDIRECT("'Success Criteria'!" & ADDRESS(119,A113+4)),"not tested") -> 0 | M113: =SUM(COUNTIF(INDIRECT("'Success Criteria'!" & ADDRESS(124,A113+4)):INDIRECT("'Success Criteria'!" & ADDRESS(178,A113+4)),"PASS"),COUNTIF(INDIRECT("'Success Criteria'!" & ADDRESS(124,A113+4)):INDIRECT("'Success Criteria'!" & ADDRESS(178,A113+4)),"PASS with comments")) -> 0 | N113: =COUNTIF(INDIRECT("'Success Criteria'!" & ADDRESS(124,A113+4)):INDIRECT("'Success Criteria'!" & ADDRESS(178,A113+4)),"NON conformant") -> 0 | O113: =COUNTIF(INDIRECT("'Success Criteria'!" & ADDRESS(124,A113+4)):INDIRECT("'Success Criteria'!" & ADDRESS(178,A113+4)),"N/A") -> 0 | P113: =COUNTIF(INDIRECT("'Success Criteria'!" & ADDRESS(124,A113+4)):INDIRECT("'Success Criteria'!" & ADDRESS(178,A113+4)),"not tested") -> 28 | Q113: 2 | R113: 0 | S113: 0 | T113: 28 | V113: 0 | X113: 2 | Z113: 28 | AA113: 1
A114: 100 | B114: Page 100 | C114: URL 100 | D114: Please select | E114: =SUM(COUNTIF(INDIRECT("'Success Criteria'!" & ADDRESS(10,A114+4)):INDIRECT("'Success Criteria'!" & ADDRESS(72,A114+4)),"PASS"),COUNTIF(INDIRECT("'Success Criteria'!" & ADDRESS(10,A114+4)):INDIRECT("'Success Criteria'!" & ADDRESS(72,A114+4)),"PASS with comments")) -> 0 | F114: =COUNTIF(INDIRECT("'Success Criteria'!" & ADDRESS(10,A114+4)):INDIRECT("'Success Criteria'!" & ADDRESS(72,A114+4)),"NON conformant") -> 0 | G114: =COUNTIF(INDIRECT("'Success Criteria'!" & ADDRESS(10,A114+4)):INDIRECT("'Success Criteria'!" & ADDRESS(72,A114+4)),"N/A") -> 0 | H114: =COUNTIF(INDIRECT("'Success Criteria'!" & ADDRESS(10,A114+4)):INDIRECT("'Success Criteria'!" & ADDRESS(72,A114+4)),"not tested") -> 0 | I114: =SUM(COUNTIF(INDIRECT("'Success Criteria'!" & ADDRESS(76,A114+4)):INDIRECT("'Success Criteria'!" & ADDRESS(119,A114+4)),"PASS"),COUNTIF(INDIRECT("'Success Criteria'!" & ADDRESS(76,A114+4)):INDIRECT("'Success Criteria'!" & ADDRESS(119,A114+4)),"PASS with comments")) -> 2 | J114: =COUNTIF(INDIRECT("'Success Criteria'!" & ADDRESS(76,A114+4)):INDIRECT("'Success Criteria'!" & ADDRESS(119,A114+4)),"NON conformant") -> 0 | K114: =COUNTIF(INDIRECT("'Success Criteria'!" & ADDRESS(76,A114+4)):INDIRECT("'Success Criteria'!" & ADDRESS(119,A114+4)),"N/A") -> 0 | L114: =COUNTIF(INDIRECT("'Success Criteria'!" & ADDRESS(76,A114+4)):INDIRECT("'Success Criteria'!" & ADDRESS(119,A114+4)),"not tested") -> 0 | M114: =SUM(COUNTIF(INDIRECT("'Success Criteria'!" & ADDRESS(124,A114+4)):INDIRECT("'Success Criteria'!" & ADDRESS(178,A114+4)),"PASS"),COUNTIF(INDIRECT("'Success Criteria'!" & ADDRESS(124,A114+4)):INDIRECT("'Success Criteria'!" & ADDRESS(178,A114+4)),"PASS with comments")) -> 0 | N114: =COUNTIF(INDIRECT("'Success Criteria'!" & ADDRESS(124,A114+4)):INDIRECT("'Success Criteria'!" & ADDRESS(178,A114+4)),"NON conformant") -> 0 | O114: =COUNTIF(INDIRECT("'Success Criteria'!" & ADDRESS(124,A114+4)):INDIRECT("'Success Criteria'!" & ADDRESS(178,A114+4)),"N/A") -> 0 | P114: =COUNTIF(INDIRECT("'Success Criteria'!" & ADDRESS(124,A114+4)):INDIRECT("'Success Criteria'!" & ADDRESS(178,A114+4)),"not tested") -> 28 | Q114: 2 | R114: 0 | S114: 0 | T114: 28 | V114: 0 | X114: 2 | Z114: 28 | AA114: 1
A115: 101 | B115: Page 101 | C115: URL 101 | D115: Please select | E115: =SUM(COUNTIF(INDIRECT("'Success Criteria'!" & ADDRESS(10,A115+4)):INDIRECT("'Success Criteria'!" & ADDRESS(72,A115+4)),"PASS"),COUNTIF(INDIRECT("'Success Criteria'!" & ADDRESS(10,A115+4)):INDIRECT("'Success Criteria'!" & ADDRESS(72,A115+4)),"PASS with comments")) -> 0 | F115: =COUNTIF(INDIRECT("'Success Criteria'!" & ADDRESS(10,A115+4)):INDIRECT("'Success Criteria'!" & ADDRESS(72,A115+4)),"NON conformant") -> 0 | G115: =COUNTIF(INDIRECT("'Success Criteria'!" & ADDRESS(10,A115+4)):INDIRECT("'Success Criteria'!" & ADDRESS(72,A115+4)),"N/A") -> 0 | H115: =COUNTIF(INDIRECT("'Success Criteria'!" & ADDRESS(10,A115+4)):INDIRECT("'Success Criteria'!" & ADDRESS(72,A115+4)),"not tested") -> 0 | I115: =SUM(COUNTIF(INDIRECT("'Success Criteria'!" & ADDRESS(76,A115+4)):INDIRECT("'Success Criteria'!" & ADDRESS(119,A115+4)),"PASS"),COUNTIF(INDIRECT("'Success Criteria'!" & ADDRESS(76,A115+4)):INDIRECT("'Success Criteria'!" & ADDRESS(119,A115+4)),"PASS with comments")) -> 2 | J115: =COUNTIF(INDIRECT("'Success Criteria'!" & ADDRESS(76,A115+4)):INDIRECT("'Success Criteria'!" & ADDRESS(119,A115+4)),"NON conformant") -> 0 | K115: =COUNTIF(INDIRECT("'Success Criteria'!" & ADDRESS(76,A115+4)):INDIRECT("'Success Criteria'!" & ADDRESS(119,A115+4)),"N/A") -> 0 | L115: =COUNTIF(INDIRECT("'Success Criteria'!" & ADDRESS(76,A115+4)):INDIRECT("'Success Criteria'!" & ADDRESS(119,A115+4)),"not tested") -> 0 | M115: =SUM(COUNTIF(INDIRECT("'Success Criteria'!" & ADDRESS(124,A115+4)):INDIRECT("'Success Criteria'!" & ADDRESS(178,A115+4)),"PASS"),COUNTIF(INDIRECT("'Success Criteria'!" & ADDRESS(124,A115+4)):INDIRECT("'Success Criteria'!" & ADDRESS(178,A115+4)),"PASS with comments")) -> 0 | N115: =COUNTIF(INDIRECT("'Success Criteria'!" & ADDRESS(124,A115+4)):INDIRECT("'Success Criteria'!" & ADDRESS(178,A115+4)),"NON conformant") -> 0 | O115: =COUNTIF(INDIRECT("'Success Criteria'!" & ADDRESS(124,A115+4)):INDIRECT("'Success Criteria'!" & ADDRESS(178,A115+4)),"N/A") -> 0 | P115: =COUNTIF(INDIRECT("'Success Criteria'!" & ADDRESS(124,A115+4)):INDIRECT("'Success Criteria'!" & ADDRESS(178,A115+4)),"not tested") -> 28 | Q115: 2 | R115: 0 | S115: 0 | T115: 28 | V115: 0 | X115: 2 | Z115: 28 | AA115: 1
A116: 102 | B116: Page 102 | C116: URL 102 | D116: Please select | E116: =SUM(COUNTIF(INDIRECT("'Success Criteria'!" & ADDRESS(10,A116+4)):INDIRECT("'Success Criteria'!" & ADDRESS(72,A116+4)),"PASS"),COUNTIF(INDIRECT("'Success Criteria'!" & ADDRESS(10,A116+4)):INDIRECT("'Success Criteria'!" & ADDRESS(72,A116+4)),"PASS with comments")) -> 0 | F116: =COUNTIF(INDIRECT("'Success Criteria'!" & ADDRESS(10,A116+4)):INDIRECT("'Success Criteria'!" & ADDRESS(72,A116+4)),"NON conformant") -> 0 | G116: =COUNTIF(INDIRECT("'Success Criteria'!" & ADDRESS(10,A116+4)):INDIRECT("'Success Criteria'!" & ADDRESS(72,A116+4)),"N/A") -> 0 | H116: =COUNTIF(INDIRECT("'Success Criteria'!" & ADDRESS(10,A116+4)):INDIRECT("'Success Criteria'!" & ADDRESS(72,A116+4)),"not tested") -> 0 | I116: =SUM(COUNTIF(INDIRECT("'Success Criteria'!" & ADDRESS(76,A116+4)):INDIRECT("'Success Criteria'!" & ADDRESS(119,A116+4)),"PASS"),COUNTIF(INDIRECT("'Success Criteria'!" & ADDRESS(76,A116+4)):INDIRECT("'Success Criteria'!" & ADDRESS(119,A116+4)),"PASS with comments")) -> 2 | J116: =COUNTIF(INDIRECT("'Success Criteria'!" & ADDRESS(76,A116+4)):INDIRECT("'Success Criteria'!" & ADDRESS(119,A116+4)),"NON conformant") -> 0 | K116: =COUNTIF(INDIRECT("'Success Criteria'!" & ADDRESS(76,A116+4)):INDIRECT("'Success Criteria'!" & ADDRESS(119,A116+4)),"N/A") -> 0 | L116: =COUNTIF(INDIRECT("'Success Criteria'!" & ADDRESS(76,A116+4)):INDIRECT("'Success Criteria'!" & ADDRESS(119,A116+4)),"not tested") -> 0 | M116: =SUM(COUNTIF(INDIRECT("'Success Criteria'!" & ADDRESS(124,A116+4)):INDIRECT("'Success Criteria'!" & ADDRESS(178,A116+4)),"PASS"),COUNTIF(INDIRECT("'Success Criteria'!" & ADDRESS(124,A116+4)):INDIRECT("'Success Criteria'!" & ADDRESS(178,A116+4)),"PASS with comments")) -> 0 | N116: =COUNTIF(INDIRECT("'Success Criteria'!" & ADDRESS(124,A116+4)):INDIRECT("'Success Criteria'!" & ADDRESS(178,A116+4)),"NON conformant") -> 0 | O116: =COUNTIF(INDIRECT("'Success Criteria'!" & ADDRESS(124,A116+4)):INDIRECT("'Success Criteria'!" & ADDRESS(178,A116+4)),"N/A") -> 0 | P116: =COUNTIF(INDIRECT("'Success Criteria'!" & ADDRESS(124,A116+4)):INDIRECT("'Success Criteria'!" & ADDRESS(178,A116+4)),"not tested") -> 28 | Q116: 2 | R116: 0 | S116: 0 | T116: 28 | V116: 0 | X116: 2 | Z116: 28 | AA116: 1
A117: 103 | B117: Page 103 | C117: URL 103 | D117: Please select | E117: =SUM(COUNTIF(INDIRECT("'Success Criteria'!" & ADDRESS(10,A117+4)):INDIRECT("'Success Criteria'!" & ADDRESS(72,A117+4)),"PASS"),COUNTIF(INDIRECT("'Success Criteria'!" & ADDRESS(10,A117+4)):INDIRECT("'Success Criteria'!" & ADDRESS(72,A117+4)),"PASS with comments")) -> 0 | F117: =COUNTIF(INDIRECT("'Success Criteria'!" & ADDRESS(10,A117+4)):INDIRECT("'Success Criteria'!" & ADDRESS(72,A117+4)),"NON conformant") -> 0 | G117: =COUNTIF(INDIRECT("'Success Criteria'!" & ADDRESS(10,A117+4)):INDIRECT("'Success Criteria'!" & ADDRESS(72,A117+4)),"N/A") -> 0 | H117: =COUNTIF(INDIRECT("'Success Criteria'!" & ADDRESS(10,A117+4)):INDIRECT("'Success Criteria'!" & ADDRESS(72,A117+4)),"not tested") -> 0 | I117: =SUM(COUNTIF(INDIRECT("'Success Criteria'!" & ADDRESS(76,A117+4)):INDIRECT("'Success Criteria'!" & ADDRESS(119,A117+4)),"PASS"),COUNTIF(INDIRECT("'Success Criteria'!" & ADDRESS(76,A117+4)):INDIRECT("'Success Criteria'!" & ADDRESS(119,A117+4)),"PASS with comments")) -> 2 | J117: =COUNTIF(INDIRECT("'Success Criteria'!" & ADDRESS(76,A117+4)):INDIRECT("'Success Criteria'!" & ADDRESS(119,A117+4)),"NON conformant") -> 0 | K117: =COUNTIF(INDIRECT("'Success Criteria'!" & ADDRESS(76,A117+4)):INDIRECT("'Success Criteria'!" & ADDRESS(119,A117+4)),"N/A") -> 0 | L117: =COUNTIF(INDIRECT("'Success Criteria'!" & ADDRESS(76,A117+4)):INDIRECT("'Success Criteria'!" & ADDRESS(119,A117+4)),"not tested") -> 0 | M117: =SUM(COUNTIF(INDIRECT("'Success Criteria'!" & ADDRESS(124,A117+4)):INDIRECT("'Success Criteria'!" & ADDRESS(178,A117+4)),"PASS"),COUNTIF(INDIRECT("'Success Criteria'!" & ADDRESS(124,A117+4)):INDIRECT("'Success Criteria'!" & ADDRESS(178,A117+4)),"PASS with comments")) -> 0 | N117: =COUNTIF(INDIRECT("'Success Criteria'!" & ADDRESS(124,A117+4)):INDIRECT("'Success Criteria'!" & ADDRESS(178,A117+4)),"NON conformant") -> 0 | O117: =COUNTIF(INDIRECT("'Success Criteria'!" & ADDRESS(124,A117+4)):INDIRECT("'Success Criteria'!" & ADDRESS(178,A117+4)),"N/A") -> 0 | P117: =COUNTIF(INDIRECT("'Success Criteria'!" & ADDRESS(124,A117+4)):INDIRECT("'Success Criteria'!" & ADDRESS(178,A117+4)),"not tested") -> 28 | Q117: 2 | R117: 0 | S117: 0 | T117: 28 | V117: 0 | X117: 2 | Z117: 28 | AA117: 1
A118: 104 | B118: Page 104 | C118: URL 104 | D118: Please select | E118: =SUM(COUNTIF(INDIRECT("'Success Criteria'!" & ADDRESS(10,A118+4)):INDIRECT("'Success Criteria'!" & ADDRESS(72,A118+4)),"PASS"),COUNTIF(INDIRECT("'Success Criteria'!" & ADDRESS(10,A118+4)):INDIRECT("'Success Criteria'!" & ADDRESS(72,A118+4)),"PASS with comments")) -> 0 | F118: =COUNTIF(INDIRECT("'Success Criteria'!" & ADDRESS(10,A118+4)):INDIRECT("'Success Criteria'!" & ADDRESS(72,A118+4)),"NON conformant") -> 0 | G118: =COUNTIF(INDIRECT("'Success Criteria'!" & ADDRESS(10,A118+4)):INDIRECT("'Success Criteria'!" & ADDRESS(72,A118+4)),"N/A") -> 0 | H118: =COUNTIF(INDIRECT("'Success Criteria'!" & ADDRESS(10,A118+4)):INDIRECT("'Success Criteria'!" & ADDRESS(72,A118+4)),"not tested") -> 0 | I118: =SUM(COUNTIF(INDIRECT("'Success Criteria'!" & ADDRESS(76,A118+4)):INDIRECT("'Success Criteria'!" & ADDRESS(119,A118+4)),"PASS"),COUNTIF(INDIRECT("'Success Criteria'!" & ADDRESS(76,A118+4)):INDIRECT("'Success Criteria'!" & ADDRESS(119,A118+4)),"PASS with comments")) -> 2 | J118: =COUNTIF(INDIRECT("'Success Criteria'!" & ADDRESS(76,A118+4)):INDIRECT("'Success Criteria'!" & ADDRESS(119,A118+4)),"NON conformant") -> 0 | K118: =COUNTIF(INDIRECT("'Success Criteria'!" & ADDRESS(76,A118+4)):INDIRECT("'Success Criteria'!" & ADDRESS(119,A118+4)),"N/A") -> 0 | L118: =COUNTIF(INDIRECT("'Success Criteria'!" & ADDRESS(76,A118+4)):INDIRECT("'Success Criteria'!" & ADDRESS(119,A118+4)),"not tested") -> 0 | M118: =SUM(COUNTIF(INDIRECT("'Success Criteria'!" & ADDRESS(124,A118+4)):INDIRECT("'Success Criteria'!" & ADDRESS(178,A118+4)),"PASS"),COUNTIF(INDIRECT("'Success Criteria'!" & ADDRESS(124,A118+4)):INDIRECT("'Success Criteria'!" & ADDRESS(178,A118+4)),"PASS with comments")) -> 0 | N118: =COUNTIF(INDIRECT("'Success Criteria'!" & ADDRESS(124,A118+4)):INDIRECT("'Success Criteria'!" & ADDRESS(178,A118+4)),"NON conformant") -> 0 | O118: =COUNTIF(INDIRECT("'Success Criteria'!" & ADDRESS(124,A118+4)):INDIRECT("'Success Criteria'!" & ADDRESS(178,A118+4)),"N/A") -> 0 | P118: =COUNTIF(INDIRECT("'Success Criteria'!" & ADDRESS(124,A118+4)):INDIRECT("'Success Criteria'!" & ADDRESS(178,A118+4)),"not tested") -> 28 | Q118: 2 | R118: 0 | S118: 0 | T118: 28 | V118: 0 | X118: 2 | Z118: 28 | AA118: 1
A119: 105 | B119: Page 105 | C119: URL 105 | D119: Please select | E119: =SUM(COUNTIF(INDIRECT("'Success Criteria'!" & ADDRESS(10,A119+4)):INDIRECT("'Success Criteria'!" & ADDRESS(72,A119+4)),"PASS"),COUNTIF(INDIRECT("'Success Criteria'!" & ADDRESS(10,A119+4)):INDIRECT("'Success Criteria'!" & ADDRESS(72,A119+4)),"PASS with comments")) -> 0 | F119: =COUNTIF(INDIRECT("'Success Criteria'!" & ADDRESS(10,A119+4)):INDIRECT("'Success Criteria'!" & ADDRESS(72,A119+4)),"NON conformant") -> 0 | G119: =COUNTIF(INDIRECT("'Success Criteria'!" & ADDRESS(10,A119+4)):INDIRECT("'Success Criteria'!" & ADDRESS(72,A119+4)),"N/A") -> 0 | H119: =COUNTIF(INDIRECT("'Success Criteria'!" & ADDRESS(10,A119+4)):INDIRECT("'Success Criteria'!" & ADDRESS(72,A119+4)),"not tested") -> 0 | I119: =SUM(COUNTIF(INDIRECT("'Success Criteria'!" & ADDRESS(76,A119+4)):INDIRECT("'Success Criteria'!" & ADDRESS(119,A119+4)),"PASS"),COUNTIF(INDIRECT("'Success Criteria'!" & ADDRESS(76,A119+4)):INDIRECT("'Success Criteria'!" & ADDRESS(119,A119+4)),"PASS with comments")) -> 2 | J119: =COUNTIF(INDIRECT("'Success Criteria'!" & ADDRESS(76,A119+4)):INDIRECT("'Success Criteria'!" & ADDRESS(119,A119+4)),"NON conformant") -> 0 | K119: =COUNTIF(INDIRECT("'Success Criteria'!" & ADDRESS(76,A119+4)):INDIRECT("'Success Criteria'!" & ADDRESS(119,A119+4)),"N/A") -> 0 | L119: =COUNTIF(INDIRECT("'Success Criteria'!" & ADDRESS(76,A119+4)):INDIRECT("'Success Criteria'!" & ADDRESS(119,A119+4)),"not tested") -> 0 | M119: =SUM(COUNTIF(INDIRECT("'Success Criteria'!" & ADDRESS(124,A119+4)):INDIRECT("'Success Criteria'!" & ADDRESS(178,A119+4)),"PASS"),COUNTIF(INDIRECT("'Success Criteria'!" & ADDRESS(124,A119+4)):INDIRECT("'Success Criteria'!" & ADDRESS(178,A119+4)),"PASS with comments")) -> 0 | N119: =COUNTIF(INDIRECT("'Success Criteria'!" & ADDRESS(124,A119+4)):INDIRECT("'Success Criteria'!" & ADDRESS(178,A119+4)),"NON conformant") -> 0 | O119: =COUNTIF(INDIRECT("'Success Criteria'!" & ADDRESS(124,A119+4)):INDIRECT("'Success Criteria'!" & ADDRESS(178,A119+4)),"N/A") -> 0 | P119: =COUNTIF(INDIRECT("'Success Criteria'!" & ADDRESS(124,A119+4)):INDIRECT("'Success Criteria'!" & ADDRESS(178,A119+4)),"not tested") -> 28 | Q119: 2 | R119: 0 | S119: 0 | T119: 28 | V119: 0 | X119: 2 | Z119: 28 | AA119: 1
A120: 106 | B120: Page 106 | C120: URL 106 | D120: Please select | E120: =SUM(COUNTIF(INDIRECT("'Success Criteria'!" & ADDRESS(10,A120+4)):INDIRECT("'Success Criteria'!" & ADDRESS(72,A120+4)),"PASS"),COUNTIF(INDIRECT("'Success Criteria'!" & ADDRESS(10,A120+4)):INDIRECT("'Success Criteria'!" & ADDRESS(72,A120+4)),"PASS with comments")) -> 0 | F120: =COUNTIF(INDIRECT("'Success Criteria'!" & ADDRESS(10,A120+4)):INDIRECT("'Success Criteria'!" & ADDRESS(72,A120+4)),"NON conformant") -> 0 | G120: =COUNTIF(INDIRECT("'Success Criteria'!" & ADDRESS(10,A120+4)):INDIRECT("'Success Criteria'!" & ADDRESS(72,A120+4)),"N/A") -> 0 | H120: =COUNTIF(INDIRECT("'Success Criteria'!" & ADDRESS(10,A120+4)):INDIRECT("'Success Criteria'!" & ADDRESS(72,A120+4)),"not tested") -> 0 | I120: =SUM(COUNTIF(INDIRECT("'Success Criteria'!" & ADDRESS(76,A120+4)):INDIRECT("'Success Criteria'!" & ADDRESS(119,A120+4)),"PASS"),COUNTIF(INDIRECT("'Success Criteria'!" & ADDRESS(76,A120+4)):INDIRECT("'Success Criteria'!" & ADDRESS(119,A120+4)),"PASS with comments")) -> 2 | J120: =COUNTIF(INDIRECT("'Success Criteria'!" & ADDRESS(76,A120+4)):INDIRECT("'Success Criteria'!" & ADDRESS(119,A120+4)),"NON conformant") -> 0 | K120: =COUNTIF(INDIRECT("'Success Criteria'!" & ADDRESS(76,A120+4)):INDIRECT("'Success Criteria'!" & ADDRESS(119,A120+4)),"N/A") -> 0 | L120: =COUNTIF(INDIRECT("'Success Criteria'!" & ADDRESS(76,A120+4)):INDIRECT("'Success Criteria'!" & ADDRESS(119,A120+4)),"not tested") -> 0 | M120: =SUM(COUNTIF(INDIRECT("'Success Criteria'!" & ADDRESS(124,A120+4)):INDIRECT("'Success Criteria'!" & ADDRESS(178,A120+4)),"PASS"),COUNTIF(INDIRECT("'Success Criteria'!" & ADDRESS(124,A120+4)):INDIRECT("'Success Criteria'!" & ADDRESS(178,A120+4)),"PASS with comments")) -> 0 | N120: =COUNTIF(INDIRECT("'Success Criteria'!" & ADDRESS(124,A120+4)):INDIRECT("'Success Criteria'!" & ADDRESS(178,A120+4)),"NON conformant") -> 0 | O120: =COUNTIF(INDIRECT("'Success Criteria'!" & ADDRESS(124,A120+4)):INDIRECT("'Success Criteria'!" & ADDRESS(178,A120+4)),"N/A") -> 0 | P120: =COUNTIF(INDIRECT("'Success Criteria'!" & ADDRESS(124,A120+4)):INDIRECT("'Success Criteria'!" & ADDRESS(178,A120+4)),"not tested") -> 28 | Q120: 2 | R120: 0 | S120: 0 | T120: 28 | V120: 0 | X120: 2 | Z120: 28 | AA120: 1
A121: 107 | B121: Page 107 | C121: URL 107 | D121: Please select | E121: =SUM(COUNTIF(INDIRECT("'Success Criteria'!" & ADDRESS(10,A121+4)):INDIRECT("'Success Criteria'!" & ADDRESS(72,A121+4)),"PASS"),COUNTIF(INDIRECT("'Success Criteria'!" & ADDRESS(10,A121+4)):INDIRECT("'Success Criteria'!" & ADDRESS(72,A121+4)),"PASS with comments")) -> 0 | F121: =COUNTIF(INDIRECT("'Success Criteria'!" & ADDRESS(10,A121+4)):INDIRECT("'Success Criteria'!" & ADDRESS(72,A121+4)),"NON conformant") -> 0 | G121: =COUNTIF(INDIRECT("'Success Criteria'!" & ADDRESS(10,A121+4)):INDIRECT("'Success Criteria'!" & ADDRESS(72,A121+4)),"N/A") -> 0 | H121: =COUNTIF(INDIRECT("'Success Criteria'!" & ADDRESS(10,A121+4)):INDIRECT("'Success Criteria'!" & ADDRESS(72,A121+4)),"not tested") -> 0 | I121: =SUM(COUNTIF(INDIRECT("'Success Criteria'!" & ADDRESS(76,A121+4)):INDIRECT("'Success Criteria'!" & ADDRESS(119,A121+4)),"PASS"),COUNTIF(INDIRECT("'Success Criteria'!" & ADDRESS(76,A121+4)):INDIRECT("'Success Criteria'!" & ADDRESS(119,A121+4)),"PASS with comments")) -> 2 | J121: =COUNTIF(INDIRECT("'Success Criteria'!" & ADDRESS(76,A121+4)):INDIRECT("'Success Criteria'!" & ADDRESS(119,A121+4)),"NON conformant") -> 0 | K121: =COUNTIF(INDIRECT("'Success Criteria'!" & ADDRESS(76,A121+4)):INDIRECT("'Success Criteria'!" & ADDRESS(119,A121+4)),"N/A") -> 0 | L121: =COUNTIF(INDIRECT("'Success Criteria'!" & ADDRESS(76,A121+4)):INDIRECT("'Success Criteria'!" & ADDRESS(119,A121+4)),"not tested") -> 0 | M121: =SUM(COUNTIF(INDIRECT("'Success Criteria'!" & ADDRESS(124,A121+4)):INDIRECT("'Success Criteria'!" & ADDRESS(178,A121+4)),"PASS"),COUNTIF(INDIRECT("'Success Criteria'!" & ADDRESS(124,A121+4)):INDIRECT("'Success Criteria'!" & ADDRESS(178,A121+4)),"PASS with comments")) -> 0 | N121: =COUNTIF(INDIRECT("'Success Criteria'!" & ADDRESS(124,A121+4)):INDIRECT("'Success Criteria'!" & ADDRESS(178,A121+4)),"NON conformant") -> 0 | O121: =COUNTIF(INDIRECT("'Success Criteria'!" & ADDRESS(124,A121+4)):INDIRECT("'Success Criteria'!" & ADDRESS(178,A121+4)),"N/A") -> 0 | P121: =COUNTIF(INDIRECT("'Success Criteria'!" & ADDRESS(124,A121+4)):INDIRECT("'Success Criteria'!" & ADDRESS(178,A121+4)),"not tested") -> 28 | Q121: 2 | R121: 0 | S121: 0 | T121: 28 | V121: 0 | X121: 2 | Z121: 28 | AA121: 1
A122: 108 | B122: Page 108 | C122: URL 108 | D122: Please select | E122: =SUM(COUNTIF(INDIRECT("'Success Criteria'!" & ADDRESS(10,A122+4)):INDIRECT("'Success Criteria'!" & ADDRESS(72,A122+4)),"PASS"),COUNTIF(INDIRECT("'Success Criteria'!" & ADDRESS(10,A122+4)):INDIRECT("'Success Criteria'!" & ADDRESS(72,A122+4)),"PASS with comments")) -> 0 | F122: =COUNTIF(INDIRECT("'Success Criteria'!" & ADDRESS(10,A122+4)):INDIRECT("'Success Criteria'!" & ADDRESS(72,A122+4)),"NON conformant") -> 0 | G122: =COUNTIF(INDIRECT("'Success Criteria'!" & ADDRESS(10,A122+4)):INDIRECT("'Success Criteria'!" & ADDRESS(72,A122+4)),"N/A") -> 0 | H122: =COUNTIF(INDIRECT("'Success Criteria'!" & ADDRESS(10,A122+4)):INDIRECT("'Success Criteria'!" & ADDRESS(72,A122+4)),"not tested") -> 0 | I122: =SUM(COUNTIF(INDIRECT("'Success Criteria'!" & ADDRESS(76,A122+4)):INDIRECT("'Success Criteria'!" & ADDRESS(119,A122+4)),"PASS"),COUNTIF(INDIRECT("'Success Criteria'!" & ADDRESS(76,A122+4)):INDIRECT("'Success Criteria'!" & ADDRESS(119,A122+4)),"PASS with comments")) -> 2 | J122: =COUNTIF(INDIRECT("'Success Criteria'!" & ADDRESS(76,A122+4)):INDIRECT("'Success Criteria'!" & ADDRESS(119,A122+4)),"NON conformant") -> 0 | K122: =COUNTIF(INDIRECT("'Success Criteria'!" & ADDRESS(76,A122+4)):INDIRECT("'Success Criteria'!" & ADDRESS(119,A122+4)),"N/A") -> 0 | L122: =COUNTIF(INDIRECT("'Success Criteria'!" & ADDRESS(76,A122+4)):INDIRECT("'Success Criteria'!" & ADDRESS(119,A122+4)),"not tested") -> 0 | M122: =SUM(COUNTIF(INDIRECT("'Success Criteria'!" & ADDRESS(124,A122+4)):INDIRECT("'Success Criteria'!" & ADDRESS(178,A122+4)),"PASS"),COUNTIF(INDIRECT("'Success Criteria'!" & ADDRESS(124,A122+4)):INDIRECT("'Success Criteria'!" & ADDRESS(178,A122+4)),"PASS with comments")) -> 0 | N122: =COUNTIF(INDIRECT("'Success Criteria'!" & ADDRESS(124,A122+4)):INDIRECT("'Success Criteria'!" & ADDRESS(178,A122+4)),"NON conformant") -> 0 | O122: =COUNTIF(INDIRECT("'Success Criteria'!" & ADDRESS(124,A122+4)):INDIRECT("'Success Criteria'!" & ADDRESS(178,A122+4)),"N/A") -> 0 | P122: =COUNTIF(INDIRECT("'Success Criteria'!" & ADDRESS(124,A122+4)):INDIRECT("'Success Criteria'!" & ADDRESS(178,A122+4)),"not tested") -> 28 | Q122: 2 | R122: 0 | S122: 0 | T122: 28 | V122: 0 | X122: 2 | Z122: 28 | AA122: 1
A123: 109 | B123: Page 109 | C123: URL 109 | D123: Please select | E123: =SUM(COUNTIF(INDIRECT("'Success Criteria'!" & ADDRESS(10,A123+4)):INDIRECT("'Success Criteria'!" & ADDRESS(72,A123+4)),"PASS"),COUNTIF(INDIRECT("'Success Criteria'!" & ADDRESS(10,A123+4)):INDIRECT("'Success Criteria'!" & ADDRESS(72,A123+4)),"PASS with comments")) -> 0 | F123: =COUNTIF(INDIRECT("'Success Criteria'!" & ADDRESS(10,A123+4)):INDIRECT("'Success Criteria'!" & ADDRESS(72,A123+4)),"NON conformant") -> 0 | G123: =COUNTIF(INDIRECT("'Success Criteria'!" & ADDRESS(10,A123+4)):INDIRECT("'Success Criteria'!" & ADDRESS(72,A123+4)),"N/A") -> 0 | H123: =COUNTIF(INDIRECT("'Success Criteria'!" & ADDRESS(10,A123+4)):INDIRECT("'Success Criteria'!" & ADDRESS(72,A123+4)),"not tested") -> 0 | I123: =SUM(COUNTIF(INDIRECT("'Success Criteria'!" & ADDRESS(76,A123+4)):INDIRECT("'Success Criteria'!" & ADDRESS(119,A123+4)),"PASS"),COUNTIF(INDIRECT("'Success Criteria'!" & ADDRESS(76,A123+4)):INDIRECT("'Success Criteria'!" & ADDRESS(119,A123+4)),"PASS with comments")) -> 2 | J123: =COUNTIF(INDIRECT("'Success Criteria'!" & ADDRESS(76,A123+4)):INDIRECT("'Success Criteria'!" & ADDRESS(119,A123+4)),"NON conformant") -> 0 | K123: =COUNTIF(INDIRECT("'Success Criteria'!" & ADDRESS(76,A123+4)):INDIRECT("'Success Criteria'!" & ADDRESS(119,A123+4)),"N/A") -> 0 | L123: =COUNTIF(INDIRECT("'Success Criteria'!" & ADDRESS(76,A123+4)):INDIRECT("'Success Criteria'!" & ADDRESS(119,A123+4)),"not tested") -> 0 | M123: =SUM(COUNTIF(INDIRECT("'Success Criteria'!" & ADDRESS(124,A123+4)):INDIRECT("'Success Criteria'!" & ADDRESS(178,A123+4)),"PASS"),COUNTIF(INDIRECT("'Success Criteria'!" & ADDRESS(124,A123+4)):INDIRECT("'Success Criteria'!" & ADDRESS(178,A123+4)),"PASS with comments")) -> 0 | N123: =COUNTIF(INDIRECT("'Success Criteria'!" & ADDRESS(124,A123+4)):INDIRECT("'Success Criteria'!" & ADDRESS(178,A123+4)),"NON conformant") -> 0 | O123: =COUNTIF(INDIRECT("'Success Criteria'!" & ADDRESS(124,A123+4)):INDIRECT("'Success Criteria'!" & ADDRESS(178,A123+4)),"N/A") -> 0 | P123: =COUNTIF(INDIRECT("'Success Criteria'!" & ADDRESS(124,A123+4)):INDIRECT("'Success Criteria'!" & ADDRESS(178,A123+4)),"not tested") -> 28 | Q123: 2 | R123: 0 | S123: 0 | T123: 28 | V123: 0 | X123: 2 | Z123: 28 | AA123: 1
A124: 110 | B124: Page 110 | C124: URL 110 | D124: Please select | E124: =SUM(COUNTIF(INDIRECT("'Success Criteria'!" & ADDRESS(10,A124+4)):INDIRECT("'Success Criteria'!" & ADDRESS(72,A124+4)),"PASS"),COUNTIF(INDIRECT("'Success Criteria'!" & ADDRESS(10,A124+4)):INDIRECT("'Success Criteria'!" & ADDRESS(72,A124+4)),"PASS with comments")) -> 0 | F124: =COUNTIF(INDIRECT("'Success Criteria'!" & ADDRESS(10,A124+4)):INDIRECT("'Success Criteria'!" & ADDRESS(72,A124+4)),"NON conformant") -> 0 | G124: =COUNTIF(INDIRECT("'Success Criteria'!" & ADDRESS(10,A124+4)):INDIRECT("'Success Criteria'!" & ADDRESS(72,A124+4)),"N/A") -> 0 | H124: =COUNTIF(INDIRECT("'Success Criteria'!" & ADDRESS(10,A124+4)):INDIRECT("'Success Criteria'!" & ADDRESS(72,A124+4)),"not tested") -> 0 | I124: =SUM(COUNTIF(INDIRECT("'Success Criteria'!" & ADDRESS(76,A124+4)):INDIRECT("'Success Criteria'!" & ADDRESS(119,A124+4)),"PASS"),COUNTIF(INDIRECT("'Success Criteria'!" & ADDRESS(76,A124+4)):INDIRECT("'Success Criteria'!" & ADDRESS(119,A124+4)),"PASS with comments")) -> 2 | J124: =COUNTIF(INDIRECT("'Success Criteria'!" & ADDRESS(76,A124+4)):INDIRECT("'Success Criteria'!" & ADDRESS(119,A124+4)),"NON conformant") -> 0 | K124: =COUNTIF(INDIRECT("'Success Criteria'!" & ADDRESS(76,A124+4)):INDIRECT("'Success Criteria'!" & ADDRESS(119,A124+4)),"N/A") -> 0 | L124: =COUNTIF(INDIRECT("'Success Criteria'!" & ADDRESS(76,A124+4)):INDIRECT("'Success Criteria'!" & ADDRESS(119,A124+4)),"not tested") -> 0 | M124: =SUM(COUNTIF(INDIRECT("'Success Criteria'!" & ADDRESS(124,A124+4)):INDIRECT("'Success Criteria'!" & ADDRESS(178,A124+4)),"PASS"),COUNTIF(INDIRECT("'Success Criteria'!" & ADDRESS(124,A124+4)):INDIRECT("'Success Criteria'!" & ADDRESS(178,A124+4)),"PASS with comments")) -> 0 | N124: =COUNTIF(INDIRECT("'Success Criteria'!" & ADDRESS(124,A124+4)):INDIRECT("'Success Criteria'!" & ADDRESS(178,A124+4)),"NON conformant") -> 0 | O124: =COUNTIF(INDIRECT("'Success Criteria'!" & ADDRESS(124,A124+4)):INDIRECT("'Success Criteria'!" & ADDRESS(178,A124+4)),"N/A") -> 0 | P124: =COUNTIF(INDIRECT("'Success Criteria'!" & ADDRESS(124,A124+4)):INDIRECT("'Success Criteria'!" & ADDRESS(178,A124+4)),"not tested") -> 28 | Q124: 2 | R124: 0 | S124: 0 | T124: 28 | V124: 0 | X124: 2 | Z124: 28 | AA124: 1
A125: 111 | B125: Page 111 | C125: URL 111 | D125: Please select | E125: =SUM(COUNTIF(INDIRECT("'Success Criteria'!" & ADDRESS(10,A125+4)):INDIRECT("'Success Criteria'!" & ADDRESS(72,A125+4)),"PASS"),COUNTIF(INDIRECT("'Success Criteria'!" & ADDRESS(10,A125+4)):INDIRECT("'Success Criteria'!" & ADDRESS(72,A125+4)),"PASS with comments")) -> 0 | F125: =COUNTIF(INDIRECT("'Success Criteria'!" & ADDRESS(10,A125+4)):INDIRECT("'Success Criteria'!" & ADDRESS(72,A125+4)),"NON conformant") -> 0 | G125: =COUNTIF(INDIRECT("'Success Criteria'!" & ADDRESS(10,A125+4)):INDIRECT("'Success Criteria'!" & ADDRESS(72,A125+4)),"N/A") -> 0 | H125: =COUNTIF(INDIRECT("'Success Criteria'!" & ADDRESS(10,A125+4)):INDIRECT("'Success Criteria'!" & ADDRESS(72,A125+4)),"not tested") -> 0 | I125: =SUM(COUNTIF(INDIRECT("'Success Criteria'!" & ADDRESS(76,A125+4)):INDIRECT("'Success Criteria'!" & ADDRESS(119,A125+4)),"PASS"),COUNTIF(INDIRECT("'Success Criteria'!" & ADDRESS(76,A125+4)):INDIRECT("'Success Criteria'!" & ADDRESS(119,A125+4)),"PASS with comments")) -> 2 | J125: =COUNTIF(INDIRECT("'Success Criteria'!" & ADDRESS(76,A125+4)):INDIRECT("'Success Criteria'!" & ADDRESS(119,A125+4)),"NON conformant") -> 0 | K125: =COUNTIF(INDIRECT("'Success Criteria'!" & ADDRESS(76,A125+4)):INDIRECT("'Success Criteria'!" & ADDRESS(119,A125+4)),"N/A") -> 0 | L125: =COUNTIF(INDIRECT("'Success Criteria'!" & ADDRESS(76,A125+4)):INDIRECT("'Success Criteria'!" & ADDRESS(119,A125+4)),"not tested") -> 0 | M125: =SUM(COUNTIF(INDIRECT("'Success Criteria'!" & ADDRESS(124,A125+4)):INDIRECT("'Success Criteria'!" & ADDRESS(178,A125+4)),"PASS"),COUNTIF(INDIRECT("'Success Criteria'!" & ADDRESS(124,A125+4)):INDIRECT("'Success Criteria'!" & ADDRESS(178,A125+4)),"PASS with comments")) -> 0 | N125: =COUNTIF(INDIRECT("'Success Criteria'!" & ADDRESS(124,A125+4)):INDIRECT("'Success Criteria'!" & ADDRESS(178,A125+4)),"NON conformant") -> 0 | O125: =COUNTIF(INDIRECT("'Success Criteria'!" & ADDRESS(124,A125+4)):INDIRECT("'Success Criteria'!" & ADDRESS(178,A125+4)),"N/A") -> 0 | P125: =COUNTIF(INDIRECT("'Success Criteria'!" & ADDRESS(124,A125+4)):INDIRECT("'Success Criteria'!" & ADDRESS(178,A125+4)),"not tested") -> 28 | Q125: 2 | R125: 0 | S125: 0 | T125: 28 | V125: 0 | X125: 2 | Z125: 28 | AA125: 1
A126: 112 | B126: Page 112 | C126: URL 112 | D126: Please select | E126: =SUM(COUNTIF(INDIRECT("'Success Criteria'!" & ADDRESS(10,A126+4)):INDIRECT("'Success Criteria'!" & ADDRESS(72,A126+4)),"PASS"),COUNTIF(INDIRECT("'Success Criteria'!" & ADDRESS(10,A126+4)):INDIRECT("'Success Criteria'!" & ADDRESS(72,A126+4)),"PASS with comments")) -> 0 | F126: =COUNTIF(INDIRECT("'Success Criteria'!" & ADDRESS(10,A126+4)):INDIRECT("'Success Criteria'!" & ADDRESS(72,A126+4)),"NON conformant") -> 0 | G126: =COUNTIF(INDIRECT("'Success Criteria'!" & ADDRESS(10,A126+4)):INDIRECT("'Success Criteria'!" & ADDRESS(72,A126+4)),"N/A") -> 0 | H126: =COUNTIF(INDIRECT("'Success Criteria'!" & ADDRESS(10,A126+4)):INDIRECT("'Success Criteria'!" & ADDRESS(72,A126+4)),"not tested") -> 0 | I126: =SUM(COUNTIF(INDIRECT("'Success Criteria'!" & ADDRESS(76,A126+4)):INDIRECT("'Success Criteria'!" & ADDRESS(119,A126+4)),"PASS"),COUNTIF(INDIRECT("'Success Criteria'!" & ADDRESS(76,A126+4)):INDIRECT("'Success Criteria'!" & ADDRESS(119,A126+4)),"PASS with comments")) -> 2 | J126: =COUNTIF(INDIRECT("'Success Criteria'!" & ADDRESS(76,A126+4)):INDIRECT("'Success Criteria'!" & ADDRESS(119,A126+4)),"NON conformant") -> 0 | K126: =COUNTIF(INDIRECT("'Success Criteria'!" & ADDRESS(76,A126+4)):INDIRECT("'Success Criteria'!" & ADDRESS(119,A126+4)),"N/A") -> 0 | L126: =COUNTIF(INDIRECT("'Success Criteria'!" & ADDRESS(76,A126+4)):INDIRECT("'Success Criteria'!" & ADDRESS(119,A126+4)),"not tested") -> 0 | M126: =SUM(COUNTIF(INDIRECT("'Success Criteria'!" & ADDRESS(124,A126+4)):INDIRECT("'Success Criteria'!" & ADDRESS(178,A126+4)),"PASS"),COUNTIF(INDIRECT("'Success Criteria'!" & ADDRESS(124,A126+4)):INDIRECT("'Success Criteria'!" & ADDRESS(178,A126+4)),"PASS with comments")) -> 0 | N126: =COUNTIF(INDIRECT("'Success Criteria'!" & ADDRESS(124,A126+4)):INDIRECT("'Success Criteria'!" & ADDRESS(178,A126+4)),"NON conformant") -> 0 | O126: =COUNTIF(INDIRECT("'Success Criteria'!" & ADDRESS(124,A126+4)):INDIRECT("'Success Criteria'!" & ADDRESS(178,A126+4)),"N/A") -> 0 | P126: =COUNTIF(INDIRECT("'Success Criteria'!" & ADDRESS(124,A126+4)):INDIRECT("'Success Criteria'!" & ADDRESS(178,A126+4)),"not tested") -> 28 | Q126: 2 | R126: 0 | S126: 0 | T126: 28 | V126: 0 | X126: 2 | Z126: 28 | AA126: 1
A127: 113 | B127: Page 113 | C127: URL 113 | D127: Please select | E127: =SUM(COUNTIF(INDIRECT("'Success Criteria'!" & ADDRESS(10,A127+4)):INDIRECT("'Success Criteria'!" & ADDRESS(72,A127+4)),"PASS"),COUNTIF(INDIRECT("'Success Criteria'!" & ADDRESS(10,A127+4)):INDIRECT("'Success Criteria'!" & ADDRESS(72,A127+4)),"PASS with comments")) -> 0 | F127: =COUNTIF(INDIRECT("'Success Criteria'!" & ADDRESS(10,A127+4)):INDIRECT("'Success Criteria'!" & ADDRESS(72,A127+4)),"NON conformant") -> 0 | G127: =COUNTIF(INDIRECT("'Success Criteria'!" & ADDRESS(10,A127+4)):INDIRECT("'Success Criteria'!" & ADDRESS(72,A127+4)),"N/A") -> 0 | H127: =COUNTIF(INDIRECT("'Success Criteria'!" & ADDRESS(10,A127+4)):INDIRECT("'Success Criteria'!" & ADDRESS(72,A127+4)),"not tested") -> 0 | I127: =SUM(COUNTIF(INDIRECT("'Success Criteria'!" & ADDRESS(76,A127+4)):INDIRECT("'Success Criteria'!" & ADDRESS(119,A127+4)),"PASS"),COUNTIF(INDIRECT("'Success Criteria'!" & ADDRESS(76,A127+4)):INDIRECT("'Success Criteria'!" & ADDRESS(119,A127+4)),"PASS with comments")) -> 2 | J127: =COUNTIF(INDIRECT("'Success Criteria'!" & ADDRESS(76,A127+4)):INDIRECT("'Success Criteria'!" & ADDRESS(119,A127+4)),"NON conformant") -> 0 | K127: =COUNTIF(INDIRECT("'Success Criteria'!" & ADDRESS(76,A127+4)):INDIRECT("'Success Criteria'!" & ADDRESS(119,A127+4)),"N/A") -> 0 | L127: =COUNTIF(INDIRECT("'Success Criteria'!" & ADDRESS(76,A127+4)):INDIRECT("'Success Criteria'!" & ADDRESS(119,A127+4)),"not tested") -> 0 | M127: =SUM(COUNTIF(INDIRECT("'Success Criteria'!" & ADDRESS(124,A127+4)):INDIRECT("'Success Criteria'!" & ADDRESS(178,A127+4)),"PASS"),COUNTIF(INDIRECT("'Success Criteria'!" & ADDRESS(124,A127+4)):INDIRECT("'Success Criteria'!" & ADDRESS(178,A127+4)),"PASS with comments")) -> 0 | N127: =COUNTIF(INDIRECT("'Success Criteria'!" & ADDRESS(124,A127+4)):INDIRECT("'Success Criteria'!" & ADDRESS(178,A127+4)),"NON conformant") -> 0 | O127: =COUNTIF(INDIRECT("'Success Criteria'!" & ADDRESS(124,A127+4)):INDIRECT("'Success Criteria'!" & ADDRESS(178,A127+4)),"N/A") -> 0 | P127: =COUNTIF(INDIRECT("'Success Criteria'!" & ADDRESS(124,A127+4)):INDIRECT("'Success Criteria'!" & ADDRESS(178,A127+4)),"not tested") -> 28 | Q127: 2 | R127: 0 | S127: 0 | T127: 28 | V127: 0 | X127: 2 | Z127: 28 | AA127: 1
A128: 114 | B128: Page 114 | C128: URL 114 | D128: Please select | E128: =SUM(COUNTIF(INDIRECT("'Success Criteria'!" & ADDRESS(10,A128+4)):INDIRECT("'Success Criteria'!" & ADDRESS(72,A128+4)),"PASS"),COUNTIF(INDIRECT("'Success Criteria'!" & ADDRESS(10,A128+4)):INDIRECT("'Success Criteria'!" & ADDRESS(72,A128+4)),"PASS with comments")) -> 0 | F128: =COUNTIF(INDIRECT("'Success Criteria'!" & ADDRESS(10,A128+4)):INDIRECT("'Success Criteria'!" & ADDRESS(72,A128+4)),"NON conformant") -> 0 | G128: =COUNTIF(INDIRECT("'Success Criteria'!" & ADDRESS(10,A128+4)):INDIRECT("'Success Criteria'!" & ADDRESS(72,A128+4)),"N/A") -> 0 | H128: =COUNTIF(INDIRECT("'Success Criteria'!" & ADDRESS(10,A128+4)):INDIRECT("'Success Criteria'!" & ADDRESS(72,A128+4)),"not tested") -> 0 | I128: =SUM(COUNTIF(INDIRECT("'Success Criteria'!" & ADDRESS(76,A128+4)):INDIRECT("'Success Criteria'!" & ADDRESS(119,A128+4)),"PASS"),COUNTIF(INDIRECT("'Success Criteria'!" & ADDRESS(76,A128+4)):INDIRECT("'Success Criteria'!" & ADDRESS(119,A128+4)),"PASS with comments")) -> 2 | J128: =COUNTIF(INDIRECT("'Success Criteria'!" & ADDRESS(76,A128+4)):INDIRECT("'Success Criteria'!" & ADDRESS(119,A128+4)),"NON conformant") -> 0 | K128: =COUNTIF(INDIRECT("'Success Criteria'!" & ADDRESS(76,A128+4)):INDIRECT("'Success Criteria'!" & ADDRESS(119,A128+4)),"N/A") -> 0 | L128: =COUNTIF(INDIRECT("'Success Criteria'!" & ADDRESS(76,A128+4)):INDIRECT("'Success Criteria'!" & ADDRESS(119,A128+4)),"not tested") -> 0 | M128: =SUM(COUNTIF(INDIRECT("'Success Criteria'!" & ADDRESS(124,A128+4)):INDIRECT("'Success Criteria'!" & ADDRESS(178,A128+4)),"PASS"),COUNTIF(INDIRECT("'Success Criteria'!" & ADDRESS(124,A128+4)):INDIRECT("'Success Criteria'!" & ADDRESS(178,A128+4)),"PASS with comments")) -> 0 | N128: =COUNTIF(INDIRECT("'Success Criteria'!" & ADDRESS(124,A128+4)):INDIRECT("'Success Criteria'!" & ADDRESS(178,A128+4)),"NON conformant") -> 0 | O128: =COUNTIF(INDIRECT("'Success Criteria'!" & ADDRESS(124,A128+4)):INDIRECT("'Success Criteria'!" & ADDRESS(178,A128+4)),"N/A") -> 0 | P128: =COUNTIF(INDIRECT("'Success Criteria'!" & ADDRESS(124,A128+4)):INDIRECT("'Success Criteria'!" & ADDRESS(178,A128+4)),"not tested") -> 28 | Q128: 2 | R128: 0 | S128: 0 | T128: 28 | V128: 0 | X128: 2 | Z128: 28 | AA128: 1
A129: 115 | B129: Page 115 | C129: URL 115 | D129: Please select | E129: =SUM(COUNTIF(INDIRECT("'Success Criteria'!" & ADDRESS(10,A129+4)):INDIRECT("'Success Criteria'!" & ADDRESS(72,A129+4)),"PASS"),COUNTIF(INDIRECT("'Success Criteria'!" & ADDRESS(10,A129+4)):INDIRECT("'Success Criteria'!" & ADDRESS(72,A129+4)),"PASS with comments")) -> 0 | F129: =COUNTIF(INDIRECT("'Success Criteria'!" & ADDRESS(10,A129+4)):INDIRECT("'Success Criteria'!" & ADDRESS(72,A129+4)),"NON conformant") -> 0 | G129: =COUNTIF(INDIRECT("'Success Criteria'!" & ADDRESS(10,A129+4)):INDIRECT("'Success Criteria'!" & ADDRESS(72,A129+4)),"N/A") -> 0 | H129: =COUNTIF(INDIRECT("'Success Criteria'!" & ADDRESS(10,A129+4)):INDIRECT("'Success Criteria'!" & ADDRESS(72,A129+4)),"not tested") -> 0 | I129: =SUM(COUNTIF(INDIRECT("'Success Criteria'!" & ADDRESS(76,A129+4)):INDIRECT("'Success Criteria'!" & ADDRESS(119,A129+4)),"PASS"),COUNTIF(INDIRECT("'Success Criteria'!" & ADDRESS(76,A129+4)):INDIRECT("'Success Criteria'!" & ADDRESS(119,A129+4)),"PASS with comments")) -> 2 | J129: =COUNTIF(INDIRECT("'Success Criteria'!" & ADDRESS(76,A129+4)):INDIRECT("'Success Criteria'!" & ADDRESS(119,A129+4)),"NON conformant") -> 0 | K129: =COUNTIF(INDIRECT("'Success Criteria'!" & ADDRESS(76,A129+4)):INDIRECT("'Success Criteria'!" & ADDRESS(119,A129+4)),"N/A") -> 0 | L129: =COUNTIF(INDIRECT("'Success Criteria'!" & ADDRESS(76,A129+4)):INDIRECT("'Success Criteria'!" & ADDRESS(119,A129+4)),"not tested") -> 0 | M129: =SUM(COUNTIF(INDIRECT("'Success Criteria'!" & ADDRESS(124,A129+4)):INDIRECT("'Success Criteria'!" & ADDRESS(178,A129+4)),"PASS"),COUNTIF(INDIRECT("'Success Criteria'!" & ADDRESS(124,A129+4)):INDIRECT("'Success Criteria'!" & ADDRESS(178,A129+4)),"PASS with comments")) -> 0 | N129: =COUNTIF(INDIRECT("'Success Criteria'!" & ADDRESS(124,A129+4)):INDIRECT("'Success Criteria'!" & ADDRESS(178,A129+4)),"NON conformant") -> 0 | O129: =COUNTIF(INDIRECT("'Success Criteria'!" & ADDRESS(124,A129+4)):INDIRECT("'Success Criteria'!" & ADDRESS(178,A129+4)),"N/A") -> 0 | P129: =COUNTIF(INDIRECT("'Success Criteria'!" & ADDRESS(124,A129+4)):INDIRECT("'Success Criteria'!" & ADDRESS(178,A129+4)),"not tested") -> 28 | Q129: 2 | R129: 0 | S129: 0 | T129: 28 | V129: =SUM(E129:H129) -> 0 | W129: =IF(V129=30,1,"") ->  | X129: 2 | Y129: =IF(X129=20,1,"") ->  | Z129: 28 | AA129: =IF(Z129=28,1,"") -> 1
A130: 116 | B130: Page 116 | C130: URL 116 | D130: Please select | E130: =SUM(COUNTIF(INDIRECT("'Success Criteria'!" & ADDRESS(10,A130+4)):INDIRECT("'Success Criteria'!" & ADDRESS(72,A130+4)),"PASS"),COUNTIF(INDIRECT("'Success Criteria'!" & ADDRESS(10,A130+4)):INDIRECT("'Success Criteria'!" & ADDRESS(72,A130+4)),"PASS with comments")) -> 0 | F130: =COUNTIF(INDIRECT("'Success Criteria'!" & ADDRESS(10,A130+4)):INDIRECT("'Success Criteria'!" & ADDRESS(72,A130+4)),"NON conformant") -> 0 | G130: =COUNTIF(INDIRECT("'Success Criteria'!" & ADDRESS(10,A130+4)):INDIRECT("'Success Criteria'!" & ADDRESS(72,A130+4)),"N/A") -> 0 | H130: =COUNTIF(INDIRECT("'Success Criteria'!" & ADDRESS(10,A130+4)):INDIRECT("'Success Criteria'!" & ADDRESS(72,A130+4)),"not tested") -> 0 | I130: =SUM(COUNTIF(INDIRECT("'Success Criteria'!" & ADDRESS(76,A130+4)):INDIRECT("'Success Criteria'!" & ADDRESS(119,A130+4)),"PASS"),COUNTIF(INDIRECT("'Success Criteria'!" & ADDRESS(76,A130+4)):INDIRECT("'Success Criteria'!" & ADDRESS(119,A130+4)),"PASS with comments")) -> 2 | J130: =COUNTIF(INDIRECT("'Success Criteria'!" & ADDRESS(76,A130+4)):INDIRECT("'Success Criteria'!" & ADDRESS(119,A130+4)),"NON conformant") -> 0 | K130: =COUNTIF(INDIRECT("'Success Criteria'!" & ADDRESS(76,A130+4)):INDIRECT("'Success Criteria'!" & ADDRESS(119,A130+4)),"N/A") -> 0 | L130: =COUNTIF(INDIRECT("'Success Criteria'!" & ADDRESS(76,A130+4)):INDIRECT("'Success Criteria'!" & ADDRESS(119,A130+4)),"not tested") -> 0 | M130: =SUM(COUNTIF(INDIRECT("'Success Criteria'!" & ADDRESS(124,A130+4)):INDIRECT("'Success Criteria'!" & ADDRESS(178,A130+4)),"PASS"),COUNTIF(INDIRECT("'Success Criteria'!" & ADDRESS(124,A130+4)):INDIRECT("'Success Criteria'!" & ADDRESS(178,A130+4)),"PASS with comments")) -> 0 | N130: =COUNTIF(INDIRECT("'Success Criteria'!" & ADDRESS(124,A130+4)):INDIRECT("'Success Criteria'!" & ADDRESS(178,A130+4)),"NON conformant") -> 0 | O130: =COUNTIF(INDIRECT("'Success Criteria'!" & ADDRESS(124,A130+4)):INDIRECT("'Success Criteria'!" & ADDRESS(178,A130+4)),"N/A") -> 0 | P130: =COUNTIF(INDIRECT("'Success Criteria'!" & ADDRESS(124,A130+4)):INDIRECT("'Success Criteria'!" & ADDRESS(178,A130+4)),"not tested") -> 28 | Q130: 2 | R130: =SUM(F130+J130+N130) -> 0 | S130: 0 | T130: 28 | V130: 0 | X130: 2 | Z130: 28 | AA130: 1
A131: 117 | B131: Page 117 | C131: URL 117 | D131: Please select | E131: =SUM(COUNTIF(INDIRECT("'Success Criteria'!" & ADDRESS(10,A131+4)):INDIRECT("'Success Criteria'!" & ADDRESS(72,A131+4)),"PASS"),COUNTIF(INDIRECT("'Success Criteria'!" & ADDRESS(10,A131+4)):INDIRECT("'Success Criteria'!" & ADDRESS(72,A131+4)),"PASS with comments")) -> 0 | F131: =COUNTIF(INDIRECT("'Success Criteria'!" & ADDRESS(10,A131+4)):INDIRECT("'Success Criteria'!" & ADDRESS(72,A131+4)),"NON conformant") -> 0 | G131: =COUNTIF(INDIRECT("'Success Criteria'!" & ADDRESS(10,A131+4)):INDIRECT("'Success Criteria'!" & ADDRESS(72,A131+4)),"N/A") -> 0 | H131: =COUNTIF(INDIRECT("'Success Criteria'!" & ADDRESS(10,A131+4)):INDIRECT("'Success Criteria'!" & ADDRESS(72,A131+4)),"not tested") -> 0 | I131: =SUM(COUNTIF(INDIRECT("'Success Criteria'!" & ADDRESS(76,A131+4)):INDIRECT("'Success Criteria'!" & ADDRESS(119,A131+4)),"PASS"),COUNTIF(INDIRECT("'Success Criteria'!" & ADDRESS(76,A131+4)):INDIRECT("'Success Criteria'!" & ADDRESS(119,A131+4)),"PASS with comments")) -> 2 | J131: =COUNTIF(INDIRECT("'Success Criteria'!" & ADDRESS(76,A131+4)):INDIRECT("'Success Criteria'!" & ADDRESS(119,A131+4)),"NON conformant") -> 0 | K131: =COUNTIF(INDIRECT("'Success Criteria'!" & ADDRESS(76,A131+4)):INDIRECT("'Success Criteria'!" & ADDRESS(119,A131+4)),"N/A") -> 0 | L131: =COUNTIF(INDIRECT("'Success Criteria'!" & ADDRESS(76,A131+4)):INDIRECT("'Success Criteria'!" & ADDRESS(119,A131+4)),"not tested") -> 0 | M131: =SUM(COUNTIF(INDIRECT("'Success Criteria'!" & ADDRESS(124,A131+4)):INDIRECT("'Success Criteria'!" & ADDRESS(178,A131+4)),"PASS"),COUNTIF(INDIRECT("'Success Criteria'!" & ADDRESS(124,A131+4)):INDIRECT("'Success Criteria'!" & ADDRESS(178,A131+4)),"PASS with comments")) -> 0 | N131: =COUNTIF(INDIRECT("'Success Criteria'!" & ADDRESS(124,A131+4)):INDIRECT("'Success Criteria'!" & ADDRESS(178,A131+4)),"NON conformant") -> 0 | O131: =COUNTIF(INDIRECT("'Success Criteria'!" & ADDRESS(124,A131+4)):INDIRECT("'Success Criteria'!" & ADDRESS(178,A131+4)),"N/A") -> 0 | P131: =COUNTIF(INDIRECT("'Success Criteria'!" & ADDRESS(124,A131+4)):INDIRECT("'Success Criteria'!" & ADDRESS(178,A131+4)),"not tested") -> 28 | Q131: 2 | R131: 0 | S131: 0 | T131: 28 | V131: 0 | X131: 2 | Z131: 28 | AA131: 1
A132: 118 | B132: Page 118 | C132: URL 118 | D132: Please select | E132: =SUM(COUNTIF(INDIRECT("'Success Criteria'!" & ADDRESS(10,A132+4)):INDIRECT("'Success Criteria'!" & ADDRESS(72,A132+4)),"PASS"),COUNTIF(INDIRECT("'Success Criteria'!" & ADDRESS(10,A132+4)):INDIRECT("'Success Criteria'!" & ADDRESS(72,A132+4)),"PASS with comments")) -> 0 | F132: =COUNTIF(INDIRECT("'Success Criteria'!" & ADDRESS(10,A132+4)):INDIRECT("'Success Criteria'!" & ADDRESS(72,A132+4)),"NON conformant") -> 0 | G132: =COUNTIF(INDIRECT("'Success Criteria'!" & ADDRESS(10,A132+4)):INDIRECT("'Success Criteria'!" & ADDRESS(72,A132+4)),"N/A") -> 0 | H132: =COUNTIF(INDIRECT("'Success Criteria'!" & ADDRESS(10,A132+4)):INDIRECT("'Success Criteria'!" & ADDRESS(72,A132+4)),"not tested") -> 0 | I132: =SUM(COUNTIF(INDIRECT("'Success Criteria'!" & ADDRESS(76,A132+4)):INDIRECT("'Success Criteria'!" & ADDRESS(119,A132+4)),"PASS"),COUNTIF(INDIRECT("'Success Criteria'!" & ADDRESS(76,A132+4)):INDIRECT("'Success Criteria'!" & ADDRESS(119,A132+4)),"PASS with comments")) -> 2 | J132: =COUNTIF(INDIRECT("'Success Criteria'!" & ADDRESS(76,A132+4)):INDIRECT("'Success Criteria'!" & ADDRESS(119,A132+4)),"NON conformant") -> 0 | K132: =COUNTIF(INDIRECT("'Success Criteria'!" & ADDRESS(76,A132+4)):INDIRECT("'Success Criteria'!" & ADDRESS(119,A132+4)),"N/A") -> 0 | L132: =COUNTIF(INDIRECT("'Success Criteria'!" & ADDRESS(76,A132+4)):INDIRECT("'Success Criteria'!" & ADDRESS(119,A132+4)),"not tested") -> 0 | M132: =SUM(COUNTIF(INDIRECT("'Success Criteria'!" & ADDRESS(124,A132+4)):INDIRECT("'Success Criteria'!" & ADDRESS(178,A132+4)),"PASS"),COUNTIF(INDIRECT("'Success Criteria'!" & ADDRESS(124,A132+4)):INDIRECT("'Success Criteria'!" & ADDRESS(178,A132+4)),"PASS with comments")) -> 0 | N132: =COUNTIF(INDIRECT("'Success Criteria'!" & ADDRESS(124,A132+4)):INDIRECT("'Success Criteria'!" & ADDRESS(178,A132+4)),"NON conformant") -> 0 | O132: =COUNTIF(INDIRECT("'Success Criteria'!" & ADDRESS(124,A132+4)):INDIRECT("'Success Criteria'!" & ADDRESS(178,A132+4)),"N/A") -> 0 | P132: =COUNTIF(INDIRECT("'Success Criteria'!" & ADDRESS(124,A132+4)):INDIRECT("'Success Criteria'!" & ADDRESS(178,A132+4)),"not tested") -> 28 | Q132: 2 | R132: 0 | S132: 0 | T132: 28 | V132: 0 | X132: 2 | Z132: 28 | AA132: 1
A133: 119 | B133: Page 119 | C133: URL 119 | D133: Please select | E133: =SUM(COUNTIF(INDIRECT("'Success Criteria'!" & ADDRESS(10,A133+4)):INDIRECT("'Success Criteria'!" & ADDRESS(72,A133+4)),"PASS"),COUNTIF(INDIRECT("'Success Criteria'!" & ADDRESS(10,A133+4)):INDIRECT("'Success Criteria'!" & ADDRESS(72,A133+4)),"PASS with comments")) -> 0 | F133: =COUNTIF(INDIRECT("'Success Criteria'!" & ADDRESS(10,A133+4)):INDIRECT("'Success Criteria'!" & ADDRESS(72,A133+4)),"NON conformant") -> 0 | G133: =COUNTIF(INDIRECT("'Success Criteria'!" & ADDRESS(10,A133+4)):INDIRECT("'Success Criteria'!" & ADDRESS(72,A133+4)),"N/A") -> 0 | H133: =COUNTIF(INDIRECT("'Success Criteria'!" & ADDRESS(10,A133+4)):INDIRECT("'Success Criteria'!" & ADDRESS(72,A133+4)),"not tested") -> 0 | I133: =SUM(COUNTIF(INDIRECT("'Success Criteria'!" & ADDRESS(76,A133+4)):INDIRECT("'Success Criteria'!" & ADDRESS(119,A133+4)),"PASS"),COUNTIF(INDIRECT("'Success Criteria'!" & ADDRESS(76,A133+4)):INDIRECT("'Success Criteria'!" & ADDRESS(119,A133+4)),"PASS with comments")) -> 2 | J133: =COUNTIF(INDIRECT("'Success Criteria'!" & ADDRESS(76,A133+4)):INDIRECT("'Success Criteria'!" & ADDRESS(119,A133+4)),"NON conformant") -> 0 | K133: =COUNTIF(INDIRECT("'Success Criteria'!" & ADDRESS(76,A133+4)):INDIRECT("'Success Criteria'!" & ADDRESS(119,A133+4)),"N/A") -> 0 | L133: =COUNTIF(INDIRECT("'Success Criteria'!" & ADDRESS(76,A133+4)):INDIRECT("'Success Criteria'!" & ADDRESS(119,A133+4)),"not tested") -> 0 | M133: =SUM(COUNTIF(INDIRECT("'Success Criteria'!" & ADDRESS(124,A133+4)):INDIRECT("'Success Criteria'!" & ADDRESS(178,A133+4)),"PASS"),COUNTIF(INDIRECT("'Success Criteria'!" & ADDRESS(124,A133+4)):INDIRECT("'Success Criteria'!" & ADDRESS(178,A133+4)),"PASS with comments")) -> 0 | N133: =COUNTIF(INDIRECT("'Success Criteria'!" & ADDRESS(124,A133+4)):INDIRECT("'Success Criteria'!" & ADDRESS(178,A133+4)),"NON conformant") -> 0 | O133: =COUNTIF(INDIRECT("'Success Criteria'!" & ADDRESS(124,A133+4)):INDIRECT("'Success Criteria'!" & ADDRESS(178,A133+4)),"N/A") -> 0 | P133: =COUNTIF(INDIRECT("'Success Criteria'!" & ADDRESS(124,A133+4)):INDIRECT("'Success Criteria'!" & ADDRESS(178,A133+4)),"not tested") -> 28 | Q133: 2 | R133: 0 | S133: 0 | T133: 28 | V133: 0 | X133: 2 | Z133: 28 | AA133: 1
A134: 120 | B134: Page 120 | C134: URL 120 | D134: Please select | E134: =SUM(COUNTIF(INDIRECT("'Success Criteria'!" & ADDRESS(10,A134+4)):INDIRECT("'Success Criteria'!" & ADDRESS(72,A134+4)),"PASS"),COUNTIF(INDIRECT("'Success Criteria'!" & ADDRESS(10,A134+4)):INDIRECT("'Success Criteria'!" & ADDRESS(72,A134+4)),"PASS with comments")) -> 0 | F134: =COUNTIF(INDIRECT("'Success Criteria'!" & ADDRESS(10,A134+4)):INDIRECT("'Success Criteria'!" & ADDRESS(72,A134+4)),"NON conformant") -> 0 | G134: =COUNTIF(INDIRECT("'Success Criteria'!" & ADDRESS(10,A134+4)):INDIRECT("'Success Criteria'!" & ADDRESS(72,A134+4)),"N/A") -> 0 | H134: =COUNTIF(INDIRECT("'Success Criteria'!" & ADDRESS(10,A134+4)):INDIRECT("'Success Criteria'!" & ADDRESS(72,A134+4)),"not tested") -> 0 | I134: =SUM(COUNTIF(INDIRECT("'Success Criteria'!" & ADDRESS(76,A134+4)):INDIRECT("'Success Criteria'!" & ADDRESS(119,A134+4)),"PASS"),COUNTIF(INDIRECT("'Success Criteria'!" & ADDRESS(76,A134+4)):INDIRECT("'Success Criteria'!" & ADDRESS(119,A134+4)),"PASS with comments")) -> 2 | J134: =COUNTIF(INDIRECT("'Success Criteria'!" & ADDRESS(76,A134+4)):INDIRECT("'Success Criteria'!" & ADDRESS(119,A134+4)),"NON conformant") -> 0 | K134: =COUNTIF(INDIRECT("'Success Criteria'!" & ADDRESS(76,A134+4)):INDIRECT("'Success Criteria'!" & ADDRESS(119,A134+4)),"N/A") -> 0 | L134: =COUNTIF(INDIRECT("'Success Criteria'!" & ADDRESS(76,A134+4)):INDIRECT("'Success Criteria'!" & ADDRESS(119,A134+4)),"not tested") -> 0 | M134: =SUM(COUNTIF(INDIRECT("'Success Criteria'!" & ADDRESS(124,A134+4)):INDIRECT("'Success Criteria'!" & ADDRESS(178,A134+4)),"PASS"),COUNTIF(INDIRECT("'Success Criteria'!" & ADDRESS(124,A134+4)):INDIRECT("'Success Criteria'!" & ADDRESS(178,A134+4)),"PASS with comments")) -> 0 | N134: =COUNTIF(INDIRECT("'Success Criteria'!" & ADDRESS(124,A134+4)):INDIRECT("'Success Criteria'!" & ADDRESS(178,A134+4)),"NON conformant") -> 0 | O134: =COUNTIF(INDIRECT("'Success Criteria'!" & ADDRESS(124,A134+4)):INDIRECT("'Success Criteria'!" & ADDRESS(178,A134+4)),"N/A") -> 0 | P134: =COUNTIF(INDIRECT("'Success Criteria'!" & ADDRESS(124,A134+4)):INDIRECT("'Success Criteria'!" & ADDRESS(178,A134+4)),"not tested") -> 28 | Q134: 2 | R134: 0 | S134: 0 | T134: 28 | V134: 0 | X134: 2 | Z134: 28 | AA134: 1
A135: 121 | B135: Page 121 | C135: URL 121 | D135: Please select | E135: =SUM(COUNTIF(INDIRECT("'Success Criteria'!" & ADDRESS(10,A135+4)):INDIRECT("'Success Criteria'!" & ADDRESS(72,A135+4)),"PASS"),COUNTIF(INDIRECT("'Success Criteria'!" & ADDRESS(10,A135+4)):INDIRECT("'Success Criteria'!" & ADDRESS(72,A135+4)),"PASS with comments")) -> 0 | F135: =COUNTIF(INDIRECT("'Success Criteria'!" & ADDRESS(10,A135+4)):INDIRECT("'Success Criteria'!" & ADDRESS(72,A135+4)),"NON conformant") -> 0 | G135: =COUNTIF(INDIRECT("'Success Criteria'!" & ADDRESS(10,A135+4)):INDIRECT("'Success Criteria'!" & ADDRESS(72,A135+4)),"N/A") -> 0 | H135: =COUNTIF(INDIRECT("'Success Criteria'!" & ADDRESS(10,A135+4)):INDIRECT("'Success Criteria'!" & ADDRESS(72,A135+4)),"not tested") -> 0 | I135: =SUM(COUNTIF(INDIRECT("'Success Criteria'!" & ADDRESS(76,A135+4)):INDIRECT("'Success Criteria'!" & ADDRESS(119,A135+4)),"PASS"),COUNTIF(INDIRECT("'Success Criteria'!" & ADDRESS(76,A135+4)):INDIRECT("'Success Criteria'!" & ADDRESS(119,A135+4)),"PASS with comments")) -> 2 | J135: =COUNTIF(INDIRECT("'Success Criteria'!" & ADDRESS(76,A135+4)):INDIRECT("'Success Criteria'!" & ADDRESS(119,A135+4)),"NON conformant") -> 0 | K135: =COUNTIF(INDIRECT("'Success Criteria'!" & ADDRESS(76,A135+4)):INDIRECT("'Success Criteria'!" & ADDRESS(119,A135+4)),"N/A") -> 0 | L135: =COUNTIF(INDIRECT("'Success Criteria'!" & ADDRESS(76,A135+4)):INDIRECT("'Success Criteria'!" & ADDRESS(119,A135+4)),"not tested") -> 0 | M135: =SUM(COUNTIF(INDIRECT("'Success Criteria'!" & ADDRESS(124,A135+4)):INDIRECT("'Success Criteria'!" & ADDRESS(178,A135+4)),"PASS"),COUNTIF(INDIRECT("'Success Criteria'!" & ADDRESS(124,A135+4)):INDIRECT("'Success Criteria'!" & ADDRESS(178,A135+4)),"PASS with comments")) -> 0 | N135: =COUNTIF(INDIRECT("'Success Criteria'!" & ADDRESS(124,A135+4)):INDIRECT("'Success Criteria'!" & ADDRESS(178,A135+4)),"NON conformant") -> 0 | O135: =COUNTIF(INDIRECT("'Success Criteria'!" & ADDRESS(124,A135+4)):INDIRECT("'Success Criteria'!" & ADDRESS(178,A135+4)),"N/A") -> 0 | P135: =COUNTIF(INDIRECT("'Success Criteria'!" & ADDRESS(124,A135+4)):INDIRECT("'Success Criteria'!" & ADDRESS(178,A135+4)),"not tested") -> 28 | Q135: 2 | R135: 0 | S135: 0 | T135: 28 | V135: 0 | X135: 2 | Z135: 28 | AA135: 1
A136: 122 | B136: Page 122 | C136: URL 122 | D136: Please select | E136: =SUM(COUNTIF(INDIRECT("'Success Criteria'!" & ADDRESS(10,A136+4)):INDIRECT("'Success Criteria'!" & ADDRESS(72,A136+4)),"PASS"),COUNTIF(INDIRECT("'Success Criteria'!" & ADDRESS(10,A136+4)):INDIRECT("'Success Criteria'!" & ADDRESS(72,A136+4)),"PASS with comments")) -> 0 | F136: =COUNTIF(INDIRECT("'Success Criteria'!" & ADDRESS(10,A136+4)):INDIRECT("'Success Criteria'!" & ADDRESS(72,A136+4)),"NON conformant") -> 0 | G136: =COUNTIF(INDIRECT("'Success Criteria'!" & ADDRESS(10,A136+4)):INDIRECT("'Success Criteria'!" & ADDRESS(72,A136+4)),"N/A") -> 0 | H136: =COUNTIF(INDIRECT("'Success Criteria'!" & ADDRESS(10,A136+4)):INDIRECT("'Success Criteria'!" & ADDRESS(72,A136+4)),"not tested") -> 0 | I136: =SUM(COUNTIF(INDIRECT("'Success Criteria'!" & ADDRESS(76,A136+4)):INDIRECT("'Success Criteria'!" & ADDRESS(119,A136+4)),"PASS"),COUNTIF(INDIRECT("'Success Criteria'!" & ADDRESS(76,A136+4)):INDIRECT("'Success Criteria'!" & ADDRESS(119,A136+4)),"PASS with comments")) -> 2 | J136: =COUNTIF(INDIRECT("'Success Criteria'!" & ADDRESS(76,A136+4)):INDIRECT("'Success Criteria'!" & ADDRESS(119,A136+4)),"NON conformant") -> 0 | K136: =COUNTIF(INDIRECT("'Success Criteria'!" & ADDRESS(76,A136+4)):INDIRECT("'Success Criteria'!" & ADDRESS(119,A136+4)),"N/A") -> 0 | L136: =COUNTIF(INDIRECT("'Success Criteria'!" & ADDRESS(76,A136+4)):INDIRECT("'Success Criteria'!" & ADDRESS(119,A136+4)),"not tested") -> 0 | M136: =SUM(COUNTIF(INDIRECT("'Success Criteria'!" & ADDRESS(124,A136+4)):INDIRECT("'Success Criteria'!" & ADDRESS(178,A136+4)),"PASS"),COUNTIF(INDIRECT("'Success Criteria'!" & ADDRESS(124,A136+4)):INDIRECT("'Success Criteria'!" & ADDRESS(178,A136+4)),"PASS with comments")) -> 0 | N136: =COUNTIF(INDIRECT("'Success Criteria'!" & ADDRESS(124,A136+4)):INDIRECT("'Success Criteria'!" & ADDRESS(178,A136+4)),"NON conformant") -> 0 | O136: =COUNTIF(INDIRECT("'Success Criteria'!" & ADDRESS(124,A136+4)):INDIRECT("'Success Criteria'!" & ADDRESS(178,A136+4)),"N/A") -> 0 | P136: =COUNTIF(INDIRECT("'Success Criteria'!" & ADDRESS(124,A136+4)):INDIRECT("'Success Criteria'!" & ADDRESS(178,A136+4)),"not tested") -> 28 | Q136: 2 | R136: 0 | S136: 0 | T136: 28 | V136: 0 | X136: 2 | Z136: 28 | AA136: 1
A137: 123 | B137: Page 123 | C137: URL 123 | D137: Please select | E137: =SUM(COUNTIF(INDIRECT("'Success Criteria'!" & ADDRESS(10,A137+4)):INDIRECT("'Success Criteria'!" & ADDRESS(72,A137+4)),"PASS"),COUNTIF(INDIRECT("'Success Criteria'!" & ADDRESS(10,A137+4)):INDIRECT("'Success Criteria'!" & ADDRESS(72,A137+4)),"PASS with comments")) -> 0 | F137: =COUNTIF(INDIRECT("'Success Criteria'!" & ADDRESS(10,A137+4)):INDIRECT("'Success Criteria'!" & ADDRESS(72,A137+4)),"NON conformant") -> 0 | G137: =COUNTIF(INDIRECT("'Success Criteria'!" & ADDRESS(10,A137+4)):INDIRECT("'Success Criteria'!" & ADDRESS(72,A137+4)),"N/A") -> 0 | H137: =COUNTIF(INDIRECT("'Success Criteria'!" & ADDRESS(10,A137+4)):INDIRECT("'Success Criteria'!" & ADDRESS(72,A137+4)),"not tested") -> 0 | I137: =SUM(COUNTIF(INDIRECT("'Success Criteria'!" & ADDRESS(76,A137+4)):INDIRECT("'Success Criteria'!" & ADDRESS(119,A137+4)),"PASS"),COUNTIF(INDIRECT("'Success Criteria'!" & ADDRESS(76,A137+4)):INDIRECT("'Success Criteria'!" & ADDRESS(119,A137+4)),"PASS with comments")) -> 2 | J137: =COUNTIF(INDIRECT("'Success Criteria'!" & ADDRESS(76,A137+4)):INDIRECT("'Success Criteria'!" & ADDRESS(119,A137+4)),"NON conformant") -> 0 | K137: =COUNTIF(INDIRECT("'Success Criteria'!" & ADDRESS(76,A137+4)):INDIRECT("'Success Criteria'!" & ADDRESS(119,A137+4)),"N/A") -> 0 | L137: =COUNTIF(INDIRECT("'Success Criteria'!" & ADDRESS(76,A137+4)):INDIRECT("'Success Criteria'!" & ADDRESS(119,A137+4)),"not tested") -> 0 | M137: =SUM(COUNTIF(INDIRECT("'Success Criteria'!" & ADDRESS(124,A137+4)):INDIRECT("'Success Criteria'!" & ADDRESS(178,A137+4)),"PASS"),COUNTIF(INDIRECT("'Success Criteria'!" & ADDRESS(124,A137+4)):INDIRECT("'Success Criteria'!" & ADDRESS(178,A137+4)),"PASS with comments")) -> 0 | N137: =COUNTIF(INDIRECT("'Success Criteria'!" & ADDRESS(124,A137+4)):INDIRECT("'Success Criteria'!" & ADDRESS(178,A137+4)),"NON conformant") -> 0 | O137: =COUNTIF(INDIRECT("'Success Criteria'!" & ADDRESS(124,A137+4)):INDIRECT("'Success Criteria'!" & ADDRESS(178,A137+4)),"N/A") -> 0 | P137: =COUNTIF(INDIRECT("'Success Criteria'!" & ADDRESS(124,A137+4)):INDIRECT("'Success Criteria'!" & ADDRESS(178,A137+4)),"not tested") -> 28 | Q137: 2 | R137: 0 | S137: 0 | T137: 28 | V137: 0 | X137: 2 | Z137: 28 | AA137: 1
A138: 124 | B138: Page 124 | C138: URL 124 | D138: Please select | E138: =SUM(COUNTIF(INDIRECT("'Success Criteria'!" & ADDRESS(10,A138+4)):INDIRECT("'Success Criteria'!" & ADDRESS(72,A138+4)),"PASS"),COUNTIF(INDIRECT("'Success Criteria'!" & ADDRESS(10,A138+4)):INDIRECT("'Success Criteria'!" & ADDRESS(72,A138+4)),"PASS with comments")) -> 0 | F138: =COUNTIF(INDIRECT("'Success Criteria'!" & ADDRESS(10,A138+4)):INDIRECT("'Success Criteria'!" & ADDRESS(72,A138+4)),"NON conformant") -> 0 | G138: =COUNTIF(INDIRECT("'Success Criteria'!" & ADDRESS(10,A138+4)):INDIRECT("'Success Criteria'!" & ADDRESS(72,A138+4)),"N/A") -> 0 | H138: =COUNTIF(INDIRECT("'Success Criteria'!" & ADDRESS(10,A138+4)):INDIRECT("'Success Criteria'!" & ADDRESS(72,A138+4)),"not tested") -> 0 | I138: =SUM(COUNTIF(INDIRECT("'Success Criteria'!" & ADDRESS(76,A138+4)):INDIRECT("'Success Criteria'!" & ADDRESS(119,A138+4)),"PASS"),COUNTIF(INDIRECT("'Success Criteria'!" & ADDRESS(76,A138+4)):INDIRECT("'Success Criteria'!" & ADDRESS(119,A138+4)),"PASS with comments")) -> 2 | J138: =COUNTIF(INDIRECT("'Success Criteria'!" & ADDRESS(76,A138+4)):INDIRECT("'Success Criteria'!" & ADDRESS(119,A138+4)),"NON conformant") -> 0 | K138: =COUNTIF(INDIRECT("'Success Criteria'!" & ADDRESS(76,A138+4)):INDIRECT("'Success Criteria'!" & ADDRESS(119,A138+4)),"N/A") -> 0 | L138: =COUNTIF(INDIRECT("'Success Criteria'!" & ADDRESS(76,A138+4)):INDIRECT("'Success Criteria'!" & ADDRESS(119,A138+4)),"not tested") -> 0 | M138: =SUM(COUNTIF(INDIRECT("'Success Criteria'!" & ADDRESS(124,A138+4)):INDIRECT("'Success Criteria'!" & ADDRESS(178,A138+4)),"PASS"),COUNTIF(INDIRECT("'Success Criteria'!" & ADDRESS(124,A138+4)):INDIRECT("'Success Criteria'!" & ADDRESS(178,A138+4)),"PASS with comments")) -> 0 | N138: =COUNTIF(INDIRECT("'Success Criteria'!" & ADDRESS(124,A138+4)):INDIRECT("'Success Criteria'!" & ADDRESS(178,A138+4)),"NON conformant") -> 0 | O138: =COUNTIF(INDIRECT("'Success Criteria'!" & ADDRESS(124,A138+4)):INDIRECT("'Success Criteria'!" & ADDRESS(178,A138+4)),"N/A") -> 0 | P138: =COUNTIF(INDIRECT("'Success Criteria'!" & ADDRESS(124,A138+4)):INDIRECT("'Success Criteria'!" & ADDRESS(178,A138+4)),"not tested") -> 28 | Q138: 2 | R138: 0 | S138: 0 | T138: 28 | V138: 0 | X138: 2 | Z138: 28 | AA138: 1
